Workbook

Sheet ITEMS
A1: RIESGO | D1: ALTA | F1: 1 | I1: Riesgo Estratégico: Se asocia con la forma en que se administra la Entidad. El manejo del riesgo estratégico se Enfoca a asuntos globales relacionados con la misión y el cumplimiento de los objetivos estratégicos, la clara definición de políticas, diseño y conceptualización de la entidad por parte de la alta gerencia. | L1: CORRECTIVO | M1: Oportunidad Estratégica: Se asocia con la forma en que se administra la Entidad. El manejo de la oportunidad estratégica se Enfoca a asuntos globales relacionados con la misión y el cumplimiento de los objetivos estratégicos, la clara definición de políticas, diseño y conceptualización de la entidad por parte de la alta gerencia. | P1: PROBABILIDAD | R1: 0 | S1: 0 | T1: 0 | U1: 0 | V1: 0 | W1: FUERTE
A2: OPORTUNIDAD | D2: MEDIA | F2: 2 | I2: Riesgos de Imagen: Están relacionados con la percepción y la confianza por parte de la ciudadanía hacia la institución. | L2: PREVENTIVO | M2: Oportunidad de Imagen: Está relacionada con la percepción y la confianza por parte de la ciudadanía hacia la institución. | P2: IMPACTO | R2: 15 | S2: 30 | T2: 25 | U2: 10 | V2: 5 | W2: MODERADO
D3: BAJA | F3: 3 | I3: Riesgos Operativos: Comprenden riesgos provenientes del funcionamiento y operatividad de los sistemas de información institucional, de la definición de los procesos, de la estructura de la entidad, de la articulación entre dependencias. | M3: Oportunidad Operativa: Comprenden oportunidades provenientes del funcionamiento y operatividad de los sistemas de información institucional, de la definición de los procesos, de la estructura de la entidad, de la articulación entre dependencias. | U3: 15 | V3: 10 | W3: DEBIL
F4: 4 | I4: Riesgos Financieros: Se relacionan con el manejo de los recursos de la entidad que incluyen: la ejecución presupuestal, la elaboración de los estados financieros, los pagos, manejos de excedentes de tesorería y el manejo sobre los bienes. | M4: Oportunidades Financieras: Se relacionan con el manejo de los recursos de la entidad que incluyen: la ejecución presupuestal, la elaboración de los estados financieros, los pagos, manejos de excedentes de tesorería y el manejo sobre los bienes.
F5: 5 | I5: Riesgos de Cumplimiento: Se asocian con la capacidad de la entidad para cumplir con los requisitos legales, contractuales, de ética pública y en general con su compromiso ante la comunidad. | M5: Oportunidades de Cumplimiento: Se asocian con la capacidad de la entidad para cumplir con los requisitos legales, contractuales, de ética pública y en general con su compromiso ante la comunidad.
I6: Riesgos de Tecnología: Están relacionados con la capacidad tecnológica de la Entidad para satisfacer sus necesidades actuales y futuras y el cumplimiento de la misión. | M6: Oportunidades de Tecnología: Están relacionados con la capacidad tecnológica de la Entidad para satisfacer sus necesidades actuales y futuras y el cumplimiento de la misión.
B7: Entes de Control
B8: Ministerio de Educación
B9: Graduados
B10: Procesos Internos
B11: Alta Dirección
B12: Estuadiantes
B13: Otros

Sheet INICIO
D1: MACROPROCESO ESTRATÉGICO | P1: CÓDIGO: ESGr028
D2: PROCESO GESTIÓN SISTEMAS INTEGRADOS - CALIDAD | P2: VERSIÓN: 17
D3: GESTIÓN DEL RIESGO Y LAS OPORTUNIDADES | P3: VIGENCIA: 2023-10-12
P4: PÁGINA: 1 de 11
C8: MENÚ DE NAVEGACIÓN
C10: GESTIÓN DEL RIESGO EN LA UNIVERSIDAD DE CUNDINAMARCA
E14: ESTRATÉGICOS | L14: CORRUPCIÓN
E23: SEGURIDAD DE LA INFORMACIÓN | L23: SISTEMAS DE GESTIÓN
P26: Control de cambios

Sheet INICIO (2)
D1: MACROPROCESO ESTRATÉGICO | P1: CÓDIGO: ESGr028
D2: PROCESO GESTIÓN SISTEMAS INTEGRADOS - CALIDAD | P2: VERSIÓN: 17
D3: GESTIÓN DEL RIESGO Y LAS OPORTUNIDADES | P3: VIGENCIA: 2023-10-12
P4: PÁGINA: 5 de 11
C7: MENÚ DE NAVEGACIÓN
B8: INICIO
C9: GESTIÓN DEL RIESGO EN LA UNIVERSIDAD DE CUNDINAMARCA

Sheet ESTRATÉGICOS
D1: MACROPROCESO ESTRATÉGICO | N1: CÓDIGO: ESGr028
D2: PROCESO GESTIÓN SISTEMAS INTEGRADOS - CALIDAD | N2: VERSIÓN: 17
D3: GESTIÓN DEL RIESGO Y LAS OPORTUNIDADES | N3: VIGENCIA: 2023-10-12
N4: PÁGINA: 2 de 11
C5: REGRESAR
B7: IDENTIFICACIÓN DEL RIESGO ESTRATÉGICO | J7: RIESGOS OPERATIVOS QUE APORTAN A LA ESTRATEGIA
B8: ID | C8: FRENTE ESTRATÉGICO: OBJETIVO DE CALIDAD | D8: RIESGO ESTRATÉGICO | E8: PROBABILIDAD | F8: IMPACTO | G8: VALORACIÓN | H8: NIVEL | I8: INDICADOR DE EFICACIA | J8: PROCESOS INVOLUCRADOS | K8: RIESGO OPERATIVO | L8: PROBABILIDAD DE OCURRENCIA RESIDUAL | M8: MAGNITUD DEL IMPACTO RESIDUAL | N8: VALORACIÓN RESIDUAL | O8: NIVEL RESIDUAL

Sheet CORRUPCIÓN
D1: MACROPROCESO ESTRATÉGICO | P1: CÓDIGO: ESGr028
D2: PROCESO GESTIÓN SISTEMAS INTEGRADOS - CALIDAD | P2: VERSIÓN: 17
D3: GESTIÓN DEL RIESGO Y LAS OPORTUNIDADES | P3: VIGENCIA: 2023-10-12
P4: PÁGINA: 3 de 11
C6: REGRESAR
B7: IDENTIFICACIÓN DEL RIESGO | I7: TRATAMIENTO DEL RIESGO
B8: ID | C8: MACROPROCESO | D8: PROCESO | E8: RIESGO | F8: CLASIFICACIÓN | G8: CAUSA | H8: CONSECUENCIA | I8: PROBABILIDAD | J8: IMPACTO | K8: RIESGO RESIDUAL | L8: OPCIÓN MANEJO | M8: ACTIVIDADES DE CONTROL | N8: SOPORTE | O8: RESPONSABLE | P8: TIEMPO | Q8: INDICADOR

Sheet MATRIZ SGSI
D1: MACROPROCESO ESTRATÉGICO | P1: CÓDIGO: ESGr028
D2: PROCESO GESTIÓN SISTEMAS INTEGRADOS - CALIDAD | P2: VERSIÓN: 17
D3: GESTIÓN DEL RIESGO Y LAS OPORTUNIDADES | P3: VIGENCIA: 2023-10-12
P4: PÁGINA: 4 de 11
B7: REGRESAR
B9: PROCESO:
B10: OBJETIVO
B12: IDENTIFICACIÓN DE RIESGOS | I12: VALORACIÓN DE RIESGOS | L12: TRATAMIENTO DEL RIESGO
B13: ACTIVO O GRUPO DE ACTIVOS | C13: IDENTIFICADOR DEL RIESGO | D13: RIESGO | E13: DESCRIPCIÓN DEL RIESGO | F13: VULNERABILIDADES | G13: AMENAZAS | H13: CONSECUENCIAS | I13: PROBABILIDAD | J13: IMPACTO | K13: RIESGO INHERENTE | L13: OPCIÓN TRATAMIENTO | M13: OBJETIVO DE CONTROL | N13: ACTIVIDAD DE CONTROL | O13: SOPORTE | P13: RESPONSABLE | Q13: TIEMPO

Sheet CRITERIOS
B2: TIPOLOGÍA DE RIESGOS
B3: RIESGO ESTRATÉGICO | C3: RIESGO ESTRATÉGICO: posibilidad de ocurrencia de eventos que afecten los objetivos estratégicos de la organización pública y por tanto impactan toda la entidad.
B4: RIESGO GERENCIAL | C4: RIESGO GERENCIAL: Posibilidad de ocurrencia de eventos que afecten los procesos gerenciales y/o la alta dirección.
B5: RIESGO OPERATIVO | C5: RIESGO OPERATIVO: Posibilidad de ocurrencia de eventos que afecten los procesos misionales de la entidad.
B6: RIESGO FINANCIERO | C6: RIESGO FINANCIERO: Posibilidad de ocurrencia de eventos que afecten los estados financieros y todas aquellas áreas involucradas con el proceso financiero como presupuesto, tesorería, contabilidad, cartera, central de cuentas, costos, etc.
B7: RIESGO TECNOLÓGICO | C7: RIESGO TECNOLÓGICO: Posibilidad de ocurrencia de eventos que afecten la totalidad o parte de la infraestructura tecnológica (hardware, software, redes, etc.) de una entidad.
B8: RIESGO DE CUMPLIMIENTO | C8: RIESGO DE CUMPLIMIENTO: Posibilidad de ocurrencia de eventos que afecten la situación jurídica o contractual de la organización debido a su incumplimiento o desacato a la normatividad legal y las obligaciones contractuales.
B9: RIESGO DE IMAGEN O REPUTACIONAL | C9: RIESGO DE IMAGEN O REPUTACIONAL: posibilidad de ocurrencia de un evento que afecte la imagen, buen nombre o reputación de una organización ante sus clientes y partes interesadas.
B10: RIESGO DE CORRUPCIÓN | C10: RIESGO DE CORRUPCIÓN: Posibilidad de que, por acción u omisión, se use el poder para desviar la gestión de lo público hacia un beneficio privado.
B11: RIESGO DE SEGURIDAD DIGITAL | C11: RIESGO DE SEGURIDAD DIGITAL: Posibilidad de combinación de amenazas y vulnerabilidades en el entorno digital. Puede debilitar el logro de objetivos económicos y sociales, afectar la soberanía nacional, la integridad territorial, el orden constitucional y los intereses nacionales. Incluye aspectos relacionados con el ambiente físico, digital y las personas.
B16: CRITERIOS PARA CALIFICAR LA PROBABILIDAD
B17: NIVEL | C17: INTERPRETACIÓN | D17: POR DESCRIPCIÓN | E17: POR FRECUENCIA
B18: 5 | C18: CASI SEGURO | D18: Se espera que el evento ocurra en la mayoría de las circunstancias. | E18: Más de 1 vez al año.
B19: 4 | C19: PROBABLE | D19: Es viable que el evento ocurra en la mayoría de las circunstancias. | E19: Al menos 1 vez en el último año.
B20: 3 | C20: POSIBLE | D20: El evento podrá ocurrir en algún momento. | E20: Al menos 1 vez en los últimos 2 años.
B21: 2 | C21: IMPROBABLE | D21: El evento puede ocurrir en algún momento. | E21: Al menos 1 vez en los últimos 5 años.
B22: 1 | C22: RARA VEZ | D22: El evento puede ocurrir solo en circunstancias excepcionales (poco comunes o anormales). | E22: No se ha presentado en los últimos 5 años.
A27: CRITERIOS PARA CALIFICAR EL IMPACTO - RIESGOS DE GESTIÓN
A28: NIVEL | B28: INTERPRETACIÓN | C28: IMPACTO (CONSECUENCIAS) CUANTITATIVO | D28: IMPACTO (CONSECUENCIAS) - CUALITATIVO
A29: 5 | B29: CATASTRÓFICO | C29: * Impacto que afecte la ejecución presupuestal en un valor ≤50%. * Pérdida de cobertura en la prestación de los servicios de la entidad ≤50%. * Pago de indemnizaciones a terceros por acciones legales que pueden afectar presupuesto total de la entidad en un valor ≤50%. * Pago de sanciones económicas por incumplimiento en la normatividad aplicable ante un ente regulador, las cuales afectan en un valor ≤50% del presupuesto general de la entidad. | D29: * Interrupción de las operaciones de la entidad por más de cinco (5) días. * Intervención por parte de un ente de control u otro ente regulador. * Pérdida de información crítica para la entidad que no se puede recuperar. * Incumplimiento en las metas y objetivos institucionales afectando de forma grave la ejecución presupuestal. * Imagen institucional afectada en el orden nacional o regional por actos o hechos de corrupción comprobados.
A30: 4 | B30: MAYOR | C30: * Impacto que afecte la ejecución presupuestal en un valor ≤20%. * Pérdida de cobertura en la prestación de los servicios de la entidad ≤20%. * Pago de indemnizaciones a terceros por acciones legales que pueden afectar el presupuesto total de la entidad en un valor ≤20%. * Pago de sanciones económicas por incumplimiento en la normatividad aplicable ante un ente regulador, las cuales afectan en un valor ≤20% del presupuesto general de la entidad. | D30: * Interrupción de las operaciones de la entidad por más de dos (2) días. * Pérdida de información crítica que puede ser recuperada de forma parcial o incompleta. * Sanción por parte del ente de control u otro ente regulador. * Incumplimiento en las metas y objetivos institucionales afectando el cumplimiento en las metas de gobierno. * Imagen institucional afectada en el orden nacional o regional por incumplimientos en la prestación del servicio a los usuarios o ciudadanos.
A31: 3 | B31: MODERADO | C31: * Impacto que afecte la ejecución presupuestal en un valor ≤5%. * Pérdida de cobertura en la prestación de los servicios de la entidad ≤10%. * Pago de indemnizaciones a terceros por acciones legales que pueden afectar el presupuesto total de la entidad en un valor ≤5%. * Pago de sanciones económicas por incumplimiento en la normatividad aplicable ante un ente regulador, las cuales afectan en un valor ≤5% del presupuesto general de la entidad. | D31: * Interrupción de las operaciones de la entidad por un (1) día. * Reclamaciones o quejas de los usuarios que podrían implicar una denuncia ante los entes reguladores o una demanda de largo alcance para la entidad. * Inoportunidad en la información, ocasionando retrasos en la atención a los usuarios. * Reproceso de actividades y aumento de carga operativa. * Imagen institucional afectada en el orden nacional o regional por retrasos en la prestación del servicio a los usuarios o ciudadanos. * Investigaciones penales, fiscales o disciplinarias.
A32: 2 | B32: MENOR | C32: * Impacto que afecte la ejecución presupuestal en un valor ≤1%. * Pérdida de cobertura en la prestación de los servicios de la entidad ≤5%. * Pago de indemnizaciones a terceros por acciones legales que pueden afectar el presupuesto total de la entidad en un valor ≤1%. * Pago de sanciones económicas por incumplimiento en la normatividad aplicable ante un ente regulador, las cuales afectan en un valor ≤1% del presupuesto general de la entidad. | D32: * Interrupción de las operaciones de la entidad por algunas horas. * Reclamaciones o quejas de los usuarios, que implican investigaciones internas disciplinarias. * Imagen institucional afectada localmente por retrasos en la prestación del servicio a los usuarios o ciudadanos.
A33: 1 | B33: INSIGNIFICANTE | C33: * Impacto que afecte la ejecución presupuestal en un valor ≤0,5%. * Pérdida de cobertura en la prestación de los servicios de la entidad ≤1%. * Pago de indemnizaciones a terceros por acciones legales que pueden afectar el presupuesto total de la entidad en un valor ≤0,5%. * Pago de sanciones económicas por incumplimiento en la normatividad aplicable ante un ente regulador, las cuales afectan en un valor ≤0,5% del presupuesto general de la entidad. | D33: * No hay interrupción de las operaciones de la entidad. * No se generan sanciones económicas o administrativas. * No se afecta la imagen institucional de forma significativa.
B38: ANÁLISIS Y EVALUACIÓN DE LOS CONTROLES PARA LA MITIGACIÓN DE LOS RIESGOS
B39: CRITERIO DE EVALUACIÓN | C39: ASPECTO A EVALUAR EN EL DISEÑO DEL CONTROL | D39: OPCIONES DE RESPUESTA
B40: 1. RESPONSABLE | C40: ¿Existe un responsable asignado a la ejecu­ción del control? | D40: Asignado | E40: No Asignado
C41: ¿El responsable tiene la autoridad y adecua­da segregación de funciones en la ejecución del control? | D41: Adecuado | E41: Inadecuado
B42: 2. PERIODICIDAD | C42: ¿La oportunidad en que se ejecuta el control ayuda a prevenir la mitigación del riesgo o a detectar la materialización del riesgo de ma­nera oportuna? | D42: Oportuna | E42: Inoportuna
B43: 3. PROPÓSITO | C43: ¿Las actividades que se desarrollan en el control realmente buscan por si sola prevenir o detectar las causas que pueden dar origen al riesgo, ejemplo Verificar, Validar Cotejar, Comparar, Revisar, etc.? | D43: Prevenir o detectar | E43: No es un control
B44: 4. COMO REALIZAR LA ACTIVIDAD DE CONTROL | C44: ¿La fuente de información que se utiliza en el desarrollo del control es información confia­ble que permita mitigar el riesgo?. | D44: Confiable | E44: No confiable
B45: 5. QUE PASA CON LAS OBSERVACIONES O DESVIACIONES | C45: ¿Las observaciones, desviaciones o dife­rencias identificadas como resultados de la ejecución del control son investigadas y re­sueltas de manera oportuna? | D45: Se investigan y resuelven oportunamente | E45: No se investigan y resuelven oportunamente
B46: 6. EVIDENCIA DE LA EJECUCIÓN DEL CONTROL | C46: ¿Se deja evidencia o rastro de la ejecución del control, que permita a cualquier tercero con la evidencia, llegar a la misma conclusión?. | D46: Completa | E46: Incompleta/No existe
B51: PESO O PARTICIPACIÓN DE CADA VARIABLE EN EL DISEÑO DEL CONTROL PARA LA MITIGACIÓN DEL RIESGO
B52: CRITERIO DE EVALUACIÓN | C52: OPCIÓN DE RESPUESTA AL CRITERIO DE EVALUACIÓN | D52: PESO EN LA EVALUACIÓN DEL DISEÑO DEL CONTROL
B53: 11. ASIGNACIÓN DEL RESPONSABLE | C53: Asignado | D53: 15
C54: No asignado | D54: 0
B55: 12. SEGREGACIÓN Y AUTORIDAD DEL RESPONSABLE | C55: Adecuado | D55: 15
C56: Inadecuado | D56: 0
B57: 2. PERIODICIDAD | C57: Oportuna | D57: 15
C58: Inoportuna | D58: 0
B59: 3. PROPÓSITO | C59: Prevenir | D59: 15
C60: Detectar | D60: 10
C61: No es un control | D61: 0
B62: 4. COMO SE REALIZA LA ACTIVIDAD DE CONTROL | C62: Confiable | D62: 15
C63: No confiable | D63: 0
B64: 5. QUE PASA CON LAS OBSERVACIONES O DESVIACIONES | C64: Se investigan y resuelven oportunamente | D64: 15
C65: No se investigan y resuelven oportunamente | D65: 0
B66: 6. EVIDENCIA DE LA EJECUCIÓN DEL CONTROL | C66: Completa | D66: 10
C67: Incompleta | D67: 5
C68: No existe | D68: 0
B73: RESULTADOS DE LA EVALUACIÓN DEL DISEÑO DEL CONTROL
B74: RANGO DE CALIFICACIÓN DEL DISEÑO | C74: RESULTADO - PESO EN LA EVALUACIÓN DEL DISEÑO DEL CONTROL
B75: Fuerte | C75: Calificación entre 96 y 100
B76: Moderado | C76: Calificación entre 86 y 95
B77: Débil | C77: Calificación entre 0 y 85
B82: RESULTADOS DE LA EVALUACIÓN DE LA EJECUCIÓN DEL CONTROL
B83: RANGO DE CALIFICACIÓN DE LA EJECUCIÓN | C83: RESULTADO - PESO DE LA EJECUCIÓN DEL CONTROL -
B84: Fuerte | C84: El control se ejecuta de manera consistente por parte del responsable.
B85: Moderado | C85: El control se ejecuta algunas veces por parte del responsable.
B86: Débil | C86: El control no se ejecuta por parte del responsable.
B91: ANÁLISIS Y EVALUACIÓN DE LOS CONTROLES PARA LA MITIGACIÓN DE LOS RIESGOS
B92: PESO INDIVIDUAL DEL DISEÑO (DISEÑO) | C92: EL CONTROL SE EJECUTA DE MANERA CONSISTENTE POR LOS RESPONSABLES (EJECUCIÓN) | D92: SOLIDEZ INDIVIDUAL DE CADA CONTROL FUERTE:100 MODERADO: 50 DÉBIL: 0 | E92: PESO EN LA EVALUACIÓN DEL DISEÑO DEL CONTROL SI / NO
B93: Fuerte calificación entre 96 y 100 | C93: Fuerte (siempre se ejecuta) | D93: fuerte + fuerte = fuerte | E93: NO
C94: Moderado (algunas veces) | D94: fuerte + moderado = moderado | E94: SI
C95: Débil (no se ejecuta) | D95: fuerte + débil = débil | E95: SI
B96: Moderado calificación entre 86 y 95 | C96: Fuerte (siempre se ejecuta) | D96: moderado + fuerte = moderado | E96: SI
C97: Moderado (algunas veces) | D97: moderado + moderado = moderado | E97: SI
C98: Débil (no se ejecuta) | D98: moderado + débil = débil | E98: SI
B99: Débil calificación entre 0 y 85 | C99: Fuerte (siempre se ejecuta) | D99: débil + fuerte = débil | E99: SI
C100: Moderado (algunas veces) | D100: débil + moderado = débil | E100: SI
C101: Débil (no se ejecuta) | D101: débil + débil = débil | E101: SI
B106: RESULTADOS DE LOS POSIBLES DESPLAZAMIENTOS DE LA PROBABILIDAD Y DEL IMPACTO DE LOS RIESGOS
B107: SOLIDEZ DEL CONJUNTO DE LOS CONTROLES | C107: CONTROLES AYUDAN A DISMINUIR LA PROBABILIDAD | D107: CONTROLES AYUDAN A DISMINUIR IMPACTO | E107: # COLUMNAS EN LA MATRIZ DE RIESGO QUE SE DESPLAZA EN EL EJE DE LA PROBABILIDAD | F107: # COLUMNAS EN LA MATRIZ DE RIESGO QUE SE DESPLAZA EN EL EJE DE IMPACTO
B108: Fuerte | C108: Directamente | D108: Directamente | E108: 2 | F108: 2
B109: Fuerte | C109: Directamente | D109: Indirectamente | E109: 2 | F109: 1
B110: Fuerte | C110: Directamente | D110: No disminuye | E110: 2 | F110: 0
B111: Fuerte | C111: No disminuye | D111: Directamente | E111: 0 | F111: 2
B112: Moderado | C112: Directamente | D112: Directamente | E112: 1 | F112: 1
B113: Moderado | C113: Directamente | D113: Indirectamente | E113: 1 | F113: 0
B114: Moderado | C114: Directamente | D114: No disminuye | E114: 1 | F114: 0
B115: Moderado | C115: No disminuye | D115: Directamente | E115: 0 | F115: 1
B139: CRITERIOS 2020
B142: CLASIFICACIÓN DEL RIESGO | C142: RELACIÓN | D142: FACTORES DE RIESGOS | E142: DESCRIPCIÓN
B143: EJECUCIÓN Y ADMINISTRACIÓN DE PROCESOS: Pérdidas derivadas de errores en la ejecución y administración de procesos. | D143: Procesos: Eventos relacionados con errores en las actividades que deben realizar los servidores de la organización. | E143: - Falta de procedimientos - Errores de grabación, autorización - Errores en cálculos para pagos internos y externos - Falta de capacitación
B144: FRAUDE EXTERNO: Pérdida derivada de actos de fraude por personas ajenas a la organización (no participa personal de la entidad). | D144: Evento externo: Situaciones externas que afectan la entidad | E144: - Suplantación de identidad - Asalto a la oficina - Atentados, vandalismo, orden público
B145: FRAUDE INTERNO: Pérdida debido a actos de fraude, actuaciones irregulares, comisión de hechos delictivos abuso de confianza, apropiación indebida, incumplimiento de regulaciones legales o internas de la entidad en las cuales está involucrado por lo menos 1 participante interno de la organización, son realizadas de forma intencional y/o con ánimo de lucro para sí mismo o para terceros. | D145: Talento humano: Incluye seguridad y salud en el trabajo. Se analiza posible dolo e intención frente a la corrupción. | E145: - Hurto activos - Posibles comportamientos no éticos de los empleados - Fraude interno (corrupción, soborno)
B146: FALLAS TECNOLÓGICAS: Errores en hardware, software, telecomunicaciones, interrupción de servicios básicos. | D146: Tecnología: Eventos relacionados con la infraestructura tecnológica de la entidad. | E146: - Daño de equipos - Caída de aplicaciones - Caída de redes - Errores en programas
B147: DAÑOS A ACTIVOS FIJOS/ EVENTOS EXTERNOS: Pérdida por daños o extravíos de los activos fijos por desastres naturales u otros riesgos/eventos externos como atentados, vandalismo, orden público. | D147: Infraestructura: Eventos relacionados con la infraestructura física de la entidad. | E147: - Derrumbes - Incendios - Inundaciones - Daños a activos fijos
B148: USUARIOS, PRODUCTOS Y PRÁCTICAS: Fallas negligentes o involuntarias de las obligaciones frente a los usuarios y que impiden satisfacer una obligación profesional frente a éstos. | D148: Pueden asociarse a varios factores
B149: RELACIONES LABORALES: Pérdidas que surgen de acciones contrarias a las leyes o acuerdos de empleo, salud o seguridad, del pago de demandas por daños personales o de discriminación.
B157: Tabla 3 Actividades relacionadas con la gestión en entidades públicas
B158: ACTIVIDAD | C158: FRECUENCIA DE LA ACTIVIDAD | D158: PROBABILIDAD FRENTE AL RIESGO
B159: Planeación estratégica | C159: 1 vez al año | D159: Muy baja
B160: Actividades de talento humano, jurídica, administrativa | C160: Mensual | D160: Media
B161: Contabilidad, cartera | C161: Semanal | D161: Alta
B162: *Tecnología (incluye disponibilidad de aplicativos), tesorería *Nota: En materia de tecnología se tiene en cuenta 1 hora funcionamiento = 1 vez. Ej.: Aplicativo FURAG está disponible durante 2 meses las 24 horas, en consecuencia su frecuencia se calcularía 60 días * 24 horas= 1440 horas. | C162: Diaria | D162: Muy alta
B168: Tabla 4 Criterios para definir el nivel de probabilidad
C169: FRECUENCIA DE LA ACTIVIDAD | D169: PROBABILIDAD
B170: Muy Baja | C170: La actividad que conlleva el riesgo se ejecuta como máximo 2 veces por año | D170: 0.2 | E170: MUY BAJA: La actividad que conlleva el riesgo se ejecuta como máximos 2 veces por año
B171: Baja | C171: La actividad que conlleva el riesgo se ejecuta de 3 a 10 veces por año | D171: 0.4 | E171: BAJA: La actividad que conlleva el riesgo se ejecuta de 3 a 10 veces por año
B172: Media | C172: La actividad que conlleva el riesgo se ejecuta de 11 a 30 veces por año | D172: 0.6 | E172: MEDIA: La actividad que conlleva el riesgo se ejecuta de 11 a 30 veces por año
B173: Alta | C173: La actividad que conlleva el riesgo se ejecuta mínimo 31 veces al año y máximo 100 veces por año | D173: 0.8 | E173: ALTA: La actividad que conlleva el riesgo se ejecuta mínimo 31 veces al año y máximo 100 veces por año
B174: Muy Alta | C174: La actividad que conlleva el riesgo se ejecuta más de 100 veces por año | D174: 1 | E174: MUY ALTA: La actividad que conlleva el riesgo se ejecuta más de 100 veces por año
F179: Figura 14 Matriz de calor (niveles de severidad del riesgo)
B180: Tabla 5 Criterios para definir el nivel de impacto
B181: NIVEL | C181: AFECTACIÓN ECONÓMICA | D181: REPUTACIONAL | H181: IMPACTO
B182: Leve 20% | C182: Afectación menor a 10 SMLMV . | D182: El riesgo afecta la imagen de algún área de la organización. | F182: PROBABILIDAD | G182: Muy Alta 100% | N182: Extremo
B183: Menor 40% | C183: Entre 10 y 50 SMLV | D183: El riesgo afecta la imagen de la entidad internamente, deconocimiento general nivel interno, de junta directiva y accionistas y/o de proveedores. | E183: PREVENTIVO | G183: Alta 80% | N183: Alto
B184: Moderado 60% | C184: Entre 50 y 100 SMLMV | D184: El riesgo afecta la imagen de la entidad con algunos usuarios de relevancia frente al logro de los objetivos. | E184: DETECTIVO | G184: Media 60% | N184: Moderado
B185: Mayor 80% | C185: Entre 100 y 500 SMLMV | D185: El riesgo afecta la imagen de la entidad con efecto publicitario sostenido a nivel de sector administrativo, nivel departamental o municipal. | E185: CORRECTIVO | G185: Baja 40% | N185: Bajo
B186: Catastrófico 100% | C186: Mayor a 500 SMLMV | D186: El riesgo afecta la imagen de la entidad a nivel nacional, con efecto publicitario sostenido a nivel país | G186: Muy Baja 20%
C187: El riesgo afecta la imagen de algún área de la organización.
C188: El riesgo afecta la imagen de la entidad internamente, deconocimiento general nivel interno, de junta directiva y accionistas y/o de proveedores.
C189: El riesgo afecta la imagen de la entidad con algunos usuarios de relevancia frente al logro de los objetivos.
C190: El riesgo afecta la imagen de la entidad con efecto publicitario sostenido a nivel de sector administrativo, nivel departamental o municipal.
C191: El riesgo afecta la imagen de la entidad a nivel nacional, con efecto publicitario sostenido a nivel país
B194: Tabla 6 Atributos de para el diseño del control
B195: CARACTERISTICAS | D195: DESCRIPCIÓN | E195: PESO
B196: Atributos de eficiencia | C196: Tipo | D196: Preventivo: Va hacia las causas del riesgo, aseguran el resultado final esperado. | E196: 0.25
D197: Detectivo: Detecta que algo ocurre y devuelve el proceso a los controles preventivos. Se pueden generar reprocesos. | E197: 0.15
D198: Correctivo: Dado que permiten reducir el impacto de la materialización del riesgo, tienen un costo en su implementación. | E198: 0.1
C199: Implementación | D199: Automático: Son actividades de procesamiento o validación de información que se ejecutan por un sistema y/o aplicativo de manera automática sin la intervención de personas para su realización. | E199: 0.25 | F199: AUTOMÁTICO
D200: Manual: Controles que son ejecutados por una persona, tiene implícito el error humano. | E200: 0.15 | F200: MANUAL
B201: Atributos informativos | C201: Documentación | D201: Documentado: Controles que están documentados en el proceso, ya sea en manuales, procedimientos, flujogramas o cualquier otro documento propio del proceso. | E201: -
D202: Sin documentar: Identifica a los controles que pese a que se ejecutan en el proceso no se encuentran documentados en ningún documento propio del proceso. | E202: -
C203: Frecuencia | D203: Continua: El control se aplica siempre que se realiza la actividad que conlleva el riesgo. | E203: -
D204: Aleatoria: El control se aplica aleatoriamente a la actividad que conlleva el riesgo. | E204: -
C205: Evidencia | D205: Con registro: El control deja un registro permite evidencia la ejecución del control. | E205: -
D206: Sin registro: El control no deja registro de la ejecución del control. | E206: -
B210: Tabla 7 Aplicación tabla atributos a ejemplo propuesto
B211: CONTROLES Y SUS CARACTERÍSTICAS | F211: PESO
B212: Control 1 El profesional del área de contratos verifica que la información suministrada por el proveedor corresponda con los requisitos establecidos de contratación a través de una lista de chequeo donde están los requisitos de información y la revisión con la información física suministrada por el proveedor, los contratos que cumplen son registrados en el sistema de información de contratación. | C212: Tipo | D212: Preventivo | E212: X | F212: 0.25
D213: Detectivo
D214: Correctivo
C215: Implementación | D215: Automático
D216: Manual | E216: X | F216: 0.15
C217: Documentación | D217: Documentado | E217: X | F217: -
D218: Sin documentar | F218: -
C219: Frecuencia | D219: Continua | E219: X | F219: -
D220: Aleatoria | F220: -
C221: Evidencia | D221: Con registro | E221: X | F221: -
D222: Sin registro | F222: -
B223: TOTAL VALORACIÓN CONTROL 1 | F223: 0.4
C227: PERIODICIDAD
C228: DIARIA
C229: SEMANAL
C230: MENSUAL
C231: TRIMESTRAL
C232: SEMESTRAL
C233: ANUAL
C234: CADA VEZ QUE SE PRESENTE LA NECESIDAD

Sheet Hoja1

Sheet IDENTIFICACIÓN DOFA
C1: MACROPROCESO ESTRATÉGICO | N1: CÓDIGO: ESGr028
C2: PROCESO GESTIÓN SISTEMAS INTEGRADOS - CALIDAD | N2: VERSIÓN: 17
C3: GESTIÓN DEL RIESGO Y LAS OPORTUNIDADES | N3: VIGENCIA: 2023-10-12
N4: PÁGINA: 6 de 11
B6: CONTEXTO - DOFA | D6: SEDE SECCIONAL EXTENSIÓN | E6: PROCESO OFICINA SISTEMA | F6: PARTES INTERESADAS | L6: TOTAL | M6: PORCENTAJE | N6: INTERPRETACIÓN
A7: REGRESAR | F7: Entes de Control | G7: Ministerio de Educación | H7: Graduados | I7: Procesos Internos | J7: Alta Dirección | K7: Estudiantes
B8: DEBILIDADES | C8: ESTADO | F8: 0.2 | G8: 0.25 | H8: 0.1 | I8: 0.15 | J8: 0.25 | K8: 0.05 | L8: =SUM(F8:K8) -> 1 | M8: =+L8 -> 1
B9: D1. No se cuenta con una herramienta sistematizada que nos permita hacer el seguimiento a Graduados, en su vida laboral y académica. | C9: 0 | E9: GRADUADOS | F9: 4 | G9: 4 | H9: 4 | I9: 4 | J9: 4 | K9: 4 | L9: =SUM(F9:K9) -> 24 | M9: =+SUMPRODUCT(F$8:K$8,F9:K9)/5 -> 0.8 | N9: =IF(M9<=0.6,"BAJO IMPACTO",IF(M9<=0.8,"MEDIO IMPACTO RECOMENDABLE EVALUARLO EN EL RIESGO",IF(M9<=1,"ALTO IMPACTO OBLIGATORIO ARTICULARLA A UNO DE LOS RIESGOS"))) -> MEDIO IMPACTO RECOMENDABLE EVALUARLO EN EL RIESGO
B10: D2. No poder hacer contacto directo con los graduados por medio de correos electrónicos personales ni telefónico por políticas de privacidad. | C10: 1 | D10: TRANSVERSAL | E10: GRADUADOS | F10: 4 | G10: 4 | H10: 4 | I10: 4 | J10: 4 | K10: 4 | L10: 24 | M10: =+SUMPRODUCT(F$8:K$8,F10:K10)/5 -> 0.8 | N10: =IF(M10<=0.6,"BAJO IMPACTO",IF(M10<=0.8,"MEDIO IMPACTO RECOMENDABLE EVALUARLO EN EL RIESGO",IF(M10<=1,"ALTO IMPACTO OBLIGATORIO ARTICULARLA A UNO DE LOS RIESGOS"))) -> MEDIO IMPACTO RECOMENDABLE EVALUARLO EN EL RIESGO
B11: D3. No se cuenta con indicadores que nos permitan identificar la actualidad laboral y académica de los Graduados. YA SE CUENTA CON ESTUDIO DE IMPACTO | C11: 0 | E11: GRADUADOS | F11: 3 | G11: 3 | H11: 3 | I11: 4 | J11: 4 | K11: 3 | L11: 20 | M11: =+SUMPRODUCT(F$8:K$8,F11:K11)/5 -> 0.68 | N11: =IF(M11<=0.6,"BAJO IMPACTO",IF(M11<=0.8,"MEDIO IMPACTO RECOMENDABLE EVALUARLO EN EL RIESGO",IF(M11<=1,"ALTO IMPACTO OBLIGATORIO ARTICULARLA A UNO DE LOS RIESGOS"))) -> MEDIO IMPACTO RECOMENDABLE EVALUARLO EN EL RIESGO
B12: D4. No contar con los recursos económicos suficientes para realizar todas las actividades planeadas por la Oficina de Graduados en cada uno de los eventos. | C12: 0 | E12: GRADUADOS | F12: 3 | G12: 2 | H12: 4 | I12: 4 | J12: 4 | K12: 3 | L12: 20 | M12: 0.65 | N12: MEDIO IMPACTO RECOMENDABLE EVALUARLO EN EL RIESGO
B13: D5. Baja participación de docentes encargados del seguimiento a graduados en los diferentes programas académicos de la universidad. | C13: 0 | E13: GRADUADOS | F13: 4 | G13: 4 | H13: 4 | I13: 4 | J13: 4 | K13: 4 | L13: 24 | M13: 0.8 | N13: MEDIO IMPACTO RECOMENDABLE EVALUARLO EN EL RIESGO
B14: D6. Falta de comunicación con todos los programas académicos para la generación de talleres y conferencias. | C14: 0 | E14: GRADUADOS | F14: 3 | G14: 2 | H14: 4 | I14: 3 | J14: 3 | K14: 2 | L14: 17 | M14: 0.56 | N14: BAJO IMPACTO
B15: D7. Personal insuficiente para sede, extensiones y seccionales para las actividades relacionadas al proceso. | C15: 1 | D15: TRANSVERSAL | E15: GRADUADOS | F15: 4 | G15: 4 | H15: 4 | I15: 4 | J15: 4 | K15: 4 | L15: 24 | M15: 0.8 | N15: MEDIO IMPACTO RECOMENDABLE EVALUARLO EN EL RIESGO
B16: D8. Mecanismos deficientes para realizar la actualización y seguimiento de la información de los graduados oportunamente. | C16: 1 | D16: TRANSVERSAL | E16: GRADUADOS | F16: 4 | G16: 4 | H16: 4 | I16: 4 | J16: 4 | K16: 4 | L16: 24 | M16: 0.8 | N16: MEDIO IMPACTO RECOMENDABLE EVALUARLO EN EL RIESGO
B17: D9. No identificación oportuna de las normatividades legales aplicables al proceso. | C17: 0 | E17: GRADUADOS | F17: 3 | G17: 3 | H17: 2 | I17: 2 | J17: 3 | K17: 2 | L17: 15 | M17: 0.54 | N17: BAJO IMPACTO
B18: D10. No se cuenta con una articulación de la Universidad de Cundinamarca y los graduados para continuar con los programas de investigación. | C18: 0 | E18: GRADUADOS | F18: 4 | G18: 4 | H18: 4 | I18: 4 | J18: 4 | K18: 4 | L18: 24 | M18: 0.8 | N18: MEDIO IMPACTO RECOMENDABLE EVALUARLO EN EL RIESGO
B19: D11. No considerar a los graduados en condición de discapacidad en la planeación y realización de los eventos. eventos. | C19: 0 | E19: GRADUADOS | F19: 2 | G19: 2 | H19: 3 | I19: 3 | J19: 2 | K19: 1 | L19: 13 | M19: 0.44 | N19: BAJO IMPACTO
B20: D12. Actualización de manera oportuna los cambios a la planificación de los eventos frente a situaciones de contingencia. Hallazgos 25-26 | C20: 0 | E20: GRADUADOS | F20: 2 | G20: 2 | H20: 3 | I20: 2 | J20: 3 | K20: 2 | L20: =SUM(F20:K20) -> 14 | M20: =+SUMPRODUCT(F$8:K$8,F20:K20)/5 -> 0.47 | N20: =IF(M20<=0.6,"BAJO IMPACTO",IF(M20<=0.8,"MEDIO IMPACTO RECOMENDABLE EVALUARLO EN EL RIESGO",IF(M20<=1,"ALTO IMPACTO OBLIGATORIO ARTICULARLA A UNO DE LOS RIESGOS"))) -> BAJO IMPACTO
B21: D13. No se puede garantizar la vinculación laboral de los graduados, teniendo en cuenta el contexto actual. | C21: 1 | D21: TRANSVERSAL | E21: GRADUADOS | F21: 1 | G21: 2 | H21: 5 | I21: 2 | J21: 2 | K21: 1 | L21: 13 | M21: 0.41 | N21: BAJO IMPACTO
B22: D14. Falta reforzar el trabajo colaborativo entre los programas y el proceso de graduados | C22: 1 | D22: TRANSVERSAL | E22: GRADUADOS | F22: 4 | G22: 4 | H22: 4 | I22: 4 | J22: 4 | K22: 4 | L22: 24 | M22: 0.8 | N22: MEDIO IMPACTO RECOMENDABLE EVALUARLO EN EL RIESGO
B23: D15. Afectación en la ejecuición y desarrollo de los proyectos de inversión por la no asignación del presupuesto total requerido al inicio de la vigencia. | C23: 1 | D23: TRANSVERSAL | E23: GRADUADOS | F23: 4 | G23: 1 | H23: 5 | I23: 3 | J23: 3 | K23: 2 | L23: =SUM(F23:K23) -> 18 | M23: =+SUMPRODUCT(F$8:K$8,F23:K23)/5 -> 0.57 | N23: =IF(M23<=0.6,"BAJO IMPACTO",IF(M23<=0.8,"MEDIO IMPACTO RECOMENDABLE EVALUARLO EN EL RIESGO",IF(M23<=1,"ALTO IMPACTO OBLIGATORIO ARTICULARLA A UNO DE LOS RIESGOS"))) -> BAJO IMPACTO
B24: AMENAZAS
B25: A1. Ofertas laborales que no cumplen con las expectativas de los graduados. | C25: 1 | D25: TRANSVERSAL | E25: GRADUADOS | F25: 3 | G25: 3 | H25: 4 | I25: 3 | J25: 3 | K25: 3 | L25: =SUM(F25:K25) -> 19 | M25: 0.62 | N25: MEDIO IMPACTO RECOMENDABLE EVALUARLO EN EL RIESGO
B26: A2. Ley de Garantías. | C26: 1 | D26: TRANSVERSAL | E26: GRADUADOS | F26: 3 | G26: 3 | H26: 3 | I26: 3 | J26: 3 | K26: 3 | L26: 18 | M26: 0.6 | N26: BAJO IMPACTO
B27: A3. Recorte de presupuesto por parte del estado hacia la Universidad. | C27: 0 | E27: GRADUADOS | F27: 4 | G27: 4 | H27: 4 | I27: 4 | J27: 4 | K27: 4 | L27: 24 | M27: 0.8 | N27: MEDIO IMPACTO RECOMENDABLE EVALUARLO EN EL RIESGO
B28: A4. Hackers informáticos. | C28: 1 | D28: TRANSVERSAL | E28: GRADUADOS | F28: 5 | G28: 5 | H28: 5 | I28: 5 | J28: 5 | K28: 5 | L28: 30 | M28: 1 | N28: ALTO IMPACTO OBLIGATORIO ARTICULARLA A UNO DE LOS RIESGOS
B29: A5. Cancelación de los eventos dirigidos a graduados por posibles afectaciones a la salud o epidemiológicos. | C29: 0 | D29: TRANSVERSAL | E29: GRADUADOS | F29: 3 | G29: 2 | H29: 4 | I29: 3 | J29: 4 | K29: 4 | L29: 20 | M29: 0.63 | N29: MEDIO IMPACTO RECOMENDABLE EVALUARLO EN EL RIESGO
B30: A6. Habeas Data. | C30: 1 | D30: TRANSVERSAL | E30: GRADUADOS | F30: 5 | G30: 5 | H30: 5 | I30: 5 | J30: 5 | K30: 5 | L30: 30 | M30: 1 | N30: ALTO IMPACTO OBLIGATORIO ARTICULARLA A UNO DE LOS RIESGOS
B31: A7. Afectación en la prestación del servicio debido a desastres naturales, condiciones climaticas adversas, paros o asonadas. | C31: 1 | D31: TRANSVERSAL | E31: GRADUADOS | F31: 2 | G31: 2 | H31: 5 | I31: 5 | J31: 3 | K31: 2 | L31: =SUM(F31:K31) -> 19 | M31: =+SUMPRODUCT(F$8:K$8,F31:K31)/5 -> 0.6 | N31: =IF(M31<=0.6,"BAJO IMPACTO",IF(M31<=0.8,"MEDIO IMPACTO RECOMENDABLE EVALUARLO EN EL RIESGO",IF(M31<=1,"ALTO IMPACTO OBLIGATORIO ARTICULARLA A UNO DE LOS RIESGOS"))) -> BAJO IMPACTO
B32: A8. Baja participación de graduados en experiencias presenciales en las sedes, seccionales y extensiones por ubicación geográfica de los mismos. | C32: 1 | D32: TRANSVERSAL | E32: GRADUADOS | F32: 1 | G32: 2 | H32: 4 | I32: 5 | J32: 5 | K32: 3 | L32: 20 | M32: 0.65 | N32: MEDIO IMPACTO RECOMENDABLE EVALUARLO EN EL RIESGO
B33: FORTALEZAS
B34: F1. Personal preparado y competente con alto grado de compromiso para el logro de los objetivos y el desarrollo de las actividades de la oficina de graduados. | C34: 1 | D34: TRANSVERSAL | E34: GRADUADOS | F34: 4 | G34: 4 | H34: 4 | I34: 4 | J34: 4 | K34: 4 | L34: =SUM(F34:K34) -> 24 | M34: 0.8 | N34: =IF(M34<=0.6,"BAJO IMPACTO",IF(M34<=0.8,"MEDIO IMPACTO RECOMENDABLE EVALUARLO",IF(M34<=1,"ALTO IMPACTO OBLIGATORIO ARTICULARLA A UNA DE LAS OPORTUNIDADES"))) -> MEDIO IMPACTO RECOMENDABLE EVALUARLO
B35: F2. Espacios académicos para talleres y charlas para beneficio de los graduados de la Universidad de Cundinamarca. | C35: 1 | D35: TRANSVERSAL | E35: GRADUADOS | F35: 3 | G35: 3 | H35: 3 | I35: 3 | J35: 3 | K35: 3 | L35: 18 | M35: 0.6 | N35: BAJO IMPACTO
B36: F3. Planificación de actividades para los Graduados. | C36: 1 | D36: TRANSVERSAL | E36: GRADUADOS | F36: 4 | G36: 4 | H36: 4 | I36: 4 | J36: 4 | K36: 4 | L36: 24 | M36: 0.8 | N36: MEDIO IMPACTO RECOMENDABLE EVALUARLO
B37: F4. Bolsa de empleo. | C37: 0 | D37: TRANSVERSAL | E37: GRADUADOS | F37: 4 | G37: 4 | H37: 4 | I37: 4 | J37: 4 | K37: 4 | L37: 24 | M37: 0.8 | N37: MEDIO IMPACTO RECOMENDABLE EVALUARLO
B38: F5. Pertenecer a la red andina de oficinas de graduados. | C38: 1 | D38: TRANSVERSAL | E38: GRADUADOS | F38: 2 | G38: 2 | H38: 2 | I38: 2 | J38: 2 | K38: 2 | L38: 12 | M38: 0.4 | N38: BAJO IMPACTO
B39: F6. Efectividad en el relacionamiento y oportunidad en la atención y respuesta a las necesidades de los graduados. | C39: 1 | D39: TRANSVERSAL | E39: GRADUADOS | F39: 4 | G39: 4 | H39: 4 | I39: 4 | J39: 4 | K39: 4 | L39: 24 | M39: 0.8 | N39: MEDIO IMPACTO RECOMENDABLE EVALUARLO
B40: F7. Se tiene en cuenta la disposición de monitores para el apoyo de actividades propias del proceso. | C40: 1 | D40: TRANSVERSAL | E40: GRADUADOS | F40: 2 | G40: 2 | H40: 2 | I40: 2 | J40: 2 | K40: 2 | L40: 12 | M40: 0.4 | N40: BAJO IMPACTO
B41: F8. Reconocimiento a los graduados exitosos a nivel nacional o internacional. | C41: 1 | D41: TRANSVERSAL | E41: GRADUADOS | F41: 2 | G41: 2 | H41: 3 | I41: 2 | J41: 2 | K41: 2 | L41: 13 | M41: 0.42 | N41: BAJO IMPACTO
B42: F9. Mediante los campos de aprendizaje cultural se amplía la interacción de los graduados con la Universidad de Cundinamarca. | C42: 1 | D42: TRANSVERSAL | E42: GRADUADOS | F42: 4 | G42: 4 | H42: 4 | I42: 4 | J42: 4 | K42: 4 | L42: 24 | M42: 0.8 | N42: MEDIO IMPACTO RECOMENDABLE EVALUARLO
B43: F10. Realizar convenios que beneficien al graduado y fortalezcan el crecimiento profesional y personal. | C43: 1 | D43: TRANSVERSAL | E43: GRADUADOS | F43: 3 | G43: 3 | H43: 4 | I43: 4 | J43: 4 | K43: 3 | L43: 21 | M43: 0.7 | N43: MEDIO IMPACTO RECOMENDABLE EVALUARLO
B44: F11. Los graduados cuentan con un carnet y correo electrónico institucional vitalicio, el cual les permite el ingreso a las instalaciones de la universidad en sede seccionales y extensiones, así como el uso gratuito de biblioteca y gimnasio. | C44: 1 | D44: TRANSVERSAL | E44: GRADUADOS | F44: 3 | G44: 3 | H44: 4 | I44: 3 | J44: 3 | K44: 3 | L44: 19 | M44: 0.62 | N44: MEDIO IMPACTO RECOMENDABLE EVALUARLO
B45: F12. Contar con la política de graduados que contiene los criterios para la ejecución de actividades, estrategias, programas y proyectos para el estamento de graduados. | C45: 1 | D45: TRANSVERSAL | E45: GRADUADOS | F45: 2 | G45: 2 | H45: 4 | I45: 4 | J45: 4 | K45: 2 | L45: 18 | M45: 0.6 | N45: BAJO IMPACTO
B46: F13. Jornadas de preparación al mercado laboral, capacitación y fortalecimiento de habilidades blandas y transversales, talleres de ética profesional, trámite de tarjeta profesional y congreso anual de graduados en áreas de emprendimiento e innovación, también con el encuentro deportivo y cultural de graduado. | C46: 1 | D46: TRANSVERSAL | E46: GRADUADOS | F46: 3 | G46: 3 | H46: 4 | I46: 4 | J46: 4 | K46: 3 | L46: 21 | M46: 0.7 | N46: MEDIO IMPACTO RECOMENDABLE EVALUARLO
B47: F14. Se cuenta con un periódico digital de graduados, el cual circula semestralmente. | C47: 1 | D47: TRANSVERSAL | E47: GRADUADOS | F47: 3 | G47: 3 | H47: 5 | I47: 3 | J47: 4 | K47: 3 | L47: 21 | M47: 0.69 | N47: MEDIO IMPACTO RECOMENDABLE EVALUARLO
B48: F15. Contar con asignación presupuestal para la ejecución de los proyectos de inversión | C48: 1 | D48: TRANSVERSAL | E48: GRADUADOS | F48: 2 | G48: 2 | H48: 5 | I48: 4 | J48: 4 | K48: 2 | L48: 19 | M48: 0.62 | N48: MEDIO IMPACTO RECOMENDABLE EVALUARLO
B49: F16. Desde la vigencia 2020 se cuenta con un primer registro del recién graduado el cual permite robustecer la base datos de la oficina de graduados. | C49: 1 | D49: TRANSVERSAL | E49: GRADUADOS | F49: 1 | G49: 4 | H49: 5 | I49: 3 | J49: 4 | K49: 3 | L49: =SUM(F49:K49) -> 20 | M49: 0.66 | N49: MEDIO IMPACTO RECOMENDABLE EVALUARLO
B50: F17. Contar con un tablero estadístico que permite obtener información actual. | C50: 1 | D50: TRANSVERSAL | E50: GRADUADOS | F50: 1 | G50: 5 | H50: 4 | I50: 5 | J50: 5 | K50: 3 | L50: 23 | M50: 0.8 | N50: MEDIO IMPACTO RECOMENDABLE EVALUARLO
B51: F18 Contar con campos de aprendizaje auto gestionados (cursos virtuales) para graduados que fortalecen su desempeño profesional. | C51: 1 | D51: TRANSVERSAL | E51: GRADUADOS | F51: 1 | G51: 3 | H51: 5 | I51: 5 | J51: 5 | K51: 3 | L51: =SUM(F51:K51) -> 22 | M51: =+SUMPRODUCT(F$8:K$8,F51:K51)/5 -> 0.72 | N51: =IF(M51<=0.6,"BAJO IMPACTO",IF(M51<=0.8,"MEDIO IMPACTO RECOMENDABLE EVALUARLO",IF(M51<=1,"ALTO IMPACTO OBLIGATORIO ARTICULARLA A UNA DE LAS OPORTUNIDADES"))) -> MEDIO IMPACTO RECOMENDABLE EVALUARLO
B52: OPORTUNIDADES
B53: O1. Sector productivo de la región y del país en busca de profesionales. | C53: 1 | D53: TRANSVERSAL | E53: GRADUADOS | F53: 3 | G53: 3 | H53: 5 | I53: 4 | J53: 4 | K53: 3 | L53: =SUM(F53:K53) -> 22 | M53: 0.72 | N53: MEDIO IMPACTO RECOMENDABLE EVALUARLO
B54: O2. Búsqueda de alianzas por parte de la institución con las empresas. | C54: 1 | D54: TRANSVERSAL | E54: GRADUADOS | F54: 3 | G54: 3 | H54: 5 | I54: 3 | J54: 4 | K54: 4 | L54: 22 | M54: 0.7 | N54: MEDIO IMPACTO RECOMENDABLE EVALUARLO
B55: O3. Requisitos del CNA (consejo nacional de acreditación) | C55: 1 | D55: TRANSVERSAL | E55: GRADUADOS | F55: 4 | G55: 4 | H55: 4 | I55: 4 | J55: 4 | K55: 4 | L55: 24 | M55: 0.8 | N55: MEDIO IMPACTO RECOMENDABLE EVALUARLO
B56: O4. Buenas prácticas de otras universidades para el seguimiento a graduados. | C56: 1 | D56: TRANSVERSAL | E56: GRADUADOS | F56: 4 | G56: 4 | H56: 4 | I56: 4 | J56: 4 | K56: 4 | L56: 24 | M56: 0.8 | N56: MEDIO IMPACTO RECOMENDABLE EVALUARLO
B57: O5. Ofertas de convenios potenciales en el mercado. | C57: 1 | D57: TRANSVERSAL | E57: GRADUADOS | F57: 2 | G57: 2 | H57: 4 | I57: 2 | J57: 2 | K57: 2 | L57: 14 | M57: 0.44 | N57: BAJO IMPACTO
B58: O6. Adquisición e implementación de nuevas herramientas tecnológicas. | C58: 1 | D58: TRANSVERSAL | E58: GRADUADOS | F58: 4 | G58: 4 | H58: 4 | I58: 4 | J58: 4 | K58: 4 | L58: 24 | M58: 0.8 | N58: MEDIO IMPACTO RECOMENDABLE EVALUARLO
B59: O7. Brindar a los graduados la oportunidad de participar en talleres, seminarios, diplomados, dictados por profesionales altamente calificados. | C59: 1 | D59: TRANSVERSAL | E59: GRADUADOS | F59: 3 | G59: 3 | H59: 5 | I59: 3 | J59: 3 | K59: 3 | L59: 20 | M59: 0.64 | N59: MEDIO IMPACTO RECOMENDABLE EVALUARLO
B60: O8. Brindar al graduado la oportunidad de capacitarse para realizar emprendimientos teniendo, en cuenta los avances tecnológicos globales en materia de ciencia tecnología e Innovación. | C60: 1 | D60: TRANSVERSAL | E60: GRADUADOS | F60: 4 | G60: 4 | H60: 4 | I60: 4 | J60: 4 | K60: 4 | L60: 24 | M60: 0.8 | N60: MEDIO IMPACTO RECOMENDABLE EVALUARLO
B61: O9. Contar con el observatorio laboral para la educación OLE. | C61: 1 | D61: TRANSVERSAL | E61: GRADUADOS | F61: 5 | G61: 5 | H61: 5 | I61: 5 | J61: 5 | K61: 5 | L61: 30 | M61: 1 | N61: ALTO IMPACTO OBLIGATORIO ARTICULARLA A UNA DE LAS OPORTUNIDADES
L62: 0 | M62: 0 | N62: BAJO IMPACTO

Sheet CRUCE RIESGOS
F1: MACROPROCESO ESTRATÉGICO | BA1: CÓDIGO: ESGr028
F2: PROCESO GESTIÓN SISTEMAS INTEGRADOS - CALIDAD | BA2: VERSIÓN: 17
F3: GESTIÓN DEL RIESGO Y LAS OPORTUNIDADES | BA3: VIGENCIA: 2023-10-12
BA4: PÁGINA: 7 de 11
E5: REGRESAR
D6: IDENTIFICACIÓN DEL RIESGO | I6: VALORACIÓN DEL RIESGO INHERENTE | U6: VALORACIÓN DE CONTROLES | X6: VALORACIÓN DE RIESGO RESIDUAL | AL6: VALORACIÓN DE RIESGO RESIDUAL | AQ6: CONCLUSIONES DEL SEGUIMIENTO (DILIGENCIADO POR LA OFICINA DE CONTROL INTERNO)
A7: CUADRANTE | B7: DECIMAL | C7: SUMA | D7: ID | E7: CAUSAS (FACTORES DOFA) | F7: EVENTO (RIESGO) | G7: CONSECUENCIA | H7: CLASIFICACIÓN DEL RIESGO | I7: PROBABILIDAD: FRECUENCIA DE LA ACTIVIDAD | J7: ARGUMENTO O DESCRIPCIÓN DE LA PROBABILIDAD | K7: PROBABILIDAD INHERENTE (%) | M7: MAGNITUD DEL IMPACTO | N7: IMPACTO INHERENTE (%) | P7: NIVEL DE RIESGO INHERENTE | Q7: CONTROLES APLICABLES | R7: FRECUENCIA O PERIODICIDAD | S7: DOCUMENTACIÓN | T7: ENTREGABLES Y/O EVIDENCIAS | U7: CLASIFICACIÓN DE LOS CONTROLES | V7: IMPLEMENTACIÓN DEL CONTROL | W7: AFECTACIÓN DEL CONTROL | X7: CALIFICACIÓN DE LOS ATRIBUTOS DE EFICIENCIA | Y7: PROBABILIDAD RESIDUAL (%) | Z7: PROBABILIDAD RESIDUAL | AA7: IMPACTO RESIDUAL (%) | AB7: IMPACTO RESIDUAL | AC7: ZONA DEL RIESGO RESIDUAL | AD7: FECHA DE SEGUIMIENTO | AE7: OBSERVACIONES, COMENTARIOS Y/O SUGERENCIAS | AF7: FECHA DE SEGUIMIENTO | AG7: OBSERVACIONES, COMENTARIOS Y/O SUGERENCIAS | AH7: FECHA DE SEGUIMIENTO | AI7: OBSERVACIONES, COMENTARIOS Y/O SUGERENCIAS | AJ7: FECHA DE SEGUIMIENTO | AK7: OBSERVACIONES, COMENTARIOS Y/O SUGERENCIAS | AL7: PROBABILIDAD DE OCURRENCIA | AM7: PROBABILIDAD DE OCURRENCIA | AN7: MAGNITUD DEL IMPACTO | AO7: IMPACTO DE OCURRENCIA | AP7: NIVEL | AQ7: FECHA DE SEGUIMIENTO | AR7: OBSERVACIONES Y RECOMENDACIONES | AS7: FECHA DE SEGUIMIENTO | AT7: OBSERVACIONES Y RECOMENDACIONES | AU7: FECHA DE SEGUIMIENTO | AV7: OBSERVACIONES Y RECOMENDACIONES | AW7: FECHA DE SEGUIMIENTO | AX7: OBSERVACIONES Y RECOMENDACIONES | AY7: FECHA DE SEGUIMIENTO | AZ7: OBSERVACIONES Y RECOMENDACIONES | BA7: FECHA DE SEGUIMIENTO | BB7: OBSERVACIONES Y RECOMENDACIONES
A8: =IF(OR(AL8=0,AN8=0),"",IF(AND(AL8<=0.2,AN8<=0.2),1,IF(AND(AL8<=0.2,AN8<=0.4),2,IF(AND(AL8<=0.2,AN8<=0.6),3,IF(AND(AL8<=0.2,AN8<=0.8),4,IF(AND(AL8<=0.2,AN8<=1),5,IF(AND(AL8<=0.4,AN8<=0.2),6,IF(AND(AL8<=0.4,AN8<=0.4),7,IF(AND(AL8<=0.4,AN8<=0.6),8,IF(AND(AL8<=0.4,AN8<=0.8),9,IF(AND(AL8<=0.4,AN8<=1),10,IF(AND(AL8<=0.6,AN8<=0.2),11,IF(AND(AL8<=0.6,AN8<=0.4),12,IF(AND(AL8<=0.6,AN8<=0.6),13,IF(AND(AL8<=0.6,AN8<=0.8),14,IF(AND(AL8<=0.6,AN8<=1),15,IF(AND(AL8<=0.8,AN8<=0.2),16,IF(AND(AL8<=0.8,AN8<=0.4),17,IF(AND(AL8<=0.8,AN8<=0.6),18,IF(AND(AL8<=0.8,AN8<=0.8),19,IF(AND(AL8<=0.8,AN8<=1),20,IF(AND(AL8<=1,AN8<=0.2),21,IF(AND(AL8<=1,AN8<=0.4),22,IF(AND(AL8<=1,AN8<=0.6),23,IF(AND(AL8<=1,AN8<=0.8),24,IF(AND(AL8<=1,AN8<=1),25,"")))))))))))))))))))))))))) -> 8 | B8: =IF(A8="","",(COUNTIF($A$8:A8,A8))/100) -> 0.01 | C8: =IFERROR(A8+B8,"") -> 8.01 | D8: 2 | E8: D2. No poder hacer contacto directo con los graduados por medio de correos electrónicos ni telefónico por políticas de privacidad. | F8: Posibilidad de afectación en el desarrollo de las actividades del proceso por el tratamiento inadecuado de los datos de los graduados, debido a las políticas de privacidad establecidas. | G8: Incurrir en demandas o procesos legales por la comunidad de graduados debido al mal uso de la información. | H8: USUARIOS, PRODUCTOS Y PRÁCTICAS: Fallas negligentes o involuntarias de las obligaciones frente a los usuarios y que impiden satisfacer una obligación profesional frente a éstos. | I8: 13298 | J8: Se tiene un estimado de 13.298 graduados desde el año 2018 hasta diciembre de 2023. | K8: =IF(I8<=0,"",IF(I8<=2,"Muy Baja",IF(I8<=10,"Baja",IF(I8<=30,"Media",IF(I8<=100,"Alta",IF(I8>100,"Muy Alta")))))) -> Muy Alta | L8: =IF(K8="","",IF(K8="Muy Baja",0.2,IF(K8="Baja",0.4,IF(K8="Media",0.6,IF(K8="Alta",0.8,IF(K8="Muy Alta",1,)))))) -> 1 | M8: El riesgo afecta la imagen de la entidad con algunos usuarios de relevancia frente al logro de los objetivos. | N8: =IF(OR(M8=CRITERIOS!$C$182,M8=CRITERIOS!$D$182),"Leve",IF(OR(M8=CRITERIOS!$C$183,M8=CRITERIOS!$D$183),"Menor",IF(OR(M8=CRITERIOS!$C$184,M8=CRITERIOS!$D$184),"Moderado",IF(OR(M8=CRITERIOS!$C$185,M8=CRITERIOS!$D$185),"Mayor",IF(OR(M8=CRITERIOS!$C$186,M8=CRITERIOS!$D$186),"Catastrófico",""))))) -> Moderado | O8: =IF(N8="","",IF(N8="Leve",0.2,IF(N8="Menor",0.4,IF(N8="Moderado",0.6,IF(N8="Mayor",0.8,IF(N8="Catastrófico",1,)))))) -> 0.6 | P8: =IF(OR(AND(K8="Muy Baja",N8="Leve"),AND(K8="Muy Baja",N8="Menor"),AND(K8="Baja",N8="Leve")),"BAJO",IF(OR(AND(K8="Muy baja",N8="Moderado"),AND(K8="Baja",N8="Menor"),AND(K8="Baja",N8="Moderado"),AND(K8="Media",N8="Leve"),AND(K8="Media",N8="Menor"),AND(K8="Media",N8="Moderado"),AND(K8="Alta",N8="Leve"),AND(K8="Alta",N8="Menor")),"MODERADO",IF(OR(AND(K8="Muy Baja",N8="Mayor"),AND(K8="Baja",N8="Mayor"),AND(K8="Media",N8="Mayor"),AND(K8="Alta",N8="Moderado"),AND(K8="Alta",N8="Mayor"),AND(K8="Muy Alta",N8="Leve"),AND(K8="Muy Alta",N8="Menor"),AND(K8="Muy Alta",N8="Moderado"),YF8="Muy Alta",N8="Mayor"),"ALTO",IF(OR(AND(K8="Muy Baja",N8="Catastrófico"),AND(K8="Baja",N8="Catastrófico"),AND(K8="Media",N8="Catastrófico"),AND(K8="Alta",N8="Catastrófico"),AND(K8="Muy Alta",N8="Catastrófico")),"EXTREMO","")))) -> ALTO | Q8: El funcionario encargado de acuerdo a las actividades realizadas por la oficina de graduados verifica si se cuenta con la autorización del tratamiento de datos personales en el ESG-SSI-F006 debidamente diligenciado por parte del graduando, en caso contrario se solicitara el debido diligenciamiento. | R8: CADA VEZ QUE SE PRESENTE LA NECESIDAD | S8: ESG-SSI-r006 - Formato de protección de datos personales | T8: ESG-SSI-r006 - Formato de protección de datos personales debidamente diligenciado y firmado por el graduado. o Autorización por medio del aplicativo del gestor digital de servicios a graduados. Registro fotográfico. | U8: PREVENTIVO | V8: MANUAL | W8: =IF(OR(U8="PREVENTIVO",U8="DETECTIVO"),"PROBABILIDAD",IF(U8="CORRECTIVO","IMPACTO","")) -> PROBABILIDAD | X8: =IF(AND(U8="PREVENTIVO",V8="AUTOMÁTICO"),"50%",IF(AND(U8="PREVENTIVO",V8="MANUAL"),"40%",IF(AND(U8="DETECTIVO",V8="AUTOMÁTICO"),"40%",IF(AND(U8="DETECTIVO",V8="MANUAL"),"30%",IF(AND(U8="CORRECTIVO",V8="AUTOMÁTICO"),"35%",IF(AND(U8="CORRECTIVO",V8="MANUAL"),"25%","")))))) -> 40% | Y8: =IFERROR(IF(W8="Probabilidad",(L8-(L8*X8)),IF(W8="Impacto",L8,"")),"") -> 0.6 | Z8: =IFERROR(IF(Y8="","",IF(Y8<=0.2,"MUY BAJA",IF(Y8<=0.4,"BAJA",IF(Y8<=0.6,"MEDIA",IF(Y8<=0.8,"ALTA",IF(Y8=1,"MUY ALTA")))))),"") -> MEDIA | AA8: =IFERROR(IF(W8="Impacto",(O8-(O8*X8)),IF(W8="Probabilidad",O8,"")),"") -> 0.6 | AB8: =IFERROR(IF(AA8="","",IF(AA8<=0.2,"LEVE",IF(AA8<=0.4,"MENOR",IF(AA8<=0.6,"MODERADO",IF(AA8<=0.8,"MAYOR",IF(AA8=1,"CATASTRÓFICO")))))),"") -> MODERADO | AC8: =IFERROR(IF(OR(AND(Z8="Muy Baja",AB8="Leve"),AND(Z8="Muy Baja",AB8="Menor"),AND(Z8="Baja",AB8="Leve")),"BAJO",IF(OR(AND(Z8="Muy baja",AB8="Moderado"),AND(Z8="Baja",AB8="Menor"),AND(Z8="Baja",AB8="Moderado"),AND(Z8="Media",AB8="Leve"),AND(Z8="Media",AB8="Menor"),AND(Z8="Media",AB8="Moderado"),AND(Z8="Alta",AB8="Leve"),AND(Z8="Alta",AB8="Menor")),"MODERADO",IF(OR(AND(Z8="Muy Baja",AB8="Mayor"),AND(Z8="Baja",AB8="Mayor"),AND(Z8="Media",AB8="Mayor"),AND(Z8="Alta",AB8="Moderado"),AND(Z8="Alta",AB8="Mayor"),AND(Z8="Muy Alta",AB8="Leve"),AND(Z8="Muy Alta",AB8="Menor"),AND(Z8="Muy Alta",AB8="Moderado"),AND(Z8="Muy Alta",AB8="Mayor")),"ALTO",IF(OR(AND(Z8="Muy Baja",AB8="Catastrófico"),AND(Z8="Baja",AB8="Catastrófico"),AND(Z8="Media",AB8="Catastrófico"),AND(Z8="Alta",AB8="Catastrófico"),AND(Z8="Muy Alta",AB8="Catastrófico")),"EXTREMO","")))),"") -> MODERADO | AD8: 2021-11-11 | AE8: Se realizó ajuste a los controles y se verificó el complimiento de los controles aplicables y sus entregables. | AH8: 2023-06-30 | AI8: Teniendo en cuenta que se actualizo el control por el momento no se tiene evidencia toda vez que se va a implementar a partir de la fecha del seguimiento. | AJ8: 2024-07-12 | AK8: El proceso cuenta con soórtes requeridos al momento de hacer el seguimiento al control | AL8: =IF(Y8="","",MIN(Y8:Y9)) -> 0.36 | AM8: =IFERROR(IF(AL8="","",IF(AL8<=0.2,"MUY BAJA",IF(AL8<=0.4,"BAJA",IF(AL8<=0.6,"MEDIA",IF(AL8<=0.8,"ALTA",IF(AL8=1,"MUY ALTA")))))),"") -> BAJA | AN8: =IF(AA8="","",MIN(AA8:AA9)) -> 0.6 | AO8: =IFERROR(IF(AN8="","",IF(AN8<=0.2,"LEVE",IF(AN8<=0.4,"MENOR",IF(AN8<=0.6,"MODERADO",IF(AN8<=0.8,"MAYOR",IF(AN8=1,"CATASTRÓFICO")))))),"") -> MODERADO | AP8: =IFERROR(IF(OR(AND(AM8="Muy Baja",AO8="Leve"),AND(AM8="Muy Baja",AO8="Menor"),AND(AM8="Baja",AO8="Leve")),"BAJO",IF(OR(AND(AM8="Muy baja",AO8="Moderado"),AND(AM8="Baja",AO8="Menor"),AND(AM8="Baja",AO8="Moderado"),AND(AM8="Media",AO8="Leve"),AND(AM8="Media",AO8="Menor"),AND(AM8="Media",AO8="Moderado"),AND(AM8="Alta",AO8="Leve"),AND(AM8="Alta",AO8="Menor")),"MODERADO",IF(OR(AND(AM8="Muy Baja",AO8="Mayor"),AND(AM8="Baja",AO8="Mayor"),AND(AM8="Media",AO8="Mayor"),AND(AM8="Alta",AO8="Moderado"),AND(AM8="Alta",AO8="Mayor"),AND(AM8="Muy Alta",AO8="Leve"),AND(AM8="Muy Alta",AO8="Menor"),AND(AM8="Muy Alta",AO8="Moderado"),AND(AM8="Muy Alta",AO8="Mayor")),"ALTO",IF(OR(AND(AM8="Muy Baja",AO8="Catastrófico"),AND(AM8="Baja",AO8="Catastrófico"),AND(AM8="Media",AO8="Catastrófico"),AND(AM8="Alta",AO8="Catastrófico"),AND(AM8="Muy Alta",AO8="Catastrófico")),"EXTREMO","")))),"") -> MODERADO | AQ8: 2022-02-02 | AR8: Teniendo en cuenta los resultados de las fuentes de información mencionadas y la matriz de valoración de los riesgos residuales del proceso, la tercera línea de defensa realiza seguimiento a los riesgos con nivel Alto y Extremo, entonces para este proceso no se evidencia niveles alto, ni extremo, por lo tanto, no se requiere evaluación de controles de parte de Control Interno, tal como lo indica el procedimiento ESGP-05 VERSIÓN 18. Se considera relevante que el proceso evalúe la identificación de riesgos relacionada con la tasa de graduación. | AS8: 2022-08-16 | AT8: Teniendo en cuenta los resultados de las fuentes de información mencionadas y la matriz de valoración de los riesgos residuales del proceso, la tercera línea de defensa realiza seguimiento a los riesgos con nivel Alto y Extremo, entonces para este proceso no se evidencia niveles alto, ni extremo, por lo tanto, no se requiere evaluación de controles de parte de Control Interno, tal como lo indica el procedimiento ESGP-05. | AU8: 2023-02-03 | AV8: Teniendo en cuenta los resultados de las fuentes de información mencionadas y la matriz de valoración de los riesgos residuales del proceso, la tercera línea de defensa realiza seguimiento a los riesgos con nivel Alto y Extremo, entonces para este proceso no se evidencia niveles alto, ni extremo, por lo tanto, no se requiere evaluación de controles de parte de Control Interno, tal como lo indica el procedimiento ESGP-05. | AW8: 2023-07-19 | AX8: Teniendo en cuenta los resultados de las fuentes de información mencionadas y la matriz de valoración de los riesgos residuales del proceso, la tercera línea de defensa realiza seguimiento a los riesgos con nivel Alto y Extremo, entonces para este proceso no se evidencia niveles alto, ni extremo, por lo tanto, no se requiere evaluación de controles de parte de Control Interno, tal como lo indica el procedimiento ESGP-05. | AY8: 2024-04-18 | AZ8: Teniendo en cuenta los resultados de las fuentes de información mencionadas y matriz de valoración de los riesgos residuales del proceso, la tercera línea de defensa realiza seguimiento a los riesgos con nivel Alto y Extremo, entonces para este proceso no se evidencia niveles alto, ni extremo, por lo tanto, no se requiere evaluación de controles por parte de Control Interno, tal como lo indica el procedimiento ESGP-05. | BA8: 2024-09-09 | BB8: No se evidencia materialización del riesgo.
E9: A6. Habeas Data. | Q9: El profesional encargado verificará la autorización del manejo de base de datos personales de los graduados, con el fin de poder realizar el contacto directo y el seguimiento efectivo de las actividades realizadas por la Oficina de Graduados. | R9: CADA VEZ QUE SE PRESENTE LA NECESIDAD | S9: ESG-SSI-r006 - Formato de protección de datos personales | T9: ESG-SSI-r006 - Formato de protección de datos personales debidamente diligenciado y firmado por el graduado. O Autorización por medio del aplicativo del gestor digital de servicios a graduados. | U9: PREVENTIVO | V9: MANUAL | W9: =IF(OR(U9="PREVENTIVO",U9="DETECTIVO"),"PROBABILIDAD",IF(U9="CORRECTIVO","IMPACTO","")) -> PROBABILIDAD | X9: =IF(AND(U9="PREVENTIVO",V9="AUTOMÁTICO"),"50%",IF(AND(U9="PREVENTIVO",V9="MANUAL"),"40%",IF(AND(U9="DETECTIVO",V9="AUTOMÁTICO"),"40%",IF(AND(U9="DETECTIVO",V9="MANUAL"),"30%",IF(AND(U9="CORRECTIVO",V9="AUTOMÁTICO"),"35%",IF(AND(U9="CORRECTIVO",V9="MANUAL"),"25%","")))))) -> 40% | Y9: =IFERROR(IF(AND(W8="Probabilidad",W9="Probabilidad"),(Y8-(Y8*X9)),IF(W9="Probabilidad",(L8-(L8*X9)),IF(W9="Impacto",Y8,""))),"") -> 0.36 | Z9: =IFERROR(IF(Y9="","",IF(Y9<=0.2,"MUY BAJA",IF(Y9<=0.4,"BAJA",IF(Y9<=0.6,"MEDIA",IF(Y9<=0.8,"ALTA",IF(Y9=1,"MUY ALTA")))))),"") -> BAJA | AA9: =IFERROR(IF(AND(W8="Impacto",W9="Impacto"),(AA8-(AA8*X9)),IF(W9="Impacto",(O8-(+O8*X9)),IF(W9="Probabilidad",AA8,""))),"") -> 0.6 | AB9: =IFERROR(IF(AA9="","",IF(AA9<=0.2,"LEVE",IF(AA9<=0.4,"MENOR",IF(AA9<=0.6,"MODERADO",IF(AA9<=0.8,"MAYOR",IF(AA9=1,"CATASTRÓFICO")))))),"") -> MODERADO | AC9: =IFERROR(IF(OR(AND(Z9="Muy Baja",AB9="Leve"),AND(Z9="Muy Baja",AB9="Menor"),AND(Z9="Baja",AB9="Leve")),"BAJO",IF(OR(AND(Z9="Muy baja",AB9="Moderado"),AND(Z9="Baja",AB9="Menor"),AND(Z9="Baja",AB9="Moderado"),AND(Z9="Media",AB9="Leve"),AND(Z9="Media",AB9="Menor"),AND(Z9="Media",AB9="Moderado"),AND(Z9="Alta",AB9="Leve"),AND(Z9="Alta",AB9="Menor")),"MODERADO",IF(OR(AND(Z9="Muy Baja",AB9="Mayor"),AND(Z9="Baja",AB9="Mayor"),AND(Z9="Media",AB9="Mayor"),AND(Z9="Alta",AB9="Moderado"),AND(Z9="Alta",AB9="Mayor"),AND(Z9="Muy Alta",AB9="Leve"),AND(Z9="Muy Alta",AB9="Menor"),AND(Z9="Muy Alta",AB9="Moderado"),AND(Z9="Muy Alta",AB9="Mayor")),"ALTO",IF(OR(AND(Z9="Muy Baja",AB9="Catastrófico"),AND(Z9="Baja",AB9="Catastrófico"),AND(Z9="Media",AB9="Catastrófico"),AND(Z9="Alta",AB9="Catastrófico"),AND(Z9="Muy Alta",AB9="Catastrófico")),"EXTREMO","")))),"") -> MODERADO | AD9: 2021-11-11 | AE9: Se realizó ajuste a los controles y se verificó el complimiento de los controles aplicables y sus entregables. | AF9: 2022-12-23 | AG9: A partir de la I Fase los graduados podrán dar autorización al tratamiento de datos de manera sistematizada facilitando el reporte de registro y comunicación de la oficina de graduados con los profesionales. | AH9: 2023-06-30 | AI9: Se evidencia el acervo documental de las autorizaciones para el tratamiento de datos personales de graduados de la vigencia 2021. | AJ9: 2024-07-12 | AK9: El proceso cuenta con soórtes requeridos al momento de hacer el seguimiento al control
A10: =IF(OR(AL10=0,AN10=0),"",IF(AND(AL10<=0.2,AN10<=0.2),1,IF(AND(AL10<=0.2,AN10<=0.4),2,IF(AND(AL10<=0.2,AN10<=0.6),3,IF(AND(AL10<=0.2,AN10<=0.8),4,IF(AND(AL10<=0.2,AN10<=1),5,IF(AND(AL10<=0.4,AN10<=0.2),6,IF(AND(AL10<=0.4,AN10<=0.4),7,IF(AND(AL10<=0.4,AN10<=0.6),8,IF(AND(AL10<=0.4,AN10<=0.8),9,IF(AND(AL10<=0.4,AN10<=1),10,IF(AND(AL10<=0.6,AN10<=0.2),11,IF(AND(AL10<=0.6,AN10<=0.4),12,IF(AND(AL10<=0.6,AN10<=0.6),13,IF(AND(AL10<=0.6,AN10<=0.8),14,IF(AND(AL10<=0.6,AN10<=1),15,IF(AND(AL10<=0.8,AN10<=0.2),16,IF(AND(AL10<=0.8,AN10<=0.4),17,IF(AND(AL10<=0.8,AN10<=0.6),18,IF(AND(AL10<=0.8,AN10<=0.8),19,IF(AND(AL10<=0.8,AN10<=1),20,IF(AND(AL10<=1,AN10<=0.2),21,IF(AND(AL10<=1,AN10<=0.4),22,IF(AND(AL10<=1,AN10<=0.6),23,IF(AND(AL10<=1,AN10<=0.8),24,IF(AND(AL10<=1,AN10<=1),25,"")))))))))))))))))))))))))) -> 8 | B10: =IF(A10="","",(COUNTIF($A$8:A10,A10))/100) -> 0.02 | C10: =IFERROR(A10+B10,"") -> 8.02 | D10: 3 | E10: D15. Afectación en la ejecuición y desarrollo de los proyectos de inversión por la no asignación del presupuesto total requerido al inicio de la vigencia. | F10: Posibilidad de incumplimiento de las metas establecidas en el plan de acción, por el impedimento legal para la suscripción de contratos, debido a la vigencia de la ley de garantías. | G10: Pérdida de imagen institucional ante la comunidad de graduados, por la afectación que puede generar la insuficiencia de recursos en la realización de eventos y/o actividades planeadas. | H10: EJECUCIÓN Y ADMINISTRACIÓN DE PROCESOS: Pérdidas derivadas de errores en la ejecución y administración de procesos. | I10: 37 | J10: El proceso cuenta con 8 categorias de experiencias de las cuales se realizan alrededor de 37 actividades durante la vigencia 2023. | K10: =IF(I10<=0,"",IF(I10<=2,"Muy Baja",IF(I10<=10,"Baja",IF(I10<=30,"Media",IF(I10<=100,"Alta",IF(I10>100,"Muy Alta")))))) -> Alta | L10: =IF(K10="","",IF(K10="Muy Baja",0.2,IF(K10="Baja",0.4,IF(K10="Media",0.6,IF(K10="Alta",0.8,IF(K10="Muy Alta",1,)))))) -> 0.8 | M10: El riesgo afecta la imagen de la entidad con algunos usuarios de relevancia frente al logro de los objetivos. | N10: =IF(OR(M10=CRITERIOS!$C$182,M10=CRITERIOS!$D$182),"Leve",IF(OR(M10=CRITERIOS!$C$183,M10=CRITERIOS!$D$183),"Menor",IF(OR(M10=CRITERIOS!$C$184,M10=CRITERIOS!$D$184),"Moderado",IF(OR(M10=CRITERIOS!$C$185,M10=CRITERIOS!$D$185),"Mayor",IF(OR(M10=CRITERIOS!$C$186,M10=CRITERIOS!$D$186),"Catastrófico",""))))) -> Moderado | O10: =IF(N10="","",IF(N10="Leve",0.2,IF(N10="Menor",0.4,IF(N10="Moderado",0.6,IF(N10="Mayor",0.8,IF(N10="Catastrófico",1,)))))) -> 0.6 | P10: =IF(OR(AND(K10="Muy Baja",N10="Leve"),AND(K10="Muy Baja",N10="Menor"),AND(K10="Baja",N10="Leve")),"BAJO",IF(OR(AND(K10="Muy baja",N10="Moderado"),AND(K10="Baja",N10="Menor"),AND(K10="Baja",N10="Moderado"),AND(K10="Media",N10="Leve"),AND(K10="Media",N10="Menor"),AND(K10="Media",N10="Moderado"),AND(K10="Alta",N10="Leve"),AND(K10="Alta",N10="Menor")),"MODERADO",IF(OR(AND(K10="Muy Baja",N10="Mayor"),AND(K10="Baja",N10="Mayor"),AND(K10="Media",N10="Mayor"),AND(K10="Alta",N10="Moderado"),AND(K10="Alta",N10="Mayor"),AND(K10="Muy Alta",N10="Leve"),AND(K10="Muy Alta",N10="Menor"),AND(K10="Muy Alta",N10="Moderado"),YF10="Muy Alta",N10="Mayor"),"ALTO",IF(OR(AND(K10="Muy Baja",N10="Catastrófico"),AND(K10="Baja",N10="Catastrófico"),AND(K10="Media",N10="Catastrófico"),AND(K10="Alta",N10="Catastrófico"),AND(K10="Muy Alta",N10="Catastrófico")),"EXTREMO","")))) -> ALTO | Q10: El profesional encargado priorizará el presupuesto asignado en las actividades que brinden un mayor beneficio a los graduados y a la Universidad, teniendo en cuenta el nivel de participación de los graduados, los resultados de las actividades y su alineación con las metas del plan de acción. | R10: ANUAL | S10: Estimación De Ingresos, Gastos Y Definición De Disposiciones Generales - EPIP02 | T10: Rubro asignado al proceso de graduados. | U10: PREVENTIVO | V10: MANUAL | W10: PROBABILIDAD | X10: =IF(AND(U10="PREVENTIVO",V10="AUTOMÁTICO"),"50%",IF(AND(U10="PREVENTIVO",V10="MANUAL"),"40%",IF(AND(U10="DETECTIVO",V10="AUTOMÁTICO"),"40%",IF(AND(U10="DETECTIVO",V10="MANUAL"),"30%",IF(AND(U10="CORRECTIVO",V10="AUTOMÁTICO"),"35%",IF(AND(U10="CORRECTIVO",V10="MANUAL"),"25%","")))))) -> 40% | Y10: =IFERROR(IF(W10="Probabilidad",(L10-(L10*X10)),IF(W10="Impacto",L10,"")),"") -> 0.48 | Z10: =IFERROR(IF(Y10="","",IF(Y10<=0.2,"MUY BAJA",IF(Y10<=0.4,"BAJA",IF(Y10<=0.6,"MEDIA",IF(Y10<=0.8,"ALTA",IF(Y10=1,"MUY ALTA")))))),"") -> MEDIA | AA10: =IFERROR(IF(W10="Impacto",(O10-(O10*X10)),IF(W10="Probabilidad",O10,"")),"") -> 0.6 | AB10: =IFERROR(IF(AA10="","",IF(AA10<=0.2,"LEVE",IF(AA10<=0.4,"MENOR",IF(AA10<=0.6,"MODERADO",IF(AA10<=0.8,"MAYOR",IF(AA10=1,"CATASTRÓFICO")))))),"") -> MODERADO | AC10: =IFERROR(IF(OR(AND(Z10="Muy Baja",AB10="Leve"),AND(Z10="Muy Baja",AB10="Menor"),AND(Z10="Baja",AB10="Leve")),"BAJO",IF(OR(AND(Z10="Muy baja",AB10="Moderado"),AND(Z10="Baja",AB10="Menor"),AND(Z10="Baja",AB10="Moderado"),AND(Z10="Media",AB10="Leve"),AND(Z10="Media",AB10="Menor"),AND(Z10="Media",AB10="Moderado"),AND(Z10="Alta",AB10="Leve"),AND(Z10="Alta",AB10="Menor")),"MODERADO",IF(OR(AND(Z10="Muy Baja",AB10="Mayor"),AND(Z10="Baja",AB10="Mayor"),AND(Z10="Media",AB10="Mayor"),AND(Z10="Alta",AB10="Moderado"),AND(Z10="Alta",AB10="Mayor"),AND(Z10="Muy Alta",AB10="Leve"),AND(Z10="Muy Alta",AB10="Menor"),AND(Z10="Muy Alta",AB10="Moderado"),AND(Z10="Muy Alta",AB10="Mayor")),"ALTO",IF(OR(AND(Z10="Muy Baja",AB10="Catastrófico"),AND(Z10="Baja",AB10="Catastrófico"),AND(Z10="Media",AB10="Catastrófico"),AND(Z10="Alta",AB10="Catastrófico"),AND(Z10="Muy Alta",AB10="Catastrófico")),"EXTREMO","")))),"") -> MODERADO | AJ10: 2024-07-12 | AK10: Se evidencia que ya fue realizada la inversión a realizar para la vigencia 2024 | AL10: =IF(Y10="","",MIN(Y10:Y11)) -> 0.288 | AM10: =IFERROR(IF(AL10="","",IF(AL10<=0.2,"MUY BAJA",IF(AL10<=0.4,"BAJA",IF(AL10<=0.6,"MEDIA",IF(AL10<=0.8,"ALTA",IF(AL10=1,"MUY ALTA")))))),"") -> BAJA | AN10: =IF(AA10="","",MIN(AA10:AA11)) -> 0.6 | AO10: =IFERROR(IF(AN10="","",IF(AN10<=0.2,"LEVE",IF(AN10<=0.4,"MENOR",IF(AN10<=0.6,"MODERADO",IF(AN10<=0.8,"MAYOR",IF(AN10=1,"CATASTRÓFICO")))))),"") -> MODERADO | AP10: =IFERROR(IF(OR(AND(AM10="Muy Baja",AO10="Leve"),AND(AM10="Muy Baja",AO10="Menor"),AND(AM10="Baja",AO10="Leve")),"BAJO",IF(OR(AND(AM10="Muy baja",AO10="Moderado"),AND(AM10="Baja",AO10="Menor"),AND(AM10="Baja",AO10="Moderado"),AND(AM10="Media",AO10="Leve"),AND(AM10="Media",AO10="Menor"),AND(AM10="Media",AO10="Moderado"),AND(AM10="Alta",AO10="Leve"),AND(AM10="Alta",AO10="Menor")),"MODERADO",IF(OR(AND(AM10="Muy Baja",AO10="Mayor"),AND(AM10="Baja",AO10="Mayor"),AND(AM10="Media",AO10="Mayor"),AND(AM10="Alta",AO10="Moderado"),AND(AM10="Alta",AO10="Mayor"),AND(AM10="Muy Alta",AO10="Leve"),AND(AM10="Muy Alta",AO10="Menor"),AND(AM10="Muy Alta",AO10="Moderado"),AND(AM10="Muy Alta",AO10="Mayor")),"ALTO",IF(OR(AND(AM10="Muy Baja",AO10="Catastrófico"),AND(AM10="Baja",AO10="Catastrófico"),AND(AM10="Media",AO10="Catastrófico"),AND(AM10="Alta",AO10="Catastrófico"),AND(AM10="Muy Alta",AO10="Catastrófico")),"EXTREMO","")))),"") -> MODERADO | AQ10: 2022-01-24 | AR10: Para el riesgo: Posibilidad de pérdida de imagen institucional por incumplimiento de las metas establecidas en el plan de acción debido a no realizar la ejecución de las actividades planificadas. Se considera importante evaluar el nivel del riesgo. | AS10: 2022-08-16 | AT10: Teniendo en cuenta los resultados de las fuentes de información mencionadas y la matriz de valoración de los riesgos residuales del proceso, la tercera línea de defensa realiza seguimiento a los riesgos con nivel Alto y Extremo, entonces para este proceso no se evidencia niveles alto, ni extremo, por lo tanto, no se requiere evaluación de controles de parte de Control Interno, tal como lo indica el procedimiento ESGP-05. | AU10: 2023-02-03 | AV10: Teniendo en cuenta los resultados de las fuentes de información mencionadas y la matriz de valoración de los riesgos residuales del proceso, la tercera línea de defensa realiza seguimiento a los riesgos con nivel Alto y Extremo, entonces para este proceso no se evidencia niveles alto, ni extremo, por lo tanto, no se requiere evaluación de controles de parte de Control Interno, tal como lo indica el procedimiento ESGP-05. | AW10: 2023-07-19 | AX10: Teniendo en cuenta los resultados de las fuentes de información mencionadas y la matriz de valoración de los riesgos residuales del proceso, la tercera línea de defensa realiza seguimiento a los riesgos con nivel Alto y Extremo, entonces para este proceso no se evidencia niveles alto, ni extremo, por lo tanto, no se requiere evaluación de controles de parte de Control Interno, tal como lo indica el procedimiento ESGP-05. | AY10: 2024-04-18 | AZ10: No se evidencia materialización, pero se recomienda revisar las acciones no cumplidos en los procesos de planes de mejoramiento de gestión académica de graduados con un 70% con corte a junio 2023 en relación con la identificación de riesgos | BA10: 2024-09-09 | BB10: No se evidencia materialización del riesgo.
E11: A2. Ley de Garantías. | Q11: El funcionario encargado realizará una planificación detallada de las actividades a desarrollar en cada uno de las experiencias, cuando se presente algún cambio de actividades o reprogramación de las experiencias, deberá informar oportunamente a través de los canales establecidos para tal fin. | R11: CADA VEZ QUE SE PRESENTE LA NECESIDAD | S11: Selección del Personal - ATHP01 Banco Universitario De Proyectos - EPIP05 | T11: Reporte de ejecución pasiva aportado mensualmente por vicerrectoria Administrativa y Financiera. | U11: PREVENTIVO | V11: MANUAL | W11: PROBABILIDAD | X11: =IF(AND(U11="PREVENTIVO",V11="AUTOMÁTICO"),"50%",IF(AND(U11="PREVENTIVO",V11="MANUAL"),"40%",IF(AND(U11="DETECTIVO",V11="AUTOMÁTICO"),"40%",IF(AND(U11="DETECTIVO",V11="MANUAL"),"30%",IF(AND(U11="CORRECTIVO",V11="AUTOMÁTICO"),"35%",IF(AND(U11="CORRECTIVO",V11="MANUAL"),"25%","")))))) -> 40% | Y11: =IFERROR(IF(AND(W10="Probabilidad",W11="Probabilidad"),(Y10-(Y10*X11)),IF(W11="Probabilidad",(L10-(L10*X11)),IF(W11="Impacto",Y10,""))),"") -> 0.288 | Z11: =IFERROR(IF(Y11="","",IF(Y11<=0.2,"MUY BAJA",IF(Y11<=0.4,"BAJA",IF(Y11<=0.6,"MEDIA",IF(Y11<=0.8,"ALTA",IF(Y11=1,"MUY ALTA")))))),"") -> BAJA | AA11: =IFERROR(IF(AND(W10="Impacto",W11="Impacto"),(AA10-(AA10*X11)),IF(W11="Impacto",(O10-(+O10*X11)),IF(W11="Probabilidad",AA10,""))),"") -> 0.6 | AB11: =IFERROR(IF(AA11="","",IF(AA11<=0.2,"LEVE",IF(AA11<=0.4,"MENOR",IF(AA11<=0.6,"MODERADO",IF(AA11<=0.8,"MAYOR",IF(AA11=1,"CATASTRÓFICO")))))),"") -> MODERADO | AC11: =IFERROR(IF(OR(AND(Z11="Muy Baja",AB11="Leve"),AND(Z11="Muy Baja",AB11="Menor"),AND(Z11="Baja",AB11="Leve")),"BAJO",IF(OR(AND(Z11="Muy baja",AB11="Moderado"),AND(Z11="Baja",AB11="Menor"),AND(Z11="Baja",AB11="Moderado"),AND(Z11="Media",AB11="Leve"),AND(Z11="Media",AB11="Menor"),AND(Z11="Media",AB11="Moderado"),AND(Z11="Alta",AB11="Leve"),AND(Z11="Alta",AB11="Menor")),"MODERADO",IF(OR(AND(Z11="Muy Baja",AB11="Mayor"),AND(Z11="Baja",AB11="Mayor"),AND(Z11="Media",AB11="Mayor"),AND(Z11="Alta",AB11="Moderado"),AND(Z11="Alta",AB11="Mayor"),AND(Z11="Muy Alta",AB11="Leve"),AND(Z11="Muy Alta",AB11="Menor"),AND(Z11="Muy Alta",AB11="Moderado"),AND(Z11="Muy Alta",AB11="Mayor")),"ALTO",IF(OR(AND(Z11="Muy Baja",AB11="Catastrófico"),AND(Z11="Baja",AB11="Catastrófico"),AND(Z11="Media",AB11="Catastrófico"),AND(Z11="Alta",AB11="Catastrófico"),AND(Z11="Muy Alta",AB11="Catastrófico")),"EXTREMO","")))),"") -> MODERADO | AF11: 2022-12-23 | AG11: Se debe programar de forma detallada y con la suficiente antelación todas las actividades a desarrollar en la vigencia, para evitar que se afecte la gestión del proceso cuando entra en vigencia la ley de garantías. | AH11: 2023-06-30 | AI11: Se evidencia POAI cargado en la pagina de la universidad, se tener en cuenta que a partir del 29 de junio se entra a ley de garantías lo cual indica que las contrataciones deberán hacerse por invitación publica. | AJ11: 2024-07-12 | AK11: A la fecha del seguimiento no se encuentra la Ley de Garantias no se encuentra vigente.
A12: =IF(OR(AL12=0,AN12=0),"",IF(AND(AL12<=0.2,AN12<=0.2),1,IF(AND(AL12<=0.2,AN12<=0.4),2,IF(AND(AL12<=0.2,AN12<=0.6),3,IF(AND(AL12<=0.2,AN12<=0.8),4,IF(AND(AL12<=0.2,AN12<=1),5,IF(AND(AL12<=0.4,AN12<=0.2),6,IF(AND(AL12<=0.4,AN12<=0.4),7,IF(AND(AL12<=0.4,AN12<=0.6),8,IF(AND(AL12<=0.4,AN12<=0.8),9,IF(AND(AL12<=0.4,AN12<=1),10,IF(AND(AL12<=0.6,AN12<=0.2),11,IF(AND(AL12<=0.6,AN12<=0.4),12,IF(AND(AL12<=0.6,AN12<=0.6),13,IF(AND(AL12<=0.6,AN12<=0.8),14,IF(AND(AL12<=0.6,AN12<=1),15,IF(AND(AL12<=0.8,AN12<=0.2),16,IF(AND(AL12<=0.8,AN12<=0.4),17,IF(AND(AL12<=0.8,AN12<=0.6),18,IF(AND(AL12<=0.8,AN12<=0.8),19,IF(AND(AL12<=0.8,AN12<=1),20,IF(AND(AL12<=1,AN12<=0.2),21,IF(AND(AL12<=1,AN12<=0.4),22,IF(AND(AL12<=1,AN12<=0.6),23,IF(AND(AL12<=1,AN12<=0.8),24,IF(AND(AL12<=1,AN12<=1),25,"")))))))))))))))))))))))))) ->  | B12: =IF(A12="","",1/100) ->  | C12: =IFERROR(A12+B12,"") ->  | D12: 4 | K12: =IF(I12<=0,"",IF(I12<=2,"Muy Baja",IF(I12<=24,"Baja",IF(I12<=500,"Media",IF(I12<=5000,"Alta",IF(I12>5000,"Muy Alta")))))) ->  | L12: =IF(K12="","",IF(K12="Muy Baja",0.2,IF(K12="Baja",0.4,IF(K12="Media",0.6,IF(K12="Alta",0.8,IF(K12="Muy Alta",1,)))))) ->  | N12: =IF(OR(M12=CRITERIOS!$C$182,M12=CRITERIOS!$D$182),"Leve",IF(OR(M12=CRITERIOS!$C$183,M12=CRITERIOS!$D$183),"Menor",IF(OR(M12=CRITERIOS!$C$184,M12=CRITERIOS!$D$184),"Moderado",IF(OR(M12=CRITERIOS!$C$185,M12=CRITERIOS!$D$185),"Mayor",IF(OR(M12=CRITERIOS!$C$186,M12=CRITERIOS!$D$186),"Catastrófico",""))))) ->  | O12: =IF(N12="","",IF(N12="Leve",0.2,IF(N12="Menor",0.4,IF(N12="Moderado",0.6,IF(N12="Mayor",0.8,IF(N12="Catastrófico",1,)))))) ->  | P12: =IF(OR(AND(K12="Muy Baja",N12="Leve"),AND(K12="Muy Baja",N12="Menor"),AND(K12="Baja",N12="Leve")),"BAJO",IF(OR(AND(K12="Muy baja",N12="Moderado"),AND(K12="Baja",N12="Menor"),AND(K12="Baja",N12="Moderado"),AND(K12="Media",N12="Leve"),AND(K12="Media",N12="Menor"),AND(K12="Media",N12="Moderado"),AND(K12="Alta",N12="Leve"),AND(K12="Alta",N12="Menor")),"MODERADO",IF(OR(AND(K12="Muy Baja",N12="Mayor"),AND(K12="Baja",N12="Mayor"),AND(K12="Media",N12="Mayor"),AND(K12="Alta",N12="Moderado"),AND(K12="Alta",N12="Mayor"),AND(K12="Muy Alta",N12="Leve"),AND(K12="Muy Alta",N12="Menor"),AND(K12="Muy Alta",N12="Moderado"),YF12="Muy Alta",N12="Mayor"),"ALTO",IF(OR(AND(K12="Muy Baja",N12="Catastrófico"),AND(K12="Baja",N12="Catastrófico"),AND(K12="Media",N12="Catastrófico"),AND(K12="Alta",N12="Catastrófico"),AND(K12="Muy Alta",N12="Catastrófico")),"EXTREMO","")))) ->  | W12: =IF(OR(U12="PREVENTIVO",U12="DETECTIVO"),"PROBABILIDAD",IF(U12="CORRECTIVO","IMPACTO","")) ->  | X12: =IF(AND(U12="PREVENTIVO",V12="AUTOMÁTICO"),"50%",IF(AND(U12="PREVENTIVO",V12="MANUAL"),"40%",IF(AND(U12="DETECTIVO",V12="AUTOMÁTICO"),"40%",IF(AND(U12="DETECTIVO",V12="MANUAL"),"30%",IF(AND(U12="CORRECTIVO",V12="AUTOMÁTICO"),"35%",IF(AND(U12="CORRECTIVO",V12="MANUAL"),"25%","")))))) ->  | Y12: =IFERROR(IF(W12="Probabilidad",(L12-(L12*X12)),IF(W12="Impacto",L12,"")),"") ->  | Z12: =IFERROR(IF(Y12="","",IF(Y12<=0.2,"MUY BAJA",IF(Y12<=0.4,"BAJA",IF(Y12<=0.6,"MEDIA",IF(Y12<=0.8,"ALTA",IF(Y12=1,"MUY ALTA")))))),"") ->  | AA12: =IFERROR(IF(W12="Impacto",(O12-(O12*X12)),IF(W12="Probabilidad",O12,"")),"") ->  | AB12: =IFERROR(IF(AA12="","",IF(AA12<=0.2,"LEVE",IF(AA12<=0.4,"MENOR",IF(AA12<=0.6,"MODERADO",IF(AA12<=0.8,"MAYOR",IF(AA12=1,"CATASTRÓFICO")))))),"") ->  | AC12: =IFERROR(IF(OR(AND(Z12="Muy Baja",AB12="Leve"),AND(Z12="Muy Baja",AB12="Menor"),AND(Z12="Baja",AB12="Leve")),"BAJO",IF(OR(AND(Z12="Muy baja",AB12="Moderado"),AND(Z12="Baja",AB12="Menor"),AND(Z12="Baja",AB12="Moderado"),AND(Z12="Media",AB12="Leve"),AND(Z12="Media",AB12="Menor"),AND(Z12="Media",AB12="Moderado"),AND(Z12="Alta",AB12="Leve"),AND(Z12="Alta",AB12="Menor")),"MODERADO",IF(OR(AND(Z12="Muy Baja",AB12="Mayor"),AND(Z12="Baja",AB12="Mayor"),AND(Z12="Media",AB12="Mayor"),AND(Z12="Alta",AB12="Moderado"),AND(Z12="Alta",AB12="Mayor"),AND(Z12="Muy Alta",AB12="Leve"),AND(Z12="Muy Alta",AB12="Menor"),AND(Z12="Muy Alta",AB12="Moderado"),AND(Z12="Muy Alta",AB12="Mayor")),"ALTO",IF(OR(AND(Z12="Muy Baja",AB12="Catastrófico"),AND(Z12="Baja",AB12="Catastrófico"),AND(Z12="Media",AB12="Catastrófico"),AND(Z12="Alta",AB12="Catastrófico"),AND(Z12="Muy Alta",AB12="Catastrófico")),"EXTREMO","")))),"") ->  | AL12: =IF(Y12="","",MIN(Y12:Y16)) ->  | AM12: =IFERROR(IF(AL12="","",IF(Y12<=0.2,"MUY BAJA",IF(AL12<=0.4,"BAJA",IF(AL12<=0.6,"MEDIA",IF(AL12<=0.8,"ALTA",IF(AL12=1,"MUY ALTA")))))),"") ->  | AN12: =IF(AA12="","",MIN(AA12:AA16)) ->  | AO12: =IFERROR(IF(AN12="","",IF(AN12<=0.2,"LEVE",IF(AN12<=0.4,"MENOR",IF(AN12<=0.6,"MODERADO",IF(AN12<=0.8,"MAYOR",IF(AN12=1,"CATASTRÓFICO")))))),"") ->  | AP12: =IFERROR(IF(OR(AND(AM12="Muy Baja",AO12="Leve"),AND(AM12="Muy Baja",AO12="Menor"),AND(AM12="Baja",AO12="Leve")),"BAJO",IF(OR(AND(AM12="Muy baja",AO12="Moderado"),AND(AM12="Baja",AO12="Menor"),AND(AM12="Baja",AO12="Moderado"),AND(AM12="Media",AO12="Leve"),AND(AM12="Media",AO12="Menor"),AND(AM12="Media",AO12="Moderado"),AND(AM12="Alta",AO12="Leve"),AND(AM12="Alta",AO12="Menor")),"MODERADO",IF(OR(AND(AM12="Muy Baja",AO12="Mayor"),AND(AM12="Baja",AO12="Mayor"),AND(AM12="Media",AO12="Mayor"),AND(AM12="Alta",AO12="Moderado"),AND(AM12="Alta",AO12="Mayor"),AND(AM12="Muy Alta",AO12="Leve"),AND(AM12="Muy Alta",AO12="Menor"),AND(AM12="Muy Alta",AO12="Moderado"),AND(AM12="Muy Alta",AO12="Mayor")),"ALTO",IF(OR(AND(AM12="Muy Baja",AO12="Catastrófico"),AND(AM12="Baja",AO12="Catastrófico"),AND(AM12="Media",AO12="Catastrófico"),AND(AM12="Alta",AO12="Catastrófico"),AND(AM12="Muy Alta",AO12="Catastrófico")),"EXTREMO","")))),"") -> 
W13: =IF(OR(U13="PREVENTIVO",U13="DETECTIVO"),"PROBABILIDAD",IF(U13="CORRECTIVO","IMPACTO","")) ->  | X13: =IF(AND(U13="PREVENTIVO",V13="AUTOMÁTICO"),"50%",IF(AND(U13="PREVENTIVO",V13="MANUAL"),"40%",IF(AND(U13="DETECTIVO",V13="AUTOMÁTICO"),"40%",IF(AND(U13="DETECTIVO",V13="MANUAL"),"30%",IF(AND(U13="CORRECTIVO",V13="AUTOMÁTICO"),"35%",IF(AND(U13="CORRECTIVO",V13="MANUAL"),"25%","")))))) ->  | Y13: =IFERROR(IF(AND(W12="Probabilidad",W13="Probabilidad"),(Y12-(Y12*X13)),IF(W13="Probabilidad",(L12-(L12*X13)),IF(W13="Impacto",Y12,""))),"") ->  | AA13: =IFERROR(IF(AND(W12="Impacto",W13="Impacto"),(AA12-(AA12*X13)),IF(W13="Impacto",(O12-(+O12*X13)),IF(W13="Probabilidad",AA12,""))),"") ->  | AB13: =IFERROR(IF(AA13="","",IF(AA13<=0.2,"LEVE",IF(AA13<=0.4,"MENOR",IF(AA13<=0.6,"MODERADO",IF(AA13<=0.8,"MAYOR",IF(AA13=1,"CATASTRÓFICO")))))),"") ->  | AC13: =IFERROR(IF(OR(AND(Z13="Muy Baja",AB13="Leve"),AND(Z13="Muy Baja",AB13="Menor"),AND(Z13="Baja",AB13="Leve")),"BAJO",IF(OR(AND(Z13="Muy baja",AB13="Moderado"),AND(Z13="Baja",AB13="Menor"),AND(Z13="Baja",AB13="Moderado"),AND(Z13="Media",AB13="Leve"),AND(Z13="Media",AB13="Menor"),AND(Z13="Media",AB13="Moderado"),AND(Z13="Alta",AB13="Leve"),AND(Z13="Alta",AB13="Menor")),"MODERADO",IF(OR(AND(Z13="Muy Baja",AB13="Mayor"),AND(Z13="Baja",AB13="Mayor"),AND(Z13="Media",AB13="Mayor"),AND(Z13="Alta",AB13="Moderado"),AND(Z13="Alta",AB13="Mayor"),AND(Z13="Muy Alta",AB13="Leve"),AND(Z13="Muy Alta",AB13="Menor"),AND(Z13="Muy Alta",AB13="Moderado"),AND(Z13="Muy Alta",AB13="Mayor")),"ALTO",IF(OR(AND(Z13="Muy Baja",AB13="Catastrófico"),AND(Z13="Baja",AB13="Catastrófico"),AND(Z13="Media",AB13="Catastrófico"),AND(Z13="Alta",AB13="Catastrófico"),AND(Z13="Muy Alta",AB13="Catastrófico")),"EXTREMO","")))),"") -> 
Y14: =IFERROR(IF(AND(W13="Probabilidad",W14="Probabilidad"),(Y13-(Y13*X14)),IF(AND(W13="Impacto",W14="Probabilidad"),(Y12-(Y12*X14)),IF(W14="Impacto",Y13,""))),"") ->  | AA14: =IFERROR(IF(AND(W13="Impacto",W14="Impacto"),(AA13-(AA13*X14)),IF(AND(W13="Probabilidad",W14="Impacto"),(AA12-(AA12*X14)),IF(W14="Probabilidad",AA13,""))),"") -> 
Y15: =IFERROR(IF(AND(W14="Probabilidad",W15="Probabilidad"),(Y14-(Y14*X15)),IF(AND(W14="Impacto",W15="Probabilidad"),(Y13-(Y13*X15)),IF(W15="Impacto",Y14,""))),"") ->  | AA15: =IFERROR(IF(AND(W14="Impacto",W15="Impacto"),(AA14-(AA14*X15)),IF(AND(W14="Probabilidad",W15="Impacto"),(AA13-(AA13*X15)),IF(W15="Probabilidad",AA14,""))),"") -> 
A17: =IF(OR(AL17=0,AN17=0),"",IF(AND(AL17<=0.2,AN17<=0.2),1,IF(AND(AL17<=0.2,AN17<=0.4),2,IF(AND(AL17<=0.2,AN17<=0.6),3,IF(AND(AL17<=0.2,AN17<=0.8),4,IF(AND(AL17<=0.2,AN17<=1),5,IF(AND(AL17<=0.4,AN17<=0.2),6,IF(AND(AL17<=0.4,AN17<=0.4),7,IF(AND(AL17<=0.4,AN17<=0.6),8,IF(AND(AL17<=0.4,AN17<=0.8),9,IF(AND(AL17<=0.4,AN17<=1),10,IF(AND(AL17<=0.6,AN17<=0.2),11,IF(AND(AL17<=0.6,AN17<=0.4),12,IF(AND(AL17<=0.6,AN17<=0.6),13,IF(AND(AL17<=0.6,AN17<=0.8),14,IF(AND(AL17<=0.6,AN17<=1),15,IF(AND(AL17<=0.8,AN17<=0.2),16,IF(AND(AL17<=0.8,AN17<=0.4),17,IF(AND(AL17<=0.8,AN17<=0.6),18,IF(AND(AL17<=0.8,AN17<=0.8),19,IF(AND(AL17<=0.8,AN17<=1),20,IF(AND(AL17<=1,AN17<=0.2),21,IF(AND(AL17<=1,AN17<=0.4),22,IF(AND(AL17<=1,AN17<=0.6),23,IF(AND(AL17<=1,AN17<=0.8),24,IF(AND(AL17<=1,AN17<=1),25,"")))))))))))))))))))))))))) ->  | B17: =IF(A17="","",1/100) ->  | C17: =IFERROR(A17+B17,"") ->  | D17: 5 | K17: =IF(I17<=0,"",IF(I17<=2,"Muy Baja",IF(I17<=24,"Baja",IF(I17<=500,"Media",IF(I17<=5000,"Alta",IF(I17>5000,"Muy Alta")))))) ->  | L17: =IF(K17="","",IF(K17="Muy Baja",0.2,IF(K17="Baja",0.4,IF(K17="Media",0.6,IF(K17="Alta",0.8,IF(K17="Muy Alta",1,)))))) ->  | N17: =IF(OR(M17=CRITERIOS!$C$182,M17=CRITERIOS!$D$182),"Leve",IF(OR(M17=CRITERIOS!$C$183,M17=CRITERIOS!$D$183),"Menor",IF(OR(M17=CRITERIOS!$C$184,M17=CRITERIOS!$D$184),"Moderado",IF(OR(M17=CRITERIOS!$C$185,M17=CRITERIOS!$D$185),"Mayor",IF(OR(M17=CRITERIOS!$C$186,M17=CRITERIOS!$D$186),"Catastrófico",""))))) ->  | O17: =IF(N17="","",IF(N17="Leve",0.2,IF(N17="Menor",0.4,IF(N17="Moderado",0.6,IF(N17="Mayor",0.8,IF(N17="Catastrófico",1,)))))) ->  | P17: =IF(OR(AND(K17="Muy Baja",N17="Leve"),AND(K17="Muy Baja",N17="Menor"),AND(K17="Baja",N17="Leve")),"BAJO",IF(OR(AND(K17="Muy baja",N17="Moderado"),AND(K17="Baja",N17="Menor"),AND(K17="Baja",N17="Moderado"),AND(K17="Media",N17="Leve"),AND(K17="Media",N17="Menor"),AND(K17="Media",N17="Moderado"),AND(K17="Alta",N17="Leve"),AND(K17="Alta",N17="Menor")),"MODERADO",IF(OR(AND(K17="Muy Baja",N17="Mayor"),AND(K17="Baja",N17="Mayor"),AND(K17="Media",N17="Mayor"),AND(K17="Alta",N17="Moderado"),AND(K17="Alta",N17="Mayor"),AND(K17="Muy Alta",N17="Leve"),AND(K17="Muy Alta",N17="Menor"),AND(K17="Muy Alta",N17="Moderado"),YF17="Muy Alta",N17="Mayor"),"ALTO",IF(OR(AND(K17="Muy Baja",N17="Catastrófico"),AND(K17="Baja",N17="Catastrófico"),AND(K17="Media",N17="Catastrófico"),AND(K17="Alta",N17="Catastrófico"),AND(K17="Muy Alta",N17="Catastrófico")),"EXTREMO","")))) ->  | W17: =IF(OR(U17="PREVENTIVO",U17="DETECTIVO"),"PROBABILIDAD",IF(U17="CORRECTIVO","IMPACTO","")) ->  | X17: =IF(AND(U17="PREVENTIVO",V17="AUTOMÁTICO"),"50%",IF(AND(U17="PREVENTIVO",V17="MANUAL"),"40%",IF(AND(U17="DETECTIVO",V17="AUTOMÁTICO"),"40%",IF(AND(U17="DETECTIVO",V17="MANUAL"),"30%",IF(AND(U17="CORRECTIVO",V17="AUTOMÁTICO"),"35%",IF(AND(U17="CORRECTIVO",V17="MANUAL"),"25%","")))))) ->  | Y17: =IFERROR(IF(W17="Probabilidad",(L17-(L17*X17)),IF(W17="Impacto",L17,"")),"") ->  | Z17: =IFERROR(IF(Y17="","",IF(Y17<=0.2,"MUY BAJA",IF(Y17<=0.4,"BAJA",IF(Y17<=0.6,"MEDIA",IF(Y17<=0.8,"ALTA",IF(Y17=1,"MUY ALTA")))))),"") ->  | AA17: =IFERROR(IF(W17="Impacto",(O17-(O17*X17)),IF(W17="Probabilidad",O17,"")),"") ->  | AB17: =IFERROR(IF(AA17="","",IF(AA17<=0.2,"LEVE",IF(AA17<=0.4,"MENOR",IF(AA17<=0.6,"MODERADO",IF(AA17<=0.8,"MAYOR",IF(AA17=1,"CATASTRÓFICO")))))),"") ->  | AC17: =IFERROR(IF(OR(AND(Z17="Muy Baja",AB17="Leve"),AND(Z17="Muy Baja",AB17="Menor"),AND(Z17="Baja",AB17="Leve")),"BAJO",IF(OR(AND(Z17="Muy baja",AB17="Moderado"),AND(Z17="Baja",AB17="Menor"),AND(Z17="Baja",AB17="Moderado"),AND(Z17="Media",AB17="Leve"),AND(Z17="Media",AB17="Menor"),AND(Z17="Media",AB17="Moderado"),AND(Z17="Alta",AB17="Leve"),AND(Z17="Alta",AB17="Menor")),"MODERADO",IF(OR(AND(Z17="Muy Baja",AB17="Mayor"),AND(Z17="Baja",AB17="Mayor"),AND(Z17="Media",AB17="Mayor"),AND(Z17="Alta",AB17="Moderado"),AND(Z17="Alta",AB17="Mayor"),AND(Z17="Muy Alta",AB17="Leve"),AND(Z17="Muy Alta",AB17="Menor"),AND(Z17="Muy Alta",AB17="Moderado"),AND(Z17="Muy Alta",AB17="Mayor")),"ALTO",IF(OR(AND(Z17="Muy Baja",AB17="Catastrófico"),AND(Z17="Baja",AB17="Catastrófico"),AND(Z17="Media",AB17="Catastrófico"),AND(Z17="Alta",AB17="Catastrófico"),AND(Z17="Muy Alta",AB17="Catastrófico")),"EXTREMO","")))),"") ->  | AL17: =IF(Y17="","",MIN(Y17:Y21)) ->  | AM17: =IFERROR(IF(AL17="","",IF(Y17<=0.2,"MUY BAJA",IF(AL17<=0.4,"BAJA",IF(AL17<=0.6,"MEDIA",IF(AL17<=0.8,"ALTA",IF(AL17=1,"MUY ALTA")))))),"") ->  | AN17: =IF(AA17="","",MIN(AA17:AA21)) ->  | AO17: =IFERROR(IF(AN17="","",IF(AN17<=0.2,"LEVE",IF(AN17<=0.4,"MENOR",IF(AN17<=0.6,"MODERADO",IF(AN17<=0.8,"MAYOR",IF(AN17=1,"CATASTRÓFICO")))))),"") ->  | AP17: =IFERROR(IF(OR(AND(AM17="Muy Baja",AO17="Leve"),AND(AM17="Muy Baja",AO17="Menor"),AND(AM17="Baja",AO17="Leve")),"BAJO",IF(OR(AND(AM17="Muy baja",AO17="Moderado"),AND(AM17="Baja",AO17="Menor"),AND(AM17="Baja",AO17="Moderado"),AND(AM17="Media",AO17="Leve"),AND(AM17="Media",AO17="Menor"),AND(AM17="Media",AO17="Moderado"),AND(AM17="Alta",AO17="Leve"),AND(AM17="Alta",AO17="Menor")),"MODERADO",IF(OR(AND(AM17="Muy Baja",AO17="Mayor"),AND(AM17="Baja",AO17="Mayor"),AND(AM17="Media",AO17="Mayor"),AND(AM17="Alta",AO17="Moderado"),AND(AM17="Alta",AO17="Mayor"),AND(AM17="Muy Alta",AO17="Leve"),AND(AM17="Muy Alta",AO17="Menor"),AND(AM17="Muy Alta",AO17="Moderado"),AND(AM17="Muy Alta",AO17="Mayor")),"ALTO",IF(OR(AND(AM17="Muy Baja",AO17="Catastrófico"),AND(AM17="Baja",AO17="Catastrófico"),AND(AM17="Media",AO17="Catastrófico"),AND(AM17="Alta",AO17="Catastrófico"),AND(AM17="Muy Alta",AO17="Catastrófico")),"EXTREMO","")))),"") -> 
W18: =IF(OR(U18="PREVENTIVO",U18="DETECTIVO"),"PROBABILIDAD",IF(U18="CORRECTIVO","IMPACTO","")) ->  | X18: =IF(AND(U18="PREVENTIVO",V18="AUTOMÁTICO"),"50%",IF(AND(U18="PREVENTIVO",V18="MANUAL"),"40%",IF(AND(U18="DETECTIVO",V18="AUTOMÁTICO"),"40%",IF(AND(U18="DETECTIVO",V18="MANUAL"),"30%",IF(AND(U18="CORRECTIVO",V18="AUTOMÁTICO"),"35%",IF(AND(U18="CORRECTIVO",V18="MANUAL"),"25%","")))))) ->  | Y18: =IFERROR(IF(AND(W17="Probabilidad",W18="Probabilidad"),(Y17-(Y17*X18)),IF(W18="Probabilidad",(L17-(L17*X18)),IF(W18="Impacto",Y17,""))),"") ->  | AA18: =IFERROR(IF(AND(W17="Impacto",W18="Impacto"),(AA17-(AA17*X18)),IF(W18="Impacto",(O17-(+O17*X18)),IF(W18="Probabilidad",AA17,""))),"") ->  | AB18: =IFERROR(IF(AA18="","",IF(AA18<=0.2,"LEVE",IF(AA18<=0.4,"MENOR",IF(AA18<=0.6,"MODERADO",IF(AA18<=0.8,"MAYOR",IF(AA18=1,"CATASTRÓFICO")))))),"") ->  | AC18: =IFERROR(IF(OR(AND(Z18="Muy Baja",AB18="Leve"),AND(Z18="Muy Baja",AB18="Menor"),AND(Z18="Baja",AB18="Leve")),"BAJO",IF(OR(AND(Z18="Muy baja",AB18="Moderado"),AND(Z18="Baja",AB18="Menor"),AND(Z18="Baja",AB18="Moderado"),AND(Z18="Media",AB18="Leve"),AND(Z18="Media",AB18="Menor"),AND(Z18="Media",AB18="Moderado"),AND(Z18="Alta",AB18="Leve"),AND(Z18="Alta",AB18="Menor")),"MODERADO",IF(OR(AND(Z18="Muy Baja",AB18="Mayor"),AND(Z18="Baja",AB18="Mayor"),AND(Z18="Media",AB18="Mayor"),AND(Z18="Alta",AB18="Moderado"),AND(Z18="Alta",AB18="Mayor"),AND(Z18="Muy Alta",AB18="Leve"),AND(Z18="Muy Alta",AB18="Menor"),AND(Z18="Muy Alta",AB18="Moderado"),AND(Z18="Muy Alta",AB18="Mayor")),"ALTO",IF(OR(AND(Z18="Muy Baja",AB18="Catastrófico"),AND(Z18="Baja",AB18="Catastrófico"),AND(Z18="Media",AB18="Catastrófico"),AND(Z18="Alta",AB18="Catastrófico"),AND(Z18="Muy Alta",AB18="Catastrófico")),"EXTREMO","")))),"") -> 
Y19: =IFERROR(IF(AND(W18="Probabilidad",W19="Probabilidad"),(Y18-(Y18*X19)),IF(AND(W18="Impacto",W19="Probabilidad"),(Y17-(Y17*X19)),IF(W19="Impacto",Y18,""))),"") ->  | AA19: =IFERROR(IF(AND(W18="Impacto",W19="Impacto"),(AA18-(AA18*X19)),IF(AND(W18="Probabilidad",W19="Impacto"),(AA17-(AA17*X19)),IF(W19="Probabilidad",AA18,""))),"") -> 
Y20: =IFERROR(IF(AND(W19="Probabilidad",W20="Probabilidad"),(Y19-(Y19*X20)),IF(AND(W19="Impacto",W20="Probabilidad"),(Y18-(Y18*X20)),IF(W20="Impacto",Y19,""))),"") ->  | AA20: =IFERROR(IF(AND(W19="Impacto",W20="Impacto"),(AA19-(AA19*X20)),IF(AND(W19="Probabilidad",W20="Impacto"),(AA18-(AA18*X20)),IF(W20="Probabilidad",AA19,""))),"") -> 
A22: =IF(OR(AL22=0,AN22=0),"",IF(AND(AL22<=0.2,AN22<=0.2),1,IF(AND(AL22<=0.2,AN22<=0.4),2,IF(AND(AL22<=0.2,AN22<=0.6),3,IF(AND(AL22<=0.2,AN22<=0.8),4,IF(AND(AL22<=0.2,AN22<=1),5,IF(AND(AL22<=0.4,AN22<=0.2),6,IF(AND(AL22<=0.4,AN22<=0.4),7,IF(AND(AL22<=0.4,AN22<=0.6),8,IF(AND(AL22<=0.4,AN22<=0.8),9,IF(AND(AL22<=0.4,AN22<=1),10,IF(AND(AL22<=0.6,AN22<=0.2),11,IF(AND(AL22<=0.6,AN22<=0.4),12,IF(AND(AL22<=0.6,AN22<=0.6),13,IF(AND(AL22<=0.6,AN22<=0.8),14,IF(AND(AL22<=0.6,AN22<=1),15,IF(AND(AL22<=0.8,AN22<=0.2),16,IF(AND(AL22<=0.8,AN22<=0.4),17,IF(AND(AL22<=0.8,AN22<=0.6),18,IF(AND(AL22<=0.8,AN22<=0.8),19,IF(AND(AL22<=0.8,AN22<=1),20,IF(AND(AL22<=1,AN22<=0.2),21,IF(AND(AL22<=1,AN22<=0.4),22,IF(AND(AL22<=1,AN22<=0.6),23,IF(AND(AL22<=1,AN22<=0.8),24,IF(AND(AL22<=1,AN22<=1),25,"")))))))))))))))))))))))))) ->  | B22: =IF(A22="","",1/100) ->  | C22: =IFERROR(A22+B22,"") ->  | D22: 6 | K22: =IF(I22<=0,"",IF(I22<=2,"Muy Baja",IF(I22<=24,"Baja",IF(I22<=500,"Media",IF(I22<=5000,"Alta",IF(I22>5000,"Muy Alta")))))) ->  | L22: =IF(K22="","",IF(K22="Muy Baja",0.2,IF(K22="Baja",0.4,IF(K22="Media",0.6,IF(K22="Alta",0.8,IF(K22="Muy Alta",1,)))))) ->  | N22: =IF(OR(M22=CRITERIOS!$C$182,M22=CRITERIOS!$D$182),"Leve",IF(OR(M22=CRITERIOS!$C$183,M22=CRITERIOS!$D$183),"Menor",IF(OR(M22=CRITERIOS!$C$184,M22=CRITERIOS!$D$184),"Moderado",IF(OR(M22=CRITERIOS!$C$185,M22=CRITERIOS!$D$185),"Mayor",IF(OR(M22=CRITERIOS!$C$186,M22=CRITERIOS!$D$186),"Catastrófico",""))))) ->  | O22: =IF(N22="","",IF(N22="Leve",0.2,IF(N22="Menor",0.4,IF(N22="Moderado",0.6,IF(N22="Mayor",0.8,IF(N22="Catastrófico",1,)))))) ->  | P22: =IF(OR(AND(K22="Muy Baja",N22="Leve"),AND(K22="Muy Baja",N22="Menor"),AND(K22="Baja",N22="Leve")),"BAJO",IF(OR(AND(K22="Muy baja",N22="Moderado"),AND(K22="Baja",N22="Menor"),AND(K22="Baja",N22="Moderado"),AND(K22="Media",N22="Leve"),AND(K22="Media",N22="Menor"),AND(K22="Media",N22="Moderado"),AND(K22="Alta",N22="Leve"),AND(K22="Alta",N22="Menor")),"MODERADO",IF(OR(AND(K22="Muy Baja",N22="Mayor"),AND(K22="Baja",N22="Mayor"),AND(K22="Media",N22="Mayor"),AND(K22="Alta",N22="Moderado"),AND(K22="Alta",N22="Mayor"),AND(K22="Muy Alta",N22="Leve"),AND(K22="Muy Alta",N22="Menor"),AND(K22="Muy Alta",N22="Moderado"),YF22="Muy Alta",N22="Mayor"),"ALTO",IF(OR(AND(K22="Muy Baja",N22="Catastrófico"),AND(K22="Baja",N22="Catastrófico"),AND(K22="Media",N22="Catastrófico"),AND(K22="Alta",N22="Catastrófico"),AND(K22="Muy Alta",N22="Catastrófico")),"EXTREMO","")))) ->  | W22: =IF(OR(U22="PREVENTIVO",U22="DETECTIVO"),"PROBABILIDAD",IF(U22="CORRECTIVO","IMPACTO","")) ->  | X22: =IF(AND(U22="PREVENTIVO",V22="AUTOMÁTICO"),"50%",IF(AND(U22="PREVENTIVO",V22="MANUAL"),"40%",IF(AND(U22="DETECTIVO",V22="AUTOMÁTICO"),"40%",IF(AND(U22="DETECTIVO",V22="MANUAL"),"30%",IF(AND(U22="CORRECTIVO",V22="AUTOMÁTICO"),"35%",IF(AND(U22="CORRECTIVO",V22="MANUAL"),"25%","")))))) ->  | Y22: =IFERROR(IF(W22="Probabilidad",(L22-(L22*X22)),IF(W22="Impacto",L22,"")),"") ->  | Z22: =IFERROR(IF(Y22="","",IF(Y22<=0.2,"MUY BAJA",IF(Y22<=0.4,"BAJA",IF(Y22<=0.6,"MEDIA",IF(Y22<=0.8,"ALTA",IF(Y22=1,"MUY ALTA")))))),"") ->  | AA22: =IFERROR(IF(W22="Impacto",(O22-(O22*X22)),IF(W22="Probabilidad",O22,"")),"") ->  | AB22: =IFERROR(IF(AA22="","",IF(AA22<=0.2,"LEVE",IF(AA22<=0.4,"MENOR",IF(AA22<=0.6,"MODERADO",IF(AA22<=0.8,"MAYOR",IF(AA22=1,"CATASTRÓFICO")))))),"") ->  | AC22: =IFERROR(IF(OR(AND(Z22="Muy Baja",AB22="Leve"),AND(Z22="Muy Baja",AB22="Menor"),AND(Z22="Baja",AB22="Leve")),"BAJO",IF(OR(AND(Z22="Muy baja",AB22="Moderado"),AND(Z22="Baja",AB22="Menor"),AND(Z22="Baja",AB22="Moderado"),AND(Z22="Media",AB22="Leve"),AND(Z22="Media",AB22="Menor"),AND(Z22="Media",AB22="Moderado"),AND(Z22="Alta",AB22="Leve"),AND(Z22="Alta",AB22="Menor")),"MODERADO",IF(OR(AND(Z22="Muy Baja",AB22="Mayor"),AND(Z22="Baja",AB22="Mayor"),AND(Z22="Media",AB22="Mayor"),AND(Z22="Alta",AB22="Moderado"),AND(Z22="Alta",AB22="Mayor"),AND(Z22="Muy Alta",AB22="Leve"),AND(Z22="Muy Alta",AB22="Menor"),AND(Z22="Muy Alta",AB22="Moderado"),AND(Z22="Muy Alta",AB22="Mayor")),"ALTO",IF(OR(AND(Z22="Muy Baja",AB22="Catastrófico"),AND(Z22="Baja",AB22="Catastrófico"),AND(Z22="Media",AB22="Catastrófico"),AND(Z22="Alta",AB22="Catastrófico"),AND(Z22="Muy Alta",AB22="Catastrófico")),"EXTREMO","")))),"") ->  | AL22: =IF(Y22="","",MIN(Y22:Y26)) ->  | AM22: =IFERROR(IF(AL22="","",IF(Y22<=0.2,"MUY BAJA",IF(AL22<=0.4,"BAJA",IF(AL22<=0.6,"MEDIA",IF(AL22<=0.8,"ALTA",IF(AL22=1,"MUY ALTA")))))),"") ->  | AN22: =IF(AA22="","",MIN(AA22:AA26)) ->  | AO22: =IFERROR(IF(AN22="","",IF(AN22<=0.2,"LEVE",IF(AN22<=0.4,"MENOR",IF(AN22<=0.6,"MODERADO",IF(AN22<=0.8,"MAYOR",IF(AN22=1,"CATASTRÓFICO")))))),"") ->  | AP22: =IFERROR(IF(OR(AND(AM22="Muy Baja",AO22="Leve"),AND(AM22="Muy Baja",AO22="Menor"),AND(AM22="Baja",AO22="Leve")),"BAJO",IF(OR(AND(AM22="Muy baja",AO22="Moderado"),AND(AM22="Baja",AO22="Menor"),AND(AM22="Baja",AO22="Moderado"),AND(AM22="Media",AO22="Leve"),AND(AM22="Media",AO22="Menor"),AND(AM22="Media",AO22="Moderado"),AND(AM22="Alta",AO22="Leve"),AND(AM22="Alta",AO22="Menor")),"MODERADO",IF(OR(AND(AM22="Muy Baja",AO22="Mayor"),AND(AM22="Baja",AO22="Mayor"),AND(AM22="Media",AO22="Mayor"),AND(AM22="Alta",AO22="Moderado"),AND(AM22="Alta",AO22="Mayor"),AND(AM22="Muy Alta",AO22="Leve"),AND(AM22="Muy Alta",AO22="Menor"),AND(AM22="Muy Alta",AO22="Moderado"),AND(AM22="Muy Alta",AO22="Mayor")),"ALTO",IF(OR(AND(AM22="Muy Baja",AO22="Catastrófico"),AND(AM22="Baja",AO22="Catastrófico"),AND(AM22="Media",AO22="Catastrófico"),AND(AM22="Alta",AO22="Catastrófico"),AND(AM22="Muy Alta",AO22="Catastrófico")),"EXTREMO","")))),"") -> 
W23: =IF(OR(U23="PREVENTIVO",U23="DETECTIVO"),"PROBABILIDAD",IF(U23="CORRECTIVO","IMPACTO","")) ->  | X23: =IF(AND(U23="PREVENTIVO",V23="AUTOMÁTICO"),"50%",IF(AND(U23="PREVENTIVO",V23="MANUAL"),"40%",IF(AND(U23="DETECTIVO",V23="AUTOMÁTICO"),"40%",IF(AND(U23="DETECTIVO",V23="MANUAL"),"30%",IF(AND(U23="CORRECTIVO",V23="AUTOMÁTICO"),"35%",IF(AND(U23="CORRECTIVO",V23="MANUAL"),"25%","")))))) ->  | Y23: =IFERROR(IF(AND(W22="Probabilidad",W23="Probabilidad"),(Y22-(Y22*X23)),IF(W23="Probabilidad",(L22-(L22*X23)),IF(W23="Impacto",Y22,""))),"") ->  | AA23: =IFERROR(IF(AND(W22="Impacto",W23="Impacto"),(AA22-(AA22*X23)),IF(W23="Impacto",(O22-(+O22*X23)),IF(W23="Probabilidad",AA22,""))),"") ->  | AB23: =IFERROR(IF(AA23="","",IF(AA23<=0.2,"LEVE",IF(AA23<=0.4,"MENOR",IF(AA23<=0.6,"MODERADO",IF(AA23<=0.8,"MAYOR",IF(AA23=1,"CATASTRÓFICO")))))),"") ->  | AC23: =IFERROR(IF(OR(AND(Z23="Muy Baja",AB23="Leve"),AND(Z23="Muy Baja",AB23="Menor"),AND(Z23="Baja",AB23="Leve")),"BAJO",IF(OR(AND(Z23="Muy baja",AB23="Moderado"),AND(Z23="Baja",AB23="Menor"),AND(Z23="Baja",AB23="Moderado"),AND(Z23="Media",AB23="Leve"),AND(Z23="Media",AB23="Menor"),AND(Z23="Media",AB23="Moderado"),AND(Z23="Alta",AB23="Leve"),AND(Z23="Alta",AB23="Menor")),"MODERADO",IF(OR(AND(Z23="Muy Baja",AB23="Mayor"),AND(Z23="Baja",AB23="Mayor"),AND(Z23="Media",AB23="Mayor"),AND(Z23="Alta",AB23="Moderado"),AND(Z23="Alta",AB23="Mayor"),AND(Z23="Muy Alta",AB23="Leve"),AND(Z23="Muy Alta",AB23="Menor"),AND(Z23="Muy Alta",AB23="Moderado"),AND(Z23="Muy Alta",AB23="Mayor")),"ALTO",IF(OR(AND(Z23="Muy Baja",AB23="Catastrófico"),AND(Z23="Baja",AB23="Catastrófico"),AND(Z23="Media",AB23="Catastrófico"),AND(Z23="Alta",AB23="Catastrófico"),AND(Z23="Muy Alta",AB23="Catastrófico")),"EXTREMO","")))),"") -> 
Y24: =IFERROR(IF(AND(W23="Probabilidad",W24="Probabilidad"),(Y23-(Y23*X24)),IF(AND(W23="Impacto",W24="Probabilidad"),(Y22-(Y22*X24)),IF(W24="Impacto",Y23,""))),"") ->  | AA24: =IFERROR(IF(AND(W23="Impacto",W24="Impacto"),(AA23-(AA23*X24)),IF(AND(W23="Probabilidad",W24="Impacto"),(AA22-(AA22*X24)),IF(W24="Probabilidad",AA23,""))),"") -> 
Y25: =IFERROR(IF(AND(W24="Probabilidad",W25="Probabilidad"),(Y24-(Y24*X25)),IF(AND(W24="Impacto",W25="Probabilidad"),(Y23-(Y23*X25)),IF(W25="Impacto",Y24,""))),"") ->  | AA25: =IFERROR(IF(AND(W24="Impacto",W25="Impacto"),(AA24-(AA24*X25)),IF(AND(W24="Probabilidad",W25="Impacto"),(AA23-(AA23*X25)),IF(W25="Probabilidad",AA24,""))),"") -> 
A27: =IF(OR(AL27=0,AN27=0),"",IF(AND(AL27<=0.2,AN27<=0.2),1,IF(AND(AL27<=0.2,AN27<=0.4),2,IF(AND(AL27<=0.2,AN27<=0.6),3,IF(AND(AL27<=0.2,AN27<=0.8),4,IF(AND(AL27<=0.2,AN27<=1),5,IF(AND(AL27<=0.4,AN27<=0.2),6,IF(AND(AL27<=0.4,AN27<=0.4),7,IF(AND(AL27<=0.4,AN27<=0.6),8,IF(AND(AL27<=0.4,AN27<=0.8),9,IF(AND(AL27<=0.4,AN27<=1),10,IF(AND(AL27<=0.6,AN27<=0.2),11,IF(AND(AL27<=0.6,AN27<=0.4),12,IF(AND(AL27<=0.6,AN27<=0.6),13,IF(AND(AL27<=0.6,AN27<=0.8),14,IF(AND(AL27<=0.6,AN27<=1),15,IF(AND(AL27<=0.8,AN27<=0.2),16,IF(AND(AL27<=0.8,AN27<=0.4),17,IF(AND(AL27<=0.8,AN27<=0.6),18,IF(AND(AL27<=0.8,AN27<=0.8),19,IF(AND(AL27<=0.8,AN27<=1),20,IF(AND(AL27<=1,AN27<=0.2),21,IF(AND(AL27<=1,AN27<=0.4),22,IF(AND(AL27<=1,AN27<=0.6),23,IF(AND(AL27<=1,AN27<=0.8),24,IF(AND(AL27<=1,AN27<=1),25,"")))))))))))))))))))))))))) ->  | B27: =IF(A27="","",1/100) ->  | C27: =IFERROR(A27+B27,"") ->  | D27: 7 | K27: =IF(I27<=0,"",IF(I27<=2,"Muy Baja",IF(I27<=24,"Baja",IF(I27<=500,"Media",IF(I27<=5000,"Alta",IF(I27>5000,"Muy Alta")))))) ->  | L27: =IF(K27="","",IF(K27="Muy Baja",0.2,IF(K27="Baja",0.4,IF(K27="Media",0.6,IF(K27="Alta",0.8,IF(K27="Muy Alta",1,)))))) ->  | N27: =IF(OR(M27=CRITERIOS!$C$182,M27=CRITERIOS!$D$182),"Leve",IF(OR(M27=CRITERIOS!$C$183,M27=CRITERIOS!$D$183),"Menor",IF(OR(M27=CRITERIOS!$C$184,M27=CRITERIOS!$D$184),"Moderado",IF(OR(M27=CRITERIOS!$C$185,M27=CRITERIOS!$D$185),"Mayor",IF(OR(M27=CRITERIOS!$C$186,M27=CRITERIOS!$D$186),"Catastrófico",""))))) ->  | O27: =IF(N27="","",IF(N27="Leve",0.2,IF(N27="Menor",0.4,IF(N27="Moderado",0.6,IF(N27="Mayor",0.8,IF(N27="Catastrófico",1,)))))) ->  | P27: =IF(OR(AND(K27="Muy Baja",N27="Leve"),AND(K27="Muy Baja",N27="Menor"),AND(K27="Baja",N27="Leve")),"BAJO",IF(OR(AND(K27="Muy baja",N27="Moderado"),AND(K27="Baja",N27="Menor"),AND(K27="Baja",N27="Moderado"),AND(K27="Media",N27="Leve"),AND(K27="Media",N27="Menor"),AND(K27="Media",N27="Moderado"),AND(K27="Alta",N27="Leve"),AND(K27="Alta",N27="Menor")),"MODERADO",IF(OR(AND(K27="Muy Baja",N27="Mayor"),AND(K27="Baja",N27="Mayor"),AND(K27="Media",N27="Mayor"),AND(K27="Alta",N27="Moderado"),AND(K27="Alta",N27="Mayor"),AND(K27="Muy Alta",N27="Leve"),AND(K27="Muy Alta",N27="Menor"),AND(K27="Muy Alta",N27="Moderado"),YF27="Muy Alta",N27="Mayor"),"ALTO",IF(OR(AND(K27="Muy Baja",N27="Catastrófico"),AND(K27="Baja",N27="Catastrófico"),AND(K27="Media",N27="Catastrófico"),AND(K27="Alta",N27="Catastrófico"),AND(K27="Muy Alta",N27="Catastrófico")),"EXTREMO","")))) ->  | W27: =IF(OR(U27="PREVENTIVO",U27="DETECTIVO"),"PROBABILIDAD",IF(U27="CORRECTIVO","IMPACTO","")) ->  | X27: =IF(AND(U27="PREVENTIVO",V27="AUTOMÁTICO"),"50%",IF(AND(U27="PREVENTIVO",V27="MANUAL"),"40%",IF(AND(U27="DETECTIVO",V27="AUTOMÁTICO"),"40%",IF(AND(U27="DETECTIVO",V27="MANUAL"),"30%",IF(AND(U27="CORRECTIVO",V27="AUTOMÁTICO"),"35%",IF(AND(U27="CORRECTIVO",V27="MANUAL"),"25%","")))))) ->  | Y27: =IFERROR(IF(W27="Probabilidad",(L27-(L27*X27)),IF(W27="Impacto",L27,"")),"") ->  | Z27: =IFERROR(IF(Y27="","",IF(Y27<=0.2,"MUY BAJA",IF(Y27<=0.4,"BAJA",IF(Y27<=0.6,"MEDIA",IF(Y27<=0.8,"ALTA",IF(Y27=1,"MUY ALTA")))))),"") ->  | AA27: =IFERROR(IF(W27="Impacto",(O27-(O27*X27)),IF(W27="Probabilidad",O27,"")),"") ->  | AB27: =IFERROR(IF(AA27="","",IF(AA27<=0.2,"LEVE",IF(AA27<=0.4,"MENOR",IF(AA27<=0.6,"MODERADO",IF(AA27<=0.8,"MAYOR",IF(AA27=1,"CATASTRÓFICO")))))),"") ->  | AC27: =IFERROR(IF(OR(AND(Z27="Muy Baja",AB27="Leve"),AND(Z27="Muy Baja",AB27="Menor"),AND(Z27="Baja",AB27="Leve")),"BAJO",IF(OR(AND(Z27="Muy baja",AB27="Moderado"),AND(Z27="Baja",AB27="Menor"),AND(Z27="Baja",AB27="Moderado"),AND(Z27="Media",AB27="Leve"),AND(Z27="Media",AB27="Menor"),AND(Z27="Media",AB27="Moderado"),AND(Z27="Alta",AB27="Leve"),AND(Z27="Alta",AB27="Menor")),"MODERADO",IF(OR(AND(Z27="Muy Baja",AB27="Mayor"),AND(Z27="Baja",AB27="Mayor"),AND(Z27="Media",AB27="Mayor"),AND(Z27="Alta",AB27="Moderado"),AND(Z27="Alta",AB27="Mayor"),AND(Z27="Muy Alta",AB27="Leve"),AND(Z27="Muy Alta",AB27="Menor"),AND(Z27="Muy Alta",AB27="Moderado"),AND(Z27="Muy Alta",AB27="Mayor")),"ALTO",IF(OR(AND(Z27="Muy Baja",AB27="Catastrófico"),AND(Z27="Baja",AB27="Catastrófico"),AND(Z27="Media",AB27="Catastrófico"),AND(Z27="Alta",AB27="Catastrófico"),AND(Z27="Muy Alta",AB27="Catastrófico")),"EXTREMO","")))),"") ->  | AL27: =IF(Y27="","",MIN(Y27:Y31)) ->  | AM27: =IFERROR(IF(AL27="","",IF(Y27<=0.2,"MUY BAJA",IF(AL27<=0.4,"BAJA",IF(AL27<=0.6,"MEDIA",IF(AL27<=0.8,"ALTA",IF(AL27=1,"MUY ALTA")))))),"") ->  | AN27: =IF(AA27="","",MIN(AA27:AA31)) ->  | AO27: =IFERROR(IF(AN27="","",IF(AN27<=0.2,"LEVE",IF(AN27<=0.4,"MENOR",IF(AN27<=0.6,"MODERADO",IF(AN27<=0.8,"MAYOR",IF(AN27=1,"CATASTRÓFICO")))))),"") ->  | AP27: =IFERROR(IF(OR(AND(AM27="Muy Baja",AO27="Leve"),AND(AM27="Muy Baja",AO27="Menor"),AND(AM27="Baja",AO27="Leve")),"BAJO",IF(OR(AND(AM27="Muy baja",AO27="Moderado"),AND(AM27="Baja",AO27="Menor"),AND(AM27="Baja",AO27="Moderado"),AND(AM27="Media",AO27="Leve"),AND(AM27="Media",AO27="Menor"),AND(AM27="Media",AO27="Moderado"),AND(AM27="Alta",AO27="Leve"),AND(AM27="Alta",AO27="Menor")),"MODERADO",IF(OR(AND(AM27="Muy Baja",AO27="Mayor"),AND(AM27="Baja",AO27="Mayor"),AND(AM27="Media",AO27="Mayor"),AND(AM27="Alta",AO27="Moderado"),AND(AM27="Alta",AO27="Mayor"),AND(AM27="Muy Alta",AO27="Leve"),AND(AM27="Muy Alta",AO27="Menor"),AND(AM27="Muy Alta",AO27="Moderado"),AND(AM27="Muy Alta",AO27="Mayor")),"ALTO",IF(OR(AND(AM27="Muy Baja",AO27="Catastrófico"),AND(AM27="Baja",AO27="Catastrófico"),AND(AM27="Media",AO27="Catastrófico"),AND(AM27="Alta",AO27="Catastrófico"),AND(AM27="Muy Alta",AO27="Catastrófico")),"EXTREMO","")))),"") -> 
W28: =IF(OR(U28="PREVENTIVO",U28="DETECTIVO"),"PROBABILIDAD",IF(U28="CORRECTIVO","IMPACTO","")) ->  | X28: =IF(AND(U28="PREVENTIVO",V28="AUTOMÁTICO"),"50%",IF(AND(U28="PREVENTIVO",V28="MANUAL"),"40%",IF(AND(U28="DETECTIVO",V28="AUTOMÁTICO"),"40%",IF(AND(U28="DETECTIVO",V28="MANUAL"),"30%",IF(AND(U28="CORRECTIVO",V28="AUTOMÁTICO"),"35%",IF(AND(U28="CORRECTIVO",V28="MANUAL"),"25%","")))))) ->  | Y28: =IFERROR(IF(AND(W27="Probabilidad",W28="Probabilidad"),(Y27-(Y27*X28)),IF(W28="Probabilidad",(L27-(L27*X28)),IF(W28="Impacto",Y27,""))),"") ->  | AA28: =IFERROR(IF(AND(W27="Impacto",W28="Impacto"),(AA27-(AA27*X28)),IF(W28="Impacto",(O27-(+O27*X28)),IF(W28="Probabilidad",AA27,""))),"") ->  | AB28: =IFERROR(IF(AA28="","",IF(AA28<=0.2,"LEVE",IF(AA28<=0.4,"MENOR",IF(AA28<=0.6,"MODERADO",IF(AA28<=0.8,"MAYOR",IF(AA28=1,"CATASTRÓFICO")))))),"") ->  | AC28: =IFERROR(IF(OR(AND(Z28="Muy Baja",AB28="Leve"),AND(Z28="Muy Baja",AB28="Menor"),AND(Z28="Baja",AB28="Leve")),"BAJO",IF(OR(AND(Z28="Muy baja",AB28="Moderado"),AND(Z28="Baja",AB28="Menor"),AND(Z28="Baja",AB28="Moderado"),AND(Z28="Media",AB28="Leve"),AND(Z28="Media",AB28="Menor"),AND(Z28="Media",AB28="Moderado"),AND(Z28="Alta",AB28="Leve"),AND(Z28="Alta",AB28="Menor")),"MODERADO",IF(OR(AND(Z28="Muy Baja",AB28="Mayor"),AND(Z28="Baja",AB28="Mayor"),AND(Z28="Media",AB28="Mayor"),AND(Z28="Alta",AB28="Moderado"),AND(Z28="Alta",AB28="Mayor"),AND(Z28="Muy Alta",AB28="Leve"),AND(Z28="Muy Alta",AB28="Menor"),AND(Z28="Muy Alta",AB28="Moderado"),AND(Z28="Muy Alta",AB28="Mayor")),"ALTO",IF(OR(AND(Z28="Muy Baja",AB28="Catastrófico"),AND(Z28="Baja",AB28="Catastrófico"),AND(Z28="Media",AB28="Catastrófico"),AND(Z28="Alta",AB28="Catastrófico"),AND(Z28="Muy Alta",AB28="Catastrófico")),"EXTREMO","")))),"") -> 
Y29: =IFERROR(IF(AND(W28="Probabilidad",W29="Probabilidad"),(Y28-(Y28*X29)),IF(AND(W28="Impacto",W29="Probabilidad"),(Y27-(Y27*X29)),IF(W29="Impacto",Y28,""))),"") ->  | AA29: =IFERROR(IF(AND(W28="Impacto",W29="Impacto"),(AA28-(AA28*X29)),IF(AND(W28="Probabilidad",W29="Impacto"),(AA27-(AA27*X29)),IF(W29="Probabilidad",AA28,""))),"") -> 
Y30: =IFERROR(IF(AND(W29="Probabilidad",W30="Probabilidad"),(Y29-(Y29*X30)),IF(AND(W29="Impacto",W30="Probabilidad"),(Y28-(Y28*X30)),IF(W30="Impacto",Y29,""))),"") ->  | AA30: =IFERROR(IF(AND(W29="Impacto",W30="Impacto"),(AA29-(AA29*X30)),IF(AND(W29="Probabilidad",W30="Impacto"),(AA28-(AA28*X30)),IF(W30="Probabilidad",AA29,""))),"") -> 
A32: =IF(OR(AL32=0,AN32=0),"",IF(AND(AL32<=0.2,AN32<=0.2),1,IF(AND(AL32<=0.2,AN32<=0.4),2,IF(AND(AL32<=0.2,AN32<=0.6),3,IF(AND(AL32<=0.2,AN32<=0.8),4,IF(AND(AL32<=0.2,AN32<=1),5,IF(AND(AL32<=0.4,AN32<=0.2),6,IF(AND(AL32<=0.4,AN32<=0.4),7,IF(AND(AL32<=0.4,AN32<=0.6),8,IF(AND(AL32<=0.4,AN32<=0.8),9,IF(AND(AL32<=0.4,AN32<=1),10,IF(AND(AL32<=0.6,AN32<=0.2),11,IF(AND(AL32<=0.6,AN32<=0.4),12,IF(AND(AL32<=0.6,AN32<=0.6),13,IF(AND(AL32<=0.6,AN32<=0.8),14,IF(AND(AL32<=0.6,AN32<=1),15,IF(AND(AL32<=0.8,AN32<=0.2),16,IF(AND(AL32<=0.8,AN32<=0.4),17,IF(AND(AL32<=0.8,AN32<=0.6),18,IF(AND(AL32<=0.8,AN32<=0.8),19,IF(AND(AL32<=0.8,AN32<=1),20,IF(AND(AL32<=1,AN32<=0.2),21,IF(AND(AL32<=1,AN32<=0.4),22,IF(AND(AL32<=1,AN32<=0.6),23,IF(AND(AL32<=1,AN32<=0.8),24,IF(AND(AL32<=1,AN32<=1),25,"")))))))))))))))))))))))))) ->  | B32: =IF(A32="","",1/100) ->  | C32: =IFERROR(A32+B32,"") ->  | D32: 8 | K32: =IF(I32<=0,"",IF(I32<=2,"Muy Baja",IF(I32<=24,"Baja",IF(I32<=500,"Media",IF(I32<=5000,"Alta",IF(I32>5000,"Muy Alta")))))) ->  | L32: =IF(K32="","",IF(K32="Muy Baja",0.2,IF(K32="Baja",0.4,IF(K32="Media",0.6,IF(K32="Alta",0.8,IF(K32="Muy Alta",1,)))))) ->  | N32: =IF(OR(M32=CRITERIOS!$C$182,M32=CRITERIOS!$D$182),"Leve",IF(OR(M32=CRITERIOS!$C$183,M32=CRITERIOS!$D$183),"Menor",IF(OR(M32=CRITERIOS!$C$184,M32=CRITERIOS!$D$184),"Moderado",IF(OR(M32=CRITERIOS!$C$185,M32=CRITERIOS!$D$185),"Mayor",IF(OR(M32=CRITERIOS!$C$186,M32=CRITERIOS!$D$186),"Catastrófico",""))))) ->  | O32: =IF(N32="","",IF(N32="Leve",0.2,IF(N32="Menor",0.4,IF(N32="Moderado",0.6,IF(N32="Mayor",0.8,IF(N32="Catastrófico",1,)))))) ->  | P32: =IF(OR(AND(K32="Muy Baja",N32="Leve"),AND(K32="Muy Baja",N32="Menor"),AND(K32="Baja",N32="Leve")),"BAJO",IF(OR(AND(K32="Muy baja",N32="Moderado"),AND(K32="Baja",N32="Menor"),AND(K32="Baja",N32="Moderado"),AND(K32="Media",N32="Leve"),AND(K32="Media",N32="Menor"),AND(K32="Media",N32="Moderado"),AND(K32="Alta",N32="Leve"),AND(K32="Alta",N32="Menor")),"MODERADO",IF(OR(AND(K32="Muy Baja",N32="Mayor"),AND(K32="Baja",N32="Mayor"),AND(K32="Media",N32="Mayor"),AND(K32="Alta",N32="Moderado"),AND(K32="Alta",N32="Mayor"),AND(K32="Muy Alta",N32="Leve"),AND(K32="Muy Alta",N32="Menor"),AND(K32="Muy Alta",N32="Moderado"),YF32="Muy Alta",N32="Mayor"),"ALTO",IF(OR(AND(K32="Muy Baja",N32="Catastrófico"),AND(K32="Baja",N32="Catastrófico"),AND(K32="Media",N32="Catastrófico"),AND(K32="Alta",N32="Catastrófico"),AND(K32="Muy Alta",N32="Catastrófico")),"EXTREMO","")))) ->  | W32: =IF(OR(U32="PREVENTIVO",U32="DETECTIVO"),"PROBABILIDAD",IF(U32="CORRECTIVO","IMPACTO","")) ->  | X32: =IF(AND(U32="PREVENTIVO",V32="AUTOMÁTICO"),"50%",IF(AND(U32="PREVENTIVO",V32="MANUAL"),"40%",IF(AND(U32="DETECTIVO",V32="AUTOMÁTICO"),"40%",IF(AND(U32="DETECTIVO",V32="MANUAL"),"30%",IF(AND(U32="CORRECTIVO",V32="AUTOMÁTICO"),"35%",IF(AND(U32="CORRECTIVO",V32="MANUAL"),"25%","")))))) ->  | Y32: =IFERROR(IF(W32="Probabilidad",(L32-(L32*X32)),IF(W32="Impacto",L32,"")),"") ->  | Z32: =IFERROR(IF(Y32="","",IF(Y32<=0.2,"MUY BAJA",IF(Y32<=0.4,"BAJA",IF(Y32<=0.6,"MEDIA",IF(Y32<=0.8,"ALTA",IF(Y32=1,"MUY ALTA")))))),"") ->  | AA32: =IFERROR(IF(W32="Impacto",(O32-(O32*X32)),IF(W32="Probabilidad",O32,"")),"") ->  | AB32: =IFERROR(IF(AA32="","",IF(AA32<=0.2,"LEVE",IF(AA32<=0.4,"MENOR",IF(AA32<=0.6,"MODERADO",IF(AA32<=0.8,"MAYOR",IF(AA32=1,"CATASTRÓFICO")))))),"") ->  | AC32: =IFERROR(IF(OR(AND(Z32="Muy Baja",AB32="Leve"),AND(Z32="Muy Baja",AB32="Menor"),AND(Z32="Baja",AB32="Leve")),"BAJO",IF(OR(AND(Z32="Muy baja",AB32="Moderado"),AND(Z32="Baja",AB32="Menor"),AND(Z32="Baja",AB32="Moderado"),AND(Z32="Media",AB32="Leve"),AND(Z32="Media",AB32="Menor"),AND(Z32="Media",AB32="Moderado"),AND(Z32="Alta",AB32="Leve"),AND(Z32="Alta",AB32="Menor")),"MODERADO",IF(OR(AND(Z32="Muy Baja",AB32="Mayor"),AND(Z32="Baja",AB32="Mayor"),AND(Z32="Media",AB32="Mayor"),AND(Z32="Alta",AB32="Moderado"),AND(Z32="Alta",AB32="Mayor"),AND(Z32="Muy Alta",AB32="Leve"),AND(Z32="Muy Alta",AB32="Menor"),AND(Z32="Muy Alta",AB32="Moderado"),AND(Z32="Muy Alta",AB32="Mayor")),"ALTO",IF(OR(AND(Z32="Muy Baja",AB32="Catastrófico"),AND(Z32="Baja",AB32="Catastrófico"),AND(Z32="Media",AB32="Catastrófico"),AND(Z32="Alta",AB32="Catastrófico"),AND(Z32="Muy Alta",AB32="Catastrófico")),"EXTREMO","")))),"") ->  | AL32: =IF(Y32="","",MIN(Y32:Y36)) ->  | AM32: =IFERROR(IF(AL32="","",IF(Y32<=0.2,"MUY BAJA",IF(AL32<=0.4,"BAJA",IF(AL32<=0.6,"MEDIA",IF(AL32<=0.8,"ALTA",IF(AL32=1,"MUY ALTA")))))),"") ->  | AN32: =IF(AA32="","",MIN(AA32:AA36)) ->  | AO32: =IFERROR(IF(AN32="","",IF(AN32<=0.2,"LEVE",IF(AN32<=0.4,"MENOR",IF(AN32<=0.6,"MODERADO",IF(AN32<=0.8,"MAYOR",IF(AN32=1,"CATASTRÓFICO")))))),"") ->  | AP32: =IFERROR(IF(OR(AND(AM32="Muy Baja",AO32="Leve"),AND(AM32="Muy Baja",AO32="Menor"),AND(AM32="Baja",AO32="Leve")),"BAJO",IF(OR(AND(AM32="Muy baja",AO32="Moderado"),AND(AM32="Baja",AO32="Menor"),AND(AM32="Baja",AO32="Moderado"),AND(AM32="Media",AO32="Leve"),AND(AM32="Media",AO32="Menor"),AND(AM32="Media",AO32="Moderado"),AND(AM32="Alta",AO32="Leve"),AND(AM32="Alta",AO32="Menor")),"MODERADO",IF(OR(AND(AM32="Muy Baja",AO32="Mayor"),AND(AM32="Baja",AO32="Mayor"),AND(AM32="Media",AO32="Mayor"),AND(AM32="Alta",AO32="Moderado"),AND(AM32="Alta",AO32="Mayor"),AND(AM32="Muy Alta",AO32="Leve"),AND(AM32="Muy Alta",AO32="Menor"),AND(AM32="Muy Alta",AO32="Moderado"),AND(AM32="Muy Alta",AO32="Mayor")),"ALTO",IF(OR(AND(AM32="Muy Baja",AO32="Catastrófico"),AND(AM32="Baja",AO32="Catastrófico"),AND(AM32="Media",AO32="Catastrófico"),AND(AM32="Alta",AO32="Catastrófico"),AND(AM32="Muy Alta",AO32="Catastrófico")),"EXTREMO","")))),"") -> 
W33: =IF(OR(U33="PREVENTIVO",U33="DETECTIVO"),"PROBABILIDAD",IF(U33="CORRECTIVO","IMPACTO","")) ->  | X33: =IF(AND(U33="PREVENTIVO",V33="AUTOMÁTICO"),"50%",IF(AND(U33="PREVENTIVO",V33="MANUAL"),"40%",IF(AND(U33="DETECTIVO",V33="AUTOMÁTICO"),"40%",IF(AND(U33="DETECTIVO",V33="MANUAL"),"30%",IF(AND(U33="CORRECTIVO",V33="AUTOMÁTICO"),"35%",IF(AND(U33="CORRECTIVO",V33="MANUAL"),"25%","")))))) ->  | Y33: =IFERROR(IF(AND(W32="Probabilidad",W33="Probabilidad"),(Y32-(Y32*X33)),IF(W33="Probabilidad",(L32-(L32*X33)),IF(W33="Impacto",Y32,""))),"") ->  | AA33: =IFERROR(IF(AND(W32="Impacto",W33="Impacto"),(AA32-(AA32*X33)),IF(W33="Impacto",(O32-(+O32*X33)),IF(W33="Probabilidad",AA32,""))),"") ->  | AB33: =IFERROR(IF(AA33="","",IF(AA33<=0.2,"LEVE",IF(AA33<=0.4,"MENOR",IF(AA33<=0.6,"MODERADO",IF(AA33<=0.8,"MAYOR",IF(AA33=1,"CATASTRÓFICO")))))),"") ->  | AC33: =IFERROR(IF(OR(AND(Z33="Muy Baja",AB33="Leve"),AND(Z33="Muy Baja",AB33="Menor"),AND(Z33="Baja",AB33="Leve")),"BAJO",IF(OR(AND(Z33="Muy baja",AB33="Moderado"),AND(Z33="Baja",AB33="Menor"),AND(Z33="Baja",AB33="Moderado"),AND(Z33="Media",AB33="Leve"),AND(Z33="Media",AB33="Menor"),AND(Z33="Media",AB33="Moderado"),AND(Z33="Alta",AB33="Leve"),AND(Z33="Alta",AB33="Menor")),"MODERADO",IF(OR(AND(Z33="Muy Baja",AB33="Mayor"),AND(Z33="Baja",AB33="Mayor"),AND(Z33="Media",AB33="Mayor"),AND(Z33="Alta",AB33="Moderado"),AND(Z33="Alta",AB33="Mayor"),AND(Z33="Muy Alta",AB33="Leve"),AND(Z33="Muy Alta",AB33="Menor"),AND(Z33="Muy Alta",AB33="Moderado"),AND(Z33="Muy Alta",AB33="Mayor")),"ALTO",IF(OR(AND(Z33="Muy Baja",AB33="Catastrófico"),AND(Z33="Baja",AB33="Catastrófico"),AND(Z33="Media",AB33="Catastrófico"),AND(Z33="Alta",AB33="Catastrófico"),AND(Z33="Muy Alta",AB33="Catastrófico")),"EXTREMO","")))),"") -> 
Y34: =IFERROR(IF(AND(W33="Probabilidad",W34="Probabilidad"),(Y33-(Y33*X34)),IF(AND(W33="Impacto",W34="Probabilidad"),(Y32-(Y32*X34)),IF(W34="Impacto",Y33,""))),"") ->  | AA34: =IFERROR(IF(AND(W33="Impacto",W34="Impacto"),(AA33-(AA33*X34)),IF(AND(W33="Probabilidad",W34="Impacto"),(AA32-(AA32*X34)),IF(W34="Probabilidad",AA33,""))),"") -> 
Y35: =IFERROR(IF(AND(W34="Probabilidad",W35="Probabilidad"),(Y34-(Y34*X35)),IF(AND(W34="Impacto",W35="Probabilidad"),(Y33-(Y33*X35)),IF(W35="Impacto",Y34,""))),"") ->  | AA35: =IFERROR(IF(AND(W34="Impacto",W35="Impacto"),(AA34-(AA34*X35)),IF(AND(W34="Probabilidad",W35="Impacto"),(AA33-(AA33*X35)),IF(W35="Probabilidad",AA34,""))),"") -> 
A37: =IF(OR(AL37=0,AN37=0),"",IF(AND(AL37<=0.2,AN37<=0.2),1,IF(AND(AL37<=0.2,AN37<=0.4),2,IF(AND(AL37<=0.2,AN37<=0.6),3,IF(AND(AL37<=0.2,AN37<=0.8),4,IF(AND(AL37<=0.2,AN37<=1),5,IF(AND(AL37<=0.4,AN37<=0.2),6,IF(AND(AL37<=0.4,AN37<=0.4),7,IF(AND(AL37<=0.4,AN37<=0.6),8,IF(AND(AL37<=0.4,AN37<=0.8),9,IF(AND(AL37<=0.4,AN37<=1),10,IF(AND(AL37<=0.6,AN37<=0.2),11,IF(AND(AL37<=0.6,AN37<=0.4),12,IF(AND(AL37<=0.6,AN37<=0.6),13,IF(AND(AL37<=0.6,AN37<=0.8),14,IF(AND(AL37<=0.6,AN37<=1),15,IF(AND(AL37<=0.8,AN37<=0.2),16,IF(AND(AL37<=0.8,AN37<=0.4),17,IF(AND(AL37<=0.8,AN37<=0.6),18,IF(AND(AL37<=0.8,AN37<=0.8),19,IF(AND(AL37<=0.8,AN37<=1),20,IF(AND(AL37<=1,AN37<=0.2),21,IF(AND(AL37<=1,AN37<=0.4),22,IF(AND(AL37<=1,AN37<=0.6),23,IF(AND(AL37<=1,AN37<=0.8),24,IF(AND(AL37<=1,AN37<=1),25,"")))))))))))))))))))))))))) ->  | B37: =IF(A37="","",1/100) ->  | C37: =IFERROR(A37+B37,"") ->  | D37: 9 | K37: =IF(I37<=0,"",IF(I37<=2,"Muy Baja",IF(I37<=24,"Baja",IF(I37<=500,"Media",IF(I37<=5000,"Alta",IF(I37>5000,"Muy Alta")))))) ->  | L37: =IF(K37="","",IF(K37="Muy Baja",0.2,IF(K37="Baja",0.4,IF(K37="Media",0.6,IF(K37="Alta",0.8,IF(K37="Muy Alta",1,)))))) ->  | N37: =IF(OR(M37=CRITERIOS!$C$182,M37=CRITERIOS!$D$182),"Leve",IF(OR(M37=CRITERIOS!$C$183,M37=CRITERIOS!$D$183),"Menor",IF(OR(M37=CRITERIOS!$C$184,M37=CRITERIOS!$D$184),"Moderado",IF(OR(M37=CRITERIOS!$C$185,M37=CRITERIOS!$D$185),"Mayor",IF(OR(M37=CRITERIOS!$C$186,M37=CRITERIOS!$D$186),"Catastrófico",""))))) ->  | O37: =IF(N37="","",IF(N37="Leve",0.2,IF(N37="Menor",0.4,IF(N37="Moderado",0.6,IF(N37="Mayor",0.8,IF(N37="Catastrófico",1,)))))) ->  | P37: =IF(OR(AND(K37="Muy Baja",N37="Leve"),AND(K37="Muy Baja",N37="Menor"),AND(K37="Baja",N37="Leve")),"BAJO",IF(OR(AND(K37="Muy baja",N37="Moderado"),AND(K37="Baja",N37="Menor"),AND(K37="Baja",N37="Moderado"),AND(K37="Media",N37="Leve"),AND(K37="Media",N37="Menor"),AND(K37="Media",N37="Moderado"),AND(K37="Alta",N37="Leve"),AND(K37="Alta",N37="Menor")),"MODERADO",IF(OR(AND(K37="Muy Baja",N37="Mayor"),AND(K37="Baja",N37="Mayor"),AND(K37="Media",N37="Mayor"),AND(K37="Alta",N37="Moderado"),AND(K37="Alta",N37="Mayor"),AND(K37="Muy Alta",N37="Leve"),AND(K37="Muy Alta",N37="Menor"),AND(K37="Muy Alta",N37="Moderado"),YF37="Muy Alta",N37="Mayor"),"ALTO",IF(OR(AND(K37="Muy Baja",N37="Catastrófico"),AND(K37="Baja",N37="Catastrófico"),AND(K37="Media",N37="Catastrófico"),AND(K37="Alta",N37="Catastrófico"),AND(K37="Muy Alta",N37="Catastrófico")),"EXTREMO","")))) ->  | W37: =IF(OR(U37="PREVENTIVO",U37="DETECTIVO"),"PROBABILIDAD",IF(U37="CORRECTIVO","IMPACTO","")) ->  | X37: =IF(AND(U37="PREVENTIVO",V37="AUTOMÁTICO"),"50%",IF(AND(U37="PREVENTIVO",V37="MANUAL"),"40%",IF(AND(U37="DETECTIVO",V37="AUTOMÁTICO"),"40%",IF(AND(U37="DETECTIVO",V37="MANUAL"),"30%",IF(AND(U37="CORRECTIVO",V37="AUTOMÁTICO"),"35%",IF(AND(U37="CORRECTIVO",V37="MANUAL"),"25%","")))))) ->  | Y37: =IFERROR(IF(W37="Probabilidad",(L37-(L37*X37)),IF(W37="Impacto",L37,"")),"") ->  | Z37: =IFERROR(IF(Y37="","",IF(Y37<=0.2,"MUY BAJA",IF(Y37<=0.4,"BAJA",IF(Y37<=0.6,"MEDIA",IF(Y37<=0.8,"ALTA",IF(Y37=1,"MUY ALTA")))))),"") ->  | AA37: =IFERROR(IF(W37="Impacto",(O37-(O37*X37)),IF(W37="Probabilidad",O37,"")),"") ->  | AB37: =IFERROR(IF(AA37="","",IF(AA37<=0.2,"LEVE",IF(AA37<=0.4,"MENOR",IF(AA37<=0.6,"MODERADO",IF(AA37<=0.8,"MAYOR",IF(AA37=1,"CATASTRÓFICO")))))),"") ->  | AC37: =IFERROR(IF(OR(AND(Z37="Muy Baja",AB37="Leve"),AND(Z37="Muy Baja",AB37="Menor"),AND(Z37="Baja",AB37="Leve")),"BAJO",IF(OR(AND(Z37="Muy baja",AB37="Moderado"),AND(Z37="Baja",AB37="Menor"),AND(Z37="Baja",AB37="Moderado"),AND(Z37="Media",AB37="Leve"),AND(Z37="Media",AB37="Menor"),AND(Z37="Media",AB37="Moderado"),AND(Z37="Alta",AB37="Leve"),AND(Z37="Alta",AB37="Menor")),"MODERADO",IF(OR(AND(Z37="Muy Baja",AB37="Mayor"),AND(Z37="Baja",AB37="Mayor"),AND(Z37="Media",AB37="Mayor"),AND(Z37="Alta",AB37="Moderado"),AND(Z37="Alta",AB37="Mayor"),AND(Z37="Muy Alta",AB37="Leve"),AND(Z37="Muy Alta",AB37="Menor"),AND(Z37="Muy Alta",AB37="Moderado"),AND(Z37="Muy Alta",AB37="Mayor")),"ALTO",IF(OR(AND(Z37="Muy Baja",AB37="Catastrófico"),AND(Z37="Baja",AB37="Catastrófico"),AND(Z37="Media",AB37="Catastrófico"),AND(Z37="Alta",AB37="Catastrófico"),AND(Z37="Muy Alta",AB37="Catastrófico")),"EXTREMO","")))),"") ->  | AL37: =IF(Y37="","",MIN(Y37:Y41)) ->  | AM37: =IFERROR(IF(AL37="","",IF(Y37<=0.2,"MUY BAJA",IF(AL37<=0.4,"BAJA",IF(AL37<=0.6,"MEDIA",IF(AL37<=0.8,"ALTA",IF(AL37=1,"MUY ALTA")))))),"") ->  | AN37: =IF(AA37="","",MIN(AA37:AA41)) ->  | AO37: =IFERROR(IF(AN37="","",IF(AN37<=0.2,"LEVE",IF(AN37<=0.4,"MENOR",IF(AN37<=0.6,"MODERADO",IF(AN37<=0.8,"MAYOR",IF(AN37=1,"CATASTRÓFICO")))))),"") ->  | AP37: =IFERROR(IF(OR(AND(AM37="Muy Baja",AO37="Leve"),AND(AM37="Muy Baja",AO37="Menor"),AND(AM37="Baja",AO37="Leve")),"BAJO",IF(OR(AND(AM37="Muy baja",AO37="Moderado"),AND(AM37="Baja",AO37="Menor"),AND(AM37="Baja",AO37="Moderado"),AND(AM37="Media",AO37="Leve"),AND(AM37="Media",AO37="Menor"),AND(AM37="Media",AO37="Moderado"),AND(AM37="Alta",AO37="Leve"),AND(AM37="Alta",AO37="Menor")),"MODERADO",IF(OR(AND(AM37="Muy Baja",AO37="Mayor"),AND(AM37="Baja",AO37="Mayor"),AND(AM37="Media",AO37="Mayor"),AND(AM37="Alta",AO37="Moderado"),AND(AM37="Alta",AO37="Mayor"),AND(AM37="Muy Alta",AO37="Leve"),AND(AM37="Muy Alta",AO37="Menor"),AND(AM37="Muy Alta",AO37="Moderado"),AND(AM37="Muy Alta",AO37="Mayor")),"ALTO",IF(OR(AND(AM37="Muy Baja",AO37="Catastrófico"),AND(AM37="Baja",AO37="Catastrófico"),AND(AM37="Media",AO37="Catastrófico"),AND(AM37="Alta",AO37="Catastrófico"),AND(AM37="Muy Alta",AO37="Catastrófico")),"EXTREMO","")))),"") -> 
W38: =IF(OR(U38="PREVENTIVO",U38="DETECTIVO"),"PROBABILIDAD",IF(U38="CORRECTIVO","IMPACTO","")) ->  | X38: =IF(AND(U38="PREVENTIVO",V38="AUTOMÁTICO"),"50%",IF(AND(U38="PREVENTIVO",V38="MANUAL"),"40%",IF(AND(U38="DETECTIVO",V38="AUTOMÁTICO"),"40%",IF(AND(U38="DETECTIVO",V38="MANUAL"),"30%",IF(AND(U38="CORRECTIVO",V38="AUTOMÁTICO"),"35%",IF(AND(U38="CORRECTIVO",V38="MANUAL"),"25%","")))))) ->  | Y38: =IFERROR(IF(AND(W37="Probabilidad",W38="Probabilidad"),(Y37-(Y37*X38)),IF(W38="Probabilidad",(L37-(L37*X38)),IF(W38="Impacto",Y37,""))),"") ->  | AA38: =IFERROR(IF(AND(W37="Impacto",W38="Impacto"),(AA37-(AA37*X38)),IF(W38="Impacto",(O37-(+O37*X38)),IF(W38="Probabilidad",AA37,""))),"") ->  | AB38: =IFERROR(IF(AA38="","",IF(AA38<=0.2,"LEVE",IF(AA38<=0.4,"MENOR",IF(AA38<=0.6,"MODERADO",IF(AA38<=0.8,"MAYOR",IF(AA38=1,"CATASTRÓFICO")))))),"") ->  | AC38: =IFERROR(IF(OR(AND(Z38="Muy Baja",AB38="Leve"),AND(Z38="Muy Baja",AB38="Menor"),AND(Z38="Baja",AB38="Leve")),"BAJO",IF(OR(AND(Z38="Muy baja",AB38="Moderado"),AND(Z38="Baja",AB38="Menor"),AND(Z38="Baja",AB38="Moderado"),AND(Z38="Media",AB38="Leve"),AND(Z38="Media",AB38="Menor"),AND(Z38="Media",AB38="Moderado"),AND(Z38="Alta",AB38="Leve"),AND(Z38="Alta",AB38="Menor")),"MODERADO",IF(OR(AND(Z38="Muy Baja",AB38="Mayor"),AND(Z38="Baja",AB38="Mayor"),AND(Z38="Media",AB38="Mayor"),AND(Z38="Alta",AB38="Moderado"),AND(Z38="Alta",AB38="Mayor"),AND(Z38="Muy Alta",AB38="Leve"),AND(Z38="Muy Alta",AB38="Menor"),AND(Z38="Muy Alta",AB38="Moderado"),AND(Z38="Muy Alta",AB38="Mayor")),"ALTO",IF(OR(AND(Z38="Muy Baja",AB38="Catastrófico"),AND(Z38="Baja",AB38="Catastrófico"),AND(Z38="Media",AB38="Catastrófico"),AND(Z38="Alta",AB38="Catastrófico"),AND(Z38="Muy Alta",AB38="Catastrófico")),"EXTREMO","")))),"") -> 
Y39: =IFERROR(IF(AND(W38="Probabilidad",W39="Probabilidad"),(Y38-(Y38*X39)),IF(AND(W38="Impacto",W39="Probabilidad"),(Y37-(Y37*X39)),IF(W39="Impacto",Y38,""))),"") ->  | AA39: =IFERROR(IF(AND(W38="Impacto",W39="Impacto"),(AA38-(AA38*X39)),IF(AND(W38="Probabilidad",W39="Impacto"),(AA37-(AA37*X39)),IF(W39="Probabilidad",AA38,""))),"") -> 
Y40: =IFERROR(IF(AND(W39="Probabilidad",W40="Probabilidad"),(Y39-(Y39*X40)),IF(AND(W39="Impacto",W40="Probabilidad"),(Y38-(Y38*X40)),IF(W40="Impacto",Y39,""))),"") ->  | AA40: =IFERROR(IF(AND(W39="Impacto",W40="Impacto"),(AA39-(AA39*X40)),IF(AND(W39="Probabilidad",W40="Impacto"),(AA38-(AA38*X40)),IF(W40="Probabilidad",AA39,""))),"") -> 
A42: =IF(OR(AL42=0,AN42=0),"",IF(AND(AL42<=0.2,AN42<=0.2),1,IF(AND(AL42<=0.2,AN42<=0.4),2,IF(AND(AL42<=0.2,AN42<=0.6),3,IF(AND(AL42<=0.2,AN42<=0.8),4,IF(AND(AL42<=0.2,AN42<=1),5,IF(AND(AL42<=0.4,AN42<=0.2),6,IF(AND(AL42<=0.4,AN42<=0.4),7,IF(AND(AL42<=0.4,AN42<=0.6),8,IF(AND(AL42<=0.4,AN42<=0.8),9,IF(AND(AL42<=0.4,AN42<=1),10,IF(AND(AL42<=0.6,AN42<=0.2),11,IF(AND(AL42<=0.6,AN42<=0.4),12,IF(AND(AL42<=0.6,AN42<=0.6),13,IF(AND(AL42<=0.6,AN42<=0.8),14,IF(AND(AL42<=0.6,AN42<=1),15,IF(AND(AL42<=0.8,AN42<=0.2),16,IF(AND(AL42<=0.8,AN42<=0.4),17,IF(AND(AL42<=0.8,AN42<=0.6),18,IF(AND(AL42<=0.8,AN42<=0.8),19,IF(AND(AL42<=0.8,AN42<=1),20,IF(AND(AL42<=1,AN42<=0.2),21,IF(AND(AL42<=1,AN42<=0.4),22,IF(AND(AL42<=1,AN42<=0.6),23,IF(AND(AL42<=1,AN42<=0.8),24,IF(AND(AL42<=1,AN42<=1),25,"")))))))))))))))))))))))))) ->  | B42: =IF(A42="","",1/100) ->  | C42: =IFERROR(A42+B42,"") ->  | D42: 10 | K42: =IF(I42<=0,"",IF(I42<=2,"Muy Baja",IF(I42<=24,"Baja",IF(I42<=500,"Media",IF(I42<=5000,"Alta",IF(I42>5000,"Muy Alta")))))) ->  | L42: =IF(K42="","",IF(K42="Muy Baja",0.2,IF(K42="Baja",0.4,IF(K42="Media",0.6,IF(K42="Alta",0.8,IF(K42="Muy Alta",1,)))))) ->  | N42: =IF(OR(M42=CRITERIOS!$C$182,M42=CRITERIOS!$D$182),"Leve",IF(OR(M42=CRITERIOS!$C$183,M42=CRITERIOS!$D$183),"Menor",IF(OR(M42=CRITERIOS!$C$184,M42=CRITERIOS!$D$184),"Moderado",IF(OR(M42=CRITERIOS!$C$185,M42=CRITERIOS!$D$185),"Mayor",IF(OR(M42=CRITERIOS!$C$186,M42=CRITERIOS!$D$186),"Catastrófico",""))))) ->  | O42: =IF(N42="","",IF(N42="Leve",0.2,IF(N42="Menor",0.4,IF(N42="Moderado",0.6,IF(N42="Mayor",0.8,IF(N42="Catastrófico",1,)))))) ->  | P42: =IF(OR(AND(K42="Muy Baja",N42="Leve"),AND(K42="Muy Baja",N42="Menor"),AND(K42="Baja",N42="Leve")),"BAJO",IF(OR(AND(K42="Muy baja",N42="Moderado"),AND(K42="Baja",N42="Menor"),AND(K42="Baja",N42="Moderado"),AND(K42="Media",N42="Leve"),AND(K42="Media",N42="Menor"),AND(K42="Media",N42="Moderado"),AND(K42="Alta",N42="Leve"),AND(K42="Alta",N42="Menor")),"MODERADO",IF(OR(AND(K42="Muy Baja",N42="Mayor"),AND(K42="Baja",N42="Mayor"),AND(K42="Media",N42="Mayor"),AND(K42="Alta",N42="Moderado"),AND(K42="Alta",N42="Mayor"),AND(K42="Muy Alta",N42="Leve"),AND(K42="Muy Alta",N42="Menor"),AND(K42="Muy Alta",N42="Moderado"),YF42="Muy Alta",N42="Mayor"),"ALTO",IF(OR(AND(K42="Muy Baja",N42="Catastrófico"),AND(K42="Baja",N42="Catastrófico"),AND(K42="Media",N42="Catastrófico"),AND(K42="Alta",N42="Catastrófico"),AND(K42="Muy Alta",N42="Catastrófico")),"EXTREMO","")))) ->  | W42: =IF(OR(U42="PREVENTIVO",U42="DETECTIVO"),"PROBABILIDAD",IF(U42="CORRECTIVO","IMPACTO","")) ->  | X42: =IF(AND(U42="PREVENTIVO",V42="AUTOMÁTICO"),"50%",IF(AND(U42="PREVENTIVO",V42="MANUAL"),"40%",IF(AND(U42="DETECTIVO",V42="AUTOMÁTICO"),"40%",IF(AND(U42="DETECTIVO",V42="MANUAL"),"30%",IF(AND(U42="CORRECTIVO",V42="AUTOMÁTICO"),"35%",IF(AND(U42="CORRECTIVO",V42="MANUAL"),"25%","")))))) ->  | Y42: =IFERROR(IF(W42="Probabilidad",(L42-(L42*X42)),IF(W42="Impacto",L42,"")),"") ->  | Z42: =IFERROR(IF(Y42="","",IF(Y42<=0.2,"MUY BAJA",IF(Y42<=0.4,"BAJA",IF(Y42<=0.6,"MEDIA",IF(Y42<=0.8,"ALTA",IF(Y42=1,"MUY ALTA")))))),"") ->  | AA42: =IFERROR(IF(W42="Impacto",(O42-(O42*X42)),IF(W42="Probabilidad",O42,"")),"") ->  | AB42: =IFERROR(IF(AA42="","",IF(AA42<=0.2,"LEVE",IF(AA42<=0.4,"MENOR",IF(AA42<=0.6,"MODERADO",IF(AA42<=0.8,"MAYOR",IF(AA42=1,"CATASTRÓFICO")))))),"") ->  | AC42: =IFERROR(IF(OR(AND(Z42="Muy Baja",AB42="Leve"),AND(Z42="Muy Baja",AB42="Menor"),AND(Z42="Baja",AB42="Leve")),"BAJO",IF(OR(AND(Z42="Muy baja",AB42="Moderado"),AND(Z42="Baja",AB42="Menor"),AND(Z42="Baja",AB42="Moderado"),AND(Z42="Media",AB42="Leve"),AND(Z42="Media",AB42="Menor"),AND(Z42="Media",AB42="Moderado"),AND(Z42="Alta",AB42="Leve"),AND(Z42="Alta",AB42="Menor")),"MODERADO",IF(OR(AND(Z42="Muy Baja",AB42="Mayor"),AND(Z42="Baja",AB42="Mayor"),AND(Z42="Media",AB42="Mayor"),AND(Z42="Alta",AB42="Moderado"),AND(Z42="Alta",AB42="Mayor"),AND(Z42="Muy Alta",AB42="Leve"),AND(Z42="Muy Alta",AB42="Menor"),AND(Z42="Muy Alta",AB42="Moderado"),AND(Z42="Muy Alta",AB42="Mayor")),"ALTO",IF(OR(AND(Z42="Muy Baja",AB42="Catastrófico"),AND(Z42="Baja",AB42="Catastrófico"),AND(Z42="Media",AB42="Catastrófico"),AND(Z42="Alta",AB42="Catastrófico"),AND(Z42="Muy Alta",AB42="Catastrófico")),"EXTREMO","")))),"") ->  | AL42: =IF(Y42="","",MIN(Y42:Y46)) ->  | AM42: =IFERROR(IF(AL42="","",IF(Y42<=0.2,"MUY BAJA",IF(AL42<=0.4,"BAJA",IF(AL42<=0.6,"MEDIA",IF(AL42<=0.8,"ALTA",IF(AL42=1,"MUY ALTA")))))),"") ->  | AN42: =IF(AA42="","",MIN(AA42:AA46)) ->  | AO42: =IFERROR(IF(AN42="","",IF(AN42<=0.2,"LEVE",IF(AN42<=0.4,"MENOR",IF(AN42<=0.6,"MODERADO",IF(AN42<=0.8,"MAYOR",IF(AN42=1,"CATASTRÓFICO")))))),"") ->  | AP42: =IFERROR(IF(OR(AND(AM42="Muy Baja",AO42="Leve"),AND(AM42="Muy Baja",AO42="Menor"),AND(AM42="Baja",AO42="Leve")),"BAJO",IF(OR(AND(AM42="Muy baja",AO42="Moderado"),AND(AM42="Baja",AO42="Menor"),AND(AM42="Baja",AO42="Moderado"),AND(AM42="Media",AO42="Leve"),AND(AM42="Media",AO42="Menor"),AND(AM42="Media",AO42="Moderado"),AND(AM42="Alta",AO42="Leve"),AND(AM42="Alta",AO42="Menor")),"MODERADO",IF(OR(AND(AM42="Muy Baja",AO42="Mayor"),AND(AM42="Baja",AO42="Mayor"),AND(AM42="Media",AO42="Mayor"),AND(AM42="Alta",AO42="Moderado"),AND(AM42="Alta",AO42="Mayor"),AND(AM42="Muy Alta",AO42="Leve"),AND(AM42="Muy Alta",AO42="Menor"),AND(AM42="Muy Alta",AO42="Moderado"),AND(AM42="Muy Alta",AO42="Mayor")),"ALTO",IF(OR(AND(AM42="Muy Baja",AO42="Catastrófico"),AND(AM42="Baja",AO42="Catastrófico"),AND(AM42="Media",AO42="Catastrófico"),AND(AM42="Alta",AO42="Catastrófico"),AND(AM42="Muy Alta",AO42="Catastrófico")),"EXTREMO","")))),"") -> 
W43: =IF(OR(U43="PREVENTIVO",U43="DETECTIVO"),"PROBABILIDAD",IF(U43="CORRECTIVO","IMPACTO","")) ->  | X43: =IF(AND(U43="PREVENTIVO",V43="AUTOMÁTICO"),"50%",IF(AND(U43="PREVENTIVO",V43="MANUAL"),"40%",IF(AND(U43="DETECTIVO",V43="AUTOMÁTICO"),"40%",IF(AND(U43="DETECTIVO",V43="MANUAL"),"30%",IF(AND(U43="CORRECTIVO",V43="AUTOMÁTICO"),"35%",IF(AND(U43="CORRECTIVO",V43="MANUAL"),"25%","")))))) ->  | Y43: =IFERROR(IF(AND(W42="Probabilidad",W43="Probabilidad"),(Y42-(Y42*X43)),IF(W43="Probabilidad",(L42-(L42*X43)),IF(W43="Impacto",Y42,""))),"") ->  | AA43: =IFERROR(IF(AND(W42="Impacto",W43="Impacto"),(AA42-(AA42*X43)),IF(W43="Impacto",(O42-(+O42*X43)),IF(W43="Probabilidad",AA42,""))),"") ->  | AB43: =IFERROR(IF(AA43="","",IF(AA43<=0.2,"LEVE",IF(AA43<=0.4,"MENOR",IF(AA43<=0.6,"MODERADO",IF(AA43<=0.8,"MAYOR",IF(AA43=1,"CATASTRÓFICO")))))),"") ->  | AC43: =IFERROR(IF(OR(AND(Z43="Muy Baja",AB43="Leve"),AND(Z43="Muy Baja",AB43="Menor"),AND(Z43="Baja",AB43="Leve")),"BAJO",IF(OR(AND(Z43="Muy baja",AB43="Moderado"),AND(Z43="Baja",AB43="Menor"),AND(Z43="Baja",AB43="Moderado"),AND(Z43="Media",AB43="Leve"),AND(Z43="Media",AB43="Menor"),AND(Z43="Media",AB43="Moderado"),AND(Z43="Alta",AB43="Leve"),AND(Z43="Alta",AB43="Menor")),"MODERADO",IF(OR(AND(Z43="Muy Baja",AB43="Mayor"),AND(Z43="Baja",AB43="Mayor"),AND(Z43="Media",AB43="Mayor"),AND(Z43="Alta",AB43="Moderado"),AND(Z43="Alta",AB43="Mayor"),AND(Z43="Muy Alta",AB43="Leve"),AND(Z43="Muy Alta",AB43="Menor"),AND(Z43="Muy Alta",AB43="Moderado"),AND(Z43="Muy Alta",AB43="Mayor")),"ALTO",IF(OR(AND(Z43="Muy Baja",AB43="Catastrófico"),AND(Z43="Baja",AB43="Catastrófico"),AND(Z43="Media",AB43="Catastrófico"),AND(Z43="Alta",AB43="Catastrófico"),AND(Z43="Muy Alta",AB43="Catastrófico")),"EXTREMO","")))),"") -> 
Y44: =IFERROR(IF(AND(W43="Probabilidad",W44="Probabilidad"),(Y43-(Y43*X44)),IF(AND(W43="Impacto",W44="Probabilidad"),(Y42-(Y42*X44)),IF(W44="Impacto",Y43,""))),"") ->  | AA44: =IFERROR(IF(AND(W43="Impacto",W44="Impacto"),(AA43-(AA43*X44)),IF(AND(W43="Probabilidad",W44="Impacto"),(AA42-(AA42*X44)),IF(W44="Probabilidad",AA43,""))),"") -> 
Y45: =IFERROR(IF(AND(W44="Probabilidad",W45="Probabilidad"),(Y44-(Y44*X45)),IF(AND(W44="Impacto",W45="Probabilidad"),(Y43-(Y43*X45)),IF(W45="Impacto",Y44,""))),"") ->  | AA45: =IFERROR(IF(AND(W44="Impacto",W45="Impacto"),(AA44-(AA44*X45)),IF(AND(W44="Probabilidad",W45="Impacto"),(AA43-(AA43*X45)),IF(W45="Probabilidad",AA44,""))),"") -> 
A47: =IF(OR(AL47=0,AN47=0),"",IF(AND(AL47<=0.2,AN47<=0.2),1,IF(AND(AL47<=0.2,AN47<=0.4),2,IF(AND(AL47<=0.2,AN47<=0.6),3,IF(AND(AL47<=0.2,AN47<=0.8),4,IF(AND(AL47<=0.2,AN47<=1),5,IF(AND(AL47<=0.4,AN47<=0.2),6,IF(AND(AL47<=0.4,AN47<=0.4),7,IF(AND(AL47<=0.4,AN47<=0.6),8,IF(AND(AL47<=0.4,AN47<=0.8),9,IF(AND(AL47<=0.4,AN47<=1),10,IF(AND(AL47<=0.6,AN47<=0.2),11,IF(AND(AL47<=0.6,AN47<=0.4),12,IF(AND(AL47<=0.6,AN47<=0.6),13,IF(AND(AL47<=0.6,AN47<=0.8),14,IF(AND(AL47<=0.6,AN47<=1),15,IF(AND(AL47<=0.8,AN47<=0.2),16,IF(AND(AL47<=0.8,AN47<=0.4),17,IF(AND(AL47<=0.8,AN47<=0.6),18,IF(AND(AL47<=0.8,AN47<=0.8),19,IF(AND(AL47<=0.8,AN47<=1),20,IF(AND(AL47<=1,AN47<=0.2),21,IF(AND(AL47<=1,AN47<=0.4),22,IF(AND(AL47<=1,AN47<=0.6),23,IF(AND(AL47<=1,AN47<=0.8),24,IF(AND(AL47<=1,AN47<=1),25,"")))))))))))))))))))))))))) ->  | B47: =IF(A47="","",1/100) ->  | C47: =IFERROR(A47+B47,"") ->  | D47: 11 | K47: =IF(I47<=0,"",IF(I47<=2,"Muy Baja",IF(I47<=24,"Baja",IF(I47<=500,"Media",IF(I47<=5000,"Alta",IF(I47>5000,"Muy Alta")))))) ->  | L47: =IF(K47="","",IF(K47="Muy Baja",0.2,IF(K47="Baja",0.4,IF(K47="Media",0.6,IF(K47="Alta",0.8,IF(K47="Muy Alta",1,)))))) ->  | N47: =IF(OR(M47=CRITERIOS!$C$182,M47=CRITERIOS!$D$182),"Leve",IF(OR(M47=CRITERIOS!$C$183,M47=CRITERIOS!$D$183),"Menor",IF(OR(M47=CRITERIOS!$C$184,M47=CRITERIOS!$D$184),"Moderado",IF(OR(M47=CRITERIOS!$C$185,M47=CRITERIOS!$D$185),"Mayor",IF(OR(M47=CRITERIOS!$C$186,M47=CRITERIOS!$D$186),"Catastrófico",""))))) ->  | O47: =IF(N47="","",IF(N47="Leve",0.2,IF(N47="Menor",0.4,IF(N47="Moderado",0.6,IF(N47="Mayor",0.8,IF(N47="Catastrófico",1,)))))) ->  | P47: =IF(OR(AND(K47="Muy Baja",N47="Leve"),AND(K47="Muy Baja",N47="Menor"),AND(K47="Baja",N47="Leve")),"BAJO",IF(OR(AND(K47="Muy baja",N47="Moderado"),AND(K47="Baja",N47="Menor"),AND(K47="Baja",N47="Moderado"),AND(K47="Media",N47="Leve"),AND(K47="Media",N47="Menor"),AND(K47="Media",N47="Moderado"),AND(K47="Alta",N47="Leve"),AND(K47="Alta",N47="Menor")),"MODERADO",IF(OR(AND(K47="Muy Baja",N47="Mayor"),AND(K47="Baja",N47="Mayor"),AND(K47="Media",N47="Mayor"),AND(K47="Alta",N47="Moderado"),AND(K47="Alta",N47="Mayor"),AND(K47="Muy Alta",N47="Leve"),AND(K47="Muy Alta",N47="Menor"),AND(K47="Muy Alta",N47="Moderado"),YF47="Muy Alta",N47="Mayor"),"ALTO",IF(OR(AND(K47="Muy Baja",N47="Catastrófico"),AND(K47="Baja",N47="Catastrófico"),AND(K47="Media",N47="Catastrófico"),AND(K47="Alta",N47="Catastrófico"),AND(K47="Muy Alta",N47="Catastrófico")),"EXTREMO","")))) ->  | W47: =IF(OR(U47="PREVENTIVO",U47="DETECTIVO"),"PROBABILIDAD",IF(U47="CORRECTIVO","IMPACTO","")) ->  | X47: =IF(AND(U47="PREVENTIVO",V47="AUTOMÁTICO"),"50%",IF(AND(U47="PREVENTIVO",V47="MANUAL"),"40%",IF(AND(U47="DETECTIVO",V47="AUTOMÁTICO"),"40%",IF(AND(U47="DETECTIVO",V47="MANUAL"),"30%",IF(AND(U47="CORRECTIVO",V47="AUTOMÁTICO"),"35%",IF(AND(U47="CORRECTIVO",V47="MANUAL"),"25%","")))))) ->  | Y47: =IFERROR(IF(W47="Probabilidad",(L47-(L47*X47)),IF(W47="Impacto",L47,"")),"") ->  | Z47: =IFERROR(IF(Y47="","",IF(Y47<=0.2,"MUY BAJA",IF(Y47<=0.4,"BAJA",IF(Y47<=0.6,"MEDIA",IF(Y47<=0.8,"ALTA",IF(Y47=1,"MUY ALTA")))))),"") ->  | AA47: =IFERROR(IF(W47="Impacto",(O47-(O47*X47)),IF(W47="Probabilidad",O47,"")),"") ->  | AB47: =IFERROR(IF(AA47="","",IF(AA47<=0.2,"LEVE",IF(AA47<=0.4,"MENOR",IF(AA47<=0.6,"MODERADO",IF(AA47<=0.8,"MAYOR",IF(AA47=1,"CATASTRÓFICO")))))),"") ->  | AC47: =IFERROR(IF(OR(AND(Z47="Muy Baja",AB47="Leve"),AND(Z47="Muy Baja",AB47="Menor"),AND(Z47="Baja",AB47="Leve")),"BAJO",IF(OR(AND(Z47="Muy baja",AB47="Moderado"),AND(Z47="Baja",AB47="Menor"),AND(Z47="Baja",AB47="Moderado"),AND(Z47="Media",AB47="Leve"),AND(Z47="Media",AB47="Menor"),AND(Z47="Media",AB47="Moderado"),AND(Z47="Alta",AB47="Leve"),AND(Z47="Alta",AB47="Menor")),"MODERADO",IF(OR(AND(Z47="Muy Baja",AB47="Mayor"),AND(Z47="Baja",AB47="Mayor"),AND(Z47="Media",AB47="Mayor"),AND(Z47="Alta",AB47="Moderado"),AND(Z47="Alta",AB47="Mayor"),AND(Z47="Muy Alta",AB47="Leve"),AND(Z47="Muy Alta",AB47="Menor"),AND(Z47="Muy Alta",AB47="Moderado"),AND(Z47="Muy Alta",AB47="Mayor")),"ALTO",IF(OR(AND(Z47="Muy Baja",AB47="Catastrófico"),AND(Z47="Baja",AB47="Catastrófico"),AND(Z47="Media",AB47="Catastrófico"),AND(Z47="Alta",AB47="Catastrófico"),AND(Z47="Muy Alta",AB47="Catastrófico")),"EXTREMO","")))),"") ->  | AL47: =IF(Y47="","",MIN(Y47:Y51)) ->  | AM47: =IFERROR(IF(AL47="","",IF(Y47<=0.2,"MUY BAJA",IF(AL47<=0.4,"BAJA",IF(AL47<=0.6,"MEDIA",IF(AL47<=0.8,"ALTA",IF(AL47=1,"MUY ALTA")))))),"") ->  | AN47: =IF(AA47="","",MIN(AA47:AA51)) ->  | AO47: =IFERROR(IF(AN47="","",IF(AN47<=0.2,"LEVE",IF(AN47<=0.4,"MENOR",IF(AN47<=0.6,"MODERADO",IF(AN47<=0.8,"MAYOR",IF(AN47=1,"CATASTRÓFICO")))))),"") ->  | AP47: =IFERROR(IF(OR(AND(AM47="Muy Baja",AO47="Leve"),AND(AM47="Muy Baja",AO47="Menor"),AND(AM47="Baja",AO47="Leve")),"BAJO",IF(OR(AND(AM47="Muy baja",AO47="Moderado"),AND(AM47="Baja",AO47="Menor"),AND(AM47="Baja",AO47="Moderado"),AND(AM47="Media",AO47="Leve"),AND(AM47="Media",AO47="Menor"),AND(AM47="Media",AO47="Moderado"),AND(AM47="Alta",AO47="Leve"),AND(AM47="Alta",AO47="Menor")),"MODERADO",IF(OR(AND(AM47="Muy Baja",AO47="Mayor"),AND(AM47="Baja",AO47="Mayor"),AND(AM47="Media",AO47="Mayor"),AND(AM47="Alta",AO47="Moderado"),AND(AM47="Alta",AO47="Mayor"),AND(AM47="Muy Alta",AO47="Leve"),AND(AM47="Muy Alta",AO47="Menor"),AND(AM47="Muy Alta",AO47="Moderado"),AND(AM47="Muy Alta",AO47="Mayor")),"ALTO",IF(OR(AND(AM47="Muy Baja",AO47="Catastrófico"),AND(AM47="Baja",AO47="Catastrófico"),AND(AM47="Media",AO47="Catastrófico"),AND(AM47="Alta",AO47="Catastrófico"),AND(AM47="Muy Alta",AO47="Catastrófico")),"EXTREMO","")))),"") -> 
W48: =IF(OR(U48="PREVENTIVO",U48="DETECTIVO"),"PROBABILIDAD",IF(U48="CORRECTIVO","IMPACTO","")) ->  | X48: =IF(AND(U48="PREVENTIVO",V48="AUTOMÁTICO"),"50%",IF(AND(U48="PREVENTIVO",V48="MANUAL"),"40%",IF(AND(U48="DETECTIVO",V48="AUTOMÁTICO"),"40%",IF(AND(U48="DETECTIVO",V48="MANUAL"),"30%",IF(AND(U48="CORRECTIVO",V48="AUTOMÁTICO"),"35%",IF(AND(U48="CORRECTIVO",V48="MANUAL"),"25%","")))))) ->  | Y48: =IFERROR(IF(AND(W47="Probabilidad",W48="Probabilidad"),(Y47-(Y47*X48)),IF(W48="Probabilidad",(L47-(L47*X48)),IF(W48="Impacto",Y47,""))),"") ->  | AA48: =IFERROR(IF(AND(W47="Impacto",W48="Impacto"),(AA47-(AA47*X48)),IF(W48="Impacto",(O47-(+O47*X48)),IF(W48="Probabilidad",AA47,""))),"") ->  | AB48: =IFERROR(IF(AA48="","",IF(AA48<=0.2,"LEVE",IF(AA48<=0.4,"MENOR",IF(AA48<=0.6,"MODERADO",IF(AA48<=0.8,"MAYOR",IF(AA48=1,"CATASTRÓFICO")))))),"") ->  | AC48: =IFERROR(IF(OR(AND(Z48="Muy Baja",AB48="Leve"),AND(Z48="Muy Baja",AB48="Menor"),AND(Z48="Baja",AB48="Leve")),"BAJO",IF(OR(AND(Z48="Muy baja",AB48="Moderado"),AND(Z48="Baja",AB48="Menor"),AND(Z48="Baja",AB48="Moderado"),AND(Z48="Media",AB48="Leve"),AND(Z48="Media",AB48="Menor"),AND(Z48="Media",AB48="Moderado"),AND(Z48="Alta",AB48="Leve"),AND(Z48="Alta",AB48="Menor")),"MODERADO",IF(OR(AND(Z48="Muy Baja",AB48="Mayor"),AND(Z48="Baja",AB48="Mayor"),AND(Z48="Media",AB48="Mayor"),AND(Z48="Alta",AB48="Moderado"),AND(Z48="Alta",AB48="Mayor"),AND(Z48="Muy Alta",AB48="Leve"),AND(Z48="Muy Alta",AB48="Menor"),AND(Z48="Muy Alta",AB48="Moderado"),AND(Z48="Muy Alta",AB48="Mayor")),"ALTO",IF(OR(AND(Z48="Muy Baja",AB48="Catastrófico"),AND(Z48="Baja",AB48="Catastrófico"),AND(Z48="Media",AB48="Catastrófico"),AND(Z48="Alta",AB48="Catastrófico"),AND(Z48="Muy Alta",AB48="Catastrófico")),"EXTREMO","")))),"") -> 
Y49: =IFERROR(IF(AND(W48="Probabilidad",W49="Probabilidad"),(Y48-(Y48*X49)),IF(AND(W48="Impacto",W49="Probabilidad"),(Y47-(Y47*X49)),IF(W49="Impacto",Y48,""))),"") ->  | AA49: =IFERROR(IF(AND(W48="Impacto",W49="Impacto"),(AA48-(AA48*X49)),IF(AND(W48="Probabilidad",W49="Impacto"),(AA47-(AA47*X49)),IF(W49="Probabilidad",AA48,""))),"") -> 
Y50: =IFERROR(IF(AND(W49="Probabilidad",W50="Probabilidad"),(Y49-(Y49*X50)),IF(AND(W49="Impacto",W50="Probabilidad"),(Y48-(Y48*X50)),IF(W50="Impacto",Y49,""))),"") ->  | AA50: =IFERROR(IF(AND(W49="Impacto",W50="Impacto"),(AA49-(AA49*X50)),IF(AND(W49="Probabilidad",W50="Impacto"),(AA48-(AA48*X50)),IF(W50="Probabilidad",AA49,""))),"") -> 
A52: =IF(OR(AL52=0,AN52=0),"",IF(AND(AL52<=0.2,AN52<=0.2),1,IF(AND(AL52<=0.2,AN52<=0.4),2,IF(AND(AL52<=0.2,AN52<=0.6),3,IF(AND(AL52<=0.2,AN52<=0.8),4,IF(AND(AL52<=0.2,AN52<=1),5,IF(AND(AL52<=0.4,AN52<=0.2),6,IF(AND(AL52<=0.4,AN52<=0.4),7,IF(AND(AL52<=0.4,AN52<=0.6),8,IF(AND(AL52<=0.4,AN52<=0.8),9,IF(AND(AL52<=0.4,AN52<=1),10,IF(AND(AL52<=0.6,AN52<=0.2),11,IF(AND(AL52<=0.6,AN52<=0.4),12,IF(AND(AL52<=0.6,AN52<=0.6),13,IF(AND(AL52<=0.6,AN52<=0.8),14,IF(AND(AL52<=0.6,AN52<=1),15,IF(AND(AL52<=0.8,AN52<=0.2),16,IF(AND(AL52<=0.8,AN52<=0.4),17,IF(AND(AL52<=0.8,AN52<=0.6),18,IF(AND(AL52<=0.8,AN52<=0.8),19,IF(AND(AL52<=0.8,AN52<=1),20,IF(AND(AL52<=1,AN52<=0.2),21,IF(AND(AL52<=1,AN52<=0.4),22,IF(AND(AL52<=1,AN52<=0.6),23,IF(AND(AL52<=1,AN52<=0.8),24,IF(AND(AL52<=1,AN52<=1),25,"")))))))))))))))))))))))))) ->  | B52: =IF(A52="","",1/100) ->  | C52: =IFERROR(A52+B52,"") ->  | D52: 12 | K52: =IF(I52<=0,"",IF(I52<=2,"Muy Baja",IF(I52<=24,"Baja",IF(I52<=500,"Media",IF(I52<=5000,"Alta",IF(I52>5000,"Muy Alta")))))) ->  | L52: =IF(K52="","",IF(K52="Muy Baja",0.2,IF(K52="Baja",0.4,IF(K52="Media",0.6,IF(K52="Alta",0.8,IF(K52="Muy Alta",1,)))))) ->  | N52: =IF(OR(M52=CRITERIOS!$C$182,M52=CRITERIOS!$D$182),"Leve",IF(OR(M52=CRITERIOS!$C$183,M52=CRITERIOS!$D$183),"Menor",IF(OR(M52=CRITERIOS!$C$184,M52=CRITERIOS!$D$184),"Moderado",IF(OR(M52=CRITERIOS!$C$185,M52=CRITERIOS!$D$185),"Mayor",IF(OR(M52=CRITERIOS!$C$186,M52=CRITERIOS!$D$186),"Catastrófico",""))))) ->  | O52: =IF(N52="","",IF(N52="Leve",0.2,IF(N52="Menor",0.4,IF(N52="Moderado",0.6,IF(N52="Mayor",0.8,IF(N52="Catastrófico",1,)))))) ->  | P52: =IF(OR(AND(K52="Muy Baja",N52="Leve"),AND(K52="Muy Baja",N52="Menor"),AND(K52="Baja",N52="Leve")),"BAJO",IF(OR(AND(K52="Muy baja",N52="Moderado"),AND(K52="Baja",N52="Menor"),AND(K52="Baja",N52="Moderado"),AND(K52="Media",N52="Leve"),AND(K52="Media",N52="Menor"),AND(K52="Media",N52="Moderado"),AND(K52="Alta",N52="Leve"),AND(K52="Alta",N52="Menor")),"MODERADO",IF(OR(AND(K52="Muy Baja",N52="Mayor"),AND(K52="Baja",N52="Mayor"),AND(K52="Media",N52="Mayor"),AND(K52="Alta",N52="Moderado"),AND(K52="Alta",N52="Mayor"),AND(K52="Muy Alta",N52="Leve"),AND(K52="Muy Alta",N52="Menor"),AND(K52="Muy Alta",N52="Moderado"),YF52="Muy Alta",N52="Mayor"),"ALTO",IF(OR(AND(K52="Muy Baja",N52="Catastrófico"),AND(K52="Baja",N52="Catastrófico"),AND(K52="Media",N52="Catastrófico"),AND(K52="Alta",N52="Catastrófico"),AND(K52="Muy Alta",N52="Catastrófico")),"EXTREMO","")))) ->  | W52: =IF(OR(U52="PREVENTIVO",U52="DETECTIVO"),"PROBABILIDAD",IF(U52="CORRECTIVO","IMPACTO","")) ->  | X52: =IF(AND(U52="PREVENTIVO",V52="AUTOMÁTICO"),"50%",IF(AND(U52="PREVENTIVO",V52="MANUAL"),"40%",IF(AND(U52="DETECTIVO",V52="AUTOMÁTICO"),"40%",IF(AND(U52="DETECTIVO",V52="MANUAL"),"30%",IF(AND(U52="CORRECTIVO",V52="AUTOMÁTICO"),"35%",IF(AND(U52="CORRECTIVO",V52="MANUAL"),"25%","")))))) ->  | Y52: =IFERROR(IF(W52="Probabilidad",(L52-(L52*X52)),IF(W52="Impacto",L52,"")),"") ->  | Z52: =IFERROR(IF(Y52="","",IF(Y52<=0.2,"MUY BAJA",IF(Y52<=0.4,"BAJA",IF(Y52<=0.6,"MEDIA",IF(Y52<=0.8,"ALTA",IF(Y52=1,"MUY ALTA")))))),"") ->  | AA52: =IFERROR(IF(W52="Impacto",(O52-(O52*X52)),IF(W52="Probabilidad",O52,"")),"") ->  | AB52: =IFERROR(IF(AA52="","",IF(AA52<=0.2,"LEVE",IF(AA52<=0.4,"MENOR",IF(AA52<=0.6,"MODERADO",IF(AA52<=0.8,"MAYOR",IF(AA52=1,"CATASTRÓFICO")))))),"") ->  | AC52: =IFERROR(IF(OR(AND(Z52="Muy Baja",AB52="Leve"),AND(Z52="Muy Baja",AB52="Menor"),AND(Z52="Baja",AB52="Leve")),"BAJO",IF(OR(AND(Z52="Muy baja",AB52="Moderado"),AND(Z52="Baja",AB52="Menor"),AND(Z52="Baja",AB52="Moderado"),AND(Z52="Media",AB52="Leve"),AND(Z52="Media",AB52="Menor"),AND(Z52="Media",AB52="Moderado"),AND(Z52="Alta",AB52="Leve"),AND(Z52="Alta",AB52="Menor")),"MODERADO",IF(OR(AND(Z52="Muy Baja",AB52="Mayor"),AND(Z52="Baja",AB52="Mayor"),AND(Z52="Media",AB52="Mayor"),AND(Z52="Alta",AB52="Moderado"),AND(Z52="Alta",AB52="Mayor"),AND(Z52="Muy Alta",AB52="Leve"),AND(Z52="Muy Alta",AB52="Menor"),AND(Z52="Muy Alta",AB52="Moderado"),AND(Z52="Muy Alta",AB52="Mayor")),"ALTO",IF(OR(AND(Z52="Muy Baja",AB52="Catastrófico"),AND(Z52="Baja",AB52="Catastrófico"),AND(Z52="Media",AB52="Catastrófico"),AND(Z52="Alta",AB52="Catastrófico"),AND(Z52="Muy Alta",AB52="Catastrófico")),"EXTREMO","")))),"") ->  | AL52: =IF(Y52="","",MIN(Y52:Y56)) ->  | AM52: =IFERROR(IF(AL52="","",IF(Y52<=0.2,"MUY BAJA",IF(AL52<=0.4,"BAJA",IF(AL52<=0.6,"MEDIA",IF(AL52<=0.8,"ALTA",IF(AL52=1,"MUY ALTA")))))),"") ->  | AN52: =IF(AA52="","",MIN(AA52:AA56)) ->  | AO52: =IFERROR(IF(AN52="","",IF(AN52<=0.2,"LEVE",IF(AN52<=0.4,"MENOR",IF(AN52<=0.6,"MODERADO",IF(AN52<=0.8,"MAYOR",IF(AN52=1,"CATASTRÓFICO")))))),"") ->  | AP52: =IFERROR(IF(OR(AND(AM52="Muy Baja",AO52="Leve"),AND(AM52="Muy Baja",AO52="Menor"),AND(AM52="Baja",AO52="Leve")),"BAJO",IF(OR(AND(AM52="Muy baja",AO52="Moderado"),AND(AM52="Baja",AO52="Menor"),AND(AM52="Baja",AO52="Moderado"),AND(AM52="Media",AO52="Leve"),AND(AM52="Media",AO52="Menor"),AND(AM52="Media",AO52="Moderado"),AND(AM52="Alta",AO52="Leve"),AND(AM52="Alta",AO52="Menor")),"MODERADO",IF(OR(AND(AM52="Muy Baja",AO52="Mayor"),AND(AM52="Baja",AO52="Mayor"),AND(AM52="Media",AO52="Mayor"),AND(AM52="Alta",AO52="Moderado"),AND(AM52="Alta",AO52="Mayor"),AND(AM52="Muy Alta",AO52="Leve"),AND(AM52="Muy Alta",AO52="Menor"),AND(AM52="Muy Alta",AO52="Moderado"),AND(AM52="Muy Alta",AO52="Mayor")),"ALTO",IF(OR(AND(AM52="Muy Baja",AO52="Catastrófico"),AND(AM52="Baja",AO52="Catastrófico"),AND(AM52="Media",AO52="Catastrófico"),AND(AM52="Alta",AO52="Catastrófico"),AND(AM52="Muy Alta",AO52="Catastrófico")),"EXTREMO","")))),"") -> 
W53: =IF(OR(U53="PREVENTIVO",U53="DETECTIVO"),"PROBABILIDAD",IF(U53="CORRECTIVO","IMPACTO","")) ->  | X53: =IF(AND(U53="PREVENTIVO",V53="AUTOMÁTICO"),"50%",IF(AND(U53="PREVENTIVO",V53="MANUAL"),"40%",IF(AND(U53="DETECTIVO",V53="AUTOMÁTICO"),"40%",IF(AND(U53="DETECTIVO",V53="MANUAL"),"30%",IF(AND(U53="CORRECTIVO",V53="AUTOMÁTICO"),"35%",IF(AND(U53="CORRECTIVO",V53="MANUAL"),"25%","")))))) ->  | Y53: =IFERROR(IF(AND(W52="Probabilidad",W53="Probabilidad"),(Y52-(Y52*X53)),IF(W53="Probabilidad",(L52-(L52*X53)),IF(W53="Impacto",Y52,""))),"") ->  | AA53: =IFERROR(IF(AND(W52="Impacto",W53="Impacto"),(AA52-(AA52*X53)),IF(W53="Impacto",(O52-(+O52*X53)),IF(W53="Probabilidad",AA52,""))),"") ->  | AB53: =IFERROR(IF(AA53="","",IF(AA53<=0.2,"LEVE",IF(AA53<=0.4,"MENOR",IF(AA53<=0.6,"MODERADO",IF(AA53<=0.8,"MAYOR",IF(AA53=1,"CATASTRÓFICO")))))),"") ->  | AC53: =IFERROR(IF(OR(AND(Z53="Muy Baja",AB53="Leve"),AND(Z53="Muy Baja",AB53="Menor"),AND(Z53="Baja",AB53="Leve")),"BAJO",IF(OR(AND(Z53="Muy baja",AB53="Moderado"),AND(Z53="Baja",AB53="Menor"),AND(Z53="Baja",AB53="Moderado"),AND(Z53="Media",AB53="Leve"),AND(Z53="Media",AB53="Menor"),AND(Z53="Media",AB53="Moderado"),AND(Z53="Alta",AB53="Leve"),AND(Z53="Alta",AB53="Menor")),"MODERADO",IF(OR(AND(Z53="Muy Baja",AB53="Mayor"),AND(Z53="Baja",AB53="Mayor"),AND(Z53="Media",AB53="Mayor"),AND(Z53="Alta",AB53="Moderado"),AND(Z53="Alta",AB53="Mayor"),AND(Z53="Muy Alta",AB53="Leve"),AND(Z53="Muy Alta",AB53="Menor"),AND(Z53="Muy Alta",AB53="Moderado"),AND(Z53="Muy Alta",AB53="Mayor")),"ALTO",IF(OR(AND(Z53="Muy Baja",AB53="Catastrófico"),AND(Z53="Baja",AB53="Catastrófico"),AND(Z53="Media",AB53="Catastrófico"),AND(Z53="Alta",AB53="Catastrófico"),AND(Z53="Muy Alta",AB53="Catastrófico")),"EXTREMO","")))),"") -> 
Y54: =IFERROR(IF(AND(W53="Probabilidad",W54="Probabilidad"),(Y53-(Y53*X54)),IF(AND(W53="Impacto",W54="Probabilidad"),(Y52-(Y52*X54)),IF(W54="Impacto",Y53,""))),"") ->  | AA54: =IFERROR(IF(AND(W53="Impacto",W54="Impacto"),(AA53-(AA53*X54)),IF(AND(W53="Probabilidad",W54="Impacto"),(AA52-(AA52*X54)),IF(W54="Probabilidad",AA53,""))),"") -> 
Y55: =IFERROR(IF(AND(W54="Probabilidad",W55="Probabilidad"),(Y54-(Y54*X55)),IF(AND(W54="Impacto",W55="Probabilidad"),(Y53-(Y53*X55)),IF(W55="Impacto",Y54,""))),"") ->  | AA55: =IFERROR(IF(AND(W54="Impacto",W55="Impacto"),(AA54-(AA54*X55)),IF(AND(W54="Probabilidad",W55="Impacto"),(AA53-(AA53*X55)),IF(W55="Probabilidad",AA54,""))),"") -> 
A57: =IF(OR(AL57=0,AN57=0),"",IF(AND(AL57<=0.2,AN57<=0.2),1,IF(AND(AL57<=0.2,AN57<=0.4),2,IF(AND(AL57<=0.2,AN57<=0.6),3,IF(AND(AL57<=0.2,AN57<=0.8),4,IF(AND(AL57<=0.2,AN57<=1),5,IF(AND(AL57<=0.4,AN57<=0.2),6,IF(AND(AL57<=0.4,AN57<=0.4),7,IF(AND(AL57<=0.4,AN57<=0.6),8,IF(AND(AL57<=0.4,AN57<=0.8),9,IF(AND(AL57<=0.4,AN57<=1),10,IF(AND(AL57<=0.6,AN57<=0.2),11,IF(AND(AL57<=0.6,AN57<=0.4),12,IF(AND(AL57<=0.6,AN57<=0.6),13,IF(AND(AL57<=0.6,AN57<=0.8),14,IF(AND(AL57<=0.6,AN57<=1),15,IF(AND(AL57<=0.8,AN57<=0.2),16,IF(AND(AL57<=0.8,AN57<=0.4),17,IF(AND(AL57<=0.8,AN57<=0.6),18,IF(AND(AL57<=0.8,AN57<=0.8),19,IF(AND(AL57<=0.8,AN57<=1),20,IF(AND(AL57<=1,AN57<=0.2),21,IF(AND(AL57<=1,AN57<=0.4),22,IF(AND(AL57<=1,AN57<=0.6),23,IF(AND(AL57<=1,AN57<=0.8),24,IF(AND(AL57<=1,AN57<=1),25,"")))))))))))))))))))))))))) ->  | B57: =IF(A57="","",1/100) ->  | C57: =IFERROR(A57+B57,"") ->  | D57: 13 | K57: =IF(I57<=0,"",IF(I57<=2,"Muy Baja",IF(I57<=24,"Baja",IF(I57<=500,"Media",IF(I57<=5000,"Alta",IF(I57>5000,"Muy Alta")))))) ->  | L57: =IF(K57="","",IF(K57="Muy Baja",0.2,IF(K57="Baja",0.4,IF(K57="Media",0.6,IF(K57="Alta",0.8,IF(K57="Muy Alta",1,)))))) ->  | N57: =IF(OR(M57=CRITERIOS!$C$182,M57=CRITERIOS!$D$182),"Leve",IF(OR(M57=CRITERIOS!$C$183,M57=CRITERIOS!$D$183),"Menor",IF(OR(M57=CRITERIOS!$C$184,M57=CRITERIOS!$D$184),"Moderado",IF(OR(M57=CRITERIOS!$C$185,M57=CRITERIOS!$D$185),"Mayor",IF(OR(M57=CRITERIOS!$C$186,M57=CRITERIOS!$D$186),"Catastrófico",""))))) ->  | O57: =IF(N57="","",IF(N57="Leve",0.2,IF(N57="Menor",0.4,IF(N57="Moderado",0.6,IF(N57="Mayor",0.8,IF(N57="Catastrófico",1,)))))) ->  | P57: =IF(OR(AND(K57="Muy Baja",N57="Leve"),AND(K57="Muy Baja",N57="Menor"),AND(K57="Baja",N57="Leve")),"BAJO",IF(OR(AND(K57="Muy baja",N57="Moderado"),AND(K57="Baja",N57="Menor"),AND(K57="Baja",N57="Moderado"),AND(K57="Media",N57="Leve"),AND(K57="Media",N57="Menor"),AND(K57="Media",N57="Moderado"),AND(K57="Alta",N57="Leve"),AND(K57="Alta",N57="Menor")),"MODERADO",IF(OR(AND(K57="Muy Baja",N57="Mayor"),AND(K57="Baja",N57="Mayor"),AND(K57="Media",N57="Mayor"),AND(K57="Alta",N57="Moderado"),AND(K57="Alta",N57="Mayor"),AND(K57="Muy Alta",N57="Leve"),AND(K57="Muy Alta",N57="Menor"),AND(K57="Muy Alta",N57="Moderado"),YF57="Muy Alta",N57="Mayor"),"ALTO",IF(OR(AND(K57="Muy Baja",N57="Catastrófico"),AND(K57="Baja",N57="Catastrófico"),AND(K57="Media",N57="Catastrófico"),AND(K57="Alta",N57="Catastrófico"),AND(K57="Muy Alta",N57="Catastrófico")),"EXTREMO","")))) ->  | W57: =IF(OR(U57="PREVENTIVO",U57="DETECTIVO"),"PROBABILIDAD",IF(U57="CORRECTIVO","IMPACTO","")) ->  | X57: =IF(AND(U57="PREVENTIVO",V57="AUTOMÁTICO"),"50%",IF(AND(U57="PREVENTIVO",V57="MANUAL"),"40%",IF(AND(U57="DETECTIVO",V57="AUTOMÁTICO"),"40%",IF(AND(U57="DETECTIVO",V57="MANUAL"),"30%",IF(AND(U57="CORRECTIVO",V57="AUTOMÁTICO"),"35%",IF(AND(U57="CORRECTIVO",V57="MANUAL"),"25%","")))))) ->  | Y57: =IFERROR(IF(W57="Probabilidad",(L57-(L57*X57)),IF(W57="Impacto",L57,"")),"") ->  | Z57: =IFERROR(IF(Y57="","",IF(Y57<=0.2,"MUY BAJA",IF(Y57<=0.4,"BAJA",IF(Y57<=0.6,"MEDIA",IF(Y57<=0.8,"ALTA",IF(Y57=1,"MUY ALTA")))))),"") ->  | AA57: =IFERROR(IF(W57="Impacto",(O57-(O57*X57)),IF(W57="Probabilidad",O57,"")),"") ->  | AB57: =IFERROR(IF(AA57="","",IF(AA57<=0.2,"LEVE",IF(AA57<=0.4,"MENOR",IF(AA57<=0.6,"MODERADO",IF(AA57<=0.8,"MAYOR",IF(AA57=1,"CATASTRÓFICO")))))),"") ->  | AC57: =IFERROR(IF(OR(AND(Z57="Muy Baja",AB57="Leve"),AND(Z57="Muy Baja",AB57="Menor"),AND(Z57="Baja",AB57="Leve")),"BAJO",IF(OR(AND(Z57="Muy baja",AB57="Moderado"),AND(Z57="Baja",AB57="Menor"),AND(Z57="Baja",AB57="Moderado"),AND(Z57="Media",AB57="Leve"),AND(Z57="Media",AB57="Menor"),AND(Z57="Media",AB57="Moderado"),AND(Z57="Alta",AB57="Leve"),AND(Z57="Alta",AB57="Menor")),"MODERADO",IF(OR(AND(Z57="Muy Baja",AB57="Mayor"),AND(Z57="Baja",AB57="Mayor"),AND(Z57="Media",AB57="Mayor"),AND(Z57="Alta",AB57="Moderado"),AND(Z57="Alta",AB57="Mayor"),AND(Z57="Muy Alta",AB57="Leve"),AND(Z57="Muy Alta",AB57="Menor"),AND(Z57="Muy Alta",AB57="Moderado"),AND(Z57="Muy Alta",AB57="Mayor")),"ALTO",IF(OR(AND(Z57="Muy Baja",AB57="Catastrófico"),AND(Z57="Baja",AB57="Catastrófico"),AND(Z57="Media",AB57="Catastrófico"),AND(Z57="Alta",AB57="Catastrófico"),AND(Z57="Muy Alta",AB57="Catastrófico")),"EXTREMO","")))),"") ->  | AL57: =IF(Y57="","",MIN(Y57:Y61)) ->  | AM57: =IFERROR(IF(AL57="","",IF(Y57<=0.2,"MUY BAJA",IF(AL57<=0.4,"BAJA",IF(AL57<=0.6,"MEDIA",IF(AL57<=0.8,"ALTA",IF(AL57=1,"MUY ALTA")))))),"") ->  | AN57: =IF(AA57="","",MIN(AA57:AA61)) ->  | AO57: =IFERROR(IF(AN57="","",IF(AN57<=0.2,"LEVE",IF(AN57<=0.4,"MENOR",IF(AN57<=0.6,"MODERADO",IF(AN57<=0.8,"MAYOR",IF(AN57=1,"CATASTRÓFICO")))))),"") ->  | AP57: =IFERROR(IF(OR(AND(AM57="Muy Baja",AO57="Leve"),AND(AM57="Muy Baja",AO57="Menor"),AND(AM57="Baja",AO57="Leve")),"BAJO",IF(OR(AND(AM57="Muy baja",AO57="Moderado"),AND(AM57="Baja",AO57="Menor"),AND(AM57="Baja",AO57="Moderado"),AND(AM57="Media",AO57="Leve"),AND(AM57="Media",AO57="Menor"),AND(AM57="Media",AO57="Moderado"),AND(AM57="Alta",AO57="Leve"),AND(AM57="Alta",AO57="Menor")),"MODERADO",IF(OR(AND(AM57="Muy Baja",AO57="Mayor"),AND(AM57="Baja",AO57="Mayor"),AND(AM57="Media",AO57="Mayor"),AND(AM57="Alta",AO57="Moderado"),AND(AM57="Alta",AO57="Mayor"),AND(AM57="Muy Alta",AO57="Leve"),AND(AM57="Muy Alta",AO57="Menor"),AND(AM57="Muy Alta",AO57="Moderado"),AND(AM57="Muy Alta",AO57="Mayor")),"ALTO",IF(OR(AND(AM57="Muy Baja",AO57="Catastrófico"),AND(AM57="Baja",AO57="Catastrófico"),AND(AM57="Media",AO57="Catastrófico"),AND(AM57="Alta",AO57="Catastrófico"),AND(AM57="Muy Alta",AO57="Catastrófico")),"EXTREMO","")))),"") -> 
W58: =IF(OR(U58="PREVENTIVO",U58="DETECTIVO"),"PROBABILIDAD",IF(U58="CORRECTIVO","IMPACTO","")) ->  | X58: =IF(AND(U58="PREVENTIVO",V58="AUTOMÁTICO"),"50%",IF(AND(U58="PREVENTIVO",V58="MANUAL"),"40%",IF(AND(U58="DETECTIVO",V58="AUTOMÁTICO"),"40%",IF(AND(U58="DETECTIVO",V58="MANUAL"),"30%",IF(AND(U58="CORRECTIVO",V58="AUTOMÁTICO"),"35%",IF(AND(U58="CORRECTIVO",V58="MANUAL"),"25%","")))))) ->  | Y58: =IFERROR(IF(AND(W57="Probabilidad",W58="Probabilidad"),(Y57-(Y57*X58)),IF(W58="Probabilidad",(L57-(L57*X58)),IF(W58="Impacto",Y57,""))),"") ->  | AA58: =IFERROR(IF(AND(W57="Impacto",W58="Impacto"),(AA57-(AA57*X58)),IF(W58="Impacto",(O57-(+O57*X58)),IF(W58="Probabilidad",AA57,""))),"") ->  | AB58: =IFERROR(IF(AA58="","",IF(AA58<=0.2,"LEVE",IF(AA58<=0.4,"MENOR",IF(AA58<=0.6,"MODERADO",IF(AA58<=0.8,"MAYOR",IF(AA58=1,"CATASTRÓFICO")))))),"") ->  | AC58: =IFERROR(IF(OR(AND(Z58="Muy Baja",AB58="Leve"),AND(Z58="Muy Baja",AB58="Menor"),AND(Z58="Baja",AB58="Leve")),"BAJO",IF(OR(AND(Z58="Muy baja",AB58="Moderado"),AND(Z58="Baja",AB58="Menor"),AND(Z58="Baja",AB58="Moderado"),AND(Z58="Media",AB58="Leve"),AND(Z58="Media",AB58="Menor"),AND(Z58="Media",AB58="Moderado"),AND(Z58="Alta",AB58="Leve"),AND(Z58="Alta",AB58="Menor")),"MODERADO",IF(OR(AND(Z58="Muy Baja",AB58="Mayor"),AND(Z58="Baja",AB58="Mayor"),AND(Z58="Media",AB58="Mayor"),AND(Z58="Alta",AB58="Moderado"),AND(Z58="Alta",AB58="Mayor"),AND(Z58="Muy Alta",AB58="Leve"),AND(Z58="Muy Alta",AB58="Menor"),AND(Z58="Muy Alta",AB58="Moderado"),AND(Z58="Muy Alta",AB58="Mayor")),"ALTO",IF(OR(AND(Z58="Muy Baja",AB58="Catastrófico"),AND(Z58="Baja",AB58="Catastrófico"),AND(Z58="Media",AB58="Catastrófico"),AND(Z58="Alta",AB58="Catastrófico"),AND(Z58="Muy Alta",AB58="Catastrófico")),"EXTREMO","")))),"") -> 
Y59: =IFERROR(IF(AND(W58="Probabilidad",W59="Probabilidad"),(Y58-(Y58*X59)),IF(AND(W58="Impacto",W59="Probabilidad"),(Y57-(Y57*X59)),IF(W59="Impacto",Y58,""))),"") ->  | AA59: =IFERROR(IF(AND(W58="Impacto",W59="Impacto"),(AA58-(AA58*X59)),IF(AND(W58="Probabilidad",W59="Impacto"),(AA57-(AA57*X59)),IF(W59="Probabilidad",AA58,""))),"") -> 
Y60: =IFERROR(IF(AND(W59="Probabilidad",W60="Probabilidad"),(Y59-(Y59*X60)),IF(AND(W59="Impacto",W60="Probabilidad"),(Y58-(Y58*X60)),IF(W60="Impacto",Y59,""))),"") ->  | AA60: =IFERROR(IF(AND(W59="Impacto",W60="Impacto"),(AA59-(AA59*X60)),IF(AND(W59="Probabilidad",W60="Impacto"),(AA58-(AA58*X60)),IF(W60="Probabilidad",AA59,""))),"") -> 
A62: =IF(OR(AL62=0,AN62=0),"",IF(AND(AL62<=0.2,AN62<=0.2),1,IF(AND(AL62<=0.2,AN62<=0.4),2,IF(AND(AL62<=0.2,AN62<=0.6),3,IF(AND(AL62<=0.2,AN62<=0.8),4,IF(AND(AL62<=0.2,AN62<=1),5,IF(AND(AL62<=0.4,AN62<=0.2),6,IF(AND(AL62<=0.4,AN62<=0.4),7,IF(AND(AL62<=0.4,AN62<=0.6),8,IF(AND(AL62<=0.4,AN62<=0.8),9,IF(AND(AL62<=0.4,AN62<=1),10,IF(AND(AL62<=0.6,AN62<=0.2),11,IF(AND(AL62<=0.6,AN62<=0.4),12,IF(AND(AL62<=0.6,AN62<=0.6),13,IF(AND(AL62<=0.6,AN62<=0.8),14,IF(AND(AL62<=0.6,AN62<=1),15,IF(AND(AL62<=0.8,AN62<=0.2),16,IF(AND(AL62<=0.8,AN62<=0.4),17,IF(AND(AL62<=0.8,AN62<=0.6),18,IF(AND(AL62<=0.8,AN62<=0.8),19,IF(AND(AL62<=0.8,AN62<=1),20,IF(AND(AL62<=1,AN62<=0.2),21,IF(AND(AL62<=1,AN62<=0.4),22,IF(AND(AL62<=1,AN62<=0.6),23,IF(AND(AL62<=1,AN62<=0.8),24,IF(AND(AL62<=1,AN62<=1),25,"")))))))))))))))))))))))))) ->  | B62: =IF(A62="","",1/100) ->  | C62: =IFERROR(A62+B62,"") ->  | D62: 14 | K62: =IF(I62<=0,"",IF(I62<=2,"Muy Baja",IF(I62<=24,"Baja",IF(I62<=500,"Media",IF(I62<=5000,"Alta",IF(I62>5000,"Muy Alta")))))) ->  | L62: =IF(K62="","",IF(K62="Muy Baja",0.2,IF(K62="Baja",0.4,IF(K62="Media",0.6,IF(K62="Alta",0.8,IF(K62="Muy Alta",1,)))))) ->  | N62: =IF(OR(M62=CRITERIOS!$C$182,M62=CRITERIOS!$D$182),"Leve",IF(OR(M62=CRITERIOS!$C$183,M62=CRITERIOS!$D$183),"Menor",IF(OR(M62=CRITERIOS!$C$184,M62=CRITERIOS!$D$184),"Moderado",IF(OR(M62=CRITERIOS!$C$185,M62=CRITERIOS!$D$185),"Mayor",IF(OR(M62=CRITERIOS!$C$186,M62=CRITERIOS!$D$186),"Catastrófico",""))))) ->  | O62: =IF(N62="","",IF(N62="Leve",0.2,IF(N62="Menor",0.4,IF(N62="Moderado",0.6,IF(N62="Mayor",0.8,IF(N62="Catastrófico",1,)))))) ->  | P62: =IF(OR(AND(K62="Muy Baja",N62="Leve"),AND(K62="Muy Baja",N62="Menor"),AND(K62="Baja",N62="Leve")),"BAJO",IF(OR(AND(K62="Muy baja",N62="Moderado"),AND(K62="Baja",N62="Menor"),AND(K62="Baja",N62="Moderado"),AND(K62="Media",N62="Leve"),AND(K62="Media",N62="Menor"),AND(K62="Media",N62="Moderado"),AND(K62="Alta",N62="Leve"),AND(K62="Alta",N62="Menor")),"MODERADO",IF(OR(AND(K62="Muy Baja",N62="Mayor"),AND(K62="Baja",N62="Mayor"),AND(K62="Media",N62="Mayor"),AND(K62="Alta",N62="Moderado"),AND(K62="Alta",N62="Mayor"),AND(K62="Muy Alta",N62="Leve"),AND(K62="Muy Alta",N62="Menor"),AND(K62="Muy Alta",N62="Moderado"),YF62="Muy Alta",N62="Mayor"),"ALTO",IF(OR(AND(K62="Muy Baja",N62="Catastrófico"),AND(K62="Baja",N62="Catastrófico"),AND(K62="Media",N62="Catastrófico"),AND(K62="Alta",N62="Catastrófico"),AND(K62="Muy Alta",N62="Catastrófico")),"EXTREMO","")))) ->  | W62: =IF(OR(U62="PREVENTIVO",U62="DETECTIVO"),"PROBABILIDAD",IF(U62="CORRECTIVO","IMPACTO","")) ->  | X62: =IF(AND(U62="PREVENTIVO",V62="AUTOMÁTICO"),"50%",IF(AND(U62="PREVENTIVO",V62="MANUAL"),"40%",IF(AND(U62="DETECTIVO",V62="AUTOMÁTICO"),"40%",IF(AND(U62="DETECTIVO",V62="MANUAL"),"30%",IF(AND(U62="CORRECTIVO",V62="AUTOMÁTICO"),"35%",IF(AND(U62="CORRECTIVO",V62="MANUAL"),"25%","")))))) ->  | Y62: =IFERROR(IF(W62="Probabilidad",(L62-(L62*X62)),IF(W62="Impacto",L62,"")),"") ->  | Z62: =IFERROR(IF(Y62="","",IF(Y62<=0.2,"MUY BAJA",IF(Y62<=0.4,"BAJA",IF(Y62<=0.6,"MEDIA",IF(Y62<=0.8,"ALTA",IF(Y62=1,"MUY ALTA")))))),"") ->  | AA62: =IFERROR(IF(W62="Impacto",(O62-(O62*X62)),IF(W62="Probabilidad",O62,"")),"") ->  | AB62: =IFERROR(IF(AA62="","",IF(AA62<=0.2,"LEVE",IF(AA62<=0.4,"MENOR",IF(AA62<=0.6,"MODERADO",IF(AA62<=0.8,"MAYOR",IF(AA62=1,"CATASTRÓFICO")))))),"") ->  | AC62: =IFERROR(IF(OR(AND(Z62="Muy Baja",AB62="Leve"),AND(Z62="Muy Baja",AB62="Menor"),AND(Z62="Baja",AB62="Leve")),"BAJO",IF(OR(AND(Z62="Muy baja",AB62="Moderado"),AND(Z62="Baja",AB62="Menor"),AND(Z62="Baja",AB62="Moderado"),AND(Z62="Media",AB62="Leve"),AND(Z62="Media",AB62="Menor"),AND(Z62="Media",AB62="Moderado"),AND(Z62="Alta",AB62="Leve"),AND(Z62="Alta",AB62="Menor")),"MODERADO",IF(OR(AND(Z62="Muy Baja",AB62="Mayor"),AND(Z62="Baja",AB62="Mayor"),AND(Z62="Media",AB62="Mayor"),AND(Z62="Alta",AB62="Moderado"),AND(Z62="Alta",AB62="Mayor"),AND(Z62="Muy Alta",AB62="Leve"),AND(Z62="Muy Alta",AB62="Menor"),AND(Z62="Muy Alta",AB62="Moderado"),AND(Z62="Muy Alta",AB62="Mayor")),"ALTO",IF(OR(AND(Z62="Muy Baja",AB62="Catastrófico"),AND(Z62="Baja",AB62="Catastrófico"),AND(Z62="Media",AB62="Catastrófico"),AND(Z62="Alta",AB62="Catastrófico"),AND(Z62="Muy Alta",AB62="Catastrófico")),"EXTREMO","")))),"") ->  | AL62: =IF(Y62="","",MIN(Y62:Y66)) ->  | AM62: =IFERROR(IF(AL62="","",IF(Y62<=0.2,"MUY BAJA",IF(AL62<=0.4,"BAJA",IF(AL62<=0.6,"MEDIA",IF(AL62<=0.8,"ALTA",IF(AL62=1,"MUY ALTA")))))),"") ->  | AN62: =IF(AA62="","",MIN(AA62:AA66)) ->  | AO62: =IFERROR(IF(AN62="","",IF(AN62<=0.2,"LEVE",IF(AN62<=0.4,"MENOR",IF(AN62<=0.6,"MODERADO",IF(AN62<=0.8,"MAYOR",IF(AN62=1,"CATASTRÓFICO")))))),"") ->  | AP62: =IFERROR(IF(OR(AND(AM62="Muy Baja",AO62="Leve"),AND(AM62="Muy Baja",AO62="Menor"),AND(AM62="Baja",AO62="Leve")),"BAJO",IF(OR(AND(AM62="Muy baja",AO62="Moderado"),AND(AM62="Baja",AO62="Menor"),AND(AM62="Baja",AO62="Moderado"),AND(AM62="Media",AO62="Leve"),AND(AM62="Media",AO62="Menor"),AND(AM62="Media",AO62="Moderado"),AND(AM62="Alta",AO62="Leve"),AND(AM62="Alta",AO62="Menor")),"MODERADO",IF(OR(AND(AM62="Muy Baja",AO62="Mayor"),AND(AM62="Baja",AO62="Mayor"),AND(AM62="Media",AO62="Mayor"),AND(AM62="Alta",AO62="Moderado"),AND(AM62="Alta",AO62="Mayor"),AND(AM62="Muy Alta",AO62="Leve"),AND(AM62="Muy Alta",AO62="Menor"),AND(AM62="Muy Alta",AO62="Moderado"),AND(AM62="Muy Alta",AO62="Mayor")),"ALTO",IF(OR(AND(AM62="Muy Baja",AO62="Catastrófico"),AND(AM62="Baja",AO62="Catastrófico"),AND(AM62="Media",AO62="Catastrófico"),AND(AM62="Alta",AO62="Catastrófico"),AND(AM62="Muy Alta",AO62="Catastrófico")),"EXTREMO","")))),"") -> 
W63: =IF(OR(U63="PREVENTIVO",U63="DETECTIVO"),"PROBABILIDAD",IF(U63="CORRECTIVO","IMPACTO","")) ->  | X63: =IF(AND(U63="PREVENTIVO",V63="AUTOMÁTICO"),"50%",IF(AND(U63="PREVENTIVO",V63="MANUAL"),"40%",IF(AND(U63="DETECTIVO",V63="AUTOMÁTICO"),"40%",IF(AND(U63="DETECTIVO",V63="MANUAL"),"30%",IF(AND(U63="CORRECTIVO",V63="AUTOMÁTICO"),"35%",IF(AND(U63="CORRECTIVO",V63="MANUAL"),"25%","")))))) ->  | Y63: =IFERROR(IF(AND(W62="Probabilidad",W63="Probabilidad"),(Y62-(Y62*X63)),IF(W63="Probabilidad",(L62-(L62*X63)),IF(W63="Impacto",Y62,""))),"") ->  | AA63: =IFERROR(IF(AND(W62="Impacto",W63="Impacto"),(AA62-(AA62*X63)),IF(W63="Impacto",(O62-(+O62*X63)),IF(W63="Probabilidad",AA62,""))),"") ->  | AB63: =IFERROR(IF(AA63="","",IF(AA63<=0.2,"LEVE",IF(AA63<=0.4,"MENOR",IF(AA63<=0.6,"MODERADO",IF(AA63<=0.8,"MAYOR",IF(AA63=1,"CATASTRÓFICO")))))),"") ->  | AC63: =IFERROR(IF(OR(AND(Z63="Muy Baja",AB63="Leve"),AND(Z63="Muy Baja",AB63="Menor"),AND(Z63="Baja",AB63="Leve")),"BAJO",IF(OR(AND(Z63="Muy baja",AB63="Moderado"),AND(Z63="Baja",AB63="Menor"),AND(Z63="Baja",AB63="Moderado"),AND(Z63="Media",AB63="Leve"),AND(Z63="Media",AB63="Menor"),AND(Z63="Media",AB63="Moderado"),AND(Z63="Alta",AB63="Leve"),AND(Z63="Alta",AB63="Menor")),"MODERADO",IF(OR(AND(Z63="Muy Baja",AB63="Mayor"),AND(Z63="Baja",AB63="Mayor"),AND(Z63="Media",AB63="Mayor"),AND(Z63="Alta",AB63="Moderado"),AND(Z63="Alta",AB63="Mayor"),AND(Z63="Muy Alta",AB63="Leve"),AND(Z63="Muy Alta",AB63="Menor"),AND(Z63="Muy Alta",AB63="Moderado"),AND(Z63="Muy Alta",AB63="Mayor")),"ALTO",IF(OR(AND(Z63="Muy Baja",AB63="Catastrófico"),AND(Z63="Baja",AB63="Catastrófico"),AND(Z63="Media",AB63="Catastrófico"),AND(Z63="Alta",AB63="Catastrófico"),AND(Z63="Muy Alta",AB63="Catastrófico")),"EXTREMO","")))),"") -> 
Y64: =IFERROR(IF(AND(W63="Probabilidad",W64="Probabilidad"),(Y63-(Y63*X64)),IF(AND(W63="Impacto",W64="Probabilidad"),(Y62-(Y62*X64)),IF(W64="Impacto",Y63,""))),"") ->  | Z64: =IFERROR(IF(Y64="","",IF(Y64<=0.2,"MUY BAJA",IF(Y64<=0.4,"BAJA",IF(Y64<=0.6,"MEDIA",IF(Y64<=0.8,"ALTA",IF(Y64=1,"MUY ALTA")))))),"") ->  | AA64: =IFERROR(IF(AND(W63="Impacto",W64="Impacto"),(AA63-(AA63*X64)),IF(AND(W63="Probabilidad",W64="Impacto"),(AA62-(AA62*X64)),IF(W64="Probabilidad",AA63,""))),"") -> 
Y65: =IFERROR(IF(AND(W64="Probabilidad",W65="Probabilidad"),(Y64-(Y64*X65)),IF(AND(W64="Impacto",W65="Probabilidad"),(Y63-(Y63*X65)),IF(W65="Impacto",Y64,""))),"") ->  | AA65: =IFERROR(IF(AND(W64="Impacto",W65="Impacto"),(AA64-(AA64*X65)),IF(AND(W64="Probabilidad",W65="Impacto"),(AA63-(AA63*X65)),IF(W65="Probabilidad",AA64,""))),"") -> 
A67: =IF(OR(AL67=0,AN67=0),"",IF(AND(AL67<=0.2,AN67<=0.2),1,IF(AND(AL67<=0.2,AN67<=0.4),2,IF(AND(AL67<=0.2,AN67<=0.6),3,IF(AND(AL67<=0.2,AN67<=0.8),4,IF(AND(AL67<=0.2,AN67<=1),5,IF(AND(AL67<=0.4,AN67<=0.2),6,IF(AND(AL67<=0.4,AN67<=0.4),7,IF(AND(AL67<=0.4,AN67<=0.6),8,IF(AND(AL67<=0.4,AN67<=0.8),9,IF(AND(AL67<=0.4,AN67<=1),10,IF(AND(AL67<=0.6,AN67<=0.2),11,IF(AND(AL67<=0.6,AN67<=0.4),12,IF(AND(AL67<=0.6,AN67<=0.6),13,IF(AND(AL67<=0.6,AN67<=0.8),14,IF(AND(AL67<=0.6,AN67<=1),15,IF(AND(AL67<=0.8,AN67<=0.2),16,IF(AND(AL67<=0.8,AN67<=0.4),17,IF(AND(AL67<=0.8,AN67<=0.6),18,IF(AND(AL67<=0.8,AN67<=0.8),19,IF(AND(AL67<=0.8,AN67<=1),20,IF(AND(AL67<=1,AN67<=0.2),21,IF(AND(AL67<=1,AN67<=0.4),22,IF(AND(AL67<=1,AN67<=0.6),23,IF(AND(AL67<=1,AN67<=0.8),24,IF(AND(AL67<=1,AN67<=1),25,"")))))))))))))))))))))))))) ->  | B67: =IF(A67="","",1/100) ->  | C67: =IFERROR(A67+B67,"") ->  | D67: 15 | K67: =IF(I67<=0,"",IF(I67<=2,"Muy Baja",IF(I67<=24,"Baja",IF(I67<=500,"Media",IF(I67<=5000,"Alta",IF(I67>5000,"Muy Alta")))))) ->  | L67: =IF(K67="","",IF(K67="Muy Baja",0.2,IF(K67="Baja",0.4,IF(K67="Media",0.6,IF(K67="Alta",0.8,IF(K67="Muy Alta",1,)))))) ->  | N67: =IF(OR(M67=CRITERIOS!$C$182,M67=CRITERIOS!$D$182),"Leve",IF(OR(M67=CRITERIOS!$C$183,M67=CRITERIOS!$D$183),"Menor",IF(OR(M67=CRITERIOS!$C$184,M67=CRITERIOS!$D$184),"Moderado",IF(OR(M67=CRITERIOS!$C$185,M67=CRITERIOS!$D$185),"Mayor",IF(OR(M67=CRITERIOS!$C$186,M67=CRITERIOS!$D$186),"Catastrófico",""))))) ->  | O67: =IF(N67="","",IF(N67="Leve",0.2,IF(N67="Menor",0.4,IF(N67="Moderado",0.6,IF(N67="Mayor",0.8,IF(N67="Catastrófico",1,)))))) ->  | P67: =IF(OR(AND(K67="Muy Baja",N67="Leve"),AND(K67="Muy Baja",N67="Menor"),AND(K67="Baja",N67="Leve")),"BAJO",IF(OR(AND(K67="Muy baja",N67="Moderado"),AND(K67="Baja",N67="Menor"),AND(K67="Baja",N67="Moderado"),AND(K67="Media",N67="Leve"),AND(K67="Media",N67="Menor"),AND(K67="Media",N67="Moderado"),AND(K67="Alta",N67="Leve"),AND(K67="Alta",N67="Menor")),"MODERADO",IF(OR(AND(K67="Muy Baja",N67="Mayor"),AND(K67="Baja",N67="Mayor"),AND(K67="Media",N67="Mayor"),AND(K67="Alta",N67="Moderado"),AND(K67="Alta",N67="Mayor"),AND(K67="Muy Alta",N67="Leve"),AND(K67="Muy Alta",N67="Menor"),AND(K67="Muy Alta",N67="Moderado"),YF67="Muy Alta",N67="Mayor"),"ALTO",IF(OR(AND(K67="Muy Baja",N67="Catastrófico"),AND(K67="Baja",N67="Catastrófico"),AND(K67="Media",N67="Catastrófico"),AND(K67="Alta",N67="Catastrófico"),AND(K67="Muy Alta",N67="Catastrófico")),"EXTREMO","")))) ->  | W67: =IF(OR(U67="PREVENTIVO",U67="DETECTIVO"),"PROBABILIDAD",IF(U67="CORRECTIVO","IMPACTO","")) ->  | X67: =IF(AND(U67="PREVENTIVO",V67="AUTOMÁTICO"),"50%",IF(AND(U67="PREVENTIVO",V67="MANUAL"),"40%",IF(AND(U67="DETECTIVO",V67="AUTOMÁTICO"),"40%",IF(AND(U67="DETECTIVO",V67="MANUAL"),"30%",IF(AND(U67="CORRECTIVO",V67="AUTOMÁTICO"),"35%",IF(AND(U67="CORRECTIVO",V67="MANUAL"),"25%","")))))) ->  | Y67: =IFERROR(IF(W67="Probabilidad",(L67-(L67*X67)),IF(W67="Impacto",L67,"")),"") ->  | Z67: =IFERROR(IF(Y67="","",IF(Y67<=0.2,"MUY BAJA",IF(Y67<=0.4,"BAJA",IF(Y67<=0.6,"MEDIA",IF(Y67<=0.8,"ALTA",IF(Y67=1,"MUY ALTA")))))),"") ->  | AA67: =IFERROR(IF(W67="Impacto",(O67-(O67*X67)),IF(W67="Probabilidad",O67,"")),"") ->  | AB67: =IFERROR(IF(AA67="","",IF(AA67<=0.2,"LEVE",IF(AA67<=0.4,"MENOR",IF(AA67<=0.6,"MODERADO",IF(AA67<=0.8,"MAYOR",IF(AA67=1,"CATASTRÓFICO")))))),"") ->  | AC67: =IFERROR(IF(OR(AND(Z67="Muy Baja",AB67="Leve"),AND(Z67="Muy Baja",AB67="Menor"),AND(Z67="Baja",AB67="Leve")),"BAJO",IF(OR(AND(Z67="Muy baja",AB67="Moderado"),AND(Z67="Baja",AB67="Menor"),AND(Z67="Baja",AB67="Moderado"),AND(Z67="Media",AB67="Leve"),AND(Z67="Media",AB67="Menor"),AND(Z67="Media",AB67="Moderado"),AND(Z67="Alta",AB67="Leve"),AND(Z67="Alta",AB67="Menor")),"MODERADO",IF(OR(AND(Z67="Muy Baja",AB67="Mayor"),AND(Z67="Baja",AB67="Mayor"),AND(Z67="Media",AB67="Mayor"),AND(Z67="Alta",AB67="Moderado"),AND(Z67="Alta",AB67="Mayor"),AND(Z67="Muy Alta",AB67="Leve"),AND(Z67="Muy Alta",AB67="Menor"),AND(Z67="Muy Alta",AB67="Moderado"),AND(Z67="Muy Alta",AB67="Mayor")),"ALTO",IF(OR(AND(Z67="Muy Baja",AB67="Catastrófico"),AND(Z67="Baja",AB67="Catastrófico"),AND(Z67="Media",AB67="Catastrófico"),AND(Z67="Alta",AB67="Catastrófico"),AND(Z67="Muy Alta",AB67="Catastrófico")),"EXTREMO","")))),"") ->  | AL67: =IF(Y67="","",MIN(Y67:Y71)) ->  | AM67: =IFERROR(IF(AL67="","",IF(Y67<=0.2,"MUY BAJA",IF(AL67<=0.4,"BAJA",IF(AL67<=0.6,"MEDIA",IF(AL67<=0.8,"ALTA",IF(AL67=1,"MUY ALTA")))))),"") ->  | AN67: =IF(AA67="","",MIN(AA67:AA71)) ->  | AO67: =IFERROR(IF(AN67="","",IF(AN67<=0.2,"LEVE",IF(AN67<=0.4,"MENOR",IF(AN67<=0.6,"MODERADO",IF(AN67<=0.8,"MAYOR",IF(AN67=1,"CATASTRÓFICO")))))),"") ->  | AP67: =IFERROR(IF(OR(AND(AM67="Muy Baja",AO67="Leve"),AND(AM67="Muy Baja",AO67="Menor"),AND(AM67="Baja",AO67="Leve")),"BAJO",IF(OR(AND(AM67="Muy baja",AO67="Moderado"),AND(AM67="Baja",AO67="Menor"),AND(AM67="Baja",AO67="Moderado"),AND(AM67="Media",AO67="Leve"),AND(AM67="Media",AO67="Menor"),AND(AM67="Media",AO67="Moderado"),AND(AM67="Alta",AO67="Leve"),AND(AM67="Alta",AO67="Menor")),"MODERADO",IF(OR(AND(AM67="Muy Baja",AO67="Mayor"),AND(AM67="Baja",AO67="Mayor"),AND(AM67="Media",AO67="Mayor"),AND(AM67="Alta",AO67="Moderado"),AND(AM67="Alta",AO67="Mayor"),AND(AM67="Muy Alta",AO67="Leve"),AND(AM67="Muy Alta",AO67="Menor"),AND(AM67="Muy Alta",AO67="Moderado"),AND(AM67="Muy Alta",AO67="Mayor")),"ALTO",IF(OR(AND(AM67="Muy Baja",AO67="Catastrófico"),AND(AM67="Baja",AO67="Catastrófico"),AND(AM67="Media",AO67="Catastrófico"),AND(AM67="Alta",AO67="Catastrófico"),AND(AM67="Muy Alta",AO67="Catastrófico")),"EXTREMO","")))),"") -> 
W68: =IF(OR(U68="PREVENTIVO",U68="DETECTIVO"),"PROBABILIDAD",IF(U68="CORRECTIVO","IMPACTO","")) ->  | X68: =IF(AND(U68="PREVENTIVO",V68="AUTOMÁTICO"),"50%",IF(AND(U68="PREVENTIVO",V68="MANUAL"),"40%",IF(AND(U68="DETECTIVO",V68="AUTOMÁTICO"),"40%",IF(AND(U68="DETECTIVO",V68="MANUAL"),"30%",IF(AND(U68="CORRECTIVO",V68="AUTOMÁTICO"),"35%",IF(AND(U68="CORRECTIVO",V68="MANUAL"),"25%","")))))) ->  | Y68: =IFERROR(IF(AND(W67="Probabilidad",W68="Probabilidad"),(Y67-(Y67*X68)),IF(W68="Probabilidad",(L67-(L67*X68)),IF(W68="Impacto",Y67,""))),"") ->  | Z68: =IFERROR(IF(Y68="","",IF(Y68<=0.2,"MUY BAJA",IF(Y68<=0.4,"BAJA",IF(Y68<=0.6,"MEDIA",IF(Y68<=0.8,"ALTA",IF(Y68=1,"MUY ALTA")))))),"") ->  | AA68: =IFERROR(IF(AND(W67="Impacto",W68="Impacto"),(AA67-(AA67*X68)),IF(W68="Impacto",(O67-(+O67*X68)),IF(W68="Probabilidad",AA67,""))),"") ->  | AB68: =IFERROR(IF(AA68="","",IF(AA68<=0.2,"LEVE",IF(AA68<=0.4,"MENOR",IF(AA68<=0.6,"MODERADO",IF(AA68<=0.8,"MAYOR",IF(AA68=1,"CATASTRÓFICO")))))),"") ->  | AC68: =IFERROR(IF(OR(AND(Z68="Muy Baja",AB68="Leve"),AND(Z68="Muy Baja",AB68="Menor"),AND(Z68="Baja",AB68="Leve")),"BAJO",IF(OR(AND(Z68="Muy baja",AB68="Moderado"),AND(Z68="Baja",AB68="Menor"),AND(Z68="Baja",AB68="Moderado"),AND(Z68="Media",AB68="Leve"),AND(Z68="Media",AB68="Menor"),AND(Z68="Media",AB68="Moderado"),AND(Z68="Alta",AB68="Leve"),AND(Z68="Alta",AB68="Menor")),"MODERADO",IF(OR(AND(Z68="Muy Baja",AB68="Mayor"),AND(Z68="Baja",AB68="Mayor"),AND(Z68="Media",AB68="Mayor"),AND(Z68="Alta",AB68="Moderado"),AND(Z68="Alta",AB68="Mayor"),AND(Z68="Muy Alta",AB68="Leve"),AND(Z68="Muy Alta",AB68="Menor"),AND(Z68="Muy Alta",AB68="Moderado"),AND(Z68="Muy Alta",AB68="Mayor")),"ALTO",IF(OR(AND(Z68="Muy Baja",AB68="Catastrófico"),AND(Z68="Baja",AB68="Catastrófico"),AND(Z68="Media",AB68="Catastrófico"),AND(Z68="Alta",AB68="Catastrófico"),AND(Z68="Muy Alta",AB68="Catastrófico")),"EXTREMO","")))),"") -> 
Y69: =IFERROR(IF(AND(W68="Probabilidad",W69="Probabilidad"),(Y68-(Y68*X69)),IF(AND(W68="Impacto",W69="Probabilidad"),(Y67-(Y67*X69)),IF(W69="Impacto",Y68,""))),"") ->  | AA69: =IFERROR(IF(AND(W68="Impacto",W69="Impacto"),(AA68-(AA68*X69)),IF(AND(W68="Probabilidad",W69="Impacto"),(AA67-(AA67*X69)),IF(W69="Probabilidad",AA68,""))),"") -> 
Y70: =IFERROR(IF(AND(W69="Probabilidad",W70="Probabilidad"),(Y69-(Y69*X70)),IF(AND(W69="Impacto",W70="Probabilidad"),(Y68-(Y68*X70)),IF(W70="Impacto",Y69,""))),"") ->  | AA70: =IFERROR(IF(AND(W69="Impacto",W70="Impacto"),(AA69-(AA69*X70)),IF(AND(W69="Probabilidad",W70="Impacto"),(AA68-(AA68*X70)),IF(W70="Probabilidad",AA69,""))),"") -> 
A72: =IF(AND(AL72=1,AN72=1),1,IF(AND(AL72=1,AN72=2),2,IF(AND(AL72=1,AN72=3),3,IF(AND(AL72=1,AN72=4),4,IF(AND(AL72=1,AN72=5),5,IF(AND(AL72=2,AN72=1),6,IF(AND(AL72=2,AN72=2),7,IF(AND(AL72=2,AN72=3),8,IF(AND(AL72=2,AN72=4),9,IF(AND(AL72=2,AN72=5),10,IF(AND(AL72=3,AN72=1),11,IF(AND(AL72=3,AN72=2),12,IF(AND(AL72=3,AN72=3),13,IF(AND(AL72=3,AN72=4),14,IF(AND(AL72=3,AN72=5),15,IF(AND(AL72=4,AN72=1),16,IF(AND(AL72=4,AN72=2),17,IF(AND(AL72=4,AN72=3),18,IF(AND(AL72=4,AN72=4),19,IF(AND(AL72=4,AN72=5),20,IF(AND(AL72=5,AN72=1),21,IF(AND(AL72=5,AN72=2),22,IF(AND(AL72=5,AN72=3),23,IF(AND(AL72=5,AN72=4),24,IF(AND(AL72=5,AN72=5),25,""))))))))))))))))))))))))) ->  | B72: =IF(A72="","",(COUNTIF($A$8:A72,A72))/100) ->  | C72: =IFERROR(A72+B72,"") ->  | D72: 16 | P72: =IF(OR(I72="",M72=""),"",I72*M72) ->  | W72: =IF(OR(U72="PREVENTIVO",U72="DETECTIVO"),"PROBABILIDAD",IF(U72="CORRECTIVO","IMPACTO","")) ->  | X72: =IF(AND(U72="PREVENTIVO",V72="AUTOMÁTICO"),"50%",IF(AND(U72="PREVENTIVO",V72="MANUAL"),"40%",IF(AND(U72="DETECTIVO",V72="AUTOMÁTICO"),"40%",IF(AND(U72="DETECTIVO",V72="MANUAL"),"30%",IF(AND(U72="CORRECTIVO",V72="AUTOMÁTICO"),"35%",IF(AND(U72="CORRECTIVO",V72="MANUAL"),"25%","")))))) ->  | Z72: =IFERROR(IF(Y72="","",IF(Y72<=0.2,"MUY BAJA",IF(Y72<=0.4,"BAJA",IF(Y72<=0.6,"MEDIA",IF(Y72<=0.8,"ALTA",IF(Y72=1,"MUY ALTA")))))),"") ->  | AB72: =IFERROR(IF(AA72="","",IF(AA72<=0.2,"LEVE",IF(AA72<=0.4,"MENOR",IF(AA72<=0.6,"MODERADO",IF(AA72<=0.8,"MAYOR",IF(AA72=1,"CATASTRÓFICO")))))),"") ->  | AC72: =IFERROR(IF(OR(AND(Z72="Muy Baja",AB72="Leve"),AND(Z72="Muy Baja",AB72="Menor"),AND(Z72="Baja",AB72="Leve")),"BAJO",IF(OR(AND(Z72="Muy baja",AB72="Moderado"),AND(Z72="Baja",AB72="Menor"),AND(Z72="Baja",AB72="Moderado"),AND(Z72="Media",AB72="Leve"),AND(Z72="Media",AB72="Menor"),AND(Z72="Media",AB72="Moderado"),AND(Z72="Alta",AB72="Leve"),AND(Z72="Alta",AB72="Menor")),"MODERADO",IF(OR(AND(Z72="Muy Baja",AB72="Mayor"),AND(Z72="Baja",AB72="Mayor"),AND(Z72="Media",AB72="Mayor"),AND(Z72="Alta",AB72="Moderado"),AND(Z72="Alta",AB72="Mayor"),AND(Z72="Muy Alta",AB72="Leve"),AND(Z72="Muy Alta",AB72="Menor"),AND(Z72="Muy Alta",AB72="Moderado"),AND(Z72="Muy Alta",AB72="Mayor")),"ALTO",IF(OR(AND(Z72="Muy Baja",AB72="Catastrófico"),AND(Z72="Baja",AB72="Catastrófico"),AND(Z72="Media",AB72="Catastrófico"),AND(Z72="Alta",AB72="Catastrófico"),AND(Z72="Muy Alta",AB72="Catastrófico")),"EXTREMO","")))),"") ->  | AL72: =IF(Y72="","",IF(Y72>=90,I72-2,IF(Y72>=70,I72-1,I72))) ->  | AM72: =IF(Z72="","",IF(Z72>=90,J72-2,IF(Z72>=70,J72-1,J72))) -> 
B73: =IF(A73="","",(COUNTIF($A$8:A73,A73))/100) ->  | C73: =IFERROR(A73+B73,"") ->  | D73: 17 | AL73: =IF(Y73="","",IF(Y73>=90,I73-2,IF(Y73>=70,I73-1,I73))) ->  | AM73: =IF(AM33="","",IF(AM33>=90,J73-2,IF(AM33>=70,J73-1,J73))) -> 
B74: =IF(A74="","",(COUNTIF($A$8:A74,A74))/100) ->  | C74: =IFERROR(A74+B74,"") ->  | D74: 18
B75: =IF(A75="","",(COUNTIF($A$8:A75,A75))/100) ->  | D75: 19
B76: =IF(A76="","",(COUNTIF($A$8:A76,A76))/100) ->  | D76: 20
B77: =IF(A77="","",(COUNTIF($A$8:A77,A77))/100) ->  | D77: 21 | AM77: =IF(AM37="","",IF(AM37>=90,J77-2,IF(AM37>=70,J77-1,J77))) -> 
B78: =IF(A78="","",(COUNTIF($A$8:A78,A78))/100) ->  | D78: 22
B79: =IF(A79="","",(COUNTIF($A$8:A79,A79))/100) ->  | D79: 23
B80: =IF(A80="","",(COUNTIF($A$8:A80,A80))/100) ->  | D80: 24
B81: =IF(A81="","",(COUNTIF($A$8:A81,A81))/100) ->  | D81: 25
B82: =IF(A82="","",(COUNTIF($A$8:A82,A82))/100) ->  | D82: 26
B83: =IF(A83="","",(COUNTIF($A$8:A83,A83))/100) ->  | D83: 27 | AM83: =IF(Z83="","",IF(Z83>=90,J83-2,IF(Z83>=70,J83-1,J83))) -> 
B84: =IF(A84="","",(COUNTIF($A$8:A84,A84))/100) ->  | D84: 28
B85: =IF(A85="","",(COUNTIF($A$8:A85,A85))/100) ->  | D85: 29
B86: =IF(A86="","",(COUNTIF($A$8:A86,A86))/100) ->  | D86: 30
B87: =IF(A87="","",(COUNTIF($A$8:A87,A87))/100) ->  | D87: 31
B88: =IF(A88="","",(COUNTIF($A$8:A88,A88))/100) ->  | D88: 32
B89: =IF(A89="","",(COUNTIF($A$8:A89,A89))/100) ->  | D89: 33 | P89: =IF(OR(I89="",M89=""),"",I89*M89) -> 
B90: =IF(A90="","",(COUNTIF($A$8:A90,A90))/100) ->  | D90: 34
B91: =IF(A91="","",(COUNTIF($A$8:A91,A91))/100) ->  | D91: 35
B92: =IF(A92="","",(COUNTIF($A$8:A92,A92))/100) ->  | D92: 36
B93: =IF(A93="","",(COUNTIF($A$8:A93,A93))/100) ->  | D93: 37
B94: =IF(A94="","",(COUNTIF($A$8:A94,A94))/100) ->  | D94: 38
B95: =IF(A95="","",(COUNTIF($A$8:A95,A95))/100) ->  | D95: 39
B96: =IF(A96="","",(COUNTIF($A$8:A96,A96))/100) ->  | D96: 40
B97: =IF(A97="","",(COUNTIF($A$8:A97,A97))/100) ->  | D97: 41
B98: =IF(A98="","",(COUNTIF($A$8:A98,A98))/100) ->  | D98: 42
A99: =IF(AND(AL99=1,AN99=1),1,IF(AND(AL99=1,AN99=2),2,IF(AND(AL99=1,AN99=3),3,IF(AND(AL99=1,AN99=4),4,IF(AND(AL99=1,AN99=5),5,IF(AND(AL99=2,AN99=1),6,IF(AND(AL99=2,AN99=2),7,IF(AND(AL99=2,AN99=3),8,IF(AND(AL99=2,AN99=4),9,IF(AND(AL99=2,AN99=5),10,IF(AND(AL99=3,AN99=1),11,IF(AND(AL99=3,AN99=2),12,IF(AND(AL99=3,AN99=3),13,IF(AND(AL99=3,AN99=4),14,IF(AND(AL99=3,AN99=5),15,IF(AND(AL99=4,AN99=1),16,IF(AND(AL99=4,AN99=2),17,IF(AND(AL99=4,AN99=3),18,IF(AND(AL99=4,AN99=4),19,IF(AND(AL99=4,AN99=5),20,IF(AND(AL99=5,AN99=1),21,IF(AND(AL99=5,AN99=2),22,IF(AND(AL99=5,AN99=3),23,IF(AND(AL99=5,AN99=4),24,IF(AND(AL99=5,AN99=5),25,""))))))))))))))))))))))))) ->  | B99: =IF(A99="","",(COUNTIF($A$8:A99,A99))/100) ->  | D99: 43
B100: =IF(A100="","",(COUNTIF($A$8:A100,A100))/100) ->  | D100: 44
B101: =IF(A101="","",(COUNTIF($A$8:A101,A101))/100) ->  | D101: 45
B102: =IF(A102="","",(COUNTIF($A$8:A102,A102))/100) ->  | D102: 46
B103: =IF(A103="","",(COUNTIF($A$8:A103,A103))/100) ->  | D103: 47
B104: =IF(A104="","",(COUNTIF($A$8:A104,A104))/100) ->  | D104: 48
B105: =IF(A105="","",(COUNTIF($A$8:A105,A105))/100) ->  | D105: 49 | AL105: =IF(Y105="","",IF(Y105>=90,I105-2,IF(Y105>=70,I105-1,I105))) -> 
B106: =IF(A106="","",(COUNTIF($A$8:A106,A106))/100) ->  | D106: 50
B107: =IF(A107="","",(COUNTIF($A$8:A107,A107))/100) ->  | D107: 51
B108: =IF(A108="","",(COUNTIF($A$8:A108,A108))/100) ->  | D108: 52
B109: =IF(A109="","",(COUNTIF($A$8:A109,A109))/100) ->  | D109: 53
B110: =IF(A110="","",(COUNTIF($A$8:A110,A110))/100) ->  | D110: 54
B111: =IF(A111="","",(COUNTIF($A$8:A111,A111))/100) ->  | D111: 55
B112: =IF(A112="","",(COUNTIF($A$8:A112,A112))/100) ->  | D112: 56
B113: =IF(A113="","",(COUNTIF($A$8:A113,A113))/100) ->  | D113: 57
B114: =IF(A114="","",(COUNTIF($A$8:A114,A114))/100) ->  | D114: 58
B115: =IF(A115="","",(COUNTIF($A$8:A115,A115))/100) ->  | D115: 59 | AM115: =IF(Z115="","",IF(Z115>=90,J115-2,IF(Z115>=70,J115-1,J115))) -> 
B116: =IF(A116="","",(COUNTIF($A$8:A116,A116))/100) ->  | D116: 60
B117: =IF(A117="","",(COUNTIF($A$8:A117,A117))/100) ->  | D117: 61
B118: =IF(A118="","",(COUNTIF($A$8:A118,A118))/100) ->  | D118: 62
B119: =IF(A119="","",(COUNTIF($A$8:A119,A119))/100) ->  | D119: 63
B120: =IF(A120="","",(COUNTIF($A$8:A120,A120))/100) ->  | D120: 64
B121: =IF(A121="","",(COUNTIF($A$8:A121,A121))/100) ->  | D121: 65 | P121: =IF(OR(I121="",M121=""),"",I121*M121) -> 
B122: =IF(A122="","",(COUNTIF($A$8:A122,A122))/100) ->  | D122: 66
B123: =IF(A123="","",(COUNTIF($A$8:A123,A123))/100) ->  | C123: =IFERROR(A123+B123,"") ->  | D123: 67
B124: =IF(A124="","",(COUNTIF($A$8:A124,A124))/100) ->  | D124: 68
B125: =IF(A125="","",(COUNTIF($A$8:A125,A125))/100) ->  | D125: 69
B126: =IF(A126="","",(COUNTIF($A$8:A126,A126))/100) ->  | D126: 70 | X126: =IF(AND(U126="PREVENTIVO",V126="AUTOMÁTICO"),"50%",IF(AND(U126="PREVENTIVO",V126="MANUAL"),"40%",IF(AND(U126="DETECTIVO",V126="AUTOMÁTICO"),"40%",IF(AND(U126="DETECTIVO",V126="MANUAL"),"30%",IF(AND(U126="CORRECTIVO",V126="AUTOMÁTICO"),"35%",IF(AND(U126="CORRECTIVO",V126="MANUAL"),"25%","")))))) ->  | Z126: =IFERROR(IF(Y126="","",IF(Y126<=0.2,"MUY BAJA",IF(Y126<=0.4,"BAJA",IF(Y126<=0.6,"MEDIA",IF(Y126<=0.8,"ALTA",IF(Y126=1,"MUY ALTA")))))),"") ->  | AB126: =IFERROR(IF(AA126="","",IF(AA126<=0.2,"LEVE",IF(AA126<=0.4,"MENOR",IF(AA126<=0.6,"MODERADO",IF(AA126<=0.8,"MAYOR",IF(AA126=1,"CATASTRÓFICO")))))),"") -> 
B127: =IF(A127="","",(COUNTIF($A$8:A127,A127))/100) ->  | D127: 71
B128: =IF(A128="","",(COUNTIF($A$8:A128,A128))/100) ->  | D128: 72
B129: =IF(A129="","",(COUNTIF($A$8:A129,A129))/100) ->  | D129: 73
B130: =IF(A130="","",(COUNTIF($A$8:A130,A130))/100) ->  | D130: 74
A131: =IF(AND(AL131=1,AN131=1),1,IF(AND(AL131=1,AN131=2),2,IF(AND(AL131=1,AN131=3),3,IF(AND(AL131=1,AN131=4),4,IF(AND(AL131=1,AN131=5),5,IF(AND(AL131=2,AN131=1),6,IF(AND(AL131=2,AN131=2),7,IF(AND(AL131=2,AN131=3),8,IF(AND(AL131=2,AN131=4),9,IF(AND(AL131=2,AN131=5),10,IF(AND(AL131=3,AN131=1),11,IF(AND(AL131=3,AN131=2),12,IF(AND(AL131=3,AN131=3),13,IF(AND(AL131=3,AN131=4),14,IF(AND(AL131=3,AN131=5),15,IF(AND(AL131=4,AN131=1),16,IF(AND(AL131=4,AN131=2),17,IF(AND(AL131=4,AN131=3),18,IF(AND(AL131=4,AN131=4),19,IF(AND(AL131=4,AN131=5),20,IF(AND(AL131=5,AN131=1),21,IF(AND(AL131=5,AN131=2),22,IF(AND(AL131=5,AN131=3),23,IF(AND(AL131=5,AN131=4),24,IF(AND(AL131=5,AN131=5),25,""))))))))))))))))))))))))) ->  | B131: =IF(A131="","",(COUNTIF($A$8:A131,A131))/100) ->  | D131: 75
B132: =IF(A132="","",(COUNTIF($A$8:A132,A132))/100) ->  | D132: 76
B133: =IF(A133="","",(COUNTIF($A$8:A133,A133))/100) ->  | D133: 77
B134: =IF(A134="","",(COUNTIF($A$8:A134,A134))/100) ->  | D134: 78
B135: =IF(A135="","",(COUNTIF($A$8:A135,A135))/100) ->  | D135: 79
B136: =IF(A136="","",(COUNTIF($A$8:A136,A136))/100) ->  | D136: 80 | AL136: =IF(Y136="","",IF(Y136>=90,I136-2,IF(Y136>=70,I136-1,I136))) -> 
B137: =IF(A137="","",(COUNTIF($A$8:A137,A137))/100) ->  | D137: 81
B138: =IF(A138="","",(COUNTIF($A$8:A138,A138))/100) ->  | D138: 82
B139: =IF(A139="","",(COUNTIF($A$8:A139,A139))/100) ->  | D139: 83
B140: =IF(A140="","",(COUNTIF($A$8:A140,A140))/100) ->  | D140: 84
B141: =IF(A141="","",(COUNTIF($A$8:A141,A141))/100) ->  | D141: 85
B142: =IF(A142="","",(COUNTIF($A$8:A142,A142))/100) ->  | D142: 86
B143: =IF(A143="","",(COUNTIF($A$8:A143,A143))/100) ->  | D143: 87
B144: =IF(A144="","",(COUNTIF($A$8:A144,A144))/100) ->  | D144: 88
B145: =IF(A145="","",(COUNTIF($A$8:A145,A145))/100) ->  | D145: 89
B146: =IF(A146="","",(COUNTIF($A$8:A146,A146))/100) ->  | D146: 90
B147: =IF(A147="","",(COUNTIF($A$8:A147,A147))/100) ->  | D147: 91
B148: =IF(A148="","",(COUNTIF($A$8:A148,A148))/100) ->  | D148: 92
B149: =IF(A149="","",(COUNTIF($A$8:A149,A149))/100) ->  | D149: 93
B150: =IF(A150="","",(COUNTIF($A$8:A150,A150))/100) ->  | D150: 94
B151: =IF(A151="","",(COUNTIF($A$8:A151,A151))/100) ->  | D151: 95
B152: =IF(A152="","",(COUNTIF($A$8:A152,A152))/100) ->  | D152: 96
B153: =IF(A153="","",(COUNTIF($A$8:A153,A153))/100) ->  | D153: 97
B154: =IF(A154="","",(COUNTIF($A$8:A154,A154))/100) ->  | D154: 98
B155: =IF(A155="","",(COUNTIF($A$8:A155,A155))/100) ->  | D155: 99
B156: =IF(A156="","",(COUNTIF($A$8:A156,A156))/100) ->  | D156: 100

Sheet MAPA RIESGOS
D1: MACROPROCESO ESTRATÉGICO | I1: CÓDIGO: ESGr028
D2: PROCESO GESTIÓN SISTEMAS INTEGRADOS - CALIDAD | I2: VERSIÓN: 17
D3: GESTIÓN DEL RIESGO Y LAS OPORTUNIDADES | I3: VIGENCIA: 2023-10-12
I4: PÁGINA: 8 de 11
A6: REGRESAR | B6: MAPA DE RIESGOS DE LA UNIVERSIDAD DE CUNDINAMARCA
B8: IMPACTO | D8: Leve 20% | E8: Menor 40% | F8: Moderado 60% | G8: Mayor 80% | I8: Catastrófico 100% | N8: =IF(N9<>""," -R","") ->  | P8: =IF(P9<>""," -R","") ->  | R8: =IF(R9<>""," -R","") ->  | T8: =IF(T9<>""," -R","") ->  | V8: =IF(V9<>""," -R","") ->  | X8: =IF(X9<>""," -R","") ->  | Z8: =IF(Z9<>""," -R","") ->  | AB8: =IF(AB9<>""," -R","") -> -R | AD8: =IF(AD9<>""," -R","") ->  | AF8: =IF(AF9<>""," -R","") ->  | AH8: =IF(AH9<>""," -R","") ->  | AJ8: =IF(AJ9<>""," -R","") ->  | AL8: =IF(AL9<>""," -R","") ->  | AN8: =IF(AN9<>""," -R","") ->  | AP8: =IF(AP9<>""," -R","") ->  | AR8: =IF(AR9<>""," -R","") ->  | AT8: =IF(AT9<>""," -R","") ->  | AV8: =IF(AV9<>""," -R","") ->  | AX8: =IF(AX9<>""," -R","") ->  | AZ8: =IF(AZ9<>""," -R","") ->  | BB8: =IF(BB9<>""," -R","") ->  | BD8: =IF(BD9<>""," -R","") ->  | BF8: =IF(BF9<>""," -R","") ->  | BH8: =IF(BH9<>""," -R","") ->  | BJ8: =IF(BJ9<>""," -R","") -> 
B9: PROBABILIDAD | M9: 1.01 | N9: =IFERROR(VLOOKUP(M9,'CRUCE RIESGOS'!$C$8:$D$156,2,FALSE),"") ->  | O9: 2.01 | P9: =IFERROR(VLOOKUP(O9,'CRUCE RIESGOS'!$C$8:$D$156,2,FALSE),"") ->  | Q9: 3.01 | R9: =IFERROR(VLOOKUP(Q9,'CRUCE RIESGOS'!$C$8:$D$156,2,FALSE),"") ->  | S9: 4.01 | T9: =IFERROR(VLOOKUP(S9,'CRUCE RIESGOS'!$C$8:$D$156,2,FALSE),"") ->  | U9: 5.01 | V9: =IFERROR(VLOOKUP(U9,'CRUCE RIESGOS'!$C$8:$D$156,2,FALSE),"") ->  | W9: 6.01 | X9: =IFERROR(VLOOKUP(W9,'CRUCE RIESGOS'!$C$8:$D$156,2,FALSE),"") ->  | Y9: 7.01 | Z9: =IFERROR(VLOOKUP(Y9,'CRUCE RIESGOS'!$C$8:$D$156,2,FALSE),"") ->  | AA9: 8.01 | AB9: =IFERROR(VLOOKUP(AA9,'CRUCE RIESGOS'!$C$8:$D$156,2,FALSE),"") -> 2 | AC9: 9.01 | AD9: =IFERROR(VLOOKUP(AC9,'CRUCE RIESGOS'!$C$8:$D$156,2,FALSE),"") ->  | AE9: 10.01 | AF9: =IFERROR(VLOOKUP(AE9,'CRUCE RIESGOS'!$C$8:$D$156,2,FALSE),"") ->  | AG9: 11.01 | AH9: =IFERROR(VLOOKUP(AG9,'CRUCE RIESGOS'!$C$8:$D$156,2,FALSE),"") ->  | AI9: 12.01 | AJ9: =IFERROR(VLOOKUP(AI9,'CRUCE RIESGOS'!$C$8:$D$156,2,FALSE),"") ->  | AK9: 13.01 | AL9: =IFERROR(VLOOKUP(AK9,'CRUCE RIESGOS'!$C$8:$D$156,2,FALSE),"") ->  | AM9: 14.01 | AN9: =IFERROR(VLOOKUP(AM9,'CRUCE RIESGOS'!$C$8:$D$156,2,FALSE),"") ->  | AO9: 15.01 | AP9: =IFERROR(VLOOKUP(AO9,'CRUCE RIESGOS'!$C$8:$D$156,2,FALSE),"") ->  | AQ9: 16.01 | AR9: =IFERROR(VLOOKUP(AQ9,'CRUCE RIESGOS'!$C$8:$D$156,2,FALSE),"") ->  | AS9: 17.01 | AT9: =IFERROR(VLOOKUP(AS9,'CRUCE RIESGOS'!$C$8:$D$156,2,FALSE),"") ->  | AU9: 18.01 | AV9: =IFERROR(VLOOKUP(AU9,'CRUCE RIESGOS'!$C$8:$D$156,2,FALSE),"") ->  | AW9: 19.01 | AX9: =IFERROR(VLOOKUP(AW9,'CRUCE RIESGOS'!$C$8:$D$156,2,FALSE),"") ->  | AY9: 20.01 | AZ9: =IFERROR(VLOOKUP(AY9,'CRUCE RIESGOS'!$C$8:$D$156,2,FALSE),"") ->  | BA9: 21.01 | BB9: =IFERROR(VLOOKUP(BA9,'CRUCE RIESGOS'!$C$8:$D$156,2,FALSE),"") ->  | BC9: 22.01 | BD9: =IFERROR(VLOOKUP(BC9,'CRUCE RIESGOS'!$C$8:$D$156,2,FALSE),"") ->  | BE9: 23.01 | BF9: =IFERROR(VLOOKUP(BE9,'CRUCE RIESGOS'!$C$8:$D$156,2,FALSE),"") ->  | BG9: 24.01 | BH9: =IFERROR(VLOOKUP(BG9,'CRUCE RIESGOS'!$C$8:$D$156,2,FALSE),"") ->  | BI9: 25.01 | BJ9: =IFERROR(VLOOKUP(BI9,'CRUCE RIESGOS'!$C$8:$D$156,2,FALSE),"") -> 
B10: Muy Baja 20% | D10: =CONCATENATE(N8,N9,N10,N11,N12,N13,N14,N16,N17,N19,N20,N21,N22,N23,N24,N25,N26,N27,N28,N29,N30,N31,N32,N33,N34,N35,N36,N37,N38,N39,N40,N41,N42,N43,N44,N45,N46,N47,N48,N49,N50,N51,N52,N53,N54,N55,N56,N57,N58,N59,N60,N61,N62,N63,N64,N65,N66,N67,N68,N69,N70,N71,N72,N73,N74,N75,N76,N77,N78,N79,N80,N81,N82,N83,N84,N85,N86,N87,N88,N89,N90,N91,N92,N93,N94,N95,N96,N97,N98,N99,N100,N101,N102,N103,N104,N105,N106,N107,N108,N109,N110,N111,N112,N113,N114,N115,N116,N117,N118,N119,N120,N121,N122,N123,N124,N125,N126,N127,N128,N129,N130,N131,N132,N133,N134,N135,N136,N137,N138,N139,N140,N141,N142,N143,N144,N145,N146,N147,N148,N149,N150,N151,N152,N153,N154,N155,N156,N157,N158,N159,N160,N161,N162,N163,N164,N165,N166,N167,N168,N169,N170,N171,N172,N173,N174,N175,N176,N177,N178,N179,N180,N181,N182,N183,N184,N185,N186,N187,N188,N189,N190,N191,N192,N193,N194,N195,N196,N197,N198,N199,N200,N201,N202,N203,N204,N205,N206,N207) ->  | E10: =CONCATENATE(P8,P9,P10,P11,P12,P13,P14,P16,P17,P19,P20,P21,P22,P23,P24,P25,P26,P27,P28,P29,P30,P31,P32,P33,P34,P35,P36,P37,P38,P39,P40,P41,P42,P43,P44,P45,P46,P47,P48,P49,P50,P51,P52,P53,P54,P55,P56,P57,P58,P59,P60,P61,P62,P63,P64,P65,P66,P67,P68,P69,P70,P71,P72,P73,P74,P75,P76,P77,P78,P79,P80,P81,P82,P83,P84,P85,P86,P87,P88,P89,P90,P91,P92,P93,P94,P95,P96,P97,P98,P99,P100,P101,P102,P103,P104,P105,P106,P107,P108,P109,P110,P111,P112,P113,P114,P115,P116,P117,P118,P119,P120,P121,P122,P123,P124,P125,P126,P127,P128,P129,P130,P131,P132,P133,P134,P135,P136,P137,P138,P139,P140,P141,P142,P143,P144,P145,P146,P147,P148,P149,P150,P151,P152,P153,P154,P155,P156,P157,P158,P159,P160,P161,P162,P163,P164,P165,P166,P167,P168,P169,P170,P171,P172,P173,P174,P175,P176,P177,P178,P179,P180,P181,P182,P183,P184,P185,P186,P187,P188,P189,P190,P191,P192,P193,P194,P195,P196,P197,P198,P199,P200,P201,P202,P203,P204,P205,P206,P207) ->  | F10: =CONCATENATE(R8,R9,R10,R11,R12,R13,R14,R16,R17,R19,R20,R21,R22,R23,R24,R25,R26,R27,R28,R29,R30,R31,R32,R33,R34,R35,R36,R37,R38,R39,R40,R41,R42,R43,R44,R45,R46,R47,R48,R49,R50,R51,R52,R53,R54,R55,R56,R57,R58,R59,R60,R61,R62,R63,R64,R65,R66,R67,R68,R69,R70,R71,R72,R73,R74,R75,R76,R77,R78,R79,R80,R81,R82,R83,R84,R85,R86,R87,R88,R89,R90,R91,R92,R93,R94,R95,R96,R97,R98,R99,R100,R101,R102,R103,R104,R105,R106,R107,R108,R109,R110,R111,R112,R113,R114,R115,R116,R117,R118,R119,R120,R121,R122,R123,R124,R125,R126,R127,R128,R129,R130,R131,R132,R133,R134,R135,R136,R137,R138,R139,R140,R141,R142,R143,R144,R145,R146,R147,R148,R149,R150,R151,R152,R153,R154,R155,R156,R157,R158,R159,R160,R161,R162,R163,R164,R165,R166,R167,R168,R169,R170,R171,R172,R173,R174,R175,R176,R177,R178,R179,R180,R181,R182,R183,R184,R185,R186,R187,R188,R189,R190,R191,R192,R193,R194,R195,R196,R197,R198,R199,R200,R201,R202,R203,R204,R205,R206,R207) ->  | G10: =CONCATENATE(T8,T9,T10,T11,T12,T13,T14,T16,T17,T19,T20,T21,T22,T23,T24,T25,T26,T27,T28,T29,T30,T31,T32,T33,T34,T35,T36,T37,T38,T39,T40,T41,T42,T43,T44,T45,T46,T47,T48,T49,T50,T51,T52,T53,T54,T55,T56,T57,T58,T59,T60,T61,T62,T63,T64,T65,T66,T67,T68,T69,T70,T71,T72,T73,T74,T75,T76,T77,T78,T79,T80,T81,T82,T83,T84,T85,T86,T87,T88,T89,T90,T91,T92,T93,T94,T95,T96,T97,T98,T99,T100,T101,T102,T103,T104,T105,T106,T107,T108,T109,T110,T111,T112,T113,T114,T115,T116,T117,T118,T119,T120,T121,T122,T123,T124,T125,T126,T127,T128,T129,T130,T131,T132,T133,T134,T135,T136,T137,T138,T139,T140,T141,T142,T143,T144,T145,T146,T147,T148,T149,T150,T151,T152,T153,T154,T155,T156,T157,T158,T159,T160,T161,T162,T163,T164,T165,T166,T167,T168,T169,T170,T171,T172,T173,T174,T175,T176,T177,T178,T179,T180,T181,T182,T183,T184,T185,T186,T187,T188,T189,T190,T191,T192,T193,T194,T195,T196,T197,T198,T199,T200,T201,T202,T203,T204,T205,T206,T207) ->  | I10: =CONCATENATE(V8,V9,V10,V11,V12,V13,V14,V16,V17,V19,V20,V21,V22,V23,V24,V25,V26,V27,V28,V29,V30,V31,V32,V33,V34,V35,V36,V37,V38,V39,V40,V41,V42,V43,V44,V45,V46,V47,V48,V49,V50,V51,V52,V53,V54,V55,V56,V57,V58,V59,V60,V61,V62,V63,V64,V65,V66,V67,V68,V69,V70,V71,V72,V73,V74,V75,V76,V77,V78,V79,V80,V81,V82,V83,V84,V85,V86,V87,V88,V89,V90,V91,V92,V93,V94,V95,V96,V97,V98,V99,V100,V101,V102,V103,V104,V105,V106,V107,V108,V109,V110,V111,V112,V113,V114,V115,V116,V117,V118,V119,V120,V121,V122,V123,V124,V125,V126,V127,V128,V129,V130,V131,V132,V133,V134,V135,V136,V137,V138,V139,V140,V141,V142,V143,V144,V145,V146,V147,V148,V149,V150,V151,V152,V153,V154,V155,V156,V157,V158,V159,V160,V161,V162,V163,V164,V165,V166,V167,V168,V169,V170,V171,V172,V173,V174,V175,V176,V177,V178,V179,V180,V181,V182,V183,V184,V185,V186,V187,V188,V189,V190,V191,V192,V193,V194,V195,V196,V197,V198,V199,V200,V201,V202,V203,V204,V205,V206,V207) ->  | N10: =IF(N11<>""," -R","") ->  | P10: =IF(P11<>""," -R","") ->  | R10: =IF(R11<>""," -R","") ->  | T10: =IF(T11<>""," -R","") ->  | V10: =IF(V11<>""," -R","") ->  | X10: =IF(X11<>""," -R","") ->  | Z10: =IF(Z11<>""," -R","") ->  | AB10: =IF(AB11<>""," -R","") -> -R | AD10: =IF(AD11<>""," -R","") ->  | AF10: =IF(AF11<>""," -R","") ->  | AH10: =IF(AH11<>""," -R","") ->  | AJ10: =IF(AJ11<>""," -R","") ->  | AL10: =IF(AL11<>""," -R","") ->  | AN10: =IF(AN11<>""," -R","") ->  | AP10: =IF(AP11<>""," -R","") ->  | AR10: =IF(AR11<>""," -R","") ->  | AT10: =IF(AT11<>""," -R","") ->  | AV10: =IF(AV11<>""," -R","") ->  | AX10: =IF(AX11<>""," -R","") ->  | AZ10: =IF(AZ11<>""," -R","") ->  | BB10: =IF(BB11<>""," -R","") ->  | BD10: =IF(BD11<>""," -R","") ->  | BF10: =IF(BF11<>""," -R","") ->  | BH10: =IF(BH11<>""," -R","") ->  | BJ10: =IF(BJ11<>""," -R","") -> 
B11: Baja 40% | D11: =CONCATENATE(X8,X9,X10,X11,X12,X13,X14,X16,X17,X19,X20,X21,X22,X23,X24,X25,X26,X27,X28,X29,X30,X31,X32,X33,X34,X35,X36,X37,X38,X39,X40,X41,X42,X43,X44,X45,X46,X47,X48,X49,X50,X51,X52,X53,X54,X55,X56,X57,X58,X59,X60,X61,X62,X63,X64,X65,X66,X67,X68,X69,X70,X71,X72,X73,X74,X75,X76,X77,X78,X79,X80,X81,X82,X83,X84,X85,X86,X87,X88,X89,X90,X91,X92,X93,X94,X95,X96,X97,X98,X99,X100,X101,X102,X103,X104,X105,X106,X107,X108,X109,X110,X111,X112,X113,X114,X115,X116,X117,X118,X119,X120,X121,X122,X123,X124,X125,X126,X127,X128,X129,X130,X131,X132,X133,X134,X135,X136,X137,X138,X139,X140,X141,X142,X143,X144,X145,X146,X147,X148,X149,X150,X151,X152,X153,X154,X155,X156,X157,X158,X159,X160,X161,X162,X163,X164,X165,X166,X167,X168,X169,X170,X171,X172,X173,X174,X175,X176,X177,X178,X179,X180,X181,X182,X183,X184,X185,X186,X187,X188,X189,X190,X191,X192,X193,X194,X195,X196,X197,X198,X199,X200,X201,X202,X203,X204,X205,X206,X207) ->  | E11: =CONCATENATE(Z8,Z9,Z10,Z11,Z12,Z13,Z14,Z16,Z17,Z19,Z20,Z21,Z22,Z23,Z24,Z25,Z26,Z27,Z28,Z29,Z30,Z31,Z32,Z33,Z34,Z35,Z36,Z37,Z38,Z39,Z40,Z41,Z42,Z43,Z44,Z45,Z46,Z47,Z48,Z49,Z50,Z51,Z52,Z53,Z54,Z55,Z56,Z57,Z58,Z59,Z60,Z61,Z62,Z63,Z64,Z65,Z66,Z67,Z68,Z69,Z70,Z71,Z72,Z73,Z74,Z75,Z76,Z77,Z78,Z79,Z80,Z81,Z82,Z83,Z84,Z85,Z86,Z87,Z88,Z89,Z90,Z91,Z92,Z93,Z94,Z95,Z96,Z97,Z98,Z99,Z100,Z101,Z102,Z103,Z104,Z105,Z106,Z107,Z108,Z109,Z110,Z111,Z112,Z113,Z114,Z115,Z116,Z117,Z118,Z119,Z120,Z121,Z122,Z123,Z124,Z125,Z126,Z127,Z128,Z129,Z130,Z131,Z132,Z133,Z134,Z135,Z136,Z137,Z138,Z139,Z140,Z141,Z142,Z143,Z144,Z145,Z146,Z147,Z148,Z149,Z150,Z151,Z152,Z153,Z154,Z155,Z156,Z157,Z158,Z159,Z160,Z161,Z162,Z163,Z164,Z165,Z166,Z167,Z168,Z169,Z170,Z171,Z172,Z173,Z174,Z175,Z176,Z177,Z178,Z179,Z180,Z181,Z182,Z183,Z184,Z185,Z186,Z187,Z188,Z189,Z190,Z191,Z192,Z193,Z194,Z195,Z196,Z197,Z198,Z199,Z200,Z201,Z202,Z203,Z204,Z205,Z206,Z207) ->  | F11: =CONCATENATE(AB8,AB9,AB10,AB11,AB12,AB13,AB14,AB16,AB17,AB19,AB20,AB21,AB22,AB23,AB24,AB25,AB26,AB27,AB28,AB29,AB30,AB31,AB32,AB33,AB34,AB35,AB36,AB37,AB38,AB39,AB40,AB41,AB42,AB43,AB44,AB45,AB46,AB47,AB48,AB49,AB50,AB51,AB52,AB53,AB54,AB55,AB56,AB57,AB58,AB59,AB60,AB61,AB62,AB63,AB64,AB65,AB66,AB67,AB68,AB69,AB70,AB71,AB72,AB73,AB74,AB75,AB76,AB77,AB78,AB79,AB80,AB81,AB82,AB83,AB84,AB85,AB86,AB87,AB88,AB89,AB90,AB91,AB92,AB93,AB94,AB95,AB96,AB97,AB98,AB99,AB100,AB101,AB102,AB103,AB104,AB105,AB106,AB107,AB108,AB109,AB110,AB111,AB112,AB113,AB114,AB115,AB116,AB117,AB118,AB119,AB120,AB121,AB122,AB123,AB124,AB125,AB126,AB127,AB128,AB129,AB130,AB131,AB132,AB133,AB134,AB135,AB136,AB137,AB138,AB139,AB140,AB141,AB142,AB143,AB144,AB145,AB146,AB147,AB148,AB149,AB150,AB151,AB152,AB153,AB154,AB155,AB156,AB157,AB158,AB159,AB160,AB161,AB162,AB163,AB164,AB165,AB166,AB167,AB168,AB169,AB170,AB171,AB172,AB173,AB174,AB175,AB176,AB177,AB178,AB179,AB180,AB181,AB182,AB183,AB184,AB185,AB186,AB187,AB188,AB189,AB190,AB191,AB192,AB193,AB194,AB195,AB196,AB197,AB198,AB199,AB200,AB201,AB202,AB203,AB204,AB205,AB206,AB207) -> -R2 -R3 | G11: =CONCATENATE(AD8,AD9,AD10,AD11,AD12,AD13,AD14,AD16,AD17,AD19,AD20,AD21,AD22,AD23,AD24,AD25,AD26,AD27,AD28,AD29,AD30,AD31,AD32,AD33,AD34,AD35,AD36,AD37,AD38,AD39,AD40,AD41,AD42,AD43,AD44,AD45,AD46,AD47,AD48,AD49,AD50,AD51,AD52,AD53,AD54,AD55,AD56,AD57,AD58,AD59,AD60,AD61,AD62,AD63,AD64,AD65,AD66,AD67,AD68,AD69,AD70,AD71,AD72,AD73,AD74,AD75,AD76,AD77,AD78,AD79,AD80,AD81,AD82,AD83,AD84,AD85,AD86,AD87,AD88,AD89,AD90,AD91,AD92,AD93,AD94,AD95,AD96,AD97,AD98,AD99,AD100,AD101,AD102,AD103,AD104,AD105,AD106,AD107,AD108,AD109,AD110,AD111,AD112,AD113,AD114,AD115,AD116,AD117,AD118,AD119,AD120,AD121,AD122,AD123,AD124,AD125,AD126,AD127,AD128,AD129,AD130,AD131,AD132,AD133,AD134,AD135,AD136,AD137,AD138,AD139,AD140,AD141,AD142,AD143,AD144,AD145,AD146,AD147,AD148,AD149,AD150,AD151,AD152,AD153,AD154,AD155,AD156,AD157,AD158,AD159,AD160,AD161,AD162,AD163,AD164,AD165,AD166,AD167,AD168,AD169,AD170,AD171,AD172,AD173,AD174,AD175,AD176,AD177,AD178,AD179,AD180,AD181,AD182,AD183,AD184,AD185,AD186,AD187,AD188,AD189,AD190,AD191,AD192,AD193,AD194,AD195,AD196,AD197,AD198,AD199,AD200,AD201,AD202,AD203,AD204,AD205,AD206,AD207) ->  | I11: =CONCATENATE(AF8,AF9,AF10,AF11,AF12,AF13,AF14,AF16,AF17,AF19,AF20,AF21,AF22,AF23,AF24,AF25,AF26,AF27,AF28,AF29,AF30,AF31,AF32,AF33,AF34,AF35,AF36,AF37,AF38,AF39,AF40,AF41,AF42,AF43,AF44,AF45,AF46,AF47,AF48,AF49,AF50,AF51,AF52,AF53,AF54,AF55,AF56,AF57,AF58,AF59,AF60,AF61,AF62,AF63,AF64,AF65,AF66,AF67,AF68,AF69,AF70,AF71,AF72,AF73,AF74,AF75,AF76,AF77,AF78,AF79,AF80,AF81,AF82,AF83,AF84,AF85,AF86,AF87,AF88,AF89,AF90,AF91,AF92,AF93,AF94,AF95,AF96,AF97,AF98,AF99,AF100,AF101,AF102,AF103,AF104,AF105,AF106,AF107,AF108,AF109,AF110,AF111,AF112,AF113,AF114,AF115,AF116,AF117,AF118,AF119,AF120,AF121,AF122,AF123,AF124,AF125,AF126,AF127,AF128,AF129,AF130,AF131,AF132,AF133,AF134,AF135,AF136,AF137,AF138,AF139,AF140,AF141,AF142,AF143,AF144,AF145,AF146,AF147,AF148,AF149,AF150,AF151,AF152,AF153,AF154,AF155,AF156,AF157,AF158,AF159,AF160,AF161,AF162,AF163,AF164,AF165,AF166,AF167,AF168,AF169,AF170,AF171,AF172,AF173,AF174,AF175,AF176,AF177,AF178,AF179,AF180,AF181,AF182,AF183,AF184,AF185,AF186,AF187,AF188,AF189,AF190,AF191,AF192,AF193,AF194,AF195,AF196,AF197,AF198,AF199,AF200,AF201,AF202,AF203,AF204,AF205,AF206,AF207) ->  | M11: 1.02 | N11: =IFERROR(VLOOKUP(M11,'CRUCE RIESGOS'!$C$8:$D$156,2,FALSE),"") ->  | O11: 2.02 | P11: =IFERROR(VLOOKUP(O11,'CRUCE RIESGOS'!$C$8:$D$156,2,FALSE),"") ->  | Q11: 3.02 | R11: =IFERROR(VLOOKUP(Q11,'CRUCE RIESGOS'!$C$8:$D$156,2,FALSE),"") ->  | S11: 4.02 | T11: =IFERROR(VLOOKUP(S11,'CRUCE RIESGOS'!$C$8:$D$156,2,FALSE),"") ->  | U11: 5.02 | V11: =IFERROR(VLOOKUP(U11,'CRUCE RIESGOS'!$C$8:$D$156,2,FALSE),"") ->  | W11: 6.02 | X11: =IFERROR(VLOOKUP(W11,'CRUCE RIESGOS'!$C$8:$D$156,2,FALSE),"") ->  | Y11: 7.02 | Z11: =IFERROR(VLOOKUP(Y11,'CRUCE RIESGOS'!$C$8:$D$156,2,FALSE),"") ->  | AA11: 8.02 | AB11: =IFERROR(VLOOKUP(AA11,'CRUCE RIESGOS'!$C$8:$D$156,2,FALSE),"") -> 3 | AC11: 9.02 | AD11: =IFERROR(VLOOKUP(AC11,'CRUCE RIESGOS'!$C$8:$D$156,2,FALSE),"") ->  | AE11: 10.02 | AF11: =IFERROR(VLOOKUP(AE11,'CRUCE RIESGOS'!$C$8:$D$156,2,FALSE),"") ->  | AG11: 11.02 | AH11: =IFERROR(VLOOKUP(AG11,'CRUCE RIESGOS'!$C$8:$D$156,2,FALSE),"") ->  | AI11: 12.02 | AJ11: =IFERROR(VLOOKUP(AI11,'CRUCE RIESGOS'!$C$8:$D$156,2,FALSE),"") ->  | AK11: 13.02 | AL11: =IFERROR(VLOOKUP(AK11,'CRUCE RIESGOS'!$C$8:$D$156,2,FALSE),"") ->  | AM11: 14.02 | AN11: =IFERROR(VLOOKUP(AM11,'CRUCE RIESGOS'!$C$8:$D$156,2,FALSE),"") ->  | AO11: 15.02 | AP11: =IFERROR(VLOOKUP(AO11,'CRUCE RIESGOS'!$C$8:$D$156,2,FALSE),"") ->  | AQ11: 16.02 | AR11: =IFERROR(VLOOKUP(AQ11,'CRUCE RIESGOS'!$C$8:$D$156,2,FALSE),"") ->  | AS11: 17.02 | AT11: =IFERROR(VLOOKUP(AS11,'CRUCE RIESGOS'!$C$8:$D$156,2,FALSE),"") ->  | AU11: 18.02 | AV11: =IFERROR(VLOOKUP(AU11,'CRUCE RIESGOS'!$C$8:$D$156,2,FALSE),"") ->  | AW11: 19.02 | AX11: =IFERROR(VLOOKUP(AW11,'CRUCE RIESGOS'!$C$8:$D$156,2,FALSE),"") ->  | AY11: 20.02 | AZ11: =IFERROR(VLOOKUP(AY11,'CRUCE RIESGOS'!$C$8:$D$156,2,FALSE),"") ->  | BA11: 21.02 | BB11: =IFERROR(VLOOKUP(BA11,'CRUCE RIESGOS'!$C$8:$D$156,2,FALSE),"") ->  | BC11: 22.02 | BD11: =IFERROR(VLOOKUP(BC11,'CRUCE RIESGOS'!$C$8:$D$156,2,FALSE),"") ->  | BE11: 23.02 | BF11: =IFERROR(VLOOKUP(BE11,'CRUCE RIESGOS'!$C$8:$D$156,2,FALSE),"") ->  | BG11: 24.02 | BH11: =IFERROR(VLOOKUP(BG11,'CRUCE RIESGOS'!$C$8:$D$156,2,FALSE),"") ->  | BI11: 25.02 | BJ11: =IFERROR(VLOOKUP(BI11,'CRUCE RIESGOS'!$C$8:$D$156,2,FALSE),"") -> 
B12: Media 60% | D12: =CONCATENATE(AH8,AH9,AH10,AH11,AH12,AH13,AH14,AH16,AH17,AH19,AH20,AH21,AH22,AH23,AH24,AH25,AH26,AH27,AH28,AH29,AH30,AH31,AH32,AH33,AH34,AH35,AH36,AH37,AH38,AH39,AH40,AH41,AH42,AH43,AH44,AH45,AH46,AH47,AH48,AH49,AH50,AH51,AH52,AH53,AH54,AH55,AH56,AH57,AH58,AH59,AH60,AH61,AH62,AH63,AH64,AH65,AH66,AH67,AH68,AH69,AH70,AH71,AH72,AH73,AH74,AH75,AH76,AH77,AH78,AH79,AH80,AH81,AH82,AH83,AH84,AH85,AH86,AH87,AH88,AH89,AH90,AH91,AH92,AH93,AH94,AH95,AH96,AH97,AH98,AH99,AH100,AH101,AH102,AH103,AH104,AH105,AH106,AH107,AH108,AH109,AH110,AH111,AH112,AH113,AH114,AH115,AH116,AH117,AH118,AH119,AH120,AH121,AH122,AH123,AH124,AH125,AH126,AH127,AH128,AH129,AH130,AH131,AH132,AH133,AH134,AH135,AH136,AH137,AH138,AH139,AH140,AH141,AH142,AH143,AH144,AH145,AH146,AH147,AH148,AH149,AH150,AH151,AH152,AH153,AH154,AH155,AH156,AH157,AH158,AH159,AH160,AH161,AH162,AH163,AH164,AH165,AH166,AH167,AH168,AH169,AH170,AH171,AH172,AH173,AH174,AH175,AH176,AH177,AH178,AH179,AH180,AH181,AH182,AH183,AH184,AH185,AH186,AH187,AH188,AH189,AH190,AH191,AH192,AH193,AH194,AH195,AH196,AH197,AH198,AH199,AH200,AH201,AH202,AH203,AH204,AH205,AH206,AH207) ->  | E12: =CONCATENATE(AJ8,AJ9,AJ10,AJ11,AJ12,AJ13,AJ14,AJ16,AJ17,AJ19,AJ20,AJ21,AJ22,AJ23,AJ24,AJ25,AJ26,AJ27,AJ28,AJ29,AJ30,AJ31,AJ32,AJ33,AJ34,AJ35,AJ36,AJ37,AJ38,AJ39,AJ40,AJ41,AJ42,AJ43,AJ44,AJ45,AJ46,AJ47,AJ48,AJ49,AJ50,AJ51,AJ52,AJ53,AJ54,AJ55,AJ56,AJ57,AJ58,AJ59,AJ60,AJ61,AJ62,AJ63,AJ64,AJ65,AJ66,AJ67,AJ68,AJ69,AJ70,AJ71,AJ72,AJ73,AJ74,AJ75,AJ76,AJ77,AJ78,AJ79,AJ80,AJ81,AJ82,AJ83,AJ84,AJ85,AJ86,AJ87,AJ88,AJ89,AJ90,AJ91,AJ92,AJ93,AJ94,AJ95,AJ96,AJ97,AJ98,AJ99,AJ100,AJ101,AJ102,AJ103,AJ104,AJ105,AJ106,AJ107,AJ108,AJ109,AJ110,AJ111,AJ112,AJ113,AJ114,AJ115,AJ116,AJ117,AJ118,AJ119,AJ120,AJ121,AJ122,AJ123,AJ124,AJ125,AJ126,AJ127,AJ128,AJ129,AJ130,AJ131,AJ132,AJ133,AJ134,AJ135,AJ136,AJ137,AJ138,AJ139,AJ140,AJ141,AJ142,AJ143,AJ144,AJ145,AJ146,AJ147,AJ148,AJ149,AJ150,AJ151,AJ152,AJ153,AJ154,AJ155,AJ156,AJ157,AJ158,AJ159,AJ160,AJ161,AJ162,AJ163,AJ164,AJ165,AJ166,AJ167,AJ168,AJ169,AJ170,AJ171,AJ172,AJ173,AJ174,AJ175,AJ176,AJ177,AJ178,AJ179,AJ180,AJ181,AJ182,AJ183,AJ184,AJ185,AJ186,AJ187,AJ188,AJ189,AJ190,AJ191,AJ192,AJ193,AJ194,AJ195,AJ196,AJ197,AJ198,AJ199,AJ200,AJ201,AJ202,AJ203,AJ204,AJ205,AJ206,AJ207) ->  | F12: =CONCATENATE(AL8,AL9,AL10,AL11,AL12,AL13,AL14,AL16,AL17,AL19,AL20,AL21,AL22,AL23,AL24,AL25,AL26,AL27,AL28,AL29,AL30,AL31,AL32,AL33,AL34,AL35,AL36,AL37,AL38,AL39,AL40,AL41,AL42,AL43,AL44,AL45,AL46,AL47,AL48,AL49,AL50,AL51,AL52,AL53,AL54,AL55,AL56,AL57,AL58,AL59,AL60,AL61,AL62,AL63,AL64,AL65,AL66,AL67,AL68,AL69,AL70,AL71,AL72,AL73,AL74,AL75,AL76,AL77,AL78,AL79,AL80,AL81,AL82,AL83,AL84,AL85,AL86,AL87,AL88,AL89,AL90,AL91,AL92,AL93,AL94,AL95,AL96,AL97,AL98,AL99,AL100,AL101,AL102,AL103,AL104,AL105,AL106,AL107,AL108,AL109,AL110,AL111,AL112,AL113,AL114,AL115,AL116,AL117,AL118,AL119,AL120,AL121,AL122,AL123,AL124,AL125,AL126,AL127,AL128,AL129,AL130,AL131,AL132,AL133,AL134,AL135,AL136,AL137,AL138,AL139,AL140,AL141,AL142,AL143,AL144,AL145,AL146,AL147,AL148,AL149,AL150,AL151,AL152,AL153,AL154,AL155,AL156,AL157,AL158,AL159,AL160,AL161,AL162,AL163,AL164,AL165,AL166,AL167,AL168,AL169,AL170,AL171,AL172,AL173,AL174,AL175,AL176,AL177,AL178,AL179,AL180,AL181,AL182,AL183,AL184,AL185,AL186,AL187,AL188,AL189,AL190,AL191,AL192,AL193,AL194,AL195,AL196,AL197,AL198,AL199,AL200,AL201,AL202,AL203,AL204,AL205,AL206,AL207) ->  | G12: =CONCATENATE(AN8,AN9,AN10,AN11,AN12,AN13,AN14,AN16,AN17,AN19,AN20,AN21,AN22,AN23,AN24,AN25,AN26,AN27,AN28,AN29,AN30,AN31,AN32,AN33,AN34,AN35,AN36,AN37,AN38,AN39,AN40,AN41,AN42,AN43,AN44,AN45,AN46,AN47,AN48,AN49,AN50,AN51,AN52,AN53,AN54,AN55,AN56,AN57,AN58,AN59,AN60,AN61,AN62,AN63,AN64,AN65,AN66,AN67,AN68,AN69,AN70,AN71,AN72,AN73,AN74,AN75,AN76,AN77,AN78,AN79,AN80,AN81,AN82,AN83,AN84,AN85,AN86,AN87,AN88,AN89,AN90,AN91,AN92,AN93,AN94,AN95,AN96,AN97,AN98,AN99,AN100,AN101,AN102,AN103,AN104,AN105,AN106,AN107,AN108,AN109,AN110,AN111,AN112,AN113,AN114,AN115,AN116,AN117,AN118,AN119,AN120,AN121,AN122,AN123,AN124,AN125,AN126,AN127,AN128,AN129,AN130,AN131,AN132,AN133,AN134,AN135,AN136,AN137,AN138,AN139,AN140,AN141,AN142,AN143,AN144,AN145,AN146,AN147,AN148,AN149,AN150,AN151,AN152,AN153,AN154,AN155,AN156,AN157,AN158,AN159,AN160,AN161,AN162,AN163,AN164,AN165,AN166,AN167,AN168,AN169,AN170,AN171,AN172,AN173,AN174,AN175,AN176,AN177,AN178,AN179,AN180,AN181,AN182,AN183,AN184,AN185,AN186,AN187,AN188,AN189,AN190,AN191,AN192,AN193,AN194,AN195,AN196,AN197,AN198,AN199,AN200,AN201,AN202,AN203,AN204,AN205,AN206,AN207) ->  | I12: =CONCATENATE(AP8,AP9,AP10,AP11,AP12,AP13,AP14,AP16,AP17,AP19,AP20,AP21,AP22,AP23,AP24,AP25,AP26,AP27,AP28,AP29,AP30,AP31,AP32,AP33,AP34,AP35,AP36,AP37,AP38,AP39,AP40,AP41,AP42,AP43,AP44,AP45,AP46,AP47,AP48,AP49,AP50,AP51,AP52,AP53,AP54,AP55,AP56,AP57,AP58,AP59,AP60,AP61,AP62,AP63,AP64,AP65,AP66,AP67,AP68,AP69,AP70,AP71,AP72,AP73,AP74,AP75,AP76,AP77,AP78,AP79,AP80,AP81,AP82,AP83,AP84,AP85,AP86,AP87,AP88,AP89,AP90,AP91,AP92,AP93,AP94,AP95,AP96,AP97,AP98,AP99,AP100,AP101,AP102,AP103,AP104,AP105,AP106,AP107,AP108,AP109,AP110,AP111,AP112,AP113,AP114,AP115,AP116,AP117,AP118,AP119,AP120,AP121,AP122,AP123,AP124,AP125,AP126,AP127,AP128,AP129,AP130,AP131,AP132,AP133,AP134,AP135,AP136,AP137,AP138,AP139,AP140,AP141,AP142,AP143,AP144,AP145,AP146,AP147,AP148,AP149,AP150,AP151,AP152,AP153,AP154,AP155,AP156,AP157,AP158,AP159,AP160,AP161,AP162,AP163,AP164,AP165,AP166,AP167,AP168,AP169,AP170,AP171,AP172,AP173,AP174,AP175,AP176,AP177,AP178,AP179,AP180,AP181,AP182,AP183,AP184,AP185,AP186,AP187,AP188,AP189,AP190,AP191,AP192,AP193,AP194,AP195,AP196,AP197,AP198,AP199,AP200,AP201,AP202,AP203,AP204,AP205,AP206,AP207) ->  | N12: =IF(N13<>""," -R","") ->  | P12: =IF(P13<>""," -R","") ->  | R12: =IF(R13<>""," -R","") ->  | T12: =IF(T13<>""," -R","") ->  | V12: =IF(V13<>""," -R","") ->  | X12: =IF(X13<>""," -R","") ->  | Z12: =IF(Z13<>""," -R","") ->  | AB12: =IF(AB13<>""," -R","") ->  | AD12: =IF(AD13<>""," -R","") ->  | AF12: =IF(AF13<>""," -R","") ->  | AH12: =IF(AH13<>""," -R","") ->  | AJ12: =IF(AJ13<>""," -R","") ->  | AL12: =IF(AL13<>""," -R","") ->  | AN12: =IF(AN13<>""," -R","") ->  | AP12: =IF(AP13<>""," -R","") ->  | AR12: =IF(AR13<>""," -R","") ->  | AT12: =IF(AT13<>""," -R","") ->  | AV12: =IF(AV13<>""," -R","") ->  | AX12: =IF(AX13<>""," -R","") ->  | AZ12: =IF(AZ13<>""," -R","") ->  | BB12: =IF(BB13<>""," -R","") ->  | BD12: =IF(BD13<>""," -R","") ->  | BF12: =IF(BF13<>""," -R","") ->  | BH12: =IF(BH13<>""," -R","") ->  | BJ12: =IF(BJ13<>""," -R","") -> 
B13: Alta 80% | D13: =CONCATENATE(AR8,AR9,AR10,AR11,AR12,AR13,AR14,AR16,AR17,AR19,AR20,AR21,AR22,AR23,AR24,AR25,AR26,AR27,AR28,AR29,AR30,AR31,AR32,AR33,AR34,AR35,AR36,AR37,AR38,AR39,AR40,AR41,AR42,AR43,AR44,AR45,AR46,AR47,AR48,AR49,AR50,AR51,AR52,AR53,AR54,AR55,AR56,AR57,AR58,AR59,AR60,AR61,AR62,AR63,AR64,AR65,AR66,AR67,AR68,AR69,AR70,AR71,AR72,AR73,AR74,AR75,AR76,AR77,AR78,AR79,AR80,AR81,AR82,AR83,AR84,AR85,AR86,AR87,AR88,AR89,AR90,AR91,AR92,AR93,AR94,AR95,AR96,AR97,AR98,AR99,AR100,AR101,AR102,AR103,AR104,AR105,AR106,AR107,AR108,AR109,AR110,AR111,AR112,AR113,AR114,AR115,AR116,AR117,AR118,AR119,AR120,AR121,AR122,AR123,AR124,AR125,AR126,AR127,AR128,AR129,AR130,AR131,AR132,AR133,AR134,AR135,AR136,AR137,AR138,AR139,AR140,AR141,AR142,AR143,AR144,AR145,AR146,AR147,AR148,AR149,AR150,AR151,AR152,AR153,AR154,AR155,AR156,AR157,AR158,AR159,AR160,AR161,AR162,AR163,AR164,AR165,AR166,AR167,AR168,AR169,AR170,AR171,AR172,AR173,AR174,AR175,AR176,AR177,AR178,AR179,AR180,AR181,AR182,AR183,AR184,AR185,AR186,AR187,AR188,AR189,AR190,AR191,AR192,AR193,AR194,AR195,AR196,AR197,AR198,AR199,AR200,AR201,AR202,AR203,AR204,AR205,AR206,AR207) ->  | E13: =CONCATENATE(AT8,AT9,AT10,AT11,AT12,AT13,AT14,AT16,AT17,AT19,AT20,AT21,AT22,AT23,AT24,AT25,AT26,AT27,AT28,AT29,AT30,AT31,AT32,AT33,AT34,AT35,AT36,AT37,AT38,AT39,AT40,AT41,AT42,AT43,AT44,AT45,AT46,AT47,AT48,AT49,AT50,AT51,AT52,AT53,AT54,AT55,AT56,AT57,AT58,AT59,AT60,AT61,AT62,AT63,AT64,AT65,AT66,AT67,AT68,AT69,AT70,AT71,AT72,AT73,AT74,AT75,AT76,AT77,AT78,AT79,AT80,AT81,AT82,AT83,AT84,AT85,AT86,AT87,AT88,AT89,AT90,AT91,AT92,AT93,AT94,AT95,AT96,AT97,AT98,AT99,AT100,AT101,AT102,AT103,AT104,AT105,AT106,AT107,AT108,AT109,AT110,AT111,AT112,AT113,AT114,AT115,AT116,AT117,AT118,AT119,AT120,AT121,AT122,AT123,AT124,AT125,AT126,AT127,AT128,AT129,AT130,AT131,AT132,AT133,AT134,AT135,AT136,AT137,AT138,AT139,AT140,AT141,AT142,AT143,AT144,AT145,AT146,AT147,AT148,AT149,AT150,AT151,AT152,AT153,AT154,AT155,AT156,AT157,AT158,AT159,AT160,AT161,AT162,AT163,AT164,AT165,AT166,AT167,AT168,AT169,AT170,AT171,AT172,AT173,AT174,AT175,AT176,AT177,AT178,AT179,AT180,AT181,AT182,AT183,AT184,AT185,AT186,AT187,AT188,AT189,AT190,AT191,AT192,AT193,AT194,AT195,AT196,AT197,AT198,AT199,AT200,AT201,AT202,AT203,AT204,AT205,AT206,AT207) ->  | F13: =CONCATENATE(AV8,AV9,AV10,AV11,AV12,AV13,AV14,AV16,AV17,AV19,AV20,AV21,AV22,AV23,AV24,AV25,AV26,AV27,AV28,AV29,AV30,AV31,AV32,AV33,AV34,AV35,AV36,AV37,AV38,AV39,AV40,AV41,AV42,AV43,AV44,AV45,AV46,AV47,AV48,AV49,AV50,AV51,AV52,AV53,AV54,AV55,AV56,AV57,AV58,AV59,AV60,AV61,AV62,AV63,AV64,AV65,AV66,AV67,AV68,AV69,AV70,AV71,AV72,AV73,AV74,AV75,AV76,AV77,AV78,AV79,AV80,AV81,AV82,AV83,AV84,AV85,AV86,AV87,AV88,AV89,AV90,AV91,AV92,AV93,AV94,AV95,AV96,AV97,AV98,AV99,AV100,AV101,AV102,AV103,AV104,AV105,AV106,AV107,AV108,AV109,AV110,AV111,AV112,AV113,AV114,AV115,AV116,AV117,AV118,AV119,AV120,AV121,AV122,AV123,AV124,AV125,AV126,AV127,AV128,AV129,AV130,AV131,AV132,AV133,AV134,AV135,AV136,AV137,AV138,AV139,AV140,AV141,AV142,AV143,AV144,AV145,AV146,AV147,AV148,AV149,AV150,AV151,AV152,AV153,AV154,AV155,AV156,AV157,AV158,AV159,AV160,AV161,AV162,AV163,AV164,AV165,AV166,AV167,AV168,AV169,AV170,AV171,AV172,AV173,AV174,AV175,AV176,AV177,AV178,AV179,AV180,AV181,AV182,AV183,AV184,AV185,AV186,AV187,AV188,AV189,AV190,AV191,AV192,AV193,AV194,AV195,AV196,AV197,AV198,AV199,AV200,AV201,AV202,AV203,AV204,AV205,AV206,AV207) ->  | G13: =CONCATENATE(AX8,AX9,AX10,AX11,AX12,AX13,AX14,AX16,AX17,AX19,AX20,AX21,AX22,AX23,AX24,AX25,AX26,AX27,AX28,AX29,AX30,AX31,AX32,AX33,AX34,AX35,AX36,AX37,AX38,AX39,AX40,AX41,AX42,AX43,AX44,AX45,AX46,AX47,AX48,AX49,AX50,AX51,AX52,AX53,AX54,AX55,AX56,AX57,AX58,AX59,AX60,AX61,AX62,AX63,AX64,AX65,AX66,AX67,AX68,AX69,AX70,AX71,AX72,AX73,AX74,AX75,AX76,AX77,AX78,AX79,AX80,AX81,AX82,AX83,AX84,AX85,AX86,AX87,AX88,AX89,AX90,AX91,AX92,AX93,AX94,AX95,AX96,AX97,AX98,AX99,AX100,AX101,AX102,AX103,AX104,AX105,AX106,AX107,AX108,AX109,AX110,AX111,AX112,AX113,AX114,AX115,AX116,AX117,AX118,AX119,AX120,AX121,AX122,AX123,AX124,AX125,AX126,AX127,AX128,AX129,AX130,AX131,AX132,AX133,AX134,AX135,AX136,AX137,AX138,AX139,AX140,AX141,AX142,AX143,AX144,AX145,AX146,AX147,AX148,AX149,AX150,AX151,AX152,AX153,AX154,AX155,AX156,AX157,AX158,AX159,AX160,AX161,AX162,AX163,AX164,AX165,AX166,AX167,AX168,AX169,AX170,AX171,AX172,AX173,AX174,AX175,AX176,AX177,AX178,AX179,AX180,AX181,AX182,AX183,AX184,AX185,AX186,AX187,AX188,AX189,AX190,AX191,AX192,AX193,AX194,AX195,AX196,AX197,AX198,AX199,AX200,AX201,AX202,AX203,AX204,AX205,AX206,AX207) ->  | I13: =CONCATENATE(AZ8,AZ9,AZ10,AZ11,AZ12,AZ13,AZ14,AZ16,AZ17,AZ19,AZ20,AZ21,AZ22,AZ23,AZ24,AZ25,AZ26,AZ27,AZ28,AZ29,AZ30,AZ31,AZ32,AZ33,AZ34,AZ35,AZ36,AZ37,AZ38,AZ39,AZ40,AZ41,AZ42,AZ43,AZ44,AZ45,AZ46,AZ47,AZ48,AZ49,AZ50,AZ51,AZ52,AZ53,AZ54,AZ55,AZ56,AZ57,AZ58,AZ59,AZ60,AZ61,AZ62,AZ63,AZ64,AZ65,AZ66,AZ67,AZ68,AZ69,AZ70,AZ71,AZ72,AZ73,AZ74,AZ75,AZ76,AZ77,AZ78,AZ79,AZ80,AZ81,AZ82,AZ83,AZ84,AZ85,AZ86,AZ87,AZ88,AZ89,AZ90,AZ91,AZ92,AZ93,AZ94,AZ95,AZ96,AZ97,AZ98,AZ99,AZ100,AZ101,AZ102,AZ103,AZ104,AZ105,AZ106,AZ107,AZ108,AZ109,AZ110,AZ111,AZ112,AZ113,AZ114,AZ115,AZ116,AZ117,AZ118,AZ119,AZ120,AZ121,AZ122,AZ123,AZ124,AZ125,AZ126,AZ127,AZ128,AZ129,AZ130,AZ131,AZ132,AZ133,AZ134,AZ135,AZ136,AZ137,AZ138,AZ139,AZ140,AZ141,AZ142,AZ143,AZ144,AZ145,AZ146,AZ147,AZ148,AZ149,AZ150,AZ151,AZ152,AZ153,AZ154,AZ155,AZ156,AZ157,AZ158,AZ159,AZ160,AZ161,AZ162,AZ163,AZ164,AZ165,AZ166,AZ167,AZ168,AZ169,AZ170,AZ171,AZ172,AZ173,AZ174,AZ175,AZ176,AZ177,AZ178,AZ179,AZ180,AZ181,AZ182,AZ183,AZ184,AZ185,AZ186,AZ187,AZ188,AZ189,AZ190,AZ191,AZ192,AZ193,AZ194,AZ195,AZ196,AZ197,AZ198,AZ199,AZ200,AZ201,AZ202,AZ203,AZ204,AZ205,AZ206,AZ207) ->  | M13: 1.03 | N13: =IFERROR(VLOOKUP(M13,'CRUCE RIESGOS'!$C$8:$D$156,2,FALSE),"") ->  | O13: 2.03 | P13: =IFERROR(VLOOKUP(O13,'CRUCE RIESGOS'!$C$8:$D$156,2,FALSE),"") ->  | Q13: 3.03 | R13: =IFERROR(VLOOKUP(Q13,'CRUCE RIESGOS'!$C$8:$D$156,2,FALSE),"") ->  | S13: 4.03 | T13: =IFERROR(VLOOKUP(S13,'CRUCE RIESGOS'!$C$8:$D$156,2,FALSE),"") ->  | U13: 5.03 | V13: =IFERROR(VLOOKUP(U13,'CRUCE RIESGOS'!$C$8:$D$156,2,FALSE),"") ->  | W13: 6.03 | X13: =IFERROR(VLOOKUP(W13,'CRUCE RIESGOS'!$C$8:$D$156,2,FALSE),"") ->  | Y13: 7.03 | Z13: =IFERROR(VLOOKUP(Y13,'CRUCE RIESGOS'!$C$8:$D$156,2,FALSE),"") ->  | AA13: 8.03 | AB13: =IFERROR(VLOOKUP(AA13,'CRUCE RIESGOS'!$C$8:$D$156,2,FALSE),"") ->  | AC13: 9.03 | AD13: =IFERROR(VLOOKUP(AC13,'CRUCE RIESGOS'!$C$8:$D$156,2,FALSE),"") ->  | AE13: 10.03 | AF13: =IFERROR(VLOOKUP(AE13,'CRUCE RIESGOS'!$C$8:$D$156,2,FALSE),"") ->  | AG13: 11.03 | AH13: =IFERROR(VLOOKUP(AG13,'CRUCE RIESGOS'!$C$8:$D$156,2,FALSE),"") ->  | AI13: 12.03 | AJ13: =IFERROR(VLOOKUP(AI13,'CRUCE RIESGOS'!$C$8:$D$156,2,FALSE),"") ->  | AK13: 13.03 | AL13: =IFERROR(VLOOKUP(AK13,'CRUCE RIESGOS'!$C$8:$D$156,2,FALSE),"") ->  | AM13: 14.03 | AN13: =IFERROR(VLOOKUP(AM13,'CRUCE RIESGOS'!$C$8:$D$156,2,FALSE),"") ->  | AO13: 15.03 | AP13: =IFERROR(VLOOKUP(AO13,'CRUCE RIESGOS'!$C$8:$D$156,2,FALSE),"") ->  | AQ13: 16.03 | AR13: =IFERROR(VLOOKUP(AQ13,'CRUCE RIESGOS'!$C$8:$D$156,2,FALSE),"") ->  | AS13: 17.03 | AT13: =IFERROR(VLOOKUP(AS13,'CRUCE RIESGOS'!$C$8:$D$156,2,FALSE),"") ->  | AU13: 18.03 | AV13: =IFERROR(VLOOKUP(AU13,'CRUCE RIESGOS'!$C$8:$D$156,2,FALSE),"") ->  | AW13: 19.03 | AX13: =IFERROR(VLOOKUP(AW13,'CRUCE RIESGOS'!$C$8:$D$156,2,FALSE),"") ->  | AY13: 20.03 | AZ13: =IFERROR(VLOOKUP(AY13,'CRUCE RIESGOS'!$C$8:$D$156,2,FALSE),"") ->  | BA13: 21.03 | BB13: =IFERROR(VLOOKUP(BA13,'CRUCE RIESGOS'!$C$8:$D$156,2,FALSE),"") ->  | BC13: 22.03 | BD13: =IFERROR(VLOOKUP(BC13,'CRUCE RIESGOS'!$C$8:$D$156,2,FALSE),"") ->  | BE13: 23.03 | BF13: =IFERROR(VLOOKUP(BE13,'CRUCE RIESGOS'!$C$8:$D$156,2,FALSE),"") ->  | BG13: 24.03 | BH13: =IFERROR(VLOOKUP(BG13,'CRUCE RIESGOS'!$C$8:$D$156,2,FALSE),"") ->  | BI13: 25.03 | BJ13: =IFERROR(VLOOKUP(BI13,'CRUCE RIESGOS'!$C$8:$D$156,2,FALSE),"") -> 
B14: Muy Alta 100% | D14: =CONCATENATE(BB8,BB9,BB10,BB11,BB12,BB13,BB14,BB16,BB17,BB19,BB20,BB21,BB22,BB23,BB24,BB25,BB26,BB27,BB28,BB29,BB30,BB31,BB32,BB33,BB34,BB35,BB36,BB37,BB38,BB39,BB40,BB41,BB42,BB43,BB44,BB45,BB46,BB47,BB48,BB49,BB50,BB51,BB52,BB53,BB54,BB55,BB56,BB57,BB58,BB59,BB60,BB61,BB62,BB63,BB64,BB65,BB66,BB67,BB68,BB69,BB70,BB71,BB72,BB73,BB74,BB75,BB76,BB77,BB78,BB79,BB80,BB81,BB82,BB83,BB84,BB85,BB86,BB87,BB88,BB89,BB90,BB91,BB92,BB93,BB94,BB95,BB96,BB97,BB98,BB99,BB100,BB101,BB102,BB103,BB104,BB105,BB106,BB107,BB108,BB109,BB110,BB111,BB112,BB113,BB114,BB115,BB116,BB117,BB118,BB119,BB120,BB121,BB122,BB123,BB124,BB125,BB126,BB127,BB128,BB129,BB130,BB131,BB132,BB133,BB134,BB135,BB136,BB137,BB138,BB139,BB140,BB141,BB142,BB143,BB144,BB145,BB146,BB147,BB148,BB149,BB150,BB151,BB152,BB153,BB154,BB155,BB156,BB157,BB158,BB159,BB160,BB161,BB162,BB163,BB164,BB165,BB166,BB167,BB168,BB169,BB170,BB171,BB172,BB173,BB174,BB175,BB176,BB177,BB178,BB179,BB180,BB181,BB182,BB183,BB184,BB185,BB186,BB187,BB188,BB189,BB190,BB191,BB192,BB193,BB194,BB195,BB196,BB197,BB198,BB199,BB200,BB201,BB202,BB203,BB204,BB205,BB206,BB207) ->  | E14: =CONCATENATE(BD8,BD9,BD10,BD11,BD12,BD13,BD14,BD16,BD17,BD19,BD20,BD21,BD22,BD23,BD24,BD25,BD26,BD27,BD28,BD29,BD30,BD31,BD32,BD33,BD34,BD35,BD36,BD37,BD38,BD39,BD40,BD41,BD42,BD43,BD44,BD45,BD46,BD47,BD48,BD49,BD50,BD51,BD52,BD53,BD54,BD55,BD56,BD57,BD58,BD59,BD60,BD61,BD62,BD63,BD64,BD65,BD66,BD67,BD68,BD69,BD70,BD71,BD72,BD73,BD74,BD75,BD76,BD77,BD78,BD79,BD80,BD81,BD82,BD83,BD84,BD85,BD86,BD87,BD88,BD89,BD90,BD91,BD92,BD93,BD94,BD95,BD96,BD97,BD98,BD99,BD100,BD101,BD102,BD103,BD104,BD105,BD106,BD107,BD108,BD109,BD110,BD111,BD112,BD113,BD114,BD115,BD116,BD117,BD118,BD119,BD120,BD121,BD122,BD123,BD124,BD125,BD126,BD127,BD128,BD129,BD130,BD131,BD132,BD133,BD134,BD135,BD136,BD137,BD138,BD139,BD140,BD141,BD142,BD143,BD144,BD145,BD146,BD147,BD148,BD149,BD150,BD151,BD152,BD153,BD154,BD155,BD156,BD157,BD158,BD159,BD160,BD161,BD162,BD163,BD164,BD165,BD166,BD167,BD168,BD169,BD170,BD171,BD172,BD173,BD174,BD175,BD176,BD177,BD178,BD179,BD180,BD181,BD182,BD183,BD184,BD185,BD186,BD187,BD188,BD189,BD190,BD191,BD192,BD193,BD194,BD195,BD196,BD197,BD198,BD199,BD200,BD201,BD202,BD203,BD204,BD205,BD206,BD207) ->  | F14: =CONCATENATE(BF8,BF9,BF10,BF11,BF12,BF13,BF14,BF16,BF17,BF19,BF20,BF21,BF22,BF23,BF24,BF25,BF26,BF27,BF28,BF29,BF30,BF31,BF32,BF33,BF34,BF35,BF36,BF37,BF38,BF39,BF40,BF41,BF42,BF43,BF44,BF45,BF46,BF47,BF48,BF49,BF50,BF51,BF52,BF53,BF54,BF55,BF56,BF57,BF58,BF59,BF60,BF61,BF62,BF63,BF64,BF65,BF66,BF67,BF68,BF69,BF70,BF71,BF72,BF73,BF74,BF75,BF76,BF77,BF78,BF79,BF80,BF81,BF82,BF83,BF84,BF85,BF86,BF87,BF88,BF89,BF90,BF91,BF92,BF93,BF94,BF95,BF96,BF97,BF98,BF99,BF100,BF101,BF102,BF103,BF104,BF105,BF106,BF107,BF108,BF109,BF110,BF111,BF112,BF113,BF114,BF115,BF116,BF117,BF118,BF119,BF120,BF121,BF122,BF123,BF124,BF125,BF126,BF127,BF128,BF129,BF130,BF131,BF132,BF133,BF134,BF135,BF136,BF137,BF138,BF139,BF140,BF141,BF142,BF143,BF144,BF145,BF146,BF147,BF148,BF149,BF150,BF151,BF152,BF153,BF154,BF155,BF156,BF157,BF158,BF159,BF160,BF161,BF162,BF163,BF164,BF165,BF166,BF167,BF168,BF169,BF170,BF171,BF172,BF173,BF174,BF175,BF176,BF177,BF178,BF179,BF180,BF181,BF182,BF183,BF184,BF185,BF186,BF187,BF188,BF189,BF190,BF191,BF192,BF193,BF194,BF195,BF196,BF197,BF198,BF199,BF200,BF201,BF202,BF203,BF204,BF205,BF206,BF207) ->  | G14: =CONCATENATE(BH8,BH9,BH10,BH11,BH12,BH13,BH14,BH16,BH17,BH19,BH20,BH21,BH22,BH23,BH24,BH25,BH26,BH27,BH28,BH29,BH30,BH31,BH32,BH33,BH34,BH35,BH36,BH37,BH38,BH39,BH40,BH41,BH42,BH43,BH44,BH45,BH46,BH47,BH48,BH49,BH50,BH51,BH52,BH53,BH54,BH55,BH56,BH57,BH58,BH59,BH60,BH61,BH62,BH63,BH64,BH65,BH66,BH67,BH68,BH69,BH70,BH71,BH72,BH73,BH74,BH75,BH76,BH77,BH78,BH79,BH80,BH81,BH82,BH83,BH84,BH85,BH86,BH87,BH88,BH89,BH90,BH91,BH92,BH93,BH94,BH95,BH96,BH97,BH98,BH99,BH100,BH101,BH102,BH103,BH104,BH105,BH106,BH107,BH108,BH109,BH110,BH111,BH112,BH113,BH114,BH115,BH116,BH117,BH118,BH119,BH120,BH121,BH122,BH123,BH124,BH125,BH126,BH127,BH128,BH129,BH130,BH131,BH132,BH133,BH134,BH135,BH136,BH137,BH138,BH139,BH140,BH141,BH142,BH143,BH144,BH145,BH146,BH147,BH148,BH149,BH150,BH151,BH152,BH153,BH154,BH155,BH156,BH157,BH158,BH159,BH160,BH161,BH162,BH163,BH164,BH165,BH166,BH167,BH168,BH169,BH170,BH171,BH172,BH173,BH174,BH175,BH176,BH177,BH178,BH179,BH180,BH181,BH182,BH183,BH184,BH185,BH186,BH187,BH188,BH189,BH190,BH191,BH192,BH193,BH194,BH195,BH196,BH197,BH198,BH199,BH200,BH201,BH202,BH203,BH204,BH205,BH206,BH207) ->  | I14: =CONCATENATE(BJ8,BJ9,BJ10,BJ11,BJ12,BJ13,BJ14,BJ16,BJ17,BJ19,BJ20,BJ21,BJ22,BJ23,BJ24,BJ25,BJ26,BJ27,BJ28,BJ29,BJ30,BJ31,BJ32,BJ33,BJ34,BJ35,BJ36,BJ37,BJ38,BJ39,BJ40,BJ41,BJ42,BJ43,BJ44,BJ45,BJ46,BJ47,BJ48,BJ49,BJ50,BJ51,BJ52,BJ53,BJ54,BJ55,BJ56,BJ57,BJ58,BJ59,BJ60,BJ61,BJ62,BJ63,BJ64,BJ65,BJ66,BJ67,BJ68,BJ69,BJ70,BJ71,BJ72,BJ73,BJ74,BJ75,BJ76,BJ77,BJ78,BJ79,BJ80,BJ81,BJ82,BJ83,BJ84,BJ85,BJ86,BJ87,BJ88,BJ89,BJ90,BJ91,BJ92,BJ93,BJ94,BJ95,BJ96,BJ97,BJ98,BJ99,BJ100,BJ101,BJ102,BJ103,BJ104,BJ105,BJ106,BJ107,BJ108,BJ109,BJ110,BJ111,BJ112,BJ113,BJ114,BJ115,BJ116,BJ117,BJ118,BJ119,BJ120,BJ121,BJ122,BJ123,BJ124,BJ125,BJ126,BJ127,BJ128,BJ129,BJ130,BJ131,BJ132,BJ133,BJ134,BJ135,BJ136,BJ137,BJ138,BJ139,BJ140,BJ141,BJ142,BJ143,BJ144,BJ145,BJ146,BJ147,BJ148,BJ149,BJ150,BJ151,BJ152,BJ153,BJ154,BJ155,BJ156,BJ157,BJ158,BJ159,BJ160,BJ161,BJ162,BJ163,BJ164,BJ165,BJ166,BJ167,BJ168,BJ169,BJ170,BJ171,BJ172,BJ173,BJ174,BJ175,BJ176,BJ177,BJ178,BJ179,BJ180,BJ181,BJ182,BJ183,BJ184,BJ185,BJ186,BJ187,BJ188,BJ189,BJ190,BJ191,BJ192,BJ193,BJ194,BJ195,BJ196,BJ197,BJ198,BJ199,BJ200,BJ201,BJ202,BJ203,BJ204,BJ205,BJ206,BJ207) ->  | N14: =IF(N16<>""," -R","") ->  | P14: =IF(P16<>""," -R","") ->  | R14: =IF(R16<>""," -R","") ->  | T14: =IF(T16<>""," -R","") ->  | V14: =IF(V16<>""," -R","") ->  | X14: =IF(X16<>""," -R","") ->  | Z14: =IF(Z16<>""," -R","") ->  | AB14: =IF(AB16<>""," -R","") ->  | AD14: =IF(AD16<>""," -R","") ->  | AF14: =IF(AF16<>""," -R","") ->  | AH14: =IF(AH16<>""," -R","") ->  | AJ14: =IF(AJ16<>""," -R","") ->  | AL14: =IF(AL16<>""," -R","") ->  | AN14: =IF(AN16<>""," -R","") ->  | AP14: =IF(AP16<>""," -R","") ->  | AR14: =IF(AR16<>""," -R","") ->  | AT14: =IF(AT16<>""," -R","") ->  | AV14: =IF(AV16<>""," -R","") ->  | AX14: =IF(AX16<>""," -R","") ->  | AZ14: =IF(AZ16<>""," -R","") ->  | BB14: =IF(BB16<>""," -R","") ->  | BD14: =IF(BD16<>""," -R","") ->  | BF14: =IF(BF16<>""," -R","") ->  | BH14: =IF(BH16<>""," -R","") ->  | BJ14: =IF(BJ16<>""," -R","") -> 
B15: COLOR | C15: INTERPRETACIÓN DE LA ZONA | F15: CANTIDAD DE RIESGOS POR ZONA | G15: PROMEDIO DE RIESGO DEL PROCESO
C16: Zona de riesgo baja: Asumir el riesgo | F16: =COUNTIF('CRUCE RIESGOS'!$AP$8:$AP$156,"BAJO") -> 0 | G16: PROBABILIDAD | H16: IMPACTO | I16: VALORACIÓN | M16: 1.04 | N16: =IFERROR(VLOOKUP(M16,'CRUCE RIESGOS'!$C$8:$D$156,2,FALSE),"") ->  | O16: 2.04 | P16: =IFERROR(VLOOKUP(O16,'CRUCE RIESGOS'!$C$8:$D$156,2,FALSE),"") ->  | Q16: 3.04 | R16: =IFERROR(VLOOKUP(Q16,'CRUCE RIESGOS'!$C$8:$D$156,2,FALSE),"") ->  | S16: 4.04 | T16: =IFERROR(VLOOKUP(S16,'CRUCE RIESGOS'!$C$8:$D$156,2,FALSE),"") ->  | U16: 5.04 | V16: =IFERROR(VLOOKUP(U16,'CRUCE RIESGOS'!$C$8:$D$156,2,FALSE),"") ->  | W16: 6.04 | X16: =IFERROR(VLOOKUP(W16,'CRUCE RIESGOS'!$C$8:$D$156,2,FALSE),"") ->  | Y16: 7.04 | Z16: =IFERROR(VLOOKUP(Y16,'CRUCE RIESGOS'!$C$8:$D$156,2,FALSE),"") ->  | AA16: 8.04 | AB16: =IFERROR(VLOOKUP(AA16,'CRUCE RIESGOS'!$C$8:$D$156,2,FALSE),"") ->  | AC16: 9.04 | AD16: =IFERROR(VLOOKUP(AC16,'CRUCE RIESGOS'!$C$8:$D$156,2,FALSE),"") ->  | AE16: 10.04 | AF16: =IFERROR(VLOOKUP(AE16,'CRUCE RIESGOS'!$C$8:$D$156,2,FALSE),"") ->  | AG16: 11.04 | AH16: =IFERROR(VLOOKUP(AG16,'CRUCE RIESGOS'!$C$8:$D$156,2,FALSE),"") ->  | AI16: 12.04 | AJ16: =IFERROR(VLOOKUP(AI16,'CRUCE RIESGOS'!$C$8:$D$156,2,FALSE),"") ->  | AK16: 13.04 | AL16: =IFERROR(VLOOKUP(AK16,'CRUCE RIESGOS'!$C$8:$D$156,2,FALSE),"") ->  | AM16: 14.04 | AN16: =IFERROR(VLOOKUP(AM16,'CRUCE RIESGOS'!$C$8:$D$156,2,FALSE),"") ->  | AO16: 15.04 | AP16: =IFERROR(VLOOKUP(AO16,'CRUCE RIESGOS'!$C$8:$D$156,2,FALSE),"") ->  | AQ16: 16.04 | AR16: =IFERROR(VLOOKUP(AQ16,'CRUCE RIESGOS'!$C$8:$D$156,2,FALSE),"") ->  | AS16: 17.04 | AT16: =IFERROR(VLOOKUP(AS16,'CRUCE RIESGOS'!$C$8:$D$156,2,FALSE),"") ->  | AU16: 18.04 | AV16: =IFERROR(VLOOKUP(AU16,'CRUCE RIESGOS'!$C$8:$D$156,2,FALSE),"") ->  | AW16: 19.04 | AX16: =IFERROR(VLOOKUP(AW16,'CRUCE RIESGOS'!$C$8:$D$156,2,FALSE),"") ->  | AY16: 20.04 | AZ16: =IFERROR(VLOOKUP(AY16,'CRUCE RIESGOS'!$C$8:$D$156,2,FALSE),"") ->  | BA16: 21.04 | BB16: =IFERROR(VLOOKUP(BA16,'CRUCE RIESGOS'!$C$8:$D$156,2,FALSE),"") ->  | BC16: 22.04 | BD16: =IFERROR(VLOOKUP(BC16,'CRUCE RIESGOS'!$C$8:$D$156,2,FALSE),"") ->  | BE16: 23.04 | BF16: =IFERROR(VLOOKUP(BE16,'CRUCE RIESGOS'!$C$8:$D$156,2,FALSE),"") ->  | BG16: 24.04 | BH16: =IFERROR(VLOOKUP(BG16,'CRUCE RIESGOS'!$C$8:$D$156,2,FALSE),"") ->  | BI16: 25.04 | BJ16: =IFERROR(VLOOKUP(BI16,'CRUCE RIESGOS'!$C$8:$D$156,2,FALSE),"") -> 
C17: Zona de riesgo moderada: Asumir el riesgo, reducir el riesgo | F17: =COUNTIF('CRUCE RIESGOS'!$AP$8:$AP$156,"MODERADO") -> 2 | G17: =IFERROR(IF(AVERAGE('CRUCE RIESGOS'!AL8:AL156)="","",IF(AVERAGE('CRUCE RIESGOS'!AL8:AL156)<=0.2,"MUY BAJA",IF(AVERAGE('CRUCE RIESGOS'!AL8:AL156)<=0.4,"BAJA",IF(AVERAGE('CRUCE RIESGOS'!AL8:AL156)<=0.6,"MEDIA",IF(AVERAGE('CRUCE RIESGOS'!AL8:AL156)<=0.8,"ALTA",IF(AVERAGE('CRUCE RIESGOS'!AL8:AL156)=1,"MUY ALTA")))))),"") -> BAJA | H17: =IFERROR(IF(AVERAGE('CRUCE RIESGOS'!AN8:AN155)="","",IF(AVERAGE('CRUCE RIESGOS'!AN8:AN155)<=0.2,"LEVE",IF(AVERAGE('CRUCE RIESGOS'!AN8:AN155)<=0.4,"MENOR",IF(AVERAGE('CRUCE RIESGOS'!AN8:AN155)<=0.6,"MODERADO",IF(AVERAGE('CRUCE RIESGOS'!AN8:AN155)<=0.8,"MAYOR",IF(AVERAGE('CRUCE RIESGOS'!AN8:AN155)=1,"CATASTRÓFICO")))))),"") -> MODERADO | I17: =IFERROR(IF(OR(AND(G17="Muy Baja",H17="Leve"),AND(G17="Muy Baja",H17="Menor"),AND(G17="Baja",H17="Leve")),"BAJO",IF(OR(AND(G17="Muy baja",H17="Moderado"),AND(G17="Baja",H17="Menor"),AND(G17="Baja",H17="Moderado"),AND(G17="Media",H17="Leve"),AND(G17="Media",H17="Menor"),AND(G17="Media",H17="Moderado"),AND(G17="Alta",H17="Leve"),AND(G17="Alta",H17="Menor")),"MODERADO",IF(OR(AND(G17="Muy Baja",H17="Mayor"),AND(G17="Baja",H17="Mayor"),AND(G17="Media",H17="Mayor"),AND(G17="Alta",H17="Moderado"),AND(G17="Alta",H17="Mayor"),AND(G17="Muy Alta",H17="Leve"),AND(G17="Muy Alta",H17="Menor"),AND(G17="Muy Alta",H17="Moderado"),AND(G17="Muy Alta",H17="Mayor")),"ALTO",IF(OR(AND(G17="Muy Baja",H17="Catastrófico"),AND(G17="Baja",H17="Catastrófico"),AND(G17="Media",H17="Catastrófico"),AND(G17="Alta",H17="Catastrófico"),AND(G17="Muy Alta",H17="Catastrófico")),"EXTREMO","")))),"") -> MODERADO | N17: =IF(N19<>""," -R","") ->  | P17: =IF(P19<>""," -R","") ->  | R17: =IF(R19<>""," -R","") ->  | T17: =IF(T19<>""," -R","") ->  | V17: =IF(V19<>""," -R","") ->  | X17: =IF(X19<>""," -R","") ->  | Z17: =IF(Z19<>""," -R","") ->  | AB17: =IF(AB19<>""," -R","") ->  | AD17: =IF(AD19<>""," -R","") ->  | AF17: =IF(AF19<>""," -R","") ->  | AH17: =IF(AH19<>""," -R","") ->  | AJ17: =IF(AJ19<>""," -R","") ->  | AL17: =IF(AL19<>""," -R","") ->  | AN17: =IF(AN19<>""," -R","") ->  | AP17: =IF(AP19<>""," -R","") ->  | AR17: =IF(AR19<>""," -R","") ->  | AT17: =IF(AT19<>""," -R","") ->  | AV17: =IF(AV19<>""," -R","") ->  | AX17: =IF(AX19<>""," -R","") ->  | AZ17: =IF(AZ19<>""," -R","") ->  | BB17: =IF(BB19<>""," -R","") ->  | BD17: =IF(BD19<>""," -R","") ->  | BF17: =IF(BF19<>""," -R","") ->  | BH17: =IF(BH19<>""," -R","") ->  | BJ17: =IF(BJ19<>""," -R","") -> 
C18: Zona de riesgo alta: reducir el riesgo, evitar, compartir o transferir | F18: =COUNTIF('CRUCE RIESGOS'!$AP$8:$AP$156,"ALTO") -> 0
C19: Zona de riesgo extrema: Reducir el riesgo, Evitar, Compartir o Transferir | F19: =COUNTIF('CRUCE RIESGOS'!$AP$8:$AP$156,"EXTREMO") -> 0 | M19: 1.05 | N19: =IFERROR(VLOOKUP(M19,'CRUCE RIESGOS'!$C$8:$D$156,2,FALSE),"") ->  | O19: 2.05 | P19: =IFERROR(VLOOKUP(O19,'CRUCE RIESGOS'!$C$8:$D$156,2,FALSE),"") ->  | Q19: 3.05 | R19: =IFERROR(VLOOKUP(Q19,'CRUCE RIESGOS'!$C$8:$D$156,2,FALSE),"") ->  | S19: 4.05 | T19: =IFERROR(VLOOKUP(S19,'CRUCE RIESGOS'!$C$8:$D$156,2,FALSE),"") ->  | U19: 5.05 | V19: =IFERROR(VLOOKUP(U19,'CRUCE RIESGOS'!$C$8:$D$156,2,FALSE),"") ->  | W19: 6.05 | X19: =IFERROR(VLOOKUP(W19,'CRUCE RIESGOS'!$C$8:$D$156,2,FALSE),"") ->  | Y19: 7.05 | Z19: =IFERROR(VLOOKUP(Y19,'CRUCE RIESGOS'!$C$8:$D$156,2,FALSE),"") ->  | AA19: 8.05 | AB19: =IFERROR(VLOOKUP(AA19,'CRUCE RIESGOS'!$C$8:$D$156,2,FALSE),"") ->  | AC19: 9.05 | AD19: =IFERROR(VLOOKUP(AC19,'CRUCE RIESGOS'!$C$8:$D$156,2,FALSE),"") ->  | AE19: 10.05 | AF19: =IFERROR(VLOOKUP(AE19,'CRUCE RIESGOS'!$C$8:$D$156,2,FALSE),"") ->  | AG19: 11.05 | AH19: =IFERROR(VLOOKUP(AG19,'CRUCE RIESGOS'!$C$8:$D$156,2,FALSE),"") ->  | AI19: 12.05 | AJ19: =IFERROR(VLOOKUP(AI19,'CRUCE RIESGOS'!$C$8:$D$156,2,FALSE),"") ->  | AK19: 13.05 | AL19: =IFERROR(VLOOKUP(AK19,'CRUCE RIESGOS'!$C$8:$D$156,2,FALSE),"") ->  | AM19: 14.05 | AN19: =IFERROR(VLOOKUP(AM19,'CRUCE RIESGOS'!$C$8:$D$156,2,FALSE),"") ->  | AO19: 15.05 | AP19: =IFERROR(VLOOKUP(AO19,'CRUCE RIESGOS'!$C$8:$D$156,2,FALSE),"") ->  | AQ19: 16.05 | AR19: =IFERROR(VLOOKUP(AQ19,'CRUCE RIESGOS'!$C$8:$D$156,2,FALSE),"") ->  | AS19: 17.05 | AT19: =IFERROR(VLOOKUP(AS19,'CRUCE RIESGOS'!$C$8:$D$156,2,FALSE),"") ->  | AU19: 18.05 | AV19: =IFERROR(VLOOKUP(AU19,'CRUCE RIESGOS'!$C$8:$D$156,2,FALSE),"") ->  | AW19: 19.05 | AX19: =IFERROR(VLOOKUP(AW19,'CRUCE RIESGOS'!$C$8:$D$156,2,FALSE),"") ->  | AY19: 20.05 | AZ19: =IFERROR(VLOOKUP(AY19,'CRUCE RIESGOS'!$C$8:$D$156,2,FALSE),"") ->  | BA19: 21.05 | BB19: =IFERROR(VLOOKUP(BA19,'CRUCE RIESGOS'!$C$8:$D$156,2,FALSE),"") ->  | BC19: 22.05 | BD19: =IFERROR(VLOOKUP(BC19,'CRUCE RIESGOS'!$C$8:$D$156,2,FALSE),"") ->  | BE19: 23.05 | BF19: =IFERROR(VLOOKUP(BE19,'CRUCE RIESGOS'!$C$8:$D$156,2,FALSE),"") ->  | BG19: 24.05 | BH19: =IFERROR(VLOOKUP(BG19,'CRUCE RIESGOS'!$C$8:$D$156,2,FALSE),"") ->  | BI19: 25.05 | BJ19: =IFERROR(VLOOKUP(BI19,'CRUCE RIESGOS'!$C$8:$D$156,2,FALSE),"") -> 
N20: =IF(N21<>""," -R","") ->  | P20: =IF(P21<>""," -R","") ->  | R20: =IF(R21<>""," -R","") ->  | T20: =IF(T21<>""," -R","") ->  | V20: =IF(V21<>""," -R","") ->  | X20: =IF(X21<>""," -R","") ->  | Z20: =IF(Z21<>""," -R","") ->  | AB20: =IF(AB21<>""," -R","") ->  | AD20: =IF(AD21<>""," -R","") ->  | AF20: =IF(AF21<>""," -R","") ->  | AH20: =IF(AH21<>""," -R","") ->  | AJ20: =IF(AJ21<>""," -R","") ->  | AL20: =IF(AL21<>""," -R","") ->  | AN20: =IF(AN21<>""," -R","") ->  | AP20: =IF(AP21<>""," -R","") ->  | AR20: =IF(AR21<>""," -R","") ->  | AT20: =IF(AT21<>""," -R","") ->  | AV20: =IF(AV21<>""," -R","") ->  | AX20: =IF(AX21<>""," -R","") ->  | AZ20: =IF(AZ21<>""," -R","") ->  | BB20: =IF(BB21<>""," -R","") ->  | BD20: =IF(BD21<>""," -R","") ->  | BF20: =IF(BF21<>""," -R","") ->  | BH20: =IF(BH21<>""," -R","") ->  | BJ20: =IF(BJ21<>""," -R","") -> 
M21: 1.06 | N21: =IFERROR(VLOOKUP(M21,'CRUCE RIESGOS'!$C$8:$D$156,2,FALSE),"") ->  | O21: 2.06 | P21: =IFERROR(VLOOKUP(O21,'CRUCE RIESGOS'!$C$8:$D$156,2,FALSE),"") ->  | Q21: 3.06 | R21: =IFERROR(VLOOKUP(Q21,'CRUCE RIESGOS'!$C$8:$D$156,2,FALSE),"") ->  | S21: 4.06 | T21: =IFERROR(VLOOKUP(S21,'CRUCE RIESGOS'!$C$8:$D$156,2,FALSE),"") ->  | U21: 5.06 | V21: =IFERROR(VLOOKUP(U21,'CRUCE RIESGOS'!$C$8:$D$156,2,FALSE),"") ->  | W21: 6.06 | X21: =IFERROR(VLOOKUP(W21,'CRUCE RIESGOS'!$C$8:$D$156,2,FALSE),"") ->  | Y21: 7.06 | Z21: =IFERROR(VLOOKUP(Y21,'CRUCE RIESGOS'!$C$8:$D$156,2,FALSE),"") ->  | AA21: 8.06 | AB21: =IFERROR(VLOOKUP(AA21,'CRUCE RIESGOS'!$C$8:$D$156,2,FALSE),"") ->  | AC21: 9.06 | AD21: =IFERROR(VLOOKUP(AC21,'CRUCE RIESGOS'!$C$8:$D$156,2,FALSE),"") ->  | AE21: 10.06 | AF21: =IFERROR(VLOOKUP(AE21,'CRUCE RIESGOS'!$C$8:$D$156,2,FALSE),"") ->  | AG21: 11.06 | AH21: =IFERROR(VLOOKUP(AG21,'CRUCE RIESGOS'!$C$8:$D$156,2,FALSE),"") ->  | AI21: 12.06 | AJ21: =IFERROR(VLOOKUP(AI21,'CRUCE RIESGOS'!$C$8:$D$156,2,FALSE),"") ->  | AK21: 13.06 | AL21: =IFERROR(VLOOKUP(AK21,'CRUCE RIESGOS'!$C$8:$D$156,2,FALSE),"") ->  | AM21: 14.06 | AN21: =IFERROR(VLOOKUP(AM21,'CRUCE RIESGOS'!$C$8:$D$156,2,FALSE),"") ->  | AO21: 15.06 | AP21: =IFERROR(VLOOKUP(AO21,'CRUCE RIESGOS'!$C$8:$D$156,2,FALSE),"") ->  | AQ21: 16.06 | AR21: =IFERROR(VLOOKUP(AQ21,'CRUCE RIESGOS'!$C$8:$D$156,2,FALSE),"") ->  | AS21: 17.06 | AT21: =IFERROR(VLOOKUP(AS21,'CRUCE RIESGOS'!$C$8:$D$156,2,FALSE),"") ->  | AU21: 18.06 | AV21: =IFERROR(VLOOKUP(AU21,'CRUCE RIESGOS'!$C$8:$D$156,2,FALSE),"") ->  | AW21: 19.06 | AX21: =IFERROR(VLOOKUP(AW21,'CRUCE RIESGOS'!$C$8:$D$156,2,FALSE),"") ->  | AY21: 20.06 | AZ21: =IFERROR(VLOOKUP(AY21,'CRUCE RIESGOS'!$C$8:$D$156,2,FALSE),"") ->  | BA21: 21.06 | BB21: =IFERROR(VLOOKUP(BA21,'CRUCE RIESGOS'!$C$8:$D$156,2,FALSE),"") ->  | BC21: 22.06 | BD21: =IFERROR(VLOOKUP(BC21,'CRUCE RIESGOS'!$C$8:$D$156,2,FALSE),"") ->  | BE21: 23.06 | BF21: =IFERROR(VLOOKUP(BE21,'CRUCE RIESGOS'!$C$8:$D$156,2,FALSE),"") ->  | BG21: 24.06 | BH21: =IFERROR(VLOOKUP(BG21,'CRUCE RIESGOS'!$C$8:$D$156,2,FALSE),"") ->  | BI21: 25.06 | BJ21: =IFERROR(VLOOKUP(BI21,'CRUCE RIESGOS'!$C$8:$D$156,2,FALSE),"") -> 
N22: =IF(N23<>""," -R","") ->  | P22: =IF(P23<>""," -R","") ->  | R22: =IF(R23<>""," -R","") ->  | T22: =IF(T23<>""," -R","") ->  | V22: =IF(V23<>""," -R","") ->  | X22: =IF(X23<>""," -R","") ->  | Z22: =IF(Z23<>""," -R","") ->  | AB22: =IF(AB23<>""," -R","") ->  | AD22: =IF(AD23<>""," -R","") ->  | AF22: =IF(AF23<>""," -R","") ->  | AH22: =IF(AH23<>""," -R","") ->  | AJ22: =IF(AJ23<>""," -R","") ->  | AL22: =IF(AL23<>""," -R","") ->  | AN22: =IF(AN23<>""," -R","") ->  | AP22: =IF(AP23<>""," -R","") ->  | AR22: =IF(AR23<>""," -R","") ->  | AT22: =IF(AT23<>""," -R","") ->  | AV22: =IF(AV23<>""," -R","") ->  | AX22: =IF(AX23<>""," -R","") ->  | AZ22: =IF(AZ23<>""," -R","") ->  | BB22: =IF(BB23<>""," -R","") ->  | BD22: =IF(BD23<>""," -R","") ->  | BF22: =IF(BF23<>""," -R","") ->  | BH22: =IF(BH23<>""," -R","") ->  | BJ22: =IF(BJ23<>""," -R","") -> 
M23: 1.07 | N23: =IFERROR(VLOOKUP(M23,'CRUCE RIESGOS'!$C$8:$D$156,2,FALSE),"") ->  | O23: 2.07 | P23: =IFERROR(VLOOKUP(O23,'CRUCE RIESGOS'!$C$8:$D$156,2,FALSE),"") ->  | Q23: 3.07 | R23: =IFERROR(VLOOKUP(Q23,'CRUCE RIESGOS'!$C$8:$D$156,2,FALSE),"") ->  | S23: 4.07 | T23: =IFERROR(VLOOKUP(S23,'CRUCE RIESGOS'!$C$8:$D$156,2,FALSE),"") ->  | U23: 5.07 | V23: =IFERROR(VLOOKUP(U23,'CRUCE RIESGOS'!$C$8:$D$156,2,FALSE),"") ->  | W23: 6.07 | X23: =IFERROR(VLOOKUP(W23,'CRUCE RIESGOS'!$C$8:$D$156,2,FALSE),"") ->  | Y23: 7.07 | Z23: =IFERROR(VLOOKUP(Y23,'CRUCE RIESGOS'!$C$8:$D$156,2,FALSE),"") ->  | AA23: 8.07 | AB23: =IFERROR(VLOOKUP(AA23,'CRUCE RIESGOS'!$C$8:$D$156,2,FALSE),"") ->  | AC23: 9.07 | AD23: =IFERROR(VLOOKUP(AC23,'CRUCE RIESGOS'!$C$8:$D$156,2,FALSE),"") ->  | AE23: 10.07 | AF23: =IFERROR(VLOOKUP(AE23,'CRUCE RIESGOS'!$C$8:$D$156,2,FALSE),"") ->  | AG23: 11.07 | AH23: =IFERROR(VLOOKUP(AG23,'CRUCE RIESGOS'!$C$8:$D$156,2,FALSE),"") ->  | AI23: 12.07 | AJ23: =IFERROR(VLOOKUP(AI23,'CRUCE RIESGOS'!$C$8:$D$156,2,FALSE),"") ->  | AK23: 13.07 | AL23: =IFERROR(VLOOKUP(AK23,'CRUCE RIESGOS'!$C$8:$D$156,2,FALSE),"") ->  | AM23: 14.07 | AN23: =IFERROR(VLOOKUP(AM23,'CRUCE RIESGOS'!$C$8:$D$156,2,FALSE),"") ->  | AO23: 15.07 | AP23: =IFERROR(VLOOKUP(AO23,'CRUCE RIESGOS'!$C$8:$D$156,2,FALSE),"") ->  | AQ23: 16.07 | AR23: =IFERROR(VLOOKUP(AQ23,'CRUCE RIESGOS'!$C$8:$D$156,2,FALSE),"") ->  | AS23: 17.07 | AT23: =IFERROR(VLOOKUP(AS23,'CRUCE RIESGOS'!$C$8:$D$156,2,FALSE),"") ->  | AU23: 18.07 | AV23: =IFERROR(VLOOKUP(AU23,'CRUCE RIESGOS'!$C$8:$D$156,2,FALSE),"") ->  | AW23: 19.07 | AX23: =IFERROR(VLOOKUP(AW23,'CRUCE RIESGOS'!$C$8:$D$156,2,FALSE),"") ->  | AY23: 20.07 | AZ23: =IFERROR(VLOOKUP(AY23,'CRUCE RIESGOS'!$C$8:$D$156,2,FALSE),"") ->  | BA23: 21.07 | BB23: =IFERROR(VLOOKUP(BA23,'CRUCE RIESGOS'!$C$8:$D$156,2,FALSE),"") ->  | BC23: 22.07 | BD23: =IFERROR(VLOOKUP(BC23,'CRUCE RIESGOS'!$C$8:$D$156,2,FALSE),"") ->  | BE23: 23.07 | BF23: =IFERROR(VLOOKUP(BE23,'CRUCE RIESGOS'!$C$8:$D$156,2,FALSE),"") ->  | BG23: 24.07 | BH23: =IFERROR(VLOOKUP(BG23,'CRUCE RIESGOS'!$C$8:$D$156,2,FALSE),"") ->  | BI23: 25.07 | BJ23: =IFERROR(VLOOKUP(BI23,'CRUCE RIESGOS'!$C$8:$D$156,2,FALSE),"") -> 
N24: =IF(N25<>""," -R","") ->  | P24: =IF(P25<>""," -R","") ->  | R24: =IF(R25<>""," -R","") ->  | T24: =IF(T25<>""," -R","") ->  | V24: =IF(V25<>""," -R","") ->  | X24: =IF(X25<>""," -R","") ->  | Z24: =IF(Z25<>""," -R","") ->  | AB24: =IF(AB25<>""," -R","") ->  | AD24: =IF(AD25<>""," -R","") ->  | AF24: =IF(AF25<>""," -R","") ->  | AH24: =IF(AH25<>""," -R","") ->  | AJ24: =IF(AJ25<>""," -R","") ->  | AL24: =IF(AL25<>""," -R","") ->  | AN24: =IF(AN25<>""," -R","") ->  | AP24: =IF(AP25<>""," -R","") ->  | AR24: =IF(AR25<>""," -R","") ->  | AT24: =IF(AT25<>""," -R","") ->  | AV24: =IF(AV25<>""," -R","") ->  | AX24: =IF(AX25<>""," -R","") ->  | AZ24: =IF(AZ25<>""," -R","") ->  | BB24: =IF(BB25<>""," -R","") ->  | BD24: =IF(BD25<>""," -R","") ->  | BF24: =IF(BF25<>""," -R","") ->  | BH24: =IF(BH25<>""," -R","") ->  | BJ24: =IF(BJ25<>""," -R","") -> 
M25: 1.08 | N25: =IFERROR(VLOOKUP(M25,'CRUCE RIESGOS'!$C$8:$D$156,2,FALSE),"") ->  | O25: 2.08 | P25: =IFERROR(VLOOKUP(O25,'CRUCE RIESGOS'!$C$8:$D$156,2,FALSE),"") ->  | Q25: 3.08 | R25: =IFERROR(VLOOKUP(Q25,'CRUCE RIESGOS'!$C$8:$D$156,2,FALSE),"") ->  | S25: 4.08 | T25: =IFERROR(VLOOKUP(S25,'CRUCE RIESGOS'!$C$8:$D$156,2,FALSE),"") ->  | U25: 5.08 | V25: =IFERROR(VLOOKUP(U25,'CRUCE RIESGOS'!$C$8:$D$156,2,FALSE),"") ->  | W25: 6.08 | X25: =IFERROR(VLOOKUP(W25,'CRUCE RIESGOS'!$C$8:$D$156,2,FALSE),"") ->  | Y25: 7.08 | Z25: =IFERROR(VLOOKUP(Y25,'CRUCE RIESGOS'!$C$8:$D$156,2,FALSE),"") ->  | AA25: 8.08 | AB25: =IFERROR(VLOOKUP(AA25,'CRUCE RIESGOS'!$C$8:$D$156,2,FALSE),"") ->  | AC25: 9.08 | AD25: =IFERROR(VLOOKUP(AC25,'CRUCE RIESGOS'!$C$8:$D$156,2,FALSE),"") ->  | AE25: 10.08 | AF25: =IFERROR(VLOOKUP(AE25,'CRUCE RIESGOS'!$C$8:$D$156,2,FALSE),"") ->  | AG25: 11.08 | AH25: =IFERROR(VLOOKUP(AG25,'CRUCE RIESGOS'!$C$8:$D$156,2,FALSE),"") ->  | AI25: 12.08 | AJ25: =IFERROR(VLOOKUP(AI25,'CRUCE RIESGOS'!$C$8:$D$156,2,FALSE),"") ->  | AK25: 13.08 | AL25: =IFERROR(VLOOKUP(AK25,'CRUCE RIESGOS'!$C$8:$D$156,2,FALSE),"") ->  | AM25: 14.08 | AN25: =IFERROR(VLOOKUP(AM25,'CRUCE RIESGOS'!$C$8:$D$156,2,FALSE),"") ->  | AO25: 15.08 | AP25: =IFERROR(VLOOKUP(AO25,'CRUCE RIESGOS'!$C$8:$D$156,2,FALSE),"") ->  | AQ25: 16.08 | AR25: =IFERROR(VLOOKUP(AQ25,'CRUCE RIESGOS'!$C$8:$D$156,2,FALSE),"") ->  | AS25: 17.08 | AT25: =IFERROR(VLOOKUP(AS25,'CRUCE RIESGOS'!$C$8:$D$156,2,FALSE),"") ->  | AU25: 18.08 | AV25: =IFERROR(VLOOKUP(AU25,'CRUCE RIESGOS'!$C$8:$D$156,2,FALSE),"") ->  | AW25: 19.08 | AX25: =IFERROR(VLOOKUP(AW25,'CRUCE RIESGOS'!$C$8:$D$156,2,FALSE),"") ->  | AY25: 20.08 | AZ25: =IFERROR(VLOOKUP(AY25,'CRUCE RIESGOS'!$C$8:$D$156,2,FALSE),"") ->  | BA25: 21.08 | BB25: =IFERROR(VLOOKUP(BA25,'CRUCE RIESGOS'!$C$8:$D$156,2,FALSE),"") ->  | BC25: 22.08 | BD25: =IFERROR(VLOOKUP(BC25,'CRUCE RIESGOS'!$C$8:$D$156,2,FALSE),"") ->  | BE25: 23.08 | BF25: =IFERROR(VLOOKUP(BE25,'CRUCE RIESGOS'!$C$8:$D$156,2,FALSE),"") ->  | BG25: 24.08 | BH25: =IFERROR(VLOOKUP(BG25,'CRUCE RIESGOS'!$C$8:$D$156,2,FALSE),"") ->  | BI25: 25.08 | BJ25: =IFERROR(VLOOKUP(BI25,'CRUCE RIESGOS'!$C$8:$D$156,2,FALSE),"") -> 
N26: =IF(N27<>""," -R","") ->  | P26: =IF(P27<>""," -R","") ->  | R26: =IF(R27<>""," -R","") ->  | T26: =IF(T27<>""," -R","") ->  | V26: =IF(V27<>""," -R","") ->  | X26: =IF(X27<>""," -R","") ->  | Z26: =IF(Z27<>""," -R","") ->  | AB26: =IF(AB27<>""," -R","") ->  | AD26: =IF(AD27<>""," -R","") ->  | AF26: =IF(AF27<>""," -R","") ->  | AH26: =IF(AH27<>""," -R","") ->  | AJ26: =IF(AJ27<>""," -R","") ->  | AL26: =IF(AL27<>""," -R","") ->  | AN26: =IF(AN27<>""," -R","") ->  | AP26: =IF(AP27<>""," -R","") ->  | AR26: =IF(AR27<>""," -R","") ->  | AT26: =IF(AT27<>""," -R","") ->  | AV26: =IF(AV27<>""," -R","") ->  | AX26: =IF(AX27<>""," -R","") ->  | AZ26: =IF(AZ27<>""," -R","") ->  | BB26: =IF(BB27<>""," -R","") ->  | BD26: =IF(BD27<>""," -R","") ->  | BF26: =IF(BF27<>""," -R","") ->  | BH26: =IF(BH27<>""," -R","") ->  | BJ26: =IF(BJ27<>""," -R","") -> 
M27: 1.09 | N27: =IFERROR(VLOOKUP(M27,'CRUCE RIESGOS'!$C$8:$D$156,2,FALSE),"") ->  | O27: 2.09 | P27: =IFERROR(VLOOKUP(O27,'CRUCE RIESGOS'!$C$8:$D$156,2,FALSE),"") ->  | Q27: 3.09 | R27: =IFERROR(VLOOKUP(Q27,'CRUCE RIESGOS'!$C$8:$D$156,2,FALSE),"") ->  | S27: 4.09 | T27: =IFERROR(VLOOKUP(S27,'CRUCE RIESGOS'!$C$8:$D$156,2,FALSE),"") ->  | U27: 5.09 | V27: =IFERROR(VLOOKUP(U27,'CRUCE RIESGOS'!$C$8:$D$156,2,FALSE),"") ->  | W27: 6.09 | X27: =IFERROR(VLOOKUP(W27,'CRUCE RIESGOS'!$C$8:$D$156,2,FALSE),"") ->  | Y27: 7.09 | Z27: =IFERROR(VLOOKUP(Y27,'CRUCE RIESGOS'!$C$8:$D$156,2,FALSE),"") ->  | AA27: 8.09 | AB27: =IFERROR(VLOOKUP(AA27,'CRUCE RIESGOS'!$C$8:$D$156,2,FALSE),"") ->  | AC27: 9.09 | AD27: =IFERROR(VLOOKUP(AC27,'CRUCE RIESGOS'!$C$8:$D$156,2,FALSE),"") ->  | AE27: 10.09 | AF27: =IFERROR(VLOOKUP(AE27,'CRUCE RIESGOS'!$C$8:$D$156,2,FALSE),"") ->  | AG27: 11.09 | AH27: =IFERROR(VLOOKUP(AG27,'CRUCE RIESGOS'!$C$8:$D$156,2,FALSE),"") ->  | AI27: 12.09 | AJ27: =IFERROR(VLOOKUP(AI27,'CRUCE RIESGOS'!$C$8:$D$156,2,FALSE),"") ->  | AK27: 13.09 | AL27: =IFERROR(VLOOKUP(AK27,'CRUCE RIESGOS'!$C$8:$D$156,2,FALSE),"") ->  | AM27: 14.09 | AN27: =IFERROR(VLOOKUP(AM27,'CRUCE RIESGOS'!$C$8:$D$156,2,FALSE),"") ->  | AO27: 15.09 | AP27: =IFERROR(VLOOKUP(AO27,'CRUCE RIESGOS'!$C$8:$D$156,2,FALSE),"") ->  | AQ27: 16.09 | AR27: =IFERROR(VLOOKUP(AQ27,'CRUCE RIESGOS'!$C$8:$D$156,2,FALSE),"") ->  | AS27: 17.09 | AT27: =IFERROR(VLOOKUP(AS27,'CRUCE RIESGOS'!$C$8:$D$156,2,FALSE),"") ->  | AU27: 18.09 | AV27: =IFERROR(VLOOKUP(AU27,'CRUCE RIESGOS'!$C$8:$D$156,2,FALSE),"") ->  | AW27: 19.09 | AX27: =IFERROR(VLOOKUP(AW27,'CRUCE RIESGOS'!$C$8:$D$156,2,FALSE),"") ->  | AY27: 20.09 | AZ27: =IFERROR(VLOOKUP(AY27,'CRUCE RIESGOS'!$C$8:$D$156,2,FALSE),"") ->  | BA27: 21.09 | BB27: =IFERROR(VLOOKUP(BA27,'CRUCE RIESGOS'!$C$8:$D$156,2,FALSE),"") ->  | BC27: 22.09 | BD27: =IFERROR(VLOOKUP(BC27,'CRUCE RIESGOS'!$C$8:$D$156,2,FALSE),"") ->  | BE27: 23.09 | BF27: =IFERROR(VLOOKUP(BE27,'CRUCE RIESGOS'!$C$8:$D$156,2,FALSE),"") ->  | BG27: 24.09 | BH27: =IFERROR(VLOOKUP(BG27,'CRUCE RIESGOS'!$C$8:$D$156,2,FALSE),"") ->  | BI27: 25.09 | BJ27: =IFERROR(VLOOKUP(BI27,'CRUCE RIESGOS'!$C$8:$D$156,2,FALSE),"") -> 
N28: =IF(N29<>""," -R","") ->  | P28: =IF(P29<>""," -R","") ->  | R28: =IF(R29<>""," -R","") ->  | T28: =IF(T29<>""," -R","") ->  | V28: =IF(V29<>""," -R","") ->  | X28: =IF(X29<>""," -R","") ->  | Z28: =IF(Z29<>""," -R","") ->  | AB28: =IF(AB29<>""," -R","") ->  | AD28: =IF(AD29<>""," -R","") ->  | AF28: =IF(AF29<>""," -R","") ->  | AH28: =IF(AH29<>""," -R","") ->  | AJ28: =IF(AJ29<>""," -R","") ->  | AL28: =IF(AL29<>""," -R","") ->  | AN28: =IF(AN29<>""," -R","") ->  | AP28: =IF(AP29<>""," -R","") ->  | AR28: =IF(AR29<>""," -R","") ->  | AT28: =IF(AT29<>""," -R","") ->  | AV28: =IF(AV29<>""," -R","") ->  | AX28: =IF(AX29<>""," -R","") ->  | AZ28: =IF(AZ29<>""," -R","") ->  | BB28: =IF(BB29<>""," -R","") ->  | BD28: =IF(BD29<>""," -R","") ->  | BF28: =IF(BF29<>""," -R","") ->  | BH28: =IF(BH29<>""," -R","") ->  | BJ28: =IF(BJ29<>""," -R","") -> 
M29: 1.1 | N29: =IFERROR(VLOOKUP(M29,'CRUCE RIESGOS'!$C$8:$D$156,2,FALSE),"") ->  | O29: 2.1 | P29: =IFERROR(VLOOKUP(O29,'CRUCE RIESGOS'!$C$8:$D$156,2,FALSE),"") ->  | Q29: 3.1 | R29: =IFERROR(VLOOKUP(Q29,'CRUCE RIESGOS'!$C$8:$D$156,2,FALSE),"") ->  | S29: 4.1 | T29: =IFERROR(VLOOKUP(S29,'CRUCE RIESGOS'!$C$8:$D$156,2,FALSE),"") ->  | U29: 5.1 | V29: =IFERROR(VLOOKUP(U29,'CRUCE RIESGOS'!$C$8:$D$156,2,FALSE),"") ->  | W29: 6.1 | X29: =IFERROR(VLOOKUP(W29,'CRUCE RIESGOS'!$C$8:$D$156,2,FALSE),"") ->  | Y29: 7.1 | Z29: =IFERROR(VLOOKUP(Y29,'CRUCE RIESGOS'!$C$8:$D$156,2,FALSE),"") ->  | AA29: 8.1 | AB29: =IFERROR(VLOOKUP(AA29,'CRUCE RIESGOS'!$C$8:$D$156,2,FALSE),"") ->  | AC29: 9.1 | AD29: =IFERROR(VLOOKUP(AC29,'CRUCE RIESGOS'!$C$8:$D$156,2,FALSE),"") ->  | AE29: 10.1 | AF29: =IFERROR(VLOOKUP(AE29,'CRUCE RIESGOS'!$C$8:$D$156,2,FALSE),"") ->  | AG29: 11.1 | AH29: =IFERROR(VLOOKUP(AG29,'CRUCE RIESGOS'!$C$8:$D$156,2,FALSE),"") ->  | AI29: 12.1 | AJ29: =IFERROR(VLOOKUP(AI29,'CRUCE RIESGOS'!$C$8:$D$156,2,FALSE),"") ->  | AK29: 13.1 | AL29: =IFERROR(VLOOKUP(AK29,'CRUCE RIESGOS'!$C$8:$D$156,2,FALSE),"") ->  | AM29: 14.1 | AN29: =IFERROR(VLOOKUP(AM29,'CRUCE RIESGOS'!$C$8:$D$156,2,FALSE),"") ->  | AO29: 15.1 | AP29: =IFERROR(VLOOKUP(AO29,'CRUCE RIESGOS'!$C$8:$D$156,2,FALSE),"") ->  | AQ29: 16.1 | AR29: =IFERROR(VLOOKUP(AQ29,'CRUCE RIESGOS'!$C$8:$D$156,2,FALSE),"") ->  | AS29: 17.1 | AT29: =IFERROR(VLOOKUP(AS29,'CRUCE RIESGOS'!$C$8:$D$156,2,FALSE),"") ->  | AU29: 18.1 | AV29: =IFERROR(VLOOKUP(AU29,'CRUCE RIESGOS'!$C$8:$D$156,2,FALSE),"") ->  | AW29: 19.1 | AX29: =IFERROR(VLOOKUP(AW29,'CRUCE RIESGOS'!$C$8:$D$156,2,FALSE),"") ->  | AY29: 20.1 | AZ29: =IFERROR(VLOOKUP(AY29,'CRUCE RIESGOS'!$C$8:$D$156,2,FALSE),"") ->  | BA29: 21.1 | BB29: =IFERROR(VLOOKUP(BA29,'CRUCE RIESGOS'!$C$8:$D$156,2,FALSE),"") ->  | BC29: 22.1 | BD29: =IFERROR(VLOOKUP(BC29,'CRUCE RIESGOS'!$C$8:$D$156,2,FALSE),"") ->  | BE29: 23.1 | BF29: =IFERROR(VLOOKUP(BE29,'CRUCE RIESGOS'!$C$8:$D$156,2,FALSE),"") ->  | BG29: 24.1 | BH29: =IFERROR(VLOOKUP(BG29,'CRUCE RIESGOS'!$C$8:$D$156,2,FALSE),"") ->  | BI29: 25.1 | BJ29: =IFERROR(VLOOKUP(BI29,'CRUCE RIESGOS'!$C$8:$D$156,2,FALSE),"") -> 
N30: =IF(N31<>""," -R","") ->  | P30: =IF(P31<>""," -R","") ->  | R30: =IF(R31<>""," -R","") ->  | T30: =IF(T31<>""," -R","") ->  | V30: =IF(V31<>""," -R","") ->  | X30: =IF(X31<>""," -R","") ->  | Z30: =IF(Z31<>""," -R","") ->  | AB30: =IF(AB31<>""," -R","") ->  | AD30: =IF(AD31<>""," -R","") ->  | AF30: =IF(AF31<>""," -R","") ->  | AH30: =IF(AH31<>""," -R","") ->  | AJ30: =IF(AJ31<>""," -R","") ->  | AL30: =IF(AL31<>""," -R","") ->  | AN30: =IF(AN31<>""," -R","") ->  | AP30: =IF(AP31<>""," -R","") ->  | AR30: =IF(AR31<>""," -R","") ->  | AT30: =IF(AT31<>""," -R","") ->  | AV30: =IF(AV31<>""," -R","") ->  | AX30: =IF(AX31<>""," -R","") ->  | AZ30: =IF(AZ31<>""," -R","") ->  | BB30: =IF(BB31<>""," -R","") ->  | BD30: =IF(BD31<>""," -R","") ->  | BF30: =IF(BF31<>""," -R","") ->  | BH30: =IF(BH31<>""," -R","") ->  | BJ30: =IF(BJ31<>""," -R","") -> 
M31: 1.11 | N31: =IFERROR(VLOOKUP(M31,'CRUCE RIESGOS'!$C$8:$D$156,2,FALSE),"") ->  | O31: 2.11 | P31: =IFERROR(VLOOKUP(O31,'CRUCE RIESGOS'!$C$8:$D$156,2,FALSE),"") ->  | Q31: 3.11 | R31: =IFERROR(VLOOKUP(Q31,'CRUCE RIESGOS'!$C$8:$D$156,2,FALSE),"") ->  | S31: 4.11 | T31: =IFERROR(VLOOKUP(S31,'CRUCE RIESGOS'!$C$8:$D$156,2,FALSE),"") ->  | U31: 5.11 | V31: =IFERROR(VLOOKUP(U31,'CRUCE RIESGOS'!$C$8:$D$156,2,FALSE),"") ->  | W31: 6.11 | X31: =IFERROR(VLOOKUP(W31,'CRUCE RIESGOS'!$C$8:$D$156,2,FALSE),"") ->  | Y31: 7.11 | Z31: =IFERROR(VLOOKUP(Y31,'CRUCE RIESGOS'!$C$8:$D$156,2,FALSE),"") ->  | AA31: 8.11 | AB31: =IFERROR(VLOOKUP(AA31,'CRUCE RIESGOS'!$C$8:$D$156,2,FALSE),"") ->  | AC31: 9.11 | AD31: =IFERROR(VLOOKUP(AC31,'CRUCE RIESGOS'!$C$8:$D$156,2,FALSE),"") ->  | AE31: 10.11 | AF31: =IFERROR(VLOOKUP(AE31,'CRUCE RIESGOS'!$C$8:$D$156,2,FALSE),"") ->  | AG31: 11.11 | AH31: =IFERROR(VLOOKUP(AG31,'CRUCE RIESGOS'!$C$8:$D$156,2,FALSE),"") ->  | AI31: 12.11 | AJ31: =IFERROR(VLOOKUP(AI31,'CRUCE RIESGOS'!$C$8:$D$156,2,FALSE),"") ->  | AK31: 13.11 | AL31: =IFERROR(VLOOKUP(AK31,'CRUCE RIESGOS'!$C$8:$D$156,2,FALSE),"") ->  | AM31: 14.11 | AN31: =IFERROR(VLOOKUP(AM31,'CRUCE RIESGOS'!$C$8:$D$156,2,FALSE),"") ->  | AO31: 15.11 | AP31: =IFERROR(VLOOKUP(AO31,'CRUCE RIESGOS'!$C$8:$D$156,2,FALSE),"") ->  | AQ31: 16.11 | AR31: =IFERROR(VLOOKUP(AQ31,'CRUCE RIESGOS'!$C$8:$D$156,2,FALSE),"") ->  | AS31: 17.11 | AT31: =IFERROR(VLOOKUP(AS31,'CRUCE RIESGOS'!$C$8:$D$156,2,FALSE),"") ->  | AU31: 18.11 | AV31: =IFERROR(VLOOKUP(AU31,'CRUCE RIESGOS'!$C$8:$D$156,2,FALSE),"") ->  | AW31: 19.11 | AX31: =IFERROR(VLOOKUP(AW31,'CRUCE RIESGOS'!$C$8:$D$156,2,FALSE),"") ->  | AY31: 20.11 | AZ31: =IFERROR(VLOOKUP(AY31,'CRUCE RIESGOS'!$C$8:$D$156,2,FALSE),"") ->  | BA31: 21.11 | BB31: =IFERROR(VLOOKUP(BA31,'CRUCE RIESGOS'!$C$8:$D$156,2,FALSE),"") ->  | BC31: 22.11 | BD31: =IFERROR(VLOOKUP(BC31,'CRUCE RIESGOS'!$C$8:$D$156,2,FALSE),"") ->  | BE31: 23.11 | BF31: =IFERROR(VLOOKUP(BE31,'CRUCE RIESGOS'!$C$8:$D$156,2,FALSE),"") ->  | BG31: 24.11 | BH31: =IFERROR(VLOOKUP(BG31,'CRUCE RIESGOS'!$C$8:$D$156,2,FALSE),"") ->  | BI31: 25.11 | BJ31: =IFERROR(VLOOKUP(BI31,'CRUCE RIESGOS'!$C$8:$D$156,2,FALSE),"") -> 
N32: =IF(N33<>""," -R","") ->  | P32: =IF(P33<>""," -R","") ->  | R32: =IF(R33<>""," -R","") ->  | T32: =IF(T33<>""," -R","") ->  | V32: =IF(V33<>""," -R","") ->  | X32: =IF(X33<>""," -R","") ->  | Z32: =IF(Z33<>""," -R","") ->  | AB32: =IF(AB33<>""," -R","") ->  | AD32: =IF(AD33<>""," -R","") ->  | AF32: =IF(AF33<>""," -R","") ->  | AH32: =IF(AH33<>""," -R","") ->  | AJ32: =IF(AJ33<>""," -R","") ->  | AL32: =IF(AL33<>""," -R","") ->  | AN32: =IF(AN33<>""," -R","") ->  | AP32: =IF(AP33<>""," -R","") ->  | AR32: =IF(AR33<>""," -R","") ->  | AT32: =IF(AT33<>""," -R","") ->  | AV32: =IF(AV33<>""," -R","") ->  | AX32: =IF(AX33<>""," -R","") ->  | AZ32: =IF(AZ33<>""," -R","") ->  | BB32: =IF(BB33<>""," -R","") ->  | BD32: =IF(BD33<>""," -R","") ->  | BF32: =IF(BF33<>""," -R","") ->  | BH32: =IF(BH33<>""," -R","") ->  | BJ32: =IF(BJ33<>""," -R","") -> 
M33: 1.12 | N33: =IFERROR(VLOOKUP(M33,'CRUCE RIESGOS'!$C$8:$D$156,2,FALSE),"") ->  | O33: 2.12 | P33: =IFERROR(VLOOKUP(O33,'CRUCE RIESGOS'!$C$8:$D$156,2,FALSE),"") ->  | Q33: 3.12 | R33: =IFERROR(VLOOKUP(Q33,'CRUCE RIESGOS'!$C$8:$D$156,2,FALSE),"") ->  | S33: 4.12 | T33: =IFERROR(VLOOKUP(S33,'CRUCE RIESGOS'!$C$8:$D$156,2,FALSE),"") ->  | U33: 5.12 | V33: =IFERROR(VLOOKUP(U33,'CRUCE RIESGOS'!$C$8:$D$156,2,FALSE),"") ->  | W33: 6.12 | X33: =IFERROR(VLOOKUP(W33,'CRUCE RIESGOS'!$C$8:$D$156,2,FALSE),"") ->  | Y33: 7.12 | Z33: =IFERROR(VLOOKUP(Y33,'CRUCE RIESGOS'!$C$8:$D$156,2,FALSE),"") ->  | AA33: 8.12 | AB33: =IFERROR(VLOOKUP(AA33,'CRUCE RIESGOS'!$C$8:$D$156,2,FALSE),"") ->  | AC33: 9.12 | AD33: =IFERROR(VLOOKUP(AC33,'CRUCE RIESGOS'!$C$8:$D$156,2,FALSE),"") ->  | AE33: 10.12 | AF33: =IFERROR(VLOOKUP(AE33,'CRUCE RIESGOS'!$C$8:$D$156,2,FALSE),"") ->  | AG33: 11.12 | AH33: =IFERROR(VLOOKUP(AG33,'CRUCE RIESGOS'!$C$8:$D$156,2,FALSE),"") ->  | AI33: 12.12 | AJ33: =IFERROR(VLOOKUP(AI33,'CRUCE RIESGOS'!$C$8:$D$156,2,FALSE),"") ->  | AK33: 13.12 | AL33: =IFERROR(VLOOKUP(AK33,'CRUCE RIESGOS'!$C$8:$D$156,2,FALSE),"") ->  | AM33: 14.12 | AN33: =IFERROR(VLOOKUP(AM33,'CRUCE RIESGOS'!$C$8:$D$156,2,FALSE),"") ->  | AO33: 15.12 | AP33: =IFERROR(VLOOKUP(AO33,'CRUCE RIESGOS'!$C$8:$D$156,2,FALSE),"") ->  | AQ33: 16.12 | AR33: =IFERROR(VLOOKUP(AQ33,'CRUCE RIESGOS'!$C$8:$D$156,2,FALSE),"") ->  | AS33: 17.12 | AT33: =IFERROR(VLOOKUP(AS33,'CRUCE RIESGOS'!$C$8:$D$156,2,FALSE),"") ->  | AU33: 18.12 | AV33: =IFERROR(VLOOKUP(AU33,'CRUCE RIESGOS'!$C$8:$D$156,2,FALSE),"") ->  | AW33: 19.12 | AX33: =IFERROR(VLOOKUP(AW33,'CRUCE RIESGOS'!$C$8:$D$156,2,FALSE),"") ->  | AY33: 20.12 | AZ33: =IFERROR(VLOOKUP(AY33,'CRUCE RIESGOS'!$C$8:$D$156,2,FALSE),"") ->  | BA33: 21.12 | BB33: =IFERROR(VLOOKUP(BA33,'CRUCE RIESGOS'!$C$8:$D$156,2,FALSE),"") ->  | BC33: 22.12 | BD33: =IFERROR(VLOOKUP(BC33,'CRUCE RIESGOS'!$C$8:$D$156,2,FALSE),"") ->  | BE33: 23.12 | BF33: =IFERROR(VLOOKUP(BE33,'CRUCE RIESGOS'!$C$8:$D$156,2,FALSE),"") ->  | BG33: 24.12 | BH33: =IFERROR(VLOOKUP(BG33,'CRUCE RIESGOS'!$C$8:$D$156,2,FALSE),"") ->  | BI33: 25.12 | BJ33: =IFERROR(VLOOKUP(BI33,'CRUCE RIESGOS'!$C$8:$D$156,2,FALSE),"") -> 
N34: =IF(N35<>""," -R","") ->  | P34: =IF(P35<>""," -R","") ->  | R34: =IF(R35<>""," -R","") ->  | T34: =IF(T35<>""," -R","") ->  | V34: =IF(V35<>""," -R","") ->  | X34: =IF(X35<>""," -R","") ->  | Z34: =IF(Z35<>""," -R","") ->  | AB34: =IF(AB35<>""," -R","") ->  | AD34: =IF(AD35<>""," -R","") ->  | AF34: =IF(AF35<>""," -R","") ->  | AH34: =IF(AH35<>""," -R","") ->  | AJ34: =IF(AJ35<>""," -R","") ->  | AL34: =IF(AL35<>""," -R","") ->  | AN34: =IF(AN35<>""," -R","") ->  | AP34: =IF(AP35<>""," -R","") ->  | AR34: =IF(AR35<>""," -R","") ->  | AT34: =IF(AT35<>""," -R","") ->  | AV34: =IF(AV35<>""," -R","") ->  | AX34: =IF(AX35<>""," -R","") ->  | AZ34: =IF(AZ35<>""," -R","") ->  | BB34: =IF(BB35<>""," -R","") ->  | BD34: =IF(BD35<>""," -R","") ->  | BF34: =IF(BF35<>""," -R","") ->  | BH34: =IF(BH35<>""," -R","") ->  | BJ34: =IF(BJ35<>""," -R","") -> 
M35: 1.13 | N35: =IFERROR(VLOOKUP(M35,'CRUCE RIESGOS'!$C$8:$D$156,2,FALSE),"") ->  | O35: 2.13 | P35: =IFERROR(VLOOKUP(O35,'CRUCE RIESGOS'!$C$8:$D$156,2,FALSE),"") ->  | Q35: 3.13 | R35: =IFERROR(VLOOKUP(Q35,'CRUCE RIESGOS'!$C$8:$D$156,2,FALSE),"") ->  | S35: 4.13 | T35: =IFERROR(VLOOKUP(S35,'CRUCE RIESGOS'!$C$8:$D$156,2,FALSE),"") ->  | U35: 5.13 | V35: =IFERROR(VLOOKUP(U35,'CRUCE RIESGOS'!$C$8:$D$156,2,FALSE),"") ->  | W35: 6.13 | X35: =IFERROR(VLOOKUP(W35,'CRUCE RIESGOS'!$C$8:$D$156,2,FALSE),"") ->  | Y35: 7.13 | Z35: =IFERROR(VLOOKUP(Y35,'CRUCE RIESGOS'!$C$8:$D$156,2,FALSE),"") ->  | AA35: 8.13 | AB35: =IFERROR(VLOOKUP(AA35,'CRUCE RIESGOS'!$C$8:$D$156,2,FALSE),"") ->  | AC35: 9.13 | AD35: =IFERROR(VLOOKUP(AC35,'CRUCE RIESGOS'!$C$8:$D$156,2,FALSE),"") ->  | AE35: 10.13 | AF35: =IFERROR(VLOOKUP(AE35,'CRUCE RIESGOS'!$C$8:$D$156,2,FALSE),"") ->  | AG35: 11.13 | AH35: =IFERROR(VLOOKUP(AG35,'CRUCE RIESGOS'!$C$8:$D$156,2,FALSE),"") ->  | AI35: 12.13 | AJ35: =IFERROR(VLOOKUP(AI35,'CRUCE RIESGOS'!$C$8:$D$156,2,FALSE),"") ->  | AK35: 13.13 | AL35: =IFERROR(VLOOKUP(AK35,'CRUCE RIESGOS'!$C$8:$D$156,2,FALSE),"") ->  | AM35: 14.13 | AN35: =IFERROR(VLOOKUP(AM35,'CRUCE RIESGOS'!$C$8:$D$156,2,FALSE),"") ->  | AO35: 15.13 | AP35: =IFERROR(VLOOKUP(AO35,'CRUCE RIESGOS'!$C$8:$D$156,2,FALSE),"") ->  | AQ35: 16.13 | AR35: =IFERROR(VLOOKUP(AQ35,'CRUCE RIESGOS'!$C$8:$D$156,2,FALSE),"") ->  | AS35: 17.13 | AT35: =IFERROR(VLOOKUP(AS35,'CRUCE RIESGOS'!$C$8:$D$156,2,FALSE),"") ->  | AU35: 18.13 | AV35: =IFERROR(VLOOKUP(AU35,'CRUCE RIESGOS'!$C$8:$D$156,2,FALSE),"") ->  | AW35: 19.13 | AX35: =IFERROR(VLOOKUP(AW35,'CRUCE RIESGOS'!$C$8:$D$156,2,FALSE),"") ->  | AY35: 20.13 | AZ35: =IFERROR(VLOOKUP(AY35,'CRUCE RIESGOS'!$C$8:$D$156,2,FALSE),"") ->  | BA35: 21.13 | BB35: =IFERROR(VLOOKUP(BA35,'CRUCE RIESGOS'!$C$8:$D$156,2,FALSE),"") ->  | BC35: 22.13 | BD35: =IFERROR(VLOOKUP(BC35,'CRUCE RIESGOS'!$C$8:$D$156,2,FALSE),"") ->  | BE35: 23.13 | BF35: =IFERROR(VLOOKUP(BE35,'CRUCE RIESGOS'!$C$8:$D$156,2,FALSE),"") ->  | BG35: 24.13 | BH35: =IFERROR(VLOOKUP(BG35,'CRUCE RIESGOS'!$C$8:$D$156,2,FALSE),"") ->  | BI35: 25.13 | BJ35: =IFERROR(VLOOKUP(BI35,'CRUCE RIESGOS'!$C$8:$D$156,2,FALSE),"") -> 
N36: =IF(N37<>""," -R","") ->  | P36: =IF(P37<>""," -R","") ->  | R36: =IF(R37<>""," -R","") ->  | T36: =IF(T37<>""," -R","") ->  | V36: =IF(V37<>""," -R","") ->  | X36: =IF(X37<>""," -R","") ->  | Z36: =IF(Z37<>""," -R","") ->  | AB36: =IF(AB37<>""," -R","") ->  | AD36: =IF(AD37<>""," -R","") ->  | AF36: =IF(AF37<>""," -R","") ->  | AH36: =IF(AH37<>""," -R","") ->  | AJ36: =IF(AJ37<>""," -R","") ->  | AL36: =IF(AL37<>""," -R","") ->  | AN36: =IF(AN37<>""," -R","") ->  | AP36: =IF(AP37<>""," -R","") ->  | AR36: =IF(AR37<>""," -R","") ->  | AT36: =IF(AT37<>""," -R","") ->  | AV36: =IF(AV37<>""," -R","") ->  | AX36: =IF(AX37<>""," -R","") ->  | AZ36: =IF(AZ37<>""," -R","") ->  | BB36: =IF(BB37<>""," -R","") ->  | BD36: =IF(BD37<>""," -R","") ->  | BF36: =IF(BF37<>""," -R","") ->  | BH36: =IF(BH37<>""," -R","") ->  | BJ36: =IF(BJ37<>""," -R","") -> 
M37: 1.14 | N37: =IFERROR(VLOOKUP(M37,'CRUCE RIESGOS'!$C$8:$D$156,2,FALSE),"") ->  | O37: 2.14 | P37: =IFERROR(VLOOKUP(O37,'CRUCE RIESGOS'!$C$8:$D$156,2,FALSE),"") ->  | Q37: 3.14 | R37: =IFERROR(VLOOKUP(Q37,'CRUCE RIESGOS'!$C$8:$D$156,2,FALSE),"") ->  | S37: 4.14 | T37: =IFERROR(VLOOKUP(S37,'CRUCE RIESGOS'!$C$8:$D$156,2,FALSE),"") ->  | U37: 5.14 | V37: =IFERROR(VLOOKUP(U37,'CRUCE RIESGOS'!$C$8:$D$156,2,FALSE),"") ->  | W37: 6.14 | X37: =IFERROR(VLOOKUP(W37,'CRUCE RIESGOS'!$C$8:$D$156,2,FALSE),"") ->  | Y37: 7.14 | Z37: =IFERROR(VLOOKUP(Y37,'CRUCE RIESGOS'!$C$8:$D$156,2,FALSE),"") ->  | AA37: 8.14 | AB37: =IFERROR(VLOOKUP(AA37,'CRUCE RIESGOS'!$C$8:$D$156,2,FALSE),"") ->  | AC37: 9.14 | AD37: =IFERROR(VLOOKUP(AC37,'CRUCE RIESGOS'!$C$8:$D$156,2,FALSE),"") ->  | AE37: 10.14 | AF37: =IFERROR(VLOOKUP(AE37,'CRUCE RIESGOS'!$C$8:$D$156,2,FALSE),"") ->  | AG37: 11.14 | AH37: =IFERROR(VLOOKUP(AG37,'CRUCE RIESGOS'!$C$8:$D$156,2,FALSE),"") ->  | AI37: 12.14 | AJ37: =IFERROR(VLOOKUP(AI37,'CRUCE RIESGOS'!$C$8:$D$156,2,FALSE),"") ->  | AK37: 13.14 | AL37: =IFERROR(VLOOKUP(AK37,'CRUCE RIESGOS'!$C$8:$D$156,2,FALSE),"") ->  | AM37: 14.14 | AN37: =IFERROR(VLOOKUP(AM37,'CRUCE RIESGOS'!$C$8:$D$156,2,FALSE),"") ->  | AO37: 15.14 | AP37: =IFERROR(VLOOKUP(AO37,'CRUCE RIESGOS'!$C$8:$D$156,2,FALSE),"") ->  | AQ37: 16.14 | AR37: =IFERROR(VLOOKUP(AQ37,'CRUCE RIESGOS'!$C$8:$D$156,2,FALSE),"") ->  | AS37: 17.14 | AT37: =IFERROR(VLOOKUP(AS37,'CRUCE RIESGOS'!$C$8:$D$156,2,FALSE),"") ->  | AU37: 18.14 | AV37: =IFERROR(VLOOKUP(AU37,'CRUCE RIESGOS'!$C$8:$D$156,2,FALSE),"") ->  | AW37: 19.14 | AX37: =IFERROR(VLOOKUP(AW37,'CRUCE RIESGOS'!$C$8:$D$156,2,FALSE),"") ->  | AY37: 20.14 | AZ37: =IFERROR(VLOOKUP(AY37,'CRUCE RIESGOS'!$C$8:$D$156,2,FALSE),"") ->  | BA37: 21.14 | BB37: =IFERROR(VLOOKUP(BA37,'CRUCE RIESGOS'!$C$8:$D$156,2,FALSE),"") ->  | BC37: 22.14 | BD37: =IFERROR(VLOOKUP(BC37,'CRUCE RIESGOS'!$C$8:$D$156,2,FALSE),"") ->  | BE37: 23.14 | BF37: =IFERROR(VLOOKUP(BE37,'CRUCE RIESGOS'!$C$8:$D$156,2,FALSE),"") ->  | BG37: 24.14 | BH37: =IFERROR(VLOOKUP(BG37,'CRUCE RIESGOS'!$C$8:$D$156,2,FALSE),"") ->  | BI37: 25.14 | BJ37: =IFERROR(VLOOKUP(BI37,'CRUCE RIESGOS'!$C$8:$D$156,2,FALSE),"") -> 
N38: =IF(N39<>""," -R","") ->  | P38: =IF(P39<>""," -R","") ->  | R38: =IF(R39<>""," -R","") ->  | T38: =IF(T39<>""," -R","") ->  | V38: =IF(V39<>""," -R","") ->  | X38: =IF(X39<>""," -R","") ->  | Z38: =IF(Z39<>""," -R","") ->  | AB38: =IF(AB39<>""," -R","") ->  | AD38: =IF(AD39<>""," -R","") ->  | AF38: =IF(AF39<>""," -R","") ->  | AH38: =IF(AH39<>""," -R","") ->  | AJ38: =IF(AJ39<>""," -R","") ->  | AL38: =IF(AL39<>""," -R","") ->  | AN38: =IF(AN39<>""," -R","") ->  | AP38: =IF(AP39<>""," -R","") ->  | AR38: =IF(AR39<>""," -R","") ->  | AT38: =IF(AT39<>""," -R","") ->  | AV38: =IF(AV39<>""," -R","") ->  | AX38: =IF(AX39<>""," -R","") ->  | AZ38: =IF(AZ39<>""," -R","") ->  | BB38: =IF(BB39<>""," -R","") ->  | BD38: =IF(BD39<>""," -R","") ->  | BF38: =IF(BF39<>""," -R","") ->  | BH38: =IF(BH39<>""," -R","") ->  | BJ38: =IF(BJ39<>""," -R","") -> 
M39: 1.15 | N39: =IFERROR(VLOOKUP(M39,'CRUCE RIESGOS'!$C$8:$D$156,2,FALSE),"") ->  | O39: 2.15 | P39: =IFERROR(VLOOKUP(O39,'CRUCE RIESGOS'!$C$8:$D$156,2,FALSE),"") ->  | Q39: 3.15 | R39: =IFERROR(VLOOKUP(Q39,'CRUCE RIESGOS'!$C$8:$D$156,2,FALSE),"") ->  | S39: 4.15 | T39: =IFERROR(VLOOKUP(S39,'CRUCE RIESGOS'!$C$8:$D$156,2,FALSE),"") ->  | U39: 5.15 | V39: =IFERROR(VLOOKUP(U39,'CRUCE RIESGOS'!$C$8:$D$156,2,FALSE),"") ->  | W39: 6.15 | X39: =IFERROR(VLOOKUP(W39,'CRUCE RIESGOS'!$C$8:$D$156,2,FALSE),"") ->  | Y39: 7.15 | Z39: =IFERROR(VLOOKUP(Y39,'CRUCE RIESGOS'!$C$8:$D$156,2,FALSE),"") ->  | AA39: 8.15 | AB39: =IFERROR(VLOOKUP(AA39,'CRUCE RIESGOS'!$C$8:$D$156,2,FALSE),"") ->  | AC39: 9.15 | AD39: =IFERROR(VLOOKUP(AC39,'CRUCE RIESGOS'!$C$8:$D$156,2,FALSE),"") ->  | AE39: 10.15 | AF39: =IFERROR(VLOOKUP(AE39,'CRUCE RIESGOS'!$C$8:$D$156,2,FALSE),"") ->  | AG39: 11.15 | AH39: =IFERROR(VLOOKUP(AG39,'CRUCE RIESGOS'!$C$8:$D$156,2,FALSE),"") ->  | AI39: 12.15 | AJ39: =IFERROR(VLOOKUP(AI39,'CRUCE RIESGOS'!$C$8:$D$156,2,FALSE),"") ->  | AK39: 13.15 | AL39: =IFERROR(VLOOKUP(AK39,'CRUCE RIESGOS'!$C$8:$D$156,2,FALSE),"") ->  | AM39: 14.15 | AN39: =IFERROR(VLOOKUP(AM39,'CRUCE RIESGOS'!$C$8:$D$156,2,FALSE),"") ->  | AO39: 15.15 | AP39: =IFERROR(VLOOKUP(AO39,'CRUCE RIESGOS'!$C$8:$D$156,2,FALSE),"") ->  | AQ39: 16.15 | AR39: =IFERROR(VLOOKUP(AQ39,'CRUCE RIESGOS'!$C$8:$D$156,2,FALSE),"") ->  | AS39: 17.15 | AT39: =IFERROR(VLOOKUP(AS39,'CRUCE RIESGOS'!$C$8:$D$156,2,FALSE),"") ->  | AU39: 18.15 | AV39: =IFERROR(VLOOKUP(AU39,'CRUCE RIESGOS'!$C$8:$D$156,2,FALSE),"") ->  | AW39: 19.15 | AX39: =IFERROR(VLOOKUP(AW39,'CRUCE RIESGOS'!$C$8:$D$156,2,FALSE),"") ->  | AY39: 20.15 | AZ39: =IFERROR(VLOOKUP(AY39,'CRUCE RIESGOS'!$C$8:$D$156,2,FALSE),"") ->  | BA39: 21.15 | BB39: =IFERROR(VLOOKUP(BA39,'CRUCE RIESGOS'!$C$8:$D$156,2,FALSE),"") ->  | BC39: 22.15 | BD39: =IFERROR(VLOOKUP(BC39,'CRUCE RIESGOS'!$C$8:$D$156,2,FALSE),"") ->  | BE39: 23.15 | BF39: =IFERROR(VLOOKUP(BE39,'CRUCE RIESGOS'!$C$8:$D$156,2,FALSE),"") ->  | BG39: 24.15 | BH39: =IFERROR(VLOOKUP(BG39,'CRUCE RIESGOS'!$C$8:$D$156,2,FALSE),"") ->  | BI39: 25.15 | BJ39: =IFERROR(VLOOKUP(BI39,'CRUCE RIESGOS'!$C$8:$D$156,2,FALSE),"") -> 
N40: =IF(N41<>""," -R","") ->  | P40: =IF(P41<>""," -R","") ->  | R40: =IF(R41<>""," -R","") ->  | T40: =IF(T41<>""," -R","") ->  | V40: =IF(V41<>""," -R","") ->  | X40: =IF(X41<>""," -R","") ->  | Z40: =IF(Z41<>""," -R","") ->  | AB40: =IF(AB41<>""," -R","") ->  | AD40: =IF(AD41<>""," -R","") ->  | AF40: =IF(AF41<>""," -R","") ->  | AH40: =IF(AH41<>""," -R","") ->  | AJ40: =IF(AJ41<>""," -R","") ->  | AL40: =IF(AL41<>""," -R","") ->  | AN40: =IF(AN41<>""," -R","") ->  | AP40: =IF(AP41<>""," -R","") ->  | AR40: =IF(AR41<>""," -R","") ->  | AT40: =IF(AT41<>""," -R","") ->  | AV40: =IF(AV41<>""," -R","") ->  | AX40: =IF(AX41<>""," -R","") ->  | AZ40: =IF(AZ41<>""," -R","") ->  | BB40: =IF(BB41<>""," -R","") ->  | BD40: =IF(BD41<>""," -R","") ->  | BF40: =IF(BF41<>""," -R","") ->  | BH40: =IF(BH41<>""," -R","") ->  | BJ40: =IF(BJ41<>""," -R","") -> 
M41: 1.16 | N41: =IFERROR(VLOOKUP(M41,'CRUCE RIESGOS'!$C$8:$D$156,2,FALSE),"") ->  | O41: 2.16 | P41: =IFERROR(VLOOKUP(O41,'CRUCE RIESGOS'!$C$8:$D$156,2,FALSE),"") ->  | Q41: 3.16 | R41: =IFERROR(VLOOKUP(Q41,'CRUCE RIESGOS'!$C$8:$D$156,2,FALSE),"") ->  | S41: 4.16 | T41: =IFERROR(VLOOKUP(S41,'CRUCE RIESGOS'!$C$8:$D$156,2,FALSE),"") ->  | U41: 5.16 | V41: =IFERROR(VLOOKUP(U41,'CRUCE RIESGOS'!$C$8:$D$156,2,FALSE),"") ->  | W41: 6.16 | X41: =IFERROR(VLOOKUP(W41,'CRUCE RIESGOS'!$C$8:$D$156,2,FALSE),"") ->  | Y41: 7.16 | Z41: =IFERROR(VLOOKUP(Y41,'CRUCE RIESGOS'!$C$8:$D$156,2,FALSE),"") ->  | AA41: 8.16 | AB41: =IFERROR(VLOOKUP(AA41,'CRUCE RIESGOS'!$C$8:$D$156,2,FALSE),"") ->  | AC41: 9.16 | AD41: =IFERROR(VLOOKUP(AC41,'CRUCE RIESGOS'!$C$8:$D$156,2,FALSE),"") ->  | AE41: 10.16 | AF41: =IFERROR(VLOOKUP(AE41,'CRUCE RIESGOS'!$C$8:$D$156,2,FALSE),"") ->  | AG41: 11.16 | AH41: =IFERROR(VLOOKUP(AG41,'CRUCE RIESGOS'!$C$8:$D$156,2,FALSE),"") ->  | AI41: 12.16 | AJ41: =IFERROR(VLOOKUP(AI41,'CRUCE RIESGOS'!$C$8:$D$156,2,FALSE),"") ->  | AK41: 13.16 | AL41: =IFERROR(VLOOKUP(AK41,'CRUCE RIESGOS'!$C$8:$D$156,2,FALSE),"") ->  | AM41: 14.16 | AN41: =IFERROR(VLOOKUP(AM41,'CRUCE RIESGOS'!$C$8:$D$156,2,FALSE),"") ->  | AO41: 15.16 | AP41: =IFERROR(VLOOKUP(AO41,'CRUCE RIESGOS'!$C$8:$D$156,2,FALSE),"") ->  | AQ41: 16.16 | AR41: =IFERROR(VLOOKUP(AQ41,'CRUCE RIESGOS'!$C$8:$D$156,2,FALSE),"") ->  | AS41: 17.16 | AT41: =IFERROR(VLOOKUP(AS41,'CRUCE RIESGOS'!$C$8:$D$156,2,FALSE),"") ->  | AU41: 18.16 | AV41: =IFERROR(VLOOKUP(AU41,'CRUCE RIESGOS'!$C$8:$D$156,2,FALSE),"") ->  | AW41: 19.16 | AX41: =IFERROR(VLOOKUP(AW41,'CRUCE RIESGOS'!$C$8:$D$156,2,FALSE),"") ->  | AY41: 20.16 | AZ41: =IFERROR(VLOOKUP(AY41,'CRUCE RIESGOS'!$C$8:$D$156,2,FALSE),"") ->  | BA41: 21.16 | BB41: =IFERROR(VLOOKUP(BA41,'CRUCE RIESGOS'!$C$8:$D$156,2,FALSE),"") ->  | BC41: 22.16 | BD41: =IFERROR(VLOOKUP(BC41,'CRUCE RIESGOS'!$C$8:$D$156,2,FALSE),"") ->  | BE41: 23.16 | BF41: =IFERROR(VLOOKUP(BE41,'CRUCE RIESGOS'!$C$8:$D$156,2,FALSE),"") ->  | BG41: 24.16 | BH41: =IFERROR(VLOOKUP(BG41,'CRUCE RIESGOS'!$C$8:$D$156,2,FALSE),"") ->  | BI41: 25.16 | BJ41: =IFERROR(VLOOKUP(BI41,'CRUCE RIESGOS'!$C$8:$D$156,2,FALSE),"") -> 
N42: =IF(N43<>""," -R","") ->  | P42: =IF(P43<>""," -R","") ->  | R42: =IF(R43<>""," -R","") ->  | T42: =IF(T43<>""," -R","") ->  | V42: =IF(V43<>""," -R","") ->  | X42: =IF(X43<>""," -R","") ->  | Z42: =IF(Z43<>""," -R","") ->  | AB42: =IF(AB43<>""," -R","") ->  | AD42: =IF(AD43<>""," -R","") ->  | AF42: =IF(AF43<>""," -R","") ->  | AH42: =IF(AH43<>""," -R","") ->  | AJ42: =IF(AJ43<>""," -R","") ->  | AL42: =IF(AL43<>""," -R","") ->  | AN42: =IF(AN43<>""," -R","") ->  | AP42: =IF(AP43<>""," -R","") ->  | AR42: =IF(AR43<>""," -R","") ->  | AT42: =IF(AT43<>""," -R","") ->  | AV42: =IF(AV43<>""," -R","") ->  | AX42: =IF(AX43<>""," -R","") ->  | AZ42: =IF(AZ43<>""," -R","") ->  | BB42: =IF(BB43<>""," -R","") ->  | BD42: =IF(BD43<>""," -R","") ->  | BF42: =IF(BF43<>""," -R","") ->  | BH42: =IF(BH43<>""," -R","") ->  | BJ42: =IF(BJ43<>""," -R","") -> 
M43: 1.17 | N43: =IFERROR(VLOOKUP(M43,'CRUCE RIESGOS'!$C$8:$D$156,2,FALSE),"") ->  | O43: 2.17 | P43: =IFERROR(VLOOKUP(O43,'CRUCE RIESGOS'!$C$8:$D$156,2,FALSE),"") ->  | Q43: 3.17 | R43: =IFERROR(VLOOKUP(Q43,'CRUCE RIESGOS'!$C$8:$D$156,2,FALSE),"") ->  | S43: 4.17 | T43: =IFERROR(VLOOKUP(S43,'CRUCE RIESGOS'!$C$8:$D$156,2,FALSE),"") ->  | U43: 5.17 | V43: =IFERROR(VLOOKUP(U43,'CRUCE RIESGOS'!$C$8:$D$156,2,FALSE),"") ->  | W43: 6.17 | X43: =IFERROR(VLOOKUP(W43,'CRUCE RIESGOS'!$C$8:$D$156,2,FALSE),"") ->  | Y43: 7.17 | Z43: =IFERROR(VLOOKUP(Y43,'CRUCE RIESGOS'!$C$8:$D$156,2,FALSE),"") ->  | AA43: 8.17 | AB43: =IFERROR(VLOOKUP(AA43,'CRUCE RIESGOS'!$C$8:$D$156,2,FALSE),"") ->  | AC43: 9.17 | AD43: =IFERROR(VLOOKUP(AC43,'CRUCE RIESGOS'!$C$8:$D$156,2,FALSE),"") ->  | AE43: 10.17 | AF43: =IFERROR(VLOOKUP(AE43,'CRUCE RIESGOS'!$C$8:$D$156,2,FALSE),"") ->  | AG43: 11.17 | AH43: =IFERROR(VLOOKUP(AG43,'CRUCE RIESGOS'!$C$8:$D$156,2,FALSE),"") ->  | AI43: 12.17 | AJ43: =IFERROR(VLOOKUP(AI43,'CRUCE RIESGOS'!$C$8:$D$156,2,FALSE),"") ->  | AK43: 13.17 | AL43: =IFERROR(VLOOKUP(AK43,'CRUCE RIESGOS'!$C$8:$D$156,2,FALSE),"") ->  | AM43: 14.17 | AN43: =IFERROR(VLOOKUP(AM43,'CRUCE RIESGOS'!$C$8:$D$156,2,FALSE),"") ->  | AO43: 15.17 | AP43: =IFERROR(VLOOKUP(AO43,'CRUCE RIESGOS'!$C$8:$D$156,2,FALSE),"") ->  | AQ43: 16.17 | AR43: =IFERROR(VLOOKUP(AQ43,'CRUCE RIESGOS'!$C$8:$D$156,2,FALSE),"") ->  | AS43: 17.17 | AT43: =IFERROR(VLOOKUP(AS43,'CRUCE RIESGOS'!$C$8:$D$156,2,FALSE),"") ->  | AU43: 18.17 | AV43: =IFERROR(VLOOKUP(AU43,'CRUCE RIESGOS'!$C$8:$D$156,2,FALSE),"") ->  | AW43: 19.17 | AX43: =IFERROR(VLOOKUP(AW43,'CRUCE RIESGOS'!$C$8:$D$156,2,FALSE),"") ->  | AY43: 20.17 | AZ43: =IFERROR(VLOOKUP(AY43,'CRUCE RIESGOS'!$C$8:$D$156,2,FALSE),"") ->  | BA43: 21.17 | BB43: =IFERROR(VLOOKUP(BA43,'CRUCE RIESGOS'!$C$8:$D$156,2,FALSE),"") ->  | BC43: 22.17 | BD43: =IFERROR(VLOOKUP(BC43,'CRUCE RIESGOS'!$C$8:$D$156,2,FALSE),"") ->  | BE43: 23.17 | BF43: =IFERROR(VLOOKUP(BE43,'CRUCE RIESGOS'!$C$8:$D$156,2,FALSE),"") ->  | BG43: 24.17 | BH43: =IFERROR(VLOOKUP(BG43,'CRUCE RIESGOS'!$C$8:$D$156,2,FALSE),"") ->  | BI43: 25.17 | BJ43: =IFERROR(VLOOKUP(BI43,'CRUCE RIESGOS'!$C$8:$D$156,2,FALSE),"") -> 
N44: =IF(N45<>""," -R","") ->  | P44: =IF(P45<>""," -R","") ->  | R44: =IF(R45<>""," -R","") ->  | T44: =IF(T45<>""," -R","") ->  | V44: =IF(V45<>""," -R","") ->  | X44: =IF(X45<>""," -R","") ->  | Z44: =IF(Z45<>""," -R","") ->  | AB44: =IF(AB45<>""," -R","") ->  | AD44: =IF(AD45<>""," -R","") ->  | AF44: =IF(AF45<>""," -R","") ->  | AH44: =IF(AH45<>""," -R","") ->  | AJ44: =IF(AJ45<>""," -R","") ->  | AL44: =IF(AL45<>""," -R","") ->  | AN44: =IF(AN45<>""," -R","") ->  | AP44: =IF(AP45<>""," -R","") ->  | AR44: =IF(AR45<>""," -R","") ->  | AT44: =IF(AT45<>""," -R","") ->  | AV44: =IF(AV45<>""," -R","") ->  | AX44: =IF(AX45<>""," -R","") ->  | AZ44: =IF(AZ45<>""," -R","") ->  | BB44: =IF(BB45<>""," -R","") ->  | BD44: =IF(BD45<>""," -R","") ->  | BF44: =IF(BF45<>""," -R","") ->  | BH44: =IF(BH45<>""," -R","") ->  | BJ44: =IF(BJ45<>""," -R","") -> 
M45: 1.18 | N45: =IFERROR(VLOOKUP(M45,'CRUCE RIESGOS'!$C$8:$D$156,2,FALSE),"") ->  | O45: 2.18 | P45: =IFERROR(VLOOKUP(O45,'CRUCE RIESGOS'!$C$8:$D$156,2,FALSE),"") ->  | Q45: 3.18 | R45: =IFERROR(VLOOKUP(Q45,'CRUCE RIESGOS'!$C$8:$D$156,2,FALSE),"") ->  | S45: 4.18 | T45: =IFERROR(VLOOKUP(S45,'CRUCE RIESGOS'!$C$8:$D$156,2,FALSE),"") ->  | U45: 5.18 | V45: =IFERROR(VLOOKUP(U45,'CRUCE RIESGOS'!$C$8:$D$156,2,FALSE),"") ->  | W45: 6.18 | X45: =IFERROR(VLOOKUP(W45,'CRUCE RIESGOS'!$C$8:$D$156,2,FALSE),"") ->  | Y45: 7.18 | Z45: =IFERROR(VLOOKUP(Y45,'CRUCE RIESGOS'!$C$8:$D$156,2,FALSE),"") ->  | AA45: 8.18 | AB45: =IFERROR(VLOOKUP(AA45,'CRUCE RIESGOS'!$C$8:$D$156,2,FALSE),"") ->  | AC45: 9.18 | AD45: =IFERROR(VLOOKUP(AC45,'CRUCE RIESGOS'!$C$8:$D$156,2,FALSE),"") ->  | AE45: 10.18 | AF45: =IFERROR(VLOOKUP(AE45,'CRUCE RIESGOS'!$C$8:$D$156,2,FALSE),"") ->  | AG45: 11.18 | AH45: =IFERROR(VLOOKUP(AG45,'CRUCE RIESGOS'!$C$8:$D$156,2,FALSE),"") ->  | AI45: 12.18 | AJ45: =IFERROR(VLOOKUP(AI45,'CRUCE RIESGOS'!$C$8:$D$156,2,FALSE),"") ->  | AK45: 13.18 | AL45: =IFERROR(VLOOKUP(AK45,'CRUCE RIESGOS'!$C$8:$D$156,2,FALSE),"") ->  | AM45: 14.18 | AN45: =IFERROR(VLOOKUP(AM45,'CRUCE RIESGOS'!$C$8:$D$156,2,FALSE),"") ->  | AO45: 15.18 | AP45: =IFERROR(VLOOKUP(AO45,'CRUCE RIESGOS'!$C$8:$D$156,2,FALSE),"") ->  | AQ45: 16.18 | AR45: =IFERROR(VLOOKUP(AQ45,'CRUCE RIESGOS'!$C$8:$D$156,2,FALSE),"") ->  | AS45: 17.18 | AT45: =IFERROR(VLOOKUP(AS45,'CRUCE RIESGOS'!$C$8:$D$156,2,FALSE),"") ->  | AU45: 18.18 | AV45: =IFERROR(VLOOKUP(AU45,'CRUCE RIESGOS'!$C$8:$D$156,2,FALSE),"") ->  | AW45: 19.18 | AX45: =IFERROR(VLOOKUP(AW45,'CRUCE RIESGOS'!$C$8:$D$156,2,FALSE),"") ->  | AY45: 20.18 | AZ45: =IFERROR(VLOOKUP(AY45,'CRUCE RIESGOS'!$C$8:$D$156,2,FALSE),"") ->  | BA45: 21.18 | BB45: =IFERROR(VLOOKUP(BA45,'CRUCE RIESGOS'!$C$8:$D$156,2,FALSE),"") ->  | BC45: 22.18 | BD45: =IFERROR(VLOOKUP(BC45,'CRUCE RIESGOS'!$C$8:$D$156,2,FALSE),"") ->  | BE45: 23.18 | BF45: =IFERROR(VLOOKUP(BE45,'CRUCE RIESGOS'!$C$8:$D$156,2,FALSE),"") ->  | BG45: 24.18 | BH45: =IFERROR(VLOOKUP(BG45,'CRUCE RIESGOS'!$C$8:$D$156,2,FALSE),"") ->  | BI45: 25.18 | BJ45: =IFERROR(VLOOKUP(BI45,'CRUCE RIESGOS'!$C$8:$D$156,2,FALSE),"") -> 
N46: =IF(N47<>""," -R","") ->  | P46: =IF(P47<>""," -R","") ->  | R46: =IF(R47<>""," -R","") ->  | T46: =IF(T47<>""," -R","") ->  | V46: =IF(V47<>""," -R","") ->  | X46: =IF(X47<>""," -R","") ->  | Z46: =IF(Z47<>""," -R","") ->  | AB46: =IF(AB47<>""," -R","") ->  | AD46: =IF(AD47<>""," -R","") ->  | AF46: =IF(AF47<>""," -R","") ->  | AH46: =IF(AH47<>""," -R","") ->  | AJ46: =IF(AJ47<>""," -R","") ->  | AL46: =IF(AL47<>""," -R","") ->  | AN46: =IF(AN47<>""," -R","") ->  | AP46: =IF(AP47<>""," -R","") ->  | AR46: =IF(AR47<>""," -R","") ->  | AT46: =IF(AT47<>""," -R","") ->  | AV46: =IF(AV47<>""," -R","") ->  | AX46: =IF(AX47<>""," -R","") ->  | AZ46: =IF(AZ47<>""," -R","") ->  | BB46: =IF(BB47<>""," -R","") ->  | BD46: =IF(BD47<>""," -R","") ->  | BF46: =IF(BF47<>""," -R","") ->  | BH46: =IF(BH47<>""," -R","") ->  | BJ46: =IF(BJ47<>""," -R","") -> 
M47: 1.19 | N47: =IFERROR(VLOOKUP(M47,'CRUCE RIESGOS'!$C$8:$D$156,2,FALSE),"") ->  | O47: 2.19 | P47: =IFERROR(VLOOKUP(O47,'CRUCE RIESGOS'!$C$8:$D$156,2,FALSE),"") ->  | Q47: 3.19 | R47: =IFERROR(VLOOKUP(Q47,'CRUCE RIESGOS'!$C$8:$D$156,2,FALSE),"") ->  | S47: 4.19 | T47: =IFERROR(VLOOKUP(S47,'CRUCE RIESGOS'!$C$8:$D$156,2,FALSE),"") ->  | U47: 5.19 | V47: =IFERROR(VLOOKUP(U47,'CRUCE RIESGOS'!$C$8:$D$156,2,FALSE),"") ->  | W47: 6.19 | X47: =IFERROR(VLOOKUP(W47,'CRUCE RIESGOS'!$C$8:$D$156,2,FALSE),"") ->  | Y47: 7.19 | Z47: =IFERROR(VLOOKUP(Y47,'CRUCE RIESGOS'!$C$8:$D$156,2,FALSE),"") ->  | AA47: 8.19 | AB47: =IFERROR(VLOOKUP(AA47,'CRUCE RIESGOS'!$C$8:$D$156,2,FALSE),"") ->  | AC47: 9.19 | AD47: =IFERROR(VLOOKUP(AC47,'CRUCE RIESGOS'!$C$8:$D$156,2,FALSE),"") ->  | AE47: 10.19 | AF47: =IFERROR(VLOOKUP(AE47,'CRUCE RIESGOS'!$C$8:$D$156,2,FALSE),"") ->  | AG47: 11.19 | AH47: =IFERROR(VLOOKUP(AG47,'CRUCE RIESGOS'!$C$8:$D$156,2,FALSE),"") ->  | AI47: 12.19 | AJ47: =IFERROR(VLOOKUP(AI47,'CRUCE RIESGOS'!$C$8:$D$156,2,FALSE),"") ->  | AK47: 13.19 | AL47: =IFERROR(VLOOKUP(AK47,'CRUCE RIESGOS'!$C$8:$D$156,2,FALSE),"") ->  | AM47: 14.19 | AN47: =IFERROR(VLOOKUP(AM47,'CRUCE RIESGOS'!$C$8:$D$156,2,FALSE),"") ->  | AO47: 15.19 | AP47: =IFERROR(VLOOKUP(AO47,'CRUCE RIESGOS'!$C$8:$D$156,2,FALSE),"") ->  | AQ47: 16.19 | AR47: =IFERROR(VLOOKUP(AQ47,'CRUCE RIESGOS'!$C$8:$D$156,2,FALSE),"") ->  | AS47: 17.19 | AT47: =IFERROR(VLOOKUP(AS47,'CRUCE RIESGOS'!$C$8:$D$156,2,FALSE),"") ->  | AU47: 18.19 | AV47: =IFERROR(VLOOKUP(AU47,'CRUCE RIESGOS'!$C$8:$D$156,2,FALSE),"") ->  | AW47: 19.19 | AX47: =IFERROR(VLOOKUP(AW47,'CRUCE RIESGOS'!$C$8:$D$156,2,FALSE),"") ->  | AY47: 20.19 | AZ47: =IFERROR(VLOOKUP(AY47,'CRUCE RIESGOS'!$C$8:$D$156,2,FALSE),"") ->  | BA47: 21.19 | BB47: =IFERROR(VLOOKUP(BA47,'CRUCE RIESGOS'!$C$8:$D$156,2,FALSE),"") ->  | BC47: 22.19 | BD47: =IFERROR(VLOOKUP(BC47,'CRUCE RIESGOS'!$C$8:$D$156,2,FALSE),"") ->  | BE47: 23.19 | BF47: =IFERROR(VLOOKUP(BE47,'CRUCE RIESGOS'!$C$8:$D$156,2,FALSE),"") ->  | BG47: 24.19 | BH47: =IFERROR(VLOOKUP(BG47,'CRUCE RIESGOS'!$C$8:$D$156,2,FALSE),"") ->  | BI47: 25.19 | BJ47: =IFERROR(VLOOKUP(BI47,'CRUCE RIESGOS'!$C$8:$D$156,2,FALSE),"") -> 
N48: =IF(N49<>""," -R","") ->  | P48: =IF(P49<>""," -R","") ->  | R48: =IF(R49<>""," -R","") ->  | T48: =IF(T49<>""," -R","") ->  | V48: =IF(V49<>""," -R","") ->  | X48: =IF(X49<>""," -R","") ->  | Z48: =IF(Z49<>""," -R","") ->  | AB48: =IF(AB49<>""," -R","") ->  | AD48: =IF(AD49<>""," -R","") ->  | AF48: =IF(AF49<>""," -R","") ->  | AH48: =IF(AH49<>""," -R","") ->  | AJ48: =IF(AJ49<>""," -R","") ->  | AL48: =IF(AL49<>""," -R","") ->  | AN48: =IF(AN49<>""," -R","") ->  | AP48: =IF(AP49<>""," -R","") ->  | AR48: =IF(AR49<>""," -R","") ->  | AT48: =IF(AT49<>""," -R","") ->  | AV48: =IF(AV49<>""," -R","") ->  | AX48: =IF(AX49<>""," -R","") ->  | AZ48: =IF(AZ49<>""," -R","") ->  | BB48: =IF(BB49<>""," -R","") ->  | BD48: =IF(BD49<>""," -R","") ->  | BF48: =IF(BF49<>""," -R","") ->  | BH48: =IF(BH49<>""," -R","") ->  | BJ48: =IF(BJ49<>""," -R","") -> 
M49: 1.2 | N49: =IFERROR(VLOOKUP(M49,'CRUCE RIESGOS'!$C$8:$D$156,2,FALSE),"") ->  | O49: 2.2 | P49: =IFERROR(VLOOKUP(O49,'CRUCE RIESGOS'!$C$8:$D$156,2,FALSE),"") ->  | Q49: 3.2 | R49: =IFERROR(VLOOKUP(Q49,'CRUCE RIESGOS'!$C$8:$D$156,2,FALSE),"") ->  | S49: 4.2 | T49: =IFERROR(VLOOKUP(S49,'CRUCE RIESGOS'!$C$8:$D$156,2,FALSE),"") ->  | U49: 5.2 | V49: =IFERROR(VLOOKUP(U49,'CRUCE RIESGOS'!$C$8:$D$156,2,FALSE),"") ->  | W49: 6.2 | X49: =IFERROR(VLOOKUP(W49,'CRUCE RIESGOS'!$C$8:$D$156,2,FALSE),"") ->  | Y49: 7.2 | Z49: =IFERROR(VLOOKUP(Y49,'CRUCE RIESGOS'!$C$8:$D$156,2,FALSE),"") ->  | AA49: 8.2 | AB49: =IFERROR(VLOOKUP(AA49,'CRUCE RIESGOS'!$C$8:$D$156,2,FALSE),"") ->  | AC49: 9.2 | AD49: =IFERROR(VLOOKUP(AC49,'CRUCE RIESGOS'!$C$8:$D$156,2,FALSE),"") ->  | AE49: 10.2 | AF49: =IFERROR(VLOOKUP(AE49,'CRUCE RIESGOS'!$C$8:$D$156,2,FALSE),"") ->  | AG49: 11.2 | AH49: =IFERROR(VLOOKUP(AG49,'CRUCE RIESGOS'!$C$8:$D$156,2,FALSE),"") ->  | AI49: 12.2 | AJ49: =IFERROR(VLOOKUP(AI49,'CRUCE RIESGOS'!$C$8:$D$156,2,FALSE),"") ->  | AK49: 13.2 | AL49: =IFERROR(VLOOKUP(AK49,'CRUCE RIESGOS'!$C$8:$D$156,2,FALSE),"") ->  | AM49: 14.2 | AN49: =IFERROR(VLOOKUP(AM49,'CRUCE RIESGOS'!$C$8:$D$156,2,FALSE),"") ->  | AO49: 15.2 | AP49: =IFERROR(VLOOKUP(AO49,'CRUCE RIESGOS'!$C$8:$D$156,2,FALSE),"") ->  | AQ49: 16.2 | AR49: =IFERROR(VLOOKUP(AQ49,'CRUCE RIESGOS'!$C$8:$D$156,2,FALSE),"") ->  | AS49: 17.2 | AT49: =IFERROR(VLOOKUP(AS49,'CRUCE RIESGOS'!$C$8:$D$156,2,FALSE),"") ->  | AU49: 18.2 | AV49: =IFERROR(VLOOKUP(AU49,'CRUCE RIESGOS'!$C$8:$D$156,2,FALSE),"") ->  | AW49: 19.2 | AX49: =IFERROR(VLOOKUP(AW49,'CRUCE RIESGOS'!$C$8:$D$156,2,FALSE),"") ->  | AY49: 20.2 | AZ49: =IFERROR(VLOOKUP(AY49,'CRUCE RIESGOS'!$C$8:$D$156,2,FALSE),"") ->  | BA49: 21.2 | BB49: =IFERROR(VLOOKUP(BA49,'CRUCE RIESGOS'!$C$8:$D$156,2,FALSE),"") ->  | BC49: 22.2 | BD49: =IFERROR(VLOOKUP(BC49,'CRUCE RIESGOS'!$C$8:$D$156,2,FALSE),"") ->  | BE49: 23.2 | BF49: =IFERROR(VLOOKUP(BE49,'CRUCE RIESGOS'!$C$8:$D$156,2,FALSE),"") ->  | BG49: 24.2 | BH49: =IFERROR(VLOOKUP(BG49,'CRUCE RIESGOS'!$C$8:$D$156,2,FALSE),"") ->  | BI49: 25.2 | BJ49: =IFERROR(VLOOKUP(BI49,'CRUCE RIESGOS'!$C$8:$D$156,2,FALSE),"") -> 
N50: =IF(N51<>""," -R","") ->  | P50: =IF(P51<>""," -R","") ->  | R50: =IF(R51<>""," -R","") ->  | T50: =IF(T51<>""," -R","") ->  | V50: =IF(V51<>""," -R","") ->  | X50: =IF(X51<>""," -R","") ->  | Z50: =IF(Z51<>""," -R","") ->  | AB50: =IF(AB51<>""," -R","") ->  | AD50: =IF(AD51<>""," -R","") ->  | AF50: =IF(AF51<>""," -R","") ->  | AH50: =IF(AH51<>""," -R","") ->  | AJ50: =IF(AJ51<>""," -R","") ->  | AL50: =IF(AL51<>""," -R","") ->  | AN50: =IF(AN51<>""," -R","") ->  | AP50: =IF(AP51<>""," -R","") ->  | AR50: =IF(AR51<>""," -R","") ->  | AT50: =IF(AT51<>""," -R","") ->  | AV50: =IF(AV51<>""," -R","") ->  | AX50: =IF(AX51<>""," -R","") ->  | AZ50: =IF(AZ51<>""," -R","") ->  | BB50: =IF(BB51<>""," -R","") ->  | BD50: =IF(BD51<>""," -R","") ->  | BF50: =IF(BF51<>""," -R","") ->  | BH50: =IF(BH51<>""," -R","") ->  | BJ50: =IF(BJ51<>""," -R","") -> 
M51: 1.21 | N51: =IFERROR(VLOOKUP(M51,'CRUCE RIESGOS'!$C$8:$D$156,2,FALSE),"") ->  | O51: 2.21 | P51: =IFERROR(VLOOKUP(O51,'CRUCE RIESGOS'!$C$8:$D$156,2,FALSE),"") ->  | Q51: 3.21 | R51: =IFERROR(VLOOKUP(Q51,'CRUCE RIESGOS'!$C$8:$D$156,2,FALSE),"") ->  | S51: 4.21 | T51: =IFERROR(VLOOKUP(S51,'CRUCE RIESGOS'!$C$8:$D$156,2,FALSE),"") ->  | U51: 5.21 | V51: =IFERROR(VLOOKUP(U51,'CRUCE RIESGOS'!$C$8:$D$156,2,FALSE),"") ->  | W51: 6.21 | X51: =IFERROR(VLOOKUP(W51,'CRUCE RIESGOS'!$C$8:$D$156,2,FALSE),"") ->  | Y51: 7.21 | Z51: =IFERROR(VLOOKUP(Y51,'CRUCE RIESGOS'!$C$8:$D$156,2,FALSE),"") ->  | AA51: 8.21 | AB51: =IFERROR(VLOOKUP(AA51,'CRUCE RIESGOS'!$C$8:$D$156,2,FALSE),"") ->  | AC51: 9.21 | AD51: =IFERROR(VLOOKUP(AC51,'CRUCE RIESGOS'!$C$8:$D$156,2,FALSE),"") ->  | AE51: 10.21 | AF51: =IFERROR(VLOOKUP(AE51,'CRUCE RIESGOS'!$C$8:$D$156,2,FALSE),"") ->  | AG51: 11.21 | AH51: =IFERROR(VLOOKUP(AG51,'CRUCE RIESGOS'!$C$8:$D$156,2,FALSE),"") ->  | AI51: 12.21 | AJ51: =IFERROR(VLOOKUP(AI51,'CRUCE RIESGOS'!$C$8:$D$156,2,FALSE),"") ->  | AK51: 13.21 | AL51: =IFERROR(VLOOKUP(AK51,'CRUCE RIESGOS'!$C$8:$D$156,2,FALSE),"") ->  | AM51: 14.21 | AN51: =IFERROR(VLOOKUP(AM51,'CRUCE RIESGOS'!$C$8:$D$156,2,FALSE),"") ->  | AO51: 15.21 | AP51: =IFERROR(VLOOKUP(AO51,'CRUCE RIESGOS'!$C$8:$D$156,2,FALSE),"") ->  | AQ51: 16.21 | AR51: =IFERROR(VLOOKUP(AQ51,'CRUCE RIESGOS'!$C$8:$D$156,2,FALSE),"") ->  | AS51: 17.21 | AT51: =IFERROR(VLOOKUP(AS51,'CRUCE RIESGOS'!$C$8:$D$156,2,FALSE),"") ->  | AU51: 18.21 | AV51: =IFERROR(VLOOKUP(AU51,'CRUCE RIESGOS'!$C$8:$D$156,2,FALSE),"") ->  | AW51: 19.21 | AX51: =IFERROR(VLOOKUP(AW51,'CRUCE RIESGOS'!$C$8:$D$156,2,FALSE),"") ->  | AY51: 20.21 | AZ51: =IFERROR(VLOOKUP(AY51,'CRUCE RIESGOS'!$C$8:$D$156,2,FALSE),"") ->  | BA51: 21.21 | BB51: =IFERROR(VLOOKUP(BA51,'CRUCE RIESGOS'!$C$8:$D$156,2,FALSE),"") ->  | BC51: 22.21 | BD51: =IFERROR(VLOOKUP(BC51,'CRUCE RIESGOS'!$C$8:$D$156,2,FALSE),"") ->  | BE51: 23.21 | BF51: =IFERROR(VLOOKUP(BE51,'CRUCE RIESGOS'!$C$8:$D$156,2,FALSE),"") ->  | BG51: 24.21 | BH51: =IFERROR(VLOOKUP(BG51,'CRUCE RIESGOS'!$C$8:$D$156,2,FALSE),"") ->  | BI51: 25.21 | BJ51: =IFERROR(VLOOKUP(BI51,'CRUCE RIESGOS'!$C$8:$D$156,2,FALSE),"") -> 
N52: =IF(N53<>""," -R","") ->  | P52: =IF(P53<>""," -R","") ->  | R52: =IF(R53<>""," -R","") ->  | T52: =IF(T53<>""," -R","") ->  | V52: =IF(V53<>""," -R","") ->  | X52: =IF(X53<>""," -R","") ->  | Z52: =IF(Z53<>""," -R","") ->  | AB52: =IF(AB53<>""," -R","") ->  | AD52: =IF(AD53<>""," -R","") ->  | AF52: =IF(AF53<>""," -R","") ->  | AH52: =IF(AH53<>""," -R","") ->  | AJ52: =IF(AJ53<>""," -R","") ->  | AL52: =IF(AL53<>""," -R","") ->  | AN52: =IF(AN53<>""," -R","") ->  | AP52: =IF(AP53<>""," -R","") ->  | AR52: =IF(AR53<>""," -R","") ->  | AT52: =IF(AT53<>""," -R","") ->  | AV52: =IF(AV53<>""," -R","") ->  | AX52: =IF(AX53<>""," -R","") ->  | AZ52: =IF(AZ53<>""," -R","") ->  | BB52: =IF(BB53<>""," -R","") ->  | BD52: =IF(BD53<>""," -R","") ->  | BF52: =IF(BF53<>""," -R","") ->  | BH52: =IF(BH53<>""," -R","") ->  | BJ52: =IF(BJ53<>""," -R","") -> 
M53: 1.22 | N53: =IFERROR(VLOOKUP(M53,'CRUCE RIESGOS'!$C$8:$D$156,2,FALSE),"") ->  | O53: 2.22 | P53: =IFERROR(VLOOKUP(O53,'CRUCE RIESGOS'!$C$8:$D$156,2,FALSE),"") ->  | Q53: 3.22 | R53: =IFERROR(VLOOKUP(Q53,'CRUCE RIESGOS'!$C$8:$D$156,2,FALSE),"") ->  | S53: 4.22 | T53: =IFERROR(VLOOKUP(S53,'CRUCE RIESGOS'!$C$8:$D$156,2,FALSE),"") ->  | U53: 5.22 | V53: =IFERROR(VLOOKUP(U53,'CRUCE RIESGOS'!$C$8:$D$156,2,FALSE),"") ->  | W53: 6.22 | X53: =IFERROR(VLOOKUP(W53,'CRUCE RIESGOS'!$C$8:$D$156,2,FALSE),"") ->  | Y53: 7.22 | Z53: =IFERROR(VLOOKUP(Y53,'CRUCE RIESGOS'!$C$8:$D$156,2,FALSE),"") ->  | AA53: 8.22 | AB53: =IFERROR(VLOOKUP(AA53,'CRUCE RIESGOS'!$C$8:$D$156,2,FALSE),"") ->  | AC53: 9.22 | AD53: =IFERROR(VLOOKUP(AC53,'CRUCE RIESGOS'!$C$8:$D$156,2,FALSE),"") ->  | AE53: 10.22 | AF53: =IFERROR(VLOOKUP(AE53,'CRUCE RIESGOS'!$C$8:$D$156,2,FALSE),"") ->  | AG53: 11.22 | AH53: =IFERROR(VLOOKUP(AG53,'CRUCE RIESGOS'!$C$8:$D$156,2,FALSE),"") ->  | AI53: 12.22 | AJ53: =IFERROR(VLOOKUP(AI53,'CRUCE RIESGOS'!$C$8:$D$156,2,FALSE),"") ->  | AK53: 13.22 | AL53: =IFERROR(VLOOKUP(AK53,'CRUCE RIESGOS'!$C$8:$D$156,2,FALSE),"") ->  | AM53: 14.22 | AN53: =IFERROR(VLOOKUP(AM53,'CRUCE RIESGOS'!$C$8:$D$156,2,FALSE),"") ->  | AO53: 15.22 | AP53: =IFERROR(VLOOKUP(AO53,'CRUCE RIESGOS'!$C$8:$D$156,2,FALSE),"") ->  | AQ53: 16.22 | AR53: =IFERROR(VLOOKUP(AQ53,'CRUCE RIESGOS'!$C$8:$D$156,2,FALSE),"") ->  | AS53: 17.22 | AT53: =IFERROR(VLOOKUP(AS53,'CRUCE RIESGOS'!$C$8:$D$156,2,FALSE),"") ->  | AU53: 18.22 | AV53: =IFERROR(VLOOKUP(AU53,'CRUCE RIESGOS'!$C$8:$D$156,2,FALSE),"") ->  | AW53: 19.22 | AX53: =IFERROR(VLOOKUP(AW53,'CRUCE RIESGOS'!$C$8:$D$156,2,FALSE),"") ->  | AY53: 20.22 | AZ53: =IFERROR(VLOOKUP(AY53,'CRUCE RIESGOS'!$C$8:$D$156,2,FALSE),"") ->  | BA53: 21.22 | BB53: =IFERROR(VLOOKUP(BA53,'CRUCE RIESGOS'!$C$8:$D$156,2,FALSE),"") ->  | BC53: 22.22 | BD53: =IFERROR(VLOOKUP(BC53,'CRUCE RIESGOS'!$C$8:$D$156,2,FALSE),"") ->  | BE53: 23.22 | BF53: =IFERROR(VLOOKUP(BE53,'CRUCE RIESGOS'!$C$8:$D$156,2,FALSE),"") ->  | BG53: 24.22 | BH53: =IFERROR(VLOOKUP(BG53,'CRUCE RIESGOS'!$C$8:$D$156,2,FALSE),"") ->  | BI53: 25.22 | BJ53: =IFERROR(VLOOKUP(BI53,'CRUCE RIESGOS'!$C$8:$D$156,2,FALSE),"") -> 
N54: =IF(N55<>""," -R","") ->  | P54: =IF(P55<>""," -R","") ->  | R54: =IF(R55<>""," -R","") ->  | T54: =IF(T55<>""," -R","") ->  | V54: =IF(V55<>""," -R","") ->  | X54: =IF(X55<>""," -R","") ->  | Z54: =IF(Z55<>""," -R","") ->  | AB54: =IF(AB55<>""," -R","") ->  | AD54: =IF(AD55<>""," -R","") ->  | AF54: =IF(AF55<>""," -R","") ->  | AH54: =IF(AH55<>""," -R","") ->  | AJ54: =IF(AJ55<>""," -R","") ->  | AL54: =IF(AL55<>""," -R","") ->  | AN54: =IF(AN55<>""," -R","") ->  | AP54: =IF(AP55<>""," -R","") ->  | AR54: =IF(AR55<>""," -R","") ->  | AT54: =IF(AT55<>""," -R","") ->  | AV54: =IF(AV55<>""," -R","") ->  | AX54: =IF(AX55<>""," -R","") ->  | AZ54: =IF(AZ55<>""," -R","") ->  | BB54: =IF(BB55<>""," -R","") ->  | BD54: =IF(BD55<>""," -R","") ->  | BF54: =IF(BF55<>""," -R","") ->  | BH54: =IF(BH55<>""," -R","") ->  | BJ54: =IF(BJ55<>""," -R","") -> 
M55: 1.23 | N55: =IFERROR(VLOOKUP(M55,'CRUCE RIESGOS'!$C$8:$D$156,2,FALSE),"") ->  | O55: 2.23 | P55: =IFERROR(VLOOKUP(O55,'CRUCE RIESGOS'!$C$8:$D$156,2,FALSE),"") ->  | Q55: 3.23 | R55: =IFERROR(VLOOKUP(Q55,'CRUCE RIESGOS'!$C$8:$D$156,2,FALSE),"") ->  | S55: 4.23 | T55: =IFERROR(VLOOKUP(S55,'CRUCE RIESGOS'!$C$8:$D$156,2,FALSE),"") ->  | U55: 5.23 | V55: =IFERROR(VLOOKUP(U55,'CRUCE RIESGOS'!$C$8:$D$156,2,FALSE),"") ->  | W55: 6.23 | X55: =IFERROR(VLOOKUP(W55,'CRUCE RIESGOS'!$C$8:$D$156,2,FALSE),"") ->  | Y55: 7.23 | Z55: =IFERROR(VLOOKUP(Y55,'CRUCE RIESGOS'!$C$8:$D$156,2,FALSE),"") ->  | AA55: 8.23 | AB55: =IFERROR(VLOOKUP(AA55,'CRUCE RIESGOS'!$C$8:$D$156,2,FALSE),"") ->  | AC55: 9.23 | AD55: =IFERROR(VLOOKUP(AC55,'CRUCE RIESGOS'!$C$8:$D$156,2,FALSE),"") ->  | AE55: 10.23 | AF55: =IFERROR(VLOOKUP(AE55,'CRUCE RIESGOS'!$C$8:$D$156,2,FALSE),"") ->  | AG55: 11.23 | AH55: =IFERROR(VLOOKUP(AG55,'CRUCE RIESGOS'!$C$8:$D$156,2,FALSE),"") ->  | AI55: 12.23 | AJ55: =IFERROR(VLOOKUP(AI55,'CRUCE RIESGOS'!$C$8:$D$156,2,FALSE),"") ->  | AK55: 13.23 | AL55: =IFERROR(VLOOKUP(AK55,'CRUCE RIESGOS'!$C$8:$D$156,2,FALSE),"") ->  | AM55: 14.23 | AN55: =IFERROR(VLOOKUP(AM55,'CRUCE RIESGOS'!$C$8:$D$156,2,FALSE),"") ->  | AO55: 15.23 | AP55: =IFERROR(VLOOKUP(AO55,'CRUCE RIESGOS'!$C$8:$D$156,2,FALSE),"") ->  | AQ55: 16.23 | AR55: =IFERROR(VLOOKUP(AQ55,'CRUCE RIESGOS'!$C$8:$D$156,2,FALSE),"") ->  | AS55: 17.23 | AT55: =IFERROR(VLOOKUP(AS55,'CRUCE RIESGOS'!$C$8:$D$156,2,FALSE),"") ->  | AU55: 18.23 | AV55: =IFERROR(VLOOKUP(AU55,'CRUCE RIESGOS'!$C$8:$D$156,2,FALSE),"") ->  | AW55: 19.23 | AX55: =IFERROR(VLOOKUP(AW55,'CRUCE RIESGOS'!$C$8:$D$156,2,FALSE),"") ->  | AY55: 20.23 | AZ55: =IFERROR(VLOOKUP(AY55,'CRUCE RIESGOS'!$C$8:$D$156,2,FALSE),"") ->  | BA55: 21.23 | BB55: =IFERROR(VLOOKUP(BA55,'CRUCE RIESGOS'!$C$8:$D$156,2,FALSE),"") ->  | BC55: 22.23 | BD55: =IFERROR(VLOOKUP(BC55,'CRUCE RIESGOS'!$C$8:$D$156,2,FALSE),"") ->  | BE55: 23.23 | BF55: =IFERROR(VLOOKUP(BE55,'CRUCE RIESGOS'!$C$8:$D$156,2,FALSE),"") ->  | BG55: 24.23 | BH55: =IFERROR(VLOOKUP(BG55,'CRUCE RIESGOS'!$C$8:$D$156,2,FALSE),"") ->  | BI55: 25.23 | BJ55: =IFERROR(VLOOKUP(BI55,'CRUCE RIESGOS'!$C$8:$D$156,2,FALSE),"") -> 
N56: =IF(N57<>""," -R","") ->  | P56: =IF(P57<>""," -R","") ->  | R56: =IF(R57<>""," -R","") ->  | T56: =IF(T57<>""," -R","") ->  | V56: =IF(V57<>""," -R","") ->  | X56: =IF(X57<>""," -R","") ->  | Z56: =IF(Z57<>""," -R","") ->  | AB56: =IF(AB57<>""," -R","") ->  | AD56: =IF(AD57<>""," -R","") ->  | AF56: =IF(AF57<>""," -R","") ->  | AH56: =IF(AH57<>""," -R","") ->  | AJ56: =IF(AJ57<>""," -R","") ->  | AL56: =IF(AL57<>""," -R","") ->  | AN56: =IF(AN57<>""," -R","") ->  | AP56: =IF(AP57<>""," -R","") ->  | AR56: =IF(AR57<>""," -R","") ->  | AT56: =IF(AT57<>""," -R","") ->  | AV56: =IF(AV57<>""," -R","") ->  | AX56: =IF(AX57<>""," -R","") ->  | AZ56: =IF(AZ57<>""," -R","") ->  | BB56: =IF(BB57<>""," -R","") ->  | BD56: =IF(BD57<>""," -R","") ->  | BF56: =IF(BF57<>""," -R","") ->  | BH56: =IF(BH57<>""," -R","") ->  | BJ56: =IF(BJ57<>""," -R","") -> 
M57: 1.24 | N57: =IFERROR(VLOOKUP(M57,'CRUCE RIESGOS'!$C$8:$D$156,2,FALSE),"") ->  | O57: 2.24 | P57: =IFERROR(VLOOKUP(O57,'CRUCE RIESGOS'!$C$8:$D$156,2,FALSE),"") ->  | Q57: 3.24 | R57: =IFERROR(VLOOKUP(Q57,'CRUCE RIESGOS'!$C$8:$D$156,2,FALSE),"") ->  | S57: 4.24 | T57: =IFERROR(VLOOKUP(S57,'CRUCE RIESGOS'!$C$8:$D$156,2,FALSE),"") ->  | U57: 5.24 | V57: =IFERROR(VLOOKUP(U57,'CRUCE RIESGOS'!$C$8:$D$156,2,FALSE),"") ->  | W57: 6.24 | X57: =IFERROR(VLOOKUP(W57,'CRUCE RIESGOS'!$C$8:$D$156,2,FALSE),"") ->  | Y57: 7.24 | Z57: =IFERROR(VLOOKUP(Y57,'CRUCE RIESGOS'!$C$8:$D$156,2,FALSE),"") ->  | AA57: 8.24 | AB57: =IFERROR(VLOOKUP(AA57,'CRUCE RIESGOS'!$C$8:$D$156,2,FALSE),"") ->  | AC57: 9.24 | AD57: =IFERROR(VLOOKUP(AC57,'CRUCE RIESGOS'!$C$8:$D$156,2,FALSE),"") ->  | AE57: 10.24 | AF57: =IFERROR(VLOOKUP(AE57,'CRUCE RIESGOS'!$C$8:$D$156,2,FALSE),"") ->  | AG57: 11.24 | AH57: =IFERROR(VLOOKUP(AG57,'CRUCE RIESGOS'!$C$8:$D$156,2,FALSE),"") ->  | AI57: 12.24 | AJ57: =IFERROR(VLOOKUP(AI57,'CRUCE RIESGOS'!$C$8:$D$156,2,FALSE),"") ->  | AK57: 13.24 | AL57: =IFERROR(VLOOKUP(AK57,'CRUCE RIESGOS'!$C$8:$D$156,2,FALSE),"") ->  | AM57: 14.24 | AN57: =IFERROR(VLOOKUP(AM57,'CRUCE RIESGOS'!$C$8:$D$156,2,FALSE),"") ->  | AO57: 15.24 | AP57: =IFERROR(VLOOKUP(AO57,'CRUCE RIESGOS'!$C$8:$D$156,2,FALSE),"") ->  | AQ57: 16.24 | AR57: =IFERROR(VLOOKUP(AQ57,'CRUCE RIESGOS'!$C$8:$D$156,2,FALSE),"") ->  | AS57: 17.24 | AT57: =IFERROR(VLOOKUP(AS57,'CRUCE RIESGOS'!$C$8:$D$156,2,FALSE),"") ->  | AU57: 18.24 | AV57: =IFERROR(VLOOKUP(AU57,'CRUCE RIESGOS'!$C$8:$D$156,2,FALSE),"") ->  | AW57: 19.24 | AX57: =IFERROR(VLOOKUP(AW57,'CRUCE RIESGOS'!$C$8:$D$156,2,FALSE),"") ->  | AY57: 20.24 | AZ57: =IFERROR(VLOOKUP(AY57,'CRUCE RIESGOS'!$C$8:$D$156,2,FALSE),"") ->  | BA57: 21.24 | BB57: =IFERROR(VLOOKUP(BA57,'CRUCE RIESGOS'!$C$8:$D$156,2,FALSE),"") ->  | BC57: 22.24 | BD57: =IFERROR(VLOOKUP(BC57,'CRUCE RIESGOS'!$C$8:$D$156,2,FALSE),"") ->  | BE57: 23.24 | BF57: =IFERROR(VLOOKUP(BE57,'CRUCE RIESGOS'!$C$8:$D$156,2,FALSE),"") ->  | BG57: 24.24 | BH57: =IFERROR(VLOOKUP(BG57,'CRUCE RIESGOS'!$C$8:$D$156,2,FALSE),"") ->  | BI57: 25.24 | BJ57: =IFERROR(VLOOKUP(BI57,'CRUCE RIESGOS'!$C$8:$D$156,2,FALSE),"") -> 
N58: =IF(N59<>""," -R","") ->  | P58: =IF(P59<>""," -R","") ->  | R58: =IF(R59<>""," -R","") ->  | T58: =IF(T59<>""," -R","") ->  | V58: =IF(V59<>""," -R","") ->  | X58: =IF(X59<>""," -R","") ->  | Z58: =IF(Z59<>""," -R","") ->  | AB58: =IF(AB59<>""," -R","") ->  | AD58: =IF(AD59<>""," -R","") ->  | AF58: =IF(AF59<>""," -R","") ->  | AH58: =IF(AH59<>""," -R","") ->  | AJ58: =IF(AJ59<>""," -R","") ->  | AL58: =IF(AL59<>""," -R","") ->  | AN58: =IF(AN59<>""," -R","") ->  | AP58: =IF(AP59<>""," -R","") ->  | AR58: =IF(AR59<>""," -R","") ->  | AT58: =IF(AT59<>""," -R","") ->  | AV58: =IF(AV59<>""," -R","") ->  | AX58: =IF(AX59<>""," -R","") ->  | AZ58: =IF(AZ59<>""," -R","") ->  | BB58: =IF(BB59<>""," -R","") ->  | BD58: =IF(BD59<>""," -R","") ->  | BF58: =IF(BF59<>""," -R","") ->  | BH58: =IF(BH59<>""," -R","") ->  | BJ58: =IF(BJ59<>""," -R","") -> 
M59: 1.25 | N59: =IFERROR(VLOOKUP(M59,'CRUCE RIESGOS'!$C$8:$D$156,2,FALSE),"") ->  | O59: 2.25 | P59: =IFERROR(VLOOKUP(O59,'CRUCE RIESGOS'!$C$8:$D$156,2,FALSE),"") ->  | Q59: 3.25 | R59: =IFERROR(VLOOKUP(Q59,'CRUCE RIESGOS'!$C$8:$D$156,2,FALSE),"") ->  | S59: 4.25 | T59: =IFERROR(VLOOKUP(S59,'CRUCE RIESGOS'!$C$8:$D$156,2,FALSE),"") ->  | U59: 5.25 | V59: =IFERROR(VLOOKUP(U59,'CRUCE RIESGOS'!$C$8:$D$156,2,FALSE),"") ->  | W59: 6.25 | X59: =IFERROR(VLOOKUP(W59,'CRUCE RIESGOS'!$C$8:$D$156,2,FALSE),"") ->  | Y59: 7.25 | Z59: =IFERROR(VLOOKUP(Y59,'CRUCE RIESGOS'!$C$8:$D$156,2,FALSE),"") ->  | AA59: 8.25 | AB59: =IFERROR(VLOOKUP(AA59,'CRUCE RIESGOS'!$C$8:$D$156,2,FALSE),"") ->  | AC59: 9.25 | AD59: =IFERROR(VLOOKUP(AC59,'CRUCE RIESGOS'!$C$8:$D$156,2,FALSE),"") ->  | AE59: 10.25 | AF59: =IFERROR(VLOOKUP(AE59,'CRUCE RIESGOS'!$C$8:$D$156,2,FALSE),"") ->  | AG59: 11.25 | AH59: =IFERROR(VLOOKUP(AG59,'CRUCE RIESGOS'!$C$8:$D$156,2,FALSE),"") ->  | AI59: 12.25 | AJ59: =IFERROR(VLOOKUP(AI59,'CRUCE RIESGOS'!$C$8:$D$156,2,FALSE),"") ->  | AK59: 13.25 | AL59: =IFERROR(VLOOKUP(AK59,'CRUCE RIESGOS'!$C$8:$D$156,2,FALSE),"") ->  | AM59: 14.25 | AN59: =IFERROR(VLOOKUP(AM59,'CRUCE RIESGOS'!$C$8:$D$156,2,FALSE),"") ->  | AO59: 15.25 | AP59: =IFERROR(VLOOKUP(AO59,'CRUCE RIESGOS'!$C$8:$D$156,2,FALSE),"") ->  | AQ59: 16.25 | AR59: =IFERROR(VLOOKUP(AQ59,'CRUCE RIESGOS'!$C$8:$D$156,2,FALSE),"") ->  | AS59: 17.25 | AT59: =IFERROR(VLOOKUP(AS59,'CRUCE RIESGOS'!$C$8:$D$156,2,FALSE),"") ->  | AU59: 18.25 | AV59: =IFERROR(VLOOKUP(AU59,'CRUCE RIESGOS'!$C$8:$D$156,2,FALSE),"") ->  | AW59: 19.25 | AX59: =IFERROR(VLOOKUP(AW59,'CRUCE RIESGOS'!$C$8:$D$156,2,FALSE),"") ->  | AY59: 20.25 | AZ59: =IFERROR(VLOOKUP(AY59,'CRUCE RIESGOS'!$C$8:$D$156,2,FALSE),"") ->  | BA59: 21.25 | BB59: =IFERROR(VLOOKUP(BA59,'CRUCE RIESGOS'!$C$8:$D$156,2,FALSE),"") ->  | BC59: 22.25 | BD59: =IFERROR(VLOOKUP(BC59,'CRUCE RIESGOS'!$C$8:$D$156,2,FALSE),"") ->  | BE59: 23.25 | BF59: =IFERROR(VLOOKUP(BE59,'CRUCE RIESGOS'!$C$8:$D$156,2,FALSE),"") ->  | BG59: 24.25 | BH59: =IFERROR(VLOOKUP(BG59,'CRUCE RIESGOS'!$C$8:$D$156,2,FALSE),"") ->  | BI59: 25.25 | BJ59: =IFERROR(VLOOKUP(BI59,'CRUCE RIESGOS'!$C$8:$D$156,2,FALSE),"") -> 
N60: =IF(N61<>""," -R","") ->  | P60: =IF(P61<>""," -R","") ->  | R60: =IF(R61<>""," -R","") ->  | T60: =IF(T61<>""," -R","") ->  | V60: =IF(V61<>""," -R","") ->  | X60: =IF(X61<>""," -R","") ->  | Z60: =IF(Z61<>""," -R","") ->  | AB60: =IF(AB61<>""," -R","") ->  | AD60: =IF(AD61<>""," -R","") ->  | AF60: =IF(AF61<>""," -R","") ->  | AH60: =IF(AH61<>""," -R","") ->  | AJ60: =IF(AJ61<>""," -R","") ->  | AL60: =IF(AL61<>""," -R","") ->  | AN60: =IF(AN61<>""," -R","") ->  | AP60: =IF(AP61<>""," -R","") ->  | AR60: =IF(AR61<>""," -R","") ->  | AT60: =IF(AT61<>""," -R","") ->  | AV60: =IF(AV61<>""," -R","") ->  | AX60: =IF(AX61<>""," -R","") ->  | AZ60: =IF(AZ61<>""," -R","") ->  | BB60: =IF(BB61<>""," -R","") ->  | BD60: =IF(BD61<>""," -R","") ->  | BF60: =IF(BF61<>""," -R","") ->  | BH60: =IF(BH61<>""," -R","") ->  | BJ60: =IF(BJ61<>""," -R","") -> 
M61: 1.26 | N61: =IFERROR(VLOOKUP(M61,'CRUCE RIESGOS'!$C$8:$D$156,2,FALSE),"") ->  | O61: 2.26 | P61: =IFERROR(VLOOKUP(O61,'CRUCE RIESGOS'!$C$8:$D$156,2,FALSE),"") ->  | Q61: 3.26 | R61: =IFERROR(VLOOKUP(Q61,'CRUCE RIESGOS'!$C$8:$D$156,2,FALSE),"") ->  | S61: 4.26 | T61: =IFERROR(VLOOKUP(S61,'CRUCE RIESGOS'!$C$8:$D$156,2,FALSE),"") ->  | U61: 5.26 | V61: =IFERROR(VLOOKUP(U61,'CRUCE RIESGOS'!$C$8:$D$156,2,FALSE),"") ->  | W61: 6.26 | X61: =IFERROR(VLOOKUP(W61,'CRUCE RIESGOS'!$C$8:$D$156,2,FALSE),"") ->  | Y61: 7.26 | Z61: =IFERROR(VLOOKUP(Y61,'CRUCE RIESGOS'!$C$8:$D$156,2,FALSE),"") ->  | AA61: 8.26 | AB61: =IFERROR(VLOOKUP(AA61,'CRUCE RIESGOS'!$C$8:$D$156,2,FALSE),"") ->  | AC61: 9.26 | AD61: =IFERROR(VLOOKUP(AC61,'CRUCE RIESGOS'!$C$8:$D$156,2,FALSE),"") ->  | AE61: 10.26 | AF61: =IFERROR(VLOOKUP(AE61,'CRUCE RIESGOS'!$C$8:$D$156,2,FALSE),"") ->  | AG61: 11.26 | AH61: =IFERROR(VLOOKUP(AG61,'CRUCE RIESGOS'!$C$8:$D$156,2,FALSE),"") ->  | AI61: 12.26 | AJ61: =IFERROR(VLOOKUP(AI61,'CRUCE RIESGOS'!$C$8:$D$156,2,FALSE),"") ->  | AK61: 13.26 | AL61: =IFERROR(VLOOKUP(AK61,'CRUCE RIESGOS'!$C$8:$D$156,2,FALSE),"") ->  | AM61: 14.26 | AN61: =IFERROR(VLOOKUP(AM61,'CRUCE RIESGOS'!$C$8:$D$156,2,FALSE),"") ->  | AO61: 15.26 | AP61: =IFERROR(VLOOKUP(AO61,'CRUCE RIESGOS'!$C$8:$D$156,2,FALSE),"") ->  | AQ61: 16.26 | AR61: =IFERROR(VLOOKUP(AQ61,'CRUCE RIESGOS'!$C$8:$D$156,2,FALSE),"") ->  | AS61: 17.26 | AT61: =IFERROR(VLOOKUP(AS61,'CRUCE RIESGOS'!$C$8:$D$156,2,FALSE),"") ->  | AU61: 18.26 | AV61: =IFERROR(VLOOKUP(AU61,'CRUCE RIESGOS'!$C$8:$D$156,2,FALSE),"") ->  | AW61: 19.26 | AX61: =IFERROR(VLOOKUP(AW61,'CRUCE RIESGOS'!$C$8:$D$156,2,FALSE),"") ->  | AY61: 20.26 | AZ61: =IFERROR(VLOOKUP(AY61,'CRUCE RIESGOS'!$C$8:$D$156,2,FALSE),"") ->  | BA61: 21.26 | BB61: =IFERROR(VLOOKUP(BA61,'CRUCE RIESGOS'!$C$8:$D$156,2,FALSE),"") ->  | BC61: 22.26 | BD61: =IFERROR(VLOOKUP(BC61,'CRUCE RIESGOS'!$C$8:$D$156,2,FALSE),"") ->  | BE61: 23.26 | BF61: =IFERROR(VLOOKUP(BE61,'CRUCE RIESGOS'!$C$8:$D$156,2,FALSE),"") ->  | BG61: 24.26 | BH61: =IFERROR(VLOOKUP(BG61,'CRUCE RIESGOS'!$C$8:$D$156,2,FALSE),"") ->  | BI61: 25.26 | BJ61: =IFERROR(VLOOKUP(BI61,'CRUCE RIESGOS'!$C$8:$D$156,2,FALSE),"") -> 
N62: =IF(N63<>""," -R","") ->  | P62: =IF(P63<>""," -R","") ->  | R62: =IF(R63<>""," -R","") ->  | T62: =IF(T63<>""," -R","") ->  | V62: =IF(V63<>""," -R","") ->  | X62: =IF(X63<>""," -R","") ->  | Z62: =IF(Z63<>""," -R","") ->  | AB62: =IF(AB63<>""," -R","") ->  | AD62: =IF(AD63<>""," -R","") ->  | AF62: =IF(AF63<>""," -R","") ->  | AH62: =IF(AH63<>""," -R","") ->  | AJ62: =IF(AJ63<>""," -R","") ->  | AL62: =IF(AL63<>""," -R","") ->  | AN62: =IF(AN63<>""," -R","") ->  | AP62: =IF(AP63<>""," -R","") ->  | AR62: =IF(AR63<>""," -R","") ->  | AT62: =IF(AT63<>""," -R","") ->  | AV62: =IF(AV63<>""," -R","") ->  | AX62: =IF(AX63<>""," -R","") ->  | AZ62: =IF(AZ63<>""," -R","") ->  | BB62: =IF(BB63<>""," -R","") ->  | BD62: =IF(BD63<>""," -R","") ->  | BF62: =IF(BF63<>""," -R","") ->  | BH62: =IF(BH63<>""," -R","") ->  | BJ62: =IF(BJ63<>""," -R","") -> 
M63: 1.27 | N63: =IFERROR(VLOOKUP(M63,'CRUCE RIESGOS'!$C$8:$D$156,2,FALSE),"") ->  | O63: 2.27 | P63: =IFERROR(VLOOKUP(O63,'CRUCE RIESGOS'!$C$8:$D$156,2,FALSE),"") ->  | Q63: 3.27 | R63: =IFERROR(VLOOKUP(Q63,'CRUCE RIESGOS'!$C$8:$D$156,2,FALSE),"") ->  | S63: 4.27 | T63: =IFERROR(VLOOKUP(S63,'CRUCE RIESGOS'!$C$8:$D$156,2,FALSE),"") ->  | U63: 5.27 | V63: =IFERROR(VLOOKUP(U63,'CRUCE RIESGOS'!$C$8:$D$156,2,FALSE),"") ->  | W63: 6.27 | X63: =IFERROR(VLOOKUP(W63,'CRUCE RIESGOS'!$C$8:$D$156,2,FALSE),"") ->  | Y63: 7.27 | Z63: =IFERROR(VLOOKUP(Y63,'CRUCE RIESGOS'!$C$8:$D$156,2,FALSE),"") ->  | AA63: 8.27 | AB63: =IFERROR(VLOOKUP(AA63,'CRUCE RIESGOS'!$C$8:$D$156,2,FALSE),"") ->  | AC63: 9.27 | AD63: =IFERROR(VLOOKUP(AC63,'CRUCE RIESGOS'!$C$8:$D$156,2,FALSE),"") ->  | AE63: 10.27 | AF63: =IFERROR(VLOOKUP(AE63,'CRUCE RIESGOS'!$C$8:$D$156,2,FALSE),"") ->  | AG63: 11.27 | AH63: =IFERROR(VLOOKUP(AG63,'CRUCE RIESGOS'!$C$8:$D$156,2,FALSE),"") ->  | AI63: 12.27 | AJ63: =IFERROR(VLOOKUP(AI63,'CRUCE RIESGOS'!$C$8:$D$156,2,FALSE),"") ->  | AK63: 13.27 | AL63: =IFERROR(VLOOKUP(AK63,'CRUCE RIESGOS'!$C$8:$D$156,2,FALSE),"") ->  | AM63: 14.27 | AN63: =IFERROR(VLOOKUP(AM63,'CRUCE RIESGOS'!$C$8:$D$156,2,FALSE),"") ->  | AO63: 15.27 | AP63: =IFERROR(VLOOKUP(AO63,'CRUCE RIESGOS'!$C$8:$D$156,2,FALSE),"") ->  | AQ63: 16.27 | AR63: =IFERROR(VLOOKUP(AQ63,'CRUCE RIESGOS'!$C$8:$D$156,2,FALSE),"") ->  | AS63: 17.27 | AT63: =IFERROR(VLOOKUP(AS63,'CRUCE RIESGOS'!$C$8:$D$156,2,FALSE),"") ->  | AU63: 18.27 | AV63: =IFERROR(VLOOKUP(AU63,'CRUCE RIESGOS'!$C$8:$D$156,2,FALSE),"") ->  | AW63: 19.27 | AX63: =IFERROR(VLOOKUP(AW63,'CRUCE RIESGOS'!$C$8:$D$156,2,FALSE),"") ->  | AY63: 20.27 | AZ63: =IFERROR(VLOOKUP(AY63,'CRUCE RIESGOS'!$C$8:$D$156,2,FALSE),"") ->  | BA63: 21.27 | BB63: =IFERROR(VLOOKUP(BA63,'CRUCE RIESGOS'!$C$8:$D$156,2,FALSE),"") ->  | BC63: 22.27 | BD63: =IFERROR(VLOOKUP(BC63,'CRUCE RIESGOS'!$C$8:$D$156,2,FALSE),"") ->  | BE63: 23.27 | BF63: =IFERROR(VLOOKUP(BE63,'CRUCE RIESGOS'!$C$8:$D$156,2,FALSE),"") ->  | BG63: 24.27 | BH63: =IFERROR(VLOOKUP(BG63,'CRUCE RIESGOS'!$C$8:$D$156,2,FALSE),"") ->  | BI63: 25.27 | BJ63: =IFERROR(VLOOKUP(BI63,'CRUCE RIESGOS'!$C$8:$D$156,2,FALSE),"") -> 
N64: =IF(N65<>""," -R","") ->  | P64: =IF(P65<>""," -R","") ->  | R64: =IF(R65<>""," -R","") ->  | T64: =IF(T65<>""," -R","") ->  | V64: =IF(V65<>""," -R","") ->  | X64: =IF(X65<>""," -R","") ->  | Z64: =IF(Z65<>""," -R","") ->  | AB64: =IF(AB65<>""," -R","") ->  | AD64: =IF(AD65<>""," -R","") ->  | AF64: =IF(AF65<>""," -R","") ->  | AH64: =IF(AH65<>""," -R","") ->  | AJ64: =IF(AJ65<>""," -R","") ->  | AL64: =IF(AL65<>""," -R","") ->  | AN64: =IF(AN65<>""," -R","") ->  | AP64: =IF(AP65<>""," -R","") ->  | AR64: =IF(AR65<>""," -R","") ->  | AT64: =IF(AT65<>""," -R","") ->  | AV64: =IF(AV65<>""," -R","") ->  | AX64: =IF(AX65<>""," -R","") ->  | AZ64: =IF(AZ65<>""," -R","") ->  | BB64: =IF(BB65<>""," -R","") ->  | BD64: =IF(BD65<>""," -R","") ->  | BF64: =IF(BF65<>""," -R","") ->  | BH64: =IF(BH65<>""," -R","") ->  | BJ64: =IF(BJ65<>""," -R","") -> 
M65: 1.28 | N65: =IFERROR(VLOOKUP(M65,'CRUCE RIESGOS'!$C$8:$D$156,2,FALSE),"") ->  | O65: 2.28 | P65: =IFERROR(VLOOKUP(O65,'CRUCE RIESGOS'!$C$8:$D$156,2,FALSE),"") ->  | Q65: 3.28 | R65: =IFERROR(VLOOKUP(Q65,'CRUCE RIESGOS'!$C$8:$D$156,2,FALSE),"") ->  | S65: 4.28 | T65: =IFERROR(VLOOKUP(S65,'CRUCE RIESGOS'!$C$8:$D$156,2,FALSE),"") ->  | U65: 5.28 | V65: =IFERROR(VLOOKUP(U65,'CRUCE RIESGOS'!$C$8:$D$156,2,FALSE),"") ->  | W65: 6.28 | X65: =IFERROR(VLOOKUP(W65,'CRUCE RIESGOS'!$C$8:$D$156,2,FALSE),"") ->  | Y65: 7.28 | Z65: =IFERROR(VLOOKUP(Y65,'CRUCE RIESGOS'!$C$8:$D$156,2,FALSE),"") ->  | AA65: 8.28 | AB65: =IFERROR(VLOOKUP(AA65,'CRUCE RIESGOS'!$C$8:$D$156,2,FALSE),"") ->  | AC65: 9.28 | AD65: =IFERROR(VLOOKUP(AC65,'CRUCE RIESGOS'!$C$8:$D$156,2,FALSE),"") ->  | AE65: 10.28 | AF65: =IFERROR(VLOOKUP(AE65,'CRUCE RIESGOS'!$C$8:$D$156,2,FALSE),"") ->  | AG65: 11.28 | AH65: =IFERROR(VLOOKUP(AG65,'CRUCE RIESGOS'!$C$8:$D$156,2,FALSE),"") ->  | AI65: 12.28 | AJ65: =IFERROR(VLOOKUP(AI65,'CRUCE RIESGOS'!$C$8:$D$156,2,FALSE),"") ->  | AK65: 13.28 | AL65: =IFERROR(VLOOKUP(AK65,'CRUCE RIESGOS'!$C$8:$D$156,2,FALSE),"") ->  | AM65: 14.28 | AN65: =IFERROR(VLOOKUP(AM65,'CRUCE RIESGOS'!$C$8:$D$156,2,FALSE),"") ->  | AO65: 15.28 | AP65: =IFERROR(VLOOKUP(AO65,'CRUCE RIESGOS'!$C$8:$D$156,2,FALSE),"") ->  | AQ65: 16.28 | AR65: =IFERROR(VLOOKUP(AQ65,'CRUCE RIESGOS'!$C$8:$D$156,2,FALSE),"") ->  | AS65: 17.28 | AT65: =IFERROR(VLOOKUP(AS65,'CRUCE RIESGOS'!$C$8:$D$156,2,FALSE),"") ->  | AU65: 18.28 | AV65: =IFERROR(VLOOKUP(AU65,'CRUCE RIESGOS'!$C$8:$D$156,2,FALSE),"") ->  | AW65: 19.28 | AX65: =IFERROR(VLOOKUP(AW65,'CRUCE RIESGOS'!$C$8:$D$156,2,FALSE),"") ->  | AY65: 20.28 | AZ65: =IFERROR(VLOOKUP(AY65,'CRUCE RIESGOS'!$C$8:$D$156,2,FALSE),"") ->  | BA65: 21.28 | BB65: =IFERROR(VLOOKUP(BA65,'CRUCE RIESGOS'!$C$8:$D$156,2,FALSE),"") ->  | BC65: 22.28 | BD65: =IFERROR(VLOOKUP(BC65,'CRUCE RIESGOS'!$C$8:$D$156,2,FALSE),"") ->  | BE65: 23.28 | BF65: =IFERROR(VLOOKUP(BE65,'CRUCE RIESGOS'!$C$8:$D$156,2,FALSE),"") ->  | BG65: 24.28 | BH65: =IFERROR(VLOOKUP(BG65,'CRUCE RIESGOS'!$C$8:$D$156,2,FALSE),"") ->  | BI65: 25.28 | BJ65: =IFERROR(VLOOKUP(BI65,'CRUCE RIESGOS'!$C$8:$D$156,2,FALSE),"") -> 
N66: =IF(N67<>""," -R","") ->  | P66: =IF(P67<>""," -R","") ->  | R66: =IF(R67<>""," -R","") ->  | T66: =IF(T67<>""," -R","") ->  | V66: =IF(V67<>""," -R","") ->  | X66: =IF(X67<>""," -R","") ->  | Z66: =IF(Z67<>""," -R","") ->  | AB66: =IF(AB67<>""," -R","") ->  | AD66: =IF(AD67<>""," -R","") ->  | AF66: =IF(AF67<>""," -R","") ->  | AH66: =IF(AH67<>""," -R","") ->  | AJ66: =IF(AJ67<>""," -R","") ->  | AL66: =IF(AL67<>""," -R","") ->  | AN66: =IF(AN67<>""," -R","") ->  | AP66: =IF(AP67<>""," -R","") ->  | AR66: =IF(AR67<>""," -R","") ->  | AT66: =IF(AT67<>""," -R","") ->  | AV66: =IF(AV67<>""," -R","") ->  | AX66: =IF(AX67<>""," -R","") ->  | AZ66: =IF(AZ67<>""," -R","") ->  | BB66: =IF(BB67<>""," -R","") ->  | BD66: =IF(BD67<>""," -R","") ->  | BF66: =IF(BF67<>""," -R","") ->  | BH66: =IF(BH67<>""," -R","") ->  | BJ66: =IF(BJ67<>""," -R","") -> 
M67: 1.29 | N67: =IFERROR(VLOOKUP(M67,'CRUCE RIESGOS'!$C$8:$D$156,2,FALSE),"") ->  | O67: 2.29 | P67: =IFERROR(VLOOKUP(O67,'CRUCE RIESGOS'!$C$8:$D$156,2,FALSE),"") ->  | Q67: 3.29 | R67: =IFERROR(VLOOKUP(Q67,'CRUCE RIESGOS'!$C$8:$D$156,2,FALSE),"") ->  | S67: 4.29 | T67: =IFERROR(VLOOKUP(S67,'CRUCE RIESGOS'!$C$8:$D$156,2,FALSE),"") ->  | U67: 5.29 | V67: =IFERROR(VLOOKUP(U67,'CRUCE RIESGOS'!$C$8:$D$156,2,FALSE),"") ->  | W67: 6.29 | X67: =IFERROR(VLOOKUP(W67,'CRUCE RIESGOS'!$C$8:$D$156,2,FALSE),"") ->  | Y67: 7.29 | Z67: =IFERROR(VLOOKUP(Y67,'CRUCE RIESGOS'!$C$8:$D$156,2,FALSE),"") ->  | AA67: 8.29 | AB67: =IFERROR(VLOOKUP(AA67,'CRUCE RIESGOS'!$C$8:$D$156,2,FALSE),"") ->  | AC67: 9.29 | AD67: =IFERROR(VLOOKUP(AC67,'CRUCE RIESGOS'!$C$8:$D$156,2,FALSE),"") ->  | AE67: 10.29 | AF67: =IFERROR(VLOOKUP(AE67,'CRUCE RIESGOS'!$C$8:$D$156,2,FALSE),"") ->  | AG67: 11.29 | AH67: =IFERROR(VLOOKUP(AG67,'CRUCE RIESGOS'!$C$8:$D$156,2,FALSE),"") ->  | AI67: 12.29 | AJ67: =IFERROR(VLOOKUP(AI67,'CRUCE RIESGOS'!$C$8:$D$156,2,FALSE),"") ->  | AK67: 13.29 | AL67: =IFERROR(VLOOKUP(AK67,'CRUCE RIESGOS'!$C$8:$D$156,2,FALSE),"") ->  | AM67: 14.29 | AN67: =IFERROR(VLOOKUP(AM67,'CRUCE RIESGOS'!$C$8:$D$156,2,FALSE),"") ->  | AO67: 15.29 | AP67: =IFERROR(VLOOKUP(AO67,'CRUCE RIESGOS'!$C$8:$D$156,2,FALSE),"") ->  | AQ67: 16.29 | AR67: =IFERROR(VLOOKUP(AQ67,'CRUCE RIESGOS'!$C$8:$D$156,2,FALSE),"") ->  | AS67: 17.29 | AT67: =IFERROR(VLOOKUP(AS67,'CRUCE RIESGOS'!$C$8:$D$156,2,FALSE),"") ->  | AU67: 18.29 | AV67: =IFERROR(VLOOKUP(AU67,'CRUCE RIESGOS'!$C$8:$D$156,2,FALSE),"") ->  | AW67: 19.29 | AX67: =IFERROR(VLOOKUP(AW67,'CRUCE RIESGOS'!$C$8:$D$156,2,FALSE),"") ->  | AY67: 20.29 | AZ67: =IFERROR(VLOOKUP(AY67,'CRUCE RIESGOS'!$C$8:$D$156,2,FALSE),"") ->  | BA67: 21.29 | BB67: =IFERROR(VLOOKUP(BA67,'CRUCE RIESGOS'!$C$8:$D$156,2,FALSE),"") ->  | BC67: 22.29 | BD67: =IFERROR(VLOOKUP(BC67,'CRUCE RIESGOS'!$C$8:$D$156,2,FALSE),"") ->  | BE67: 23.29 | BF67: =IFERROR(VLOOKUP(BE67,'CRUCE RIESGOS'!$C$8:$D$156,2,FALSE),"") ->  | BG67: 24.29 | BH67: =IFERROR(VLOOKUP(BG67,'CRUCE RIESGOS'!$C$8:$D$156,2,FALSE),"") ->  | BI67: 25.29 | BJ67: =IFERROR(VLOOKUP(BI67,'CRUCE RIESGOS'!$C$8:$D$156,2,FALSE),"") -> 
N68: =IF(N69<>""," -R","") ->  | P68: =IF(P69<>""," -R","") ->  | R68: =IF(R69<>""," -R","") ->  | T68: =IF(T69<>""," -R","") ->  | V68: =IF(V69<>""," -R","") ->  | X68: =IF(X69<>""," -R","") ->  | Z68: =IF(Z69<>""," -R","") ->  | AB68: =IF(AB69<>""," -R","") ->  | AD68: =IF(AD69<>""," -R","") ->  | AF68: =IF(AF69<>""," -R","") ->  | AH68: =IF(AH69<>""," -R","") ->  | AJ68: =IF(AJ69<>""," -R","") ->  | AL68: =IF(AL69<>""," -R","") ->  | AN68: =IF(AN69<>""," -R","") ->  | AP68: =IF(AP69<>""," -R","") ->  | AR68: =IF(AR69<>""," -R","") ->  | AT68: =IF(AT69<>""," -R","") ->  | AV68: =IF(AV69<>""," -R","") ->  | AX68: =IF(AX69<>""," -R","") ->  | AZ68: =IF(AZ69<>""," -R","") ->  | BB68: =IF(BB69<>""," -R","") ->  | BD68: =IF(BD69<>""," -R","") ->  | BF68: =IF(BF69<>""," -R","") ->  | BH68: =IF(BH69<>""," -R","") ->  | BJ68: =IF(BJ69<>""," -R","") -> 
M69: 1.3 | N69: =IFERROR(VLOOKUP(M69,'CRUCE RIESGOS'!$C$8:$D$156,2,FALSE),"") ->  | O69: 2.3 | P69: =IFERROR(VLOOKUP(O69,'CRUCE RIESGOS'!$C$8:$D$156,2,FALSE),"") ->  | Q69: 3.3 | R69: =IFERROR(VLOOKUP(Q69,'CRUCE RIESGOS'!$C$8:$D$156,2,FALSE),"") ->  | S69: 4.3 | T69: =IFERROR(VLOOKUP(S69,'CRUCE RIESGOS'!$C$8:$D$156,2,FALSE),"") ->  | U69: 5.3 | V69: =IFERROR(VLOOKUP(U69,'CRUCE RIESGOS'!$C$8:$D$156,2,FALSE),"") ->  | W69: 6.3 | X69: =IFERROR(VLOOKUP(W69,'CRUCE RIESGOS'!$C$8:$D$156,2,FALSE),"") ->  | Y69: 7.3 | Z69: =IFERROR(VLOOKUP(Y69,'CRUCE RIESGOS'!$C$8:$D$156,2,FALSE),"") ->  | AA69: 8.3 | AB69: =IFERROR(VLOOKUP(AA69,'CRUCE RIESGOS'!$C$8:$D$156,2,FALSE),"") ->  | AC69: 9.3 | AD69: =IFERROR(VLOOKUP(AC69,'CRUCE RIESGOS'!$C$8:$D$156,2,FALSE),"") ->  | AE69: 10.3 | AF69: =IFERROR(VLOOKUP(AE69,'CRUCE RIESGOS'!$C$8:$D$156,2,FALSE),"") ->  | AG69: 11.3 | AH69: =IFERROR(VLOOKUP(AG69,'CRUCE RIESGOS'!$C$8:$D$156,2,FALSE),"") ->  | AI69: 12.3 | AJ69: =IFERROR(VLOOKUP(AI69,'CRUCE RIESGOS'!$C$8:$D$156,2,FALSE),"") ->  | AK69: 13.3 | AL69: =IFERROR(VLOOKUP(AK69,'CRUCE RIESGOS'!$C$8:$D$156,2,FALSE),"") ->  | AM69: 14.3 | AN69: =IFERROR(VLOOKUP(AM69,'CRUCE RIESGOS'!$C$8:$D$156,2,FALSE),"") ->  | AO69: 15.3 | AP69: =IFERROR(VLOOKUP(AO69,'CRUCE RIESGOS'!$C$8:$D$156,2,FALSE),"") ->  | AQ69: 16.3 | AR69: =IFERROR(VLOOKUP(AQ69,'CRUCE RIESGOS'!$C$8:$D$156,2,FALSE),"") ->  | AS69: 17.3 | AT69: =IFERROR(VLOOKUP(AS69,'CRUCE RIESGOS'!$C$8:$D$156,2,FALSE),"") ->  | AU69: 18.3 | AV69: =IFERROR(VLOOKUP(AU69,'CRUCE RIESGOS'!$C$8:$D$156,2,FALSE),"") ->  | AW69: 19.3 | AX69: =IFERROR(VLOOKUP(AW69,'CRUCE RIESGOS'!$C$8:$D$156,2,FALSE),"") ->  | AY69: 20.3 | AZ69: =IFERROR(VLOOKUP(AY69,'CRUCE RIESGOS'!$C$8:$D$156,2,FALSE),"") ->  | BA69: 21.3 | BB69: =IFERROR(VLOOKUP(BA69,'CRUCE RIESGOS'!$C$8:$D$156,2,FALSE),"") ->  | BC69: 22.3 | BD69: =IFERROR(VLOOKUP(BC69,'CRUCE RIESGOS'!$C$8:$D$156,2,FALSE),"") ->  | BE69: 23.3 | BF69: =IFERROR(VLOOKUP(BE69,'CRUCE RIESGOS'!$C$8:$D$156,2,FALSE),"") ->  | BG69: 24.3 | BH69: =IFERROR(VLOOKUP(BG69,'CRUCE RIESGOS'!$C$8:$D$156,2,FALSE),"") ->  | BI69: 25.3 | BJ69: =IFERROR(VLOOKUP(BI69,'CRUCE RIESGOS'!$C$8:$D$156,2,FALSE),"") -> 
N70: =IF(N71<>""," -R","") ->  | P70: =IF(P71<>""," -R","") ->  | R70: =IF(R71<>""," -R","") ->  | T70: =IF(T71<>""," -R","") ->  | V70: =IF(V71<>""," -R","") ->  | X70: =IF(X71<>""," -R","") ->  | Z70: =IF(Z71<>""," -R","") ->  | AB70: =IF(AB71<>""," -R","") ->  | AD70: =IF(AD71<>""," -R","") ->  | AF70: =IF(AF71<>""," -R","") ->  | AH70: =IF(AH71<>""," -R","") ->  | AJ70: =IF(AJ71<>""," -R","") ->  | AL70: =IF(AL71<>""," -R","") ->  | AN70: =IF(AN71<>""," -R","") ->  | AP70: =IF(AP71<>""," -R","") ->  | AR70: =IF(AR71<>""," -R","") ->  | AT70: =IF(AT71<>""," -R","") ->  | AV70: =IF(AV71<>""," -R","") ->  | AX70: =IF(AX71<>""," -R","") ->  | AZ70: =IF(AZ71<>""," -R","") ->  | BB70: =IF(BB71<>""," -R","") ->  | BD70: =IF(BD71<>""," -R","") ->  | BF70: =IF(BF71<>""," -R","") ->  | BH70: =IF(BH71<>""," -R","") ->  | BJ70: =IF(BJ71<>""," -R","") -> 
